Workbook

Sheet Cover

Sheet Sheet1 (hidden)
A4: 1 | B4: Figure1 | C4: Click here
A6: 2 | B6: PPP
D7: Ulaanbaatar | E7: Dakar | F7: São Paulo
C8: PPP conversion factor | D8: ='User Input -Scenario Assumption'!E127 -> 5.57 | E8: ='User Input -Scenario Assumption'!E126 -> 1.37 | F8: NA
C9: Hypertension cost (in USD) | D9: ='User Input -Scenario Assumption'!G150 -> 34 | E9: ='User Input -Scenario Assumption'!F150 -> 139 | F9: ='User Input -Scenario Assumption'!E150 -> 191
C10: CHD event cost (in USD) | D10: ='User Input -Scenario Assumption'!G152 -> 273 | E10: ='User Input -Scenario Assumption'!F152 -> 1111 | F10: ='User Input -Scenario Assumption'!E152 -> 1522
C11: Stroke event cost (in USD) | D11: ='User Input -Scenario Assumption'!G153 -> 1,053 | E11: ='User Input -Scenario Assumption'!F153 -> 4,280 | F11: ='User Input -Scenario Assumption'!E153 -> 5,864
C12: Indirect costs: annual loss of productivity (in USD) | D12: ='User Input -Scenario Assumption'!G165 -> 27 | E12: ='User Input -Scenario Assumption'!F165 -> 112 | F12: ='User Input -Scenario Assumption'!E165 -> 153
C13: Net program cost (in USD) | D13: ='User Input -Scenario Assumption'!G136*'User Input -Scenario Assumption'!G137 -> 663,771 | E13: ='User Input -Scenario Assumption'!F136*'User Input -Scenario Assumption'!F137 -> 428,927 | F13: ='User Input -Scenario Assumption'!E136*'User Input -Scenario Assumption'!E137 -> 591,229
A19: 3 | B19: Age-specific hypertension utility
C20: Age-specific hypertension utility
C21: Age 50-59 | D21: ='User Input -Scenario Assumption'!E171 -> 0.84
C22: Age 60-69 | D22: ='User Input -Scenario Assumption'!E172 -> 0.82
C23: Age 70-79 | D23: ='User Input -Scenario Assumption'!E173 -> 0.78
C24: Age 80-100 | D24: ='User Input -Scenario Assumption'!E174 -> 0.74
C25: CV event utility cost (annual)
C26: Coronary heart disease | D26: ='User Input -Scenario Assumption'!E176 -> -0.018
C27: Stroke | D27: ='User Input -Scenario Assumption'!E177 -> -0.048
A30: 4 | C30: Event rates and cumulative number of events during the reporting period | E30: Click here
D35: =D7 -> Ulaanbaatar | G35: =E7 -> Dakar | J35: =F7 -> São Paulo
C36: Events averted (cumulative) | D36: CHD | E36: Stroke | F36: Death | G36: CHD | H36: Stroke | I36: Death | J36: CHD | K36: Stroke | L36: Death
C37: ='Results_Events_ averted'!DI10 -> Year1 | D37: ='Results_Events_ averted'!EB10 -> 5 | E37: ='Results_Events_ averted'!EC10 -> 2 | F37: ='Results_Events_ averted'!ED10 -> 21 | G37: ='Results_Events_ averted'!DS10 -> 3 | H37: ='Results_Events_ averted'!DT10 -> 1 | I37: ='Results_Events_ averted'!DU10 -> 3 | J37: ='Results_Events_ averted'!DJ10 -> 11 | K37: ='Results_Events_ averted'!DK10 -> 4 | L37: ='Results_Events_ averted'!DL10 -> 17
C38: ='Results_Events_ averted'!DI11 -> Year2 | D38: ='Results_Events_ averted'!EB11 -> 10 | E38: ='Results_Events_ averted'!EC11 -> 4 | F38: ='Results_Events_ averted'!ED11 -> 48 | G38: ='Results_Events_ averted'!DS11 -> 6 | H38: ='Results_Events_ averted'!DT11 -> 2 | I38: ='Results_Events_ averted'!DU11 -> 6 | J38: ='Results_Events_ averted'!DJ11 -> 22 | K38: ='Results_Events_ averted'!DK11 -> 8 | L38: ='Results_Events_ averted'!DL11 -> 35
C39: ='Results_Events_ averted'!DI12 -> Year3 | D39: ='Results_Events_ averted'!EB12 -> 14 | E39: ='Results_Events_ averted'!EC12 -> 5 | F39: ='Results_Events_ averted'!ED12 -> 73 | G39: ='Results_Events_ averted'!DS12 -> 9 | H39: ='Results_Events_ averted'!DT12 -> 3 | I39: ='Results_Events_ averted'!DU12 -> 9 | J39: ='Results_Events_ averted'!DJ12 -> 32 | K39: ='Results_Events_ averted'!DK12 -> 12 | L39: ='Results_Events_ averted'!DL12 -> 53
C40: ='Results_Events_ averted'!DI13 -> Year4 | D40: ='Results_Events_ averted'!EB13 -> 18 | E40: ='Results_Events_ averted'!EC13 -> 7 | F40: ='Results_Events_ averted'!ED13 -> 98 | G40: ='Results_Events_ averted'!DS13 -> 12 | H40: ='Results_Events_ averted'!DT13 -> 4 | I40: ='Results_Events_ averted'!DU13 -> 12 | J40: ='Results_Events_ averted'!DJ13 -> 42 | K40: ='Results_Events_ averted'!DK13 -> 15 | L40: ='Results_Events_ averted'!DL13 -> 71
C41: ='Results_Events_ averted'!DI14 -> Year5 | D41: ='Results_Events_ averted'!EB14 -> 22 | E41: ='Results_Events_ averted'!EC14 -> 8 | F41: ='Results_Events_ averted'!ED14 -> 120 | G41: ='Results_Events_ averted'!DS14 -> 14 | H41: ='Results_Events_ averted'!DT14 -> 5 | I41: ='Results_Events_ averted'!DU14 -> 15 | J41: ='Results_Events_ averted'!DJ14 -> 50 | K41: ='Results_Events_ averted'!DK14 -> 19 | L41: ='Results_Events_ averted'!DL14 -> 90
C42: ='Results_Events_ averted'!DI15 -> Year6 | D42: ='Results_Events_ averted'!EB15 -> 25 | E42: ='Results_Events_ averted'!EC15 -> 10 | F42: ='Results_Events_ averted'!ED15 -> 142 | G42: ='Results_Events_ averted'!DS15 -> 17 | H42: ='Results_Events_ averted'!DT15 -> 6 | I42: ='Results_Events_ averted'!DU15 -> 19 | J42: ='Results_Events_ averted'!DJ15 -> 58 | K42: ='Results_Events_ averted'!DK15 -> 22 | L42: ='Results_Events_ averted'!DL15 -> 109
C43: ='Results_Events_ averted'!DI16 -> Year7 | D43: ='Results_Events_ averted'!EB16 -> 28 | E43: ='Results_Events_ averted'!EC16 -> 11 | F43: ='Results_Events_ averted'!ED16 -> 174 | G43: ='Results_Events_ averted'!DS16 -> 19 | H43: ='Results_Events_ averted'!DT16 -> 7 | I43: ='Results_Events_ averted'!DU16 -> 23 | J43: ='Results_Events_ averted'!DJ16 -> 65 | K43: ='Results_Events_ averted'!DK16 -> 24 | L43: ='Results_Events_ averted'!DL16 -> 128
C44: ='Results_Events_ averted'!DI17 -> Year8 | D44: ='Results_Events_ averted'!EB17 -> 30 | E44: ='Results_Events_ averted'!EC17 -> 12 | F44: ='Results_Events_ averted'!ED17 -> 204 | G44: ='Results_Events_ averted'!DS17 -> 22 | H44: ='Results_Events_ averted'!DT17 -> 8 | I44: ='Results_Events_ averted'!DU17 -> 27 | J44: ='Results_Events_ averted'!DJ17 -> 72 | K44: ='Results_Events_ averted'!DK17 -> 27 | L44: ='Results_Events_ averted'!DL17 -> 147
C45: ='Results_Events_ averted'!DI18 -> Year9 | D45: ='Results_Events_ averted'!EB18 -> 32 | E45: ='Results_Events_ averted'!EC18 -> 13 | F45: ='Results_Events_ averted'!ED18 -> 230 | G45: ='Results_Events_ averted'!DS18 -> 24 | H45: ='Results_Events_ averted'!DT18 -> 9 | I45: ='Results_Events_ averted'!DU18 -> 31 | J45: ='Results_Events_ averted'!DJ18 -> 77 | K45: ='Results_Events_ averted'!DK18 -> 29 | L45: ='Results_Events_ averted'!DL18 -> 166
C46: ='Results_Events_ averted'!DI19 -> Year10 | D46: ='Results_Events_ averted'!EB19 -> 34 | E46: ='Results_Events_ averted'!EC19 -> 13 | F46: ='Results_Events_ averted'!ED19 -> 254 | G46: ='Results_Events_ averted'!DS19 -> 26 | H46: ='Results_Events_ averted'!DT19 -> 10 | I46: ='Results_Events_ averted'!DU19 -> 34 | J46: ='Results_Events_ averted'!DJ19 -> 82 | K46: ='Results_Events_ averted'!DK19 -> 31 | L46: ='Results_Events_ averted'!DL19 -> 184

Sheet Model Framework
D3: Model Framwork
D30: Figure1
D58: Figure1- Projection Phase

Sheet User Input -Scenario Assumption
E2: User input Cells | F2: Formula Based cells | R2: Period | S2: Event calculation time
E3: Sao Paulo | F3: =F6 -> Dakar | G3: =G6 -> UlaanBaatar | R3: Q4'18 to Q4'19 | S3: One Year | U3: Q1'19 to Q4'19
B4: Scenario assumption | C4: Select Intervention period | E4: Q4'18 to Q4'19 | F4: Q1'19 to Q4'19 | G4: Feb'18 to Sep19 | R4: Q4'18 to Q3'20 | S4: Two Year | U4: Q2'18 to Q3'20
C6: Intervention Period in year | E6: Sao Paulo | F6: Dakar | G6: UlaanBaatar
C7: Base case | E7: =VLOOKUP(E4,R3:S4,2,0) -> One Year | F7: One Year | G7: Two Year
B8: Q3'2020 | C8: Upside
C9: Downside
I10: User Input
C11: Population (Total Tx at last time point (Q4'20) | E11: Sao Paulo | F11: Dakar | G11: UlaanBaatar | I11: Sao Paulo | J11: Dakar | K11: UlaanBaatar
C12: =C7 -> Base case | E12: =IF(I12<>"",I12,'Raw Data - SP'!BL4*4) -> 5844 | F12: =IF(J12<>"",J12,'Raw Data - DK'!BE5) -> 5236 | G12: =IF(I12<>"",I12,'Raw Data - UB'!BL4) -> 10075 | M12: *SP population linearly extrapolated to 24 clinics from data of 6
C13: =C8 -> Upside
C14: =C9 -> Downside
I15: User Input
C16: Mean Age of Total Tx at last time point) | E16: Sao Paulo | F16: Dakar | G16: UlaanBaatar | I16: Sao Paulo | J16: Dakar | K16: UlaanBaatar
C17: =C12 -> Base case | E17: =IF(I17<>"",I17,'Raw Data - SP'!BG97) -> 62 | F17: =IF(J17<>"",J17,'Raw Data - DK'!BG124) -> 58 | G17: =IF(I17<>"",I17,'Raw Data - UB'!BG97) -> 61
C18: =C13 -> Upside
C19: =C14 -> Downside
C21: Male proportion in Total Tx at last time point) | E21: Sao Paulo | F21: Dakar | G21: UlaanBaatar | I21: Sao Paulo | J21: Dakar | K21: UlaanBaatar
C22: =C17 -> Base case | E22: =IF(I22<>"",I22,'Raw Data - SP'!BH97) -> 27% | F22: =IF(J22<>"",J22,'Raw Data - DK'!BH124) -> 22% | G22: =IF(K22<>"",K22,'Raw Data - UB'!BH97) -> 37%
C23: =C18 -> Upside
C24: =C19 -> Downside
C26: BP Category | D26: BP Category | E26: Sao Paulo | F26: Dakar | G26: UlaanBaatar
C27: =C12 -> Base case | D27: <120 and <80 mmHg | E27: Controlled | F27: Controlled | G27: Controlled
D28: 120-129 or 80-84 | E28: Controlled | F28: Controlled | G28: Controlled
D29: 130 - 139 or 85 - 89 | E29: Controlled | F29: Controlled | G29: Uncontrolled
D30: 140 - 159 or 90 - 99 | E30: Uncontrolled | F30: Uncontrolled | G30: Uncontrolled
D31: 160 - 179 or 100 - 109 | E31: Uncontrolled | F31: Uncontrolled | G31: Uncontrolled
D32: ≥ 180 or ≥ 110 | E32: Uncontrolled | F32: Uncontrolled | G32: Uncontrolled
C33: =C13 -> Upside | D33: <120 and <80 mmHg | E33: Controlled | F33: Controlled | G33: Controlled
D34: 120-129 or 80-84 | E34: Controlled | F34: Controlled | G34: Controlled
D35: 130 - 139 or 85 - 89 | E35: Controlled | F35: Controlled | G35: Uncontrolled
D36: 140 - 159 or 90 - 99 | E36: Uncontrolled | F36: Uncontrolled | G36: Uncontrolled
D37: 160 - 179 or 100 - 109 | E37: Uncontrolled | F37: Uncontrolled | G37: Uncontrolled
D38: ≥ 180 or ≥ 110 | E38: Uncontrolled | F38: Uncontrolled | G38: Uncontrolled
C39: =C14 -> Downside | D39: <120 and <80 mmHg | E39: Controlled | F39: Controlled | G39: Controlled
D40: 120-129 or 80-84 | E40: Controlled | F40: Controlled | G40: Controlled
D41: 130 - 139 or 85 - 89 | E41: Controlled | F41: Controlled | G41: Uncontrolled
D42: 140 - 159 or 90 - 99 | E42: Uncontrolled | F42: Uncontrolled | G42: Uncontrolled
D43: 160 - 179 or 100 - 109 | E43: Uncontrolled | F43: Uncontrolled | G43: Uncontrolled
D44: ≥ 180 or ≥ 110 | E44: Uncontrolled | F44: Uncontrolled | G44: Uncontrolled
I47: User input
C48: BP categories distribution for total treated patients | E48: Sao Paulo | F48: Dakar | G48: UlaanBaatar | I48: Sao Paulo | J48: Dakar | K48: UlaanBaatar
C49: =C27 -> Base case | D49: =D27 -> <120 and <80 mmHg | E49: =IF(I49<>"",I49,'Scenario calculation'!J20) -> 2.5% | F49: =IF(J49<>"",J49,'Scenario calculation'!K20) -> 1.8% | G49: =IF(K49<>"",K49,'Scenario calculation'!L20) -> 1.0%
D50: =D28 -> 120-129 or 80-84 | E50: =IF(I50<>"",I50,'Scenario calculation'!J21) -> 5.8% | F50: =IF(J50<>"",J50,'Scenario calculation'!K21) -> 3.8% | G50: =IF(K50<>"",K50,'Scenario calculation'!L21) -> 2.1%
D51: =D29 -> 130 - 139 or 85 - 89 | E51: =IF(I51<>"",I51,'Scenario calculation'!J22) -> 3.9% | F51: =IF(J51<>"",J51,'Scenario calculation'!K22) -> 7.7% | G51: =IF(K51<>"",K51,'Scenario calculation'!L22) -> 23.4%
D52: =D30 -> 140 - 159 or 90 - 99 | E52: =IF(I52<>"",I52,'Scenario calculation'!J23) -> 42.4% | F52: =IF(J52<>"",J52,'Scenario calculation'!K23) -> 39.3% | G52: =IF(K52<>"",K52,'Scenario calculation'!L23) -> 39.8%
D53: =D31 -> 160 - 179 or 100 - 109 | E53: =IF(I53<>"",I53,'Scenario calculation'!J24) -> 33.7% | F53: =IF(J53<>"",J53,'Scenario calculation'!K24) -> 27.2% | G53: =IF(K53<>"",K53,'Scenario calculation'!L24) -> 25.2%
D54: =D32 -> ≥ 180 or ≥ 110 | E54: =IF(I54<>"",I54,'Scenario calculation'!J25) -> 11.6% | F54: =IF(J54<>"",J54,'Scenario calculation'!K25) -> 20.2% | G54: =IF(K54<>"",K54,'Scenario calculation'!L25) -> 8.5%
D55: Total | E55: =SUM(E49:E54) -> 100.0% | F55: =SUM(F49:F54) -> 100.0% | G55: =SUM(G49:G54) -> 100.0%
C56: =C33 -> Upside | D56: =D33 -> <120 and <80 mmHg
D57: =D34 -> 120-129 or 80-84
D58: =D35 -> 130 - 139 or 85 - 89
D59: =D36 -> 140 - 159 or 90 - 99
D60: =D37 -> 160 - 179 or 100 - 109
D61: =D38 -> ≥ 180 or ≥ 110
D62: Total | E62: =SUM(E56:E61) -> 0.0% | F62: =SUM(F56:F61) -> 0.0% | G62: =SUM(G56:G61) -> 0.0%
C63: =C39 -> Downside | D63: =D39 -> <120 and <80 mmHg
D64: =D40 -> 120-129 or 80-84
D65: =D41 -> 130 - 139 or 85 - 89
D66: =D42 -> 140 - 159 or 90 - 99
D67: =D43 -> 160 - 179 or 100 - 109
D68: =D44 -> ≥ 180 or ≥ 110
D69: Total | E69: =SUM(E63:E68) -> 0.0% | F69: =SUM(F63:F68) -> 0.0% | G69: =SUM(G63:G68) -> 0.0%
L71: User Input
C72: Post CARDIO Intervention period | E72: With CARDIO | H72: Without CARDIO | L72: With CARDIO
C73: BP categories distribution change (multiplier factor) | E73: Sao Paulo | F73: Dakar | G73: UlaanBaatar | H73: Sao Paulo | I73: Dakar | J73: UlaanBaatar | L73: Sao Paulo | M73: Dakar | N73: UlaanBaatar
C74: =C49 -> Base case | D74: Total controlled (N) | E74: =IF(L74<>"",L74,'Raw Data - SP'!BM4*4) -> 1,824 | F74: =IF(M74<>"",M74,'Raw Data - DK'!BM5) -> 1,016 | G74: =IF(N74<>"",N74,'Raw Data - UB'!BM4) -> 1,986 | H74: =E74 -> 1,824 | I74: =F74 -> 1,016 | J74: =G74 -> 1,986
D75: =D49 -> <120 and <80 mmHg | E75: =IF(L75<>"",L75,'Scenario calculation'!H58) -> 100.0% | F75: =IF(M75<>"",M75,'Scenario calculation'!I58) -> 100.0% | G75: =IF(N75<>"",N75,'Scenario calculation'!J58) -> 100.0% | H75: 100.0% | I75: 100.0% | J75: 100.0%
D76: 120-129 or 80-84 | E76: =IF(L76<>"",L76,'Scenario calculation'!H59) -> 100.0% | F76: =IF(M76<>"",M76,'Scenario calculation'!I59) -> 100.0% | G76: =IF(N76<>"",N76,'Scenario calculation'!J59) -> 100.0% | H76: 100.0% | I76: 100.0% | J76: 100.0%
D77: 130 - 139 or 85 - 89 | E77: =IF(L77<>"",L77,'Scenario calculation'!H60) -> 100.0% | F77: =IF(M77<>"",M77,'Scenario calculation'!I60) -> 100.0% | G77: =IF(N77<>"",N77,'Scenario calculation'!J60) -> 17.2% | H77: 100.0% | I77: 100.0% | J77: 0.0%
D78: 140 - 159 or 90 - 99 | E78: =IF(L78<>"",L78,'Scenario calculation'!H61) -> 21.6% | F78: =IF(M78<>"",M78,'Scenario calculation'!I61) -> 7.0% | G78: =IF(N78<>"",N78,'Scenario calculation'!J61) -> 17.2% | H78: 0.0% | I78: 0.0% | J78: 0.0%
D79: 160 - 179 or 100 - 109 | E79: =IF(L79<>"",L79,'Scenario calculation'!H62) -> 21.6% | F79: =IF(M79<>"",M79,'Scenario calculation'!I62) -> 7.0% | G79: =IF(N79<>"",N79,'Scenario calculation'!J62) -> 17.2% | H79: 0.0% | I79: 0.0% | J79: 0.0%
D80: ≥ 180 or ≥ 110 | E80: =IF(L80<>"",L80,'Scenario calculation'!H63) -> 21.6% | F80: =IF(M80<>"",M80,'Scenario calculation'!I63) -> 7.0% | G80: =IF(N80<>"",N80,'Scenario calculation'!J63) -> 17.2% | H80: 0.0% | I80: 0.0% | J80: 0.0%
C81: =C56 -> Upside | D81: =D74 -> Total controlled (N)
D82: =D75 -> <120 and <80 mmHg
D83: 120-129 or 80-84
D84: 130 - 139 or 85 - 89
D85: 140 - 159 or 90 - 99
D86: 160 - 179 or 100 - 109
D87: ≥ 180 or ≥ 110
C88: =C63 -> Downside | D88: =D81 -> Total controlled (N)
D89: =D82 -> <120 and <80 mmHg
D90: 120-129 or 80-84
D91: 130 - 139 or 85 - 89
D92: 140 - 159 or 90 - 99
D93: 160 - 179 or 100 - 109
D94: ≥ 180 or ≥ 110
B97: 10 years Projection phase | C97: Projection Phase -Time horizon (in years) | E97: Sao Paulo | F97: Dakar | G97: UlaanBaatar
C98: Base case | E98: 10 | F98: =E98 -> 10 | G98: 10
C99: Upside | E99: 10 | F99: 10 | G99: 10
C100: Downside | E100: 10 | F100: 10 | G100: 10
C101: Projection Phase - Discount rate
C102: Base case | D102: Discount (costs) | E102: 5% | F102: 3.0% | G102: 3%
D103: Discount (benefits) | E103: 5% | F103: 3.0% | G103: 3%
C104: =C81 -> Upside | D104: Discount (costs)
D105: Discount (benefits)
C106: =C88 -> Downside | D106: Discount (costs)
D107: Discount (benefits)
E108: Calculated | L108: User Input
E109: =Efficacy!E33 -> Before CARDIO | H109: =Efficacy!G33 -> After CARDIO | L109: =E109 -> Before CARDIO | O109: =H109 -> After CARDIO
C110: Risk of CV (Annual) | E110: Sao Paulo | F110: Dakar | G110: UlaanBaatar | H110: Sao Paulo | I110: Dakar | J110: UlaanBaatar | L110: Sao Paulo | M110: Dakar | N110: UlaanBaatar | O110: Sao Paulo | P110: Dakar | Q110: UlaanBaatar
C111: =C74 -> Base case | D111: Coronary heart disease*(CVD) | E111: =IF(L111<>"",L111,IF($E7="One Year",Efficacy!Y$42,Efficacy!Y$42)) -> 2.29% | F111: =IF(M111<>"",M111,IF($F$7="One Year",Efficacy!$E$42,Efficacy!$E$42)) -> 1.96% | G111: =IF(N111<>"",N111,IF($G$7="One Year",Efficacy!$O$42,Efficacy!$O$42)) -> 1.08% | H111: =IF(O111<>"",O111,IF($E7="One Year",Efficacy!AA$42,Efficacy!AA$42)) -> 2.22% | I111: =IF(P111<>"",P111,IF($F$7="One Year",Efficacy!$G$42,Efficacy!$G$42)) -> 1.94% | J111: =IF(Q111<>"",Q111,IF($G$7="One Year",Efficacy!$Q$42,Efficacy!$Q$42)) -> 1.07%
D112: Proportion of CHD events that are Stroke | E112: 30.00% | F112: 30.00% | G112: 30.00% | H112: 30.00% | I112: 30.00% | J112: 30.00%
C113: =C81 -> Upside | D113: =D111 -> Coronary heart disease*(CVD)
D114: =D112 -> Proportion of CHD events that are Stroke
C115: =C88 -> Downside | D115: =D111 -> Coronary heart disease*(CVD)
D116: =D112 -> Proportion of CHD events that are Stroke
E117: Note:*Annual Risk of CVD includes CHD, stroke, heart failure, and CVD deaths
C118: Costs Assumptions (in USD) | H118: =H111/E111-1 -> -0.03179055485 | I118: =I111/F111-1 -> -0.0109335748 | J118: =J111/G111-1 -> -0.01049938683
C120: Exchange Rate: Real to USD | E120: Sao Paulo
C121: Base case | E121: 0.19
C122: Upside
C123: Downside
C125: Purchasing power parity conversion factor | E125: =E110 -> Sao Paulo
C126: =C111 -> Base case | D126: Sao Paulo to Senegal | E126: 1.37
D127: Sao Paulo to Mongolia | E127: 5.57
C128: =C113 -> Upside | D128: =D126 -> Sao Paulo to Senegal
D129: =D126 -> Sao Paulo to Senegal
C130: =C115 -> Downside | D130: =D127 -> Sao Paulo to Mongolia | M130: Cost of CARDIO implementation
D131: =D126 -> Sao Paulo to Senegal | N131: São Paulo | O131: Dakar | P131: Ulaanbaatar
M132: Intervention period | N132: Oct 2018 – Dec 2019 | O132: April 2018 – Dec 2018** | P132: Feb 2018 – Sep 2019
O133: Jan 2019 – Dec 2019***
M134: Period of intervention (months) | N134: 15 | O134: 12 | P134: 20
C135: CARDIO Programe costs Assumptions (in USD) | E135: Sao Paulo | F135: Dakar | G135: UlaanBaatar | M135: In-country implementation budget spend (USD)* | N135: 1,391,127.95 | O135: 523,257.96** | P135: 1,561,814.77
C136: =C111 -> Base case | D136: CARDIO Direct costs | E136: $1,182,459 | F136: $857,854 | G136: $1,327,543 | O136: 1,009,239.54
D137: Adjustment factor | E137: =N141 -> 50% | F137: =O141 -> 50% | G137: =P141 -> 50% | M137: In-country partner overhead discount (15%) (USD) | N137: 208,669 | O137: 151,386 | P137: 234,272
C138: =C113 -> Upside | D138: =D136 -> CARDIO Direct costs | M138: Budget minus overhead (USD) | N138: 1,182,459 | O138: 857,854 | P138: 1,327,543
D139: =D137 -> Adjustment factor | M139: Preparatory activities discount (50%) (USD) | N139: 591,229 | O139: 428,927 | P139: 663,771
C140: =C115 -> Downside | D140: =D138 -> CARDIO Direct costs | M140: Final implementation budget for modelling (USD) | N140: 591,229.38 | O140: 428,926.80 | P140: 663,771.28
D141: =D139 -> Adjustment factor | M141: Discount % | N141: =N140/N138 -> 50% | O141: =O140/O138 -> 50% | P141: =P140/P138 -> 50%
N143: 663,771 | O143: 428,927 | P143: 591,229
C144: Post CARDIO running. Cost % of net CARDIO Direct cost | E144: Sao Paulo | F144: Dakar | G144: UlaanBaatar
C145: Base case | E145: 10% | F145: 10% | G145: 10%
B146: "0.XX" Reduction in base case cost value | C146: Upside
C147: Downside
I148: User input
C149: Event Cost | E149: Sao Paulo | F149: Dakar | G149: UlaanBaatar | I149: Sao Paulo | J149: Dakar | K149: UlaanBaatar
C150: =C136 -> Base case | D150: Hypertension - controlled | E150: $191 | F150: =IF(J150<>"",J150,E150/E126) -> $139 | G150: =IF(K150<>"",K150,E150/E127) -> $34
D151: Hypertension - uncontrolled | E151: $191 | F151: =IF(J151<>"",J151,E151/E126) -> $139 | G151: =IF(K151<>"",K151,E151/E127) -> $34
D152: Coronary heart disease/event | E152: $1,522 | F152: =IF(J152<>"",J152,E152/E126) -> $1,111 | G152: =IF(K152<>"",K152,E152/E127) -> $273
D153: Stroke/event | E153: $5,864 | F153: =IF(J153<>"",J153,E153/E126) -> $4,280 | G153: =IF(K153<>"",K153,E153/E127) -> $1,053
C154: =C138 -> Upside | D154: =D150 -> Hypertension - controlled
D155: Hypertension - uncontrolled
D156: Coronary heart disease/event
D157: Stroke/event
C158: =C140 -> Downside | D158: Hypertension - controlled
D159: Hypertension - uncontrolled
D160: Coronary heart disease/event
D161: Stroke/event
I163: User input | P163: Source:https://data.worldbank.org/indicator/FP.CPI.TOTL.ZG?locations=BR
C164: Indirect costs- Annual loss of productivity cost (HTN) | E164: Sao Paulo | F164: Dakar | G164: UlaanBaatar | I164: Sao Paulo | J164: Dakar | K164: UlaanBaatar | P164: Productivity loss adjusted with inflation (2003-2019)
C165: Base case | E165: $153.13 | F165: =IF(J165<>"",J165,E165/E126) -> $111.77 | G165: =IF(K165<>"",K165,E165/E127) -> $27.49 | P165: 153.13 | Q165: 55.68
C166: Upside
C167: Downside | W167: Source: Mould-Quevedo et al 2015
C169: Utility of health states | E169: Sao Paulo | F169: Dakar | G169: UlaanBaatar | Q169: Utility Calculation
C170: =C150 -> Base case | D170: Hypertension utility with age | R170: Female (%) from Raw Data | S170: =Efficacy!AA30 -> 0.00 | T170: =Efficacy!G30 -> 0.00 | U170: =Efficacy!Q30 -> 0.00
D171: Age 50-59 | E171: 0.84 | F171: =E171 -> 0.844 | G171: 0.844 | Q171: Baseline Utility | S171: Normalize Baseline Utility
D172: Age 60-69 | E172: 0.82 | F172: 0.820 | G172: 0.820 | Q172: Male | R172: Female | S172: =E169 -> Sao Paulo | T172: =J164 -> Dakar | U172: =K164 -> UlaanBaatar
D173: Age 70-79 | E173: 0.78 | F173: 0.781 | G173: 0.781 | Q173: 0.86 | R173: 0.84 | S173: =($R173*S$170)+((1-S$170)*$Q173) -> 0.86 | T173: 0.86 | U173: 0.86
D174: Age 80-100 | E174: 0.74 | F174: 0.742 | G174: 0.742 | Q174: 0.84 | R174: 0.81 | S174: 0.84 | T174: 0.84 | U174: 0.84
D175: Disutility (annual) | Q175: 0.80 | R175: 0.77 | S175: 0.80 | T175: 0.80 | U175: 0.80
D176: Coronary heart disease | E176: -0.018 | F176: =E176 -> -0.018 | G176: =E176 -> -0.018 | Q176: 0.78 | R176: 0.72 | S176: 0.78 | T176: 0.78 | U176: 0.78
D177: Stroke | E177: -0.048 | F177: =E177 -> -0.048 | G177: =E177 -> -0.048
C178: =C154 -> Upside | D178: Hypertension utility with age
D179: Age 50-59 | E179: 0.86 | F179: =E179 -> 0.861 | G179: 0.861
D180: Age 60-69 | E180: 0.84 | F180: 0.840 | G180: 0.840
D181: Age 70-79 | E181: 0.80 | F181: 0.802 | G181: 0.802
D182: Age 80-100 | E182: 0.78 | F182: 0.782 | G182: 0.782
D183: Disutility (annual)
D184: Coronary heart disease | E184: -0.018 | F184: =E184 -> -0.018 | G184: =F184 -> -0.018
D185: Stroke | E185: -0.048 | F185: =E185 -> -0.048 | G185: =F185 -> -0.048
C186: =C158 -> Downside | D186: Hypertension utility with age
D187: Age 50-59 | E187: 0.86 | F187: =E187 -> 0.861 | G187: 0.861
D188: Age 60-69 | E188: 0.84 | F188: 0.840 | G188: 0.840
D189: Age 70-79 | E189: 0.80 | F189: 0.802 | G189: 0.802
D190: Age 80-100 | E190: 0.78 | F190: 0.782 | G190: 0.782
D191: Disutility (annual)
D192: Coronary heart disease | E192: -0.018 | F192: -0.018 | G192: -0.018
D193: Stroke | E193: -0.048 | F193: -0.048 | G193: -0.048
C195: Mortality Adjustment Factor | E195: Sao Paulo | F195: Dakar | G195: UlaanBaatar
D196: HTN - Controlled | E196: 2.10 | F196: =E196 -> 2.10 | G196: 2.10
D197: HTN - Uncontrolled | E197: 6.10 | F197: 6.10 | G197: 6.10
D198: HTN - Controlled | E198: 2.10 | F198: 2.10 | G198: 2.10
D199: HTN - Uncontrolled | E199: 6.10 | F199: 6.10 | G199: 6.10
D200: HTN - Controlled | E200: 2.10 | F200: 2.10 | G200: 2.10
D201: HTN - Uncontrolled | E201: 6.10 | F201: 6.10 | G201: 6.10

Sheet Manuscript data
F4: =population_UB -> 10075 | J4: =population_Dakar -> 5236 | N4: =population_SP -> 5844
E5: Ulaanbaatar (n=10,075) | I5: Dakar (n=5236) | M5: São Paulo (n=5844)
E6: No CARDIO | F6: CARDIO | G6: Averted | I6: No CARDIO | J6: CARDIO | K6: Averted | M6: No CARDIO | N6: CARDIO | O6: Averted
C7: Implementation phase
C8: CHD
D9: Total | E9: =ROUND(Results!H12,0) -> 175 | F9: =ROUND(Results!G12,0) -> 157 | G9: =TEXT(E9-F9,"##")&" ("&TEXT(-(F9/E9-1),"0.0%"&")") -> 18 (10.3%) | I9: =ROUND(Results!F12,0) -> 101 | J9: =ROUND(Results!E12,0) -> 98 | K9: =TEXT(I9-J9,"##")&" ("&TEXT(-(J9/I9-1),"0.0%"&")") -> 3 (3.0%) | M9: =ROUND(Results!D12,0) -> 158 | N9: =ROUND(Results!C12,0) -> 139 | O9: =TEXT(M9-N9,"##")&" ("&TEXT(-(N9/M9-1),"0.0%"&")") -> 19 (12.0%)
D10: Per 1,000 patients | E10: =(E9/population_UB)*1000 -> 17.37 | F10: =(F9/population_UB)*1000 -> 15.58 | G10: =E10-F10 -> 1.79 | I10: =(I9/population_Dakar)*1000 -> 19.29 | J10: =(J9/population_Dakar)*1000 -> 18.72 | K10: =I10-J10 -> 0.57 | M10: =(M9/population_SP)*1000 -> 27.0 | N10: =(N9/population_SP)*1000 -> 23.8 | O10: =M10-N10 -> 3.3
C11: Stroke
D12: Total | E12: =ROUND(Results!H13,0) -> 52 | F12: =ROUND(Results!G13,0) -> 47 | G12: =TEXT(E12-F12,"##")&" ("&TEXT(-(F12/E12-1),"0.0%"&")") -> 5 (9.6%) | I12: =ROUND(Results!F13,0) -> 30 | J12: =ROUND(Results!E13,0) -> 29 | K12: =TEXT(I12-J12,"##")&" ("&TEXT(-(J12/I12-1),"0.0%"&")") -> 1 (3.3%) | M12: 47 | N12: 41 | O12: =TEXT(M12-N12,"##")&" ("&TEXT(-(N12/M12-1),"0.0%"&")") -> 6 (12.8%)
D13: Per 1,000 patients | E13: =(E12/population_UB)*1000 -> 5.16 | F13: =(F12/population_UB)*1000 -> 4.67 | G13: =E13-F13 -> 0.50 | I13: =(I12/population_Dakar)*1000 -> 5.73 | J13: =(J12/population_Dakar)*1000 -> 5.54 | K13: =I13-J13 -> 0.19 | M13: =(M12/population_SP)*1000 -> 8.0 | N13: =(N12/population_SP)*1000 -> 7.0 | O13: =M13-N13 -> 1.0
C14: Deaths
D15: Total | E15: =Results!H14 -> 262 | F15: =Results!H14 -> 262 | G15: 0 | I15: =ROUND(Results!F14,0) -> 65 | J15: =ROUND(Results!E14,0) -> 65 | K15: 0 | M15: =Results!D14 -> 167 | N15: =Results!C14 -> 167 | O15: 0
D16: Per 1,000 patients | E16: =(E15/population_UB)*1000 -> 26.00 | F16: =(F15/population_UB)*1000 -> 26.00 | G16: =E16-F16 -> 0.00 | I16: =(I15/population_Dakar)*1000 -> 12.41 | J16: =(J15/population_Dakar)*1000 -> 12.41 | K16: =I16-J16 -> 0.00 | M16: 28.6 | N16: 28.6 | O16: =M16-N16 -> 0.0
C17: Ten-year projection
C18: CHD
D19: Total | E19: =Results!D81 -> 869 | F19: =Results!C81 -> 836 | G19: =TEXT(E19-F19,"##")&" ("&TEXT(-(F19/E19-1),"0.0%"&")") -> 33 (3.8%) | I19: =Results!D56 -> 890 | J19: =Results!C56 -> 865 | K19: =TEXT(I19-J19,"##")&" ("&TEXT(-(J19/I19-1),"0.0%"&")") -> 25 (2.8%) | M19: =Results!D107 -> 1,042 | N19: =Results!C107 -> 961 | O19: =TEXT(M19-N19,"##")&" ("&TEXT(-(N19/M19-1),"0.0%"&")") -> 81 (7.8%)
D20: Per 1,000 patients | E20: =(E19/population_UB)*1000 -> 86.3 | F20: =(F19/population_UB)*1000 -> 83.0 | G20: =E20-F20 -> 3.3 | I20: =(I19/population_Dakar)*1000 -> 170.0 | J20: =(J19/population_Dakar)*1000 -> 165.2 | K20: =I20-J20 -> 4.8 | M20: =(M19/population_SP)*1000 -> 178.3 | N20: =(N19/population_SP)*1000 -> 164.4 | O20: =M20-N20 -> 13.9
C21: Stroke
D22: Total | E22: =Results!D82 -> 261 | F22: =Results!C82 -> 247 | G22: =TEXT(E22-F22,"##")&" ("&TEXT(-(F22/E22-1),"0.0%"&")") -> 14 (5.4%) | I22: =Results!D57 -> 268 | J22: =Results!C57 -> 258 | K22: =TEXT(I22-J22,"##")&" ("&TEXT(-(J22/I22-1),"0.0%"&")") -> 10 (3.7%) | M22: =Results!D108 -> 313 | N22: =Results!C108 -> 282 | O22: =TEXT(M22-N22,"##")&" ("&TEXT(-(N22/M22-1),"0.0%"&")") -> 31 (9.9%)
D23: Per 1,000 patients | E23: =(E22/population_UB)*1000 -> 25.9 | F23: =(F22/population_UB)*1000 -> 24.5 | G23: =E23-F23 -> 1.4 | I23: =(I22/population_Dakar)*1000 -> 51.18 | J23: =(J22/population_Dakar)*1000 -> 49.27 | K23: =I23-J23 -> 1.91 | M23: =(M22/population_SP)*1000 -> 53.6 | N23: =(N22/population_SP)*1000 -> 48.3 | O23: =M23-N23 -> 5.3
C24: Deaths
D25: Total | E25: =Results!D83 -> 3,761 | F25: =Results!C83 -> 3,507 | G25: =TEXT(E25-F25,"##")&" ("&TEXT(-(F25/E25-1),"0.0%"&")") -> 254 (6.8%) | I25: =Results!D58 -> 1,249 | J25: =Results!C58 -> 1,215 | K25: =TEXT(I25-J25,"##")&" ("&TEXT(-(J25/I25-1),"0.0%"&")") -> 34 (2.7%) | M25: =Results!D109 -> 2,343 | N25: =Results!C109 -> 2,159 | O25: =TEXT(M25-N25,"##")&" ("&TEXT(-(N25/M25-1),"0.0%"&")") -> 184 (7.9%)
D26: Per 1,000 patients | E26: =(E25/population_UB)*1000 -> 373.3 | F26: =(F25/population_UB)*1000 -> 348.1 | G26: =E26-F26 -> 25.2 | I26: =(I25/population_Dakar)*1000 -> 238.54 | J26: =(J25/population_Dakar)*1000 -> 232.0 | K26: =I26-J26 -> 6.5 | M26: =(M25/population_SP)*1000 -> 400.9 | N26: =(N25/population_SP)*1000 -> 369.4 | O26: =M26-N26 -> 31.5
E35: Ulaanbaatar | F35: Dakar | G35: São Paulo
C36: Total cost savings from events averted (USD)
D37: CHD (implementation phase) | E37: =-Results!G24 -> $4,944 | F37: =-Results!E24 -> $3,622 | G37: =-Results!C24 -> $29,249
D38: CHD (projection phase) | E38: =Results!G81 -> $8,097 | F38: =Results!G56 -> $24,715 | G38: =Results!G107 -> $99,391
D39: Stroke (implementation phase) | E39: =-Results!G25 -> $6,133 | F39: =-Results!E25 -> $5,072 | G39: =-Results!C25 -> $38,493
D40: Stroke (projection phase) | E40: =Results!G82 -> $12,302 | F40: =Results!G57 -> $35,244 | G40: =Results!G108 -> $145,490
C41: Costs (USD)
D42: Incremental Cost | E42: =Results!C130 -> 661,313 | F42: =Results!C129 -> 375,541 | G42: =Results!C128 -> 448,249
C43: QALYs
D44: Incremental QALYs | E44: =Results!D130 -> 884 | F44: =Results!D129 -> 121 | G44: =Results!D128 -> 572
D45: Incremental QALYs / 1,000 patients | E45: =Results!G130 -> 88 | F45: =Results!G129 -> 23 | G45: =Results!G128 -> 98
C46: Cost-effectiveness (USD)
D47: ICER (per QALY gained) | E47: =Results!F130 -> 748 | F47: =Results!F129 -> 3091 | G47: =Results!F128 -> 784
D48: ICER threshold (per QALY gained)+ | E48: =Results!E75 -> $1,624-$4,849 / QALY | F48: =Results!E50 -> $73-$1,166 / QALY | G48: =Results!E101 -> $3,210-$10,122 / QALY
D49: Cost-effective | E49: Yes | F49: No | G49: Yes
D50: Breakeven | E50: No | F50: No | G50: Year 6

Sheet Suplementry Data
A2: T1
C4: No CARDIO (baseline quarter) | E4: CARDIO (last quarter) | I4: No CARDIO (baseline quarter) | K4: CARDIO (last quarter)
B5: ="Ulaanbaatar (n="&population_UB&"; "&TEXT('User Input -Scenario Assumption'!G22,"0%")&" male)" -> Ulaanbaatar (n=10075; 37% male) | H5: ="Ulaanbaatar (n="&population_UB&"; "&TEXT('User Input -Scenario Assumption'!M22,"0%")&" male)" -> Ulaanbaatar (n=10075; 0% male)
B6: CVD risk | C6: - Male | D6: Female | E6: Male | F6: Female | H6: CVD risk | I6: - Male | J6: Female | K6: Male | L6: Female
B7: low | C7: ='Raw Data - UB'!AJ23 -> 320 | D7: ='Raw Data - UB'!AK23 -> 651 | E7: ='Raw Data - UB'!AJ50 -> 1156 | F7: ='Raw Data - UB'!AK50 -> 2351 | H7: low | I7: =C7/SUM(C$7:C$9) -> 46% | J7: =D7/SUM(D$7:D$9) -> 54% | K7: 46% | L7: 54%
B8: medium | C8: ='Raw Data - UB'!AJ24 -> 301 | D8: ='Raw Data - UB'!AK24 -> 477 | E8: ='Raw Data - UB'!AJ51 -> 1088 | F8: ='Raw Data - UB'!AK51 -> 1724 | H8: medium | I8: =C8/SUM(C$7:C$9) -> 43% | J8: =D8/SUM(D$7:D$9) -> 40% | K8: =E8/SUM(E$7:E$9) -> 43% | L8: =F8/SUM(F$7:F$9) -> 40%
B9: high | C9: ='Raw Data - UB'!AJ25 -> 81 | D9: ='Raw Data - UB'!AK25 -> 70 | E9: ='Raw Data - UB'!AJ52 -> 291 | F9: ='Raw Data - UB'!AK52 -> 254 | H9: high | I9: 11% | J9: 6% | K9: 11% | L9: 6%
B10: Missing | C10: ='Raw Data - UB'!AJ26 -> 320 | D10: ='Raw Data - UB'!AK26 -> 565 | E10: ='Raw Data - UB'!AJ53 -> 1157 | F10: ='Raw Data - UB'!AK53 -> 2042 | H10: Missing | I10: =C10/SUM(C$7:C$10) -> 31% | J10: =D10/SUM(D$7:D$10) -> 32% | K10: =E10/SUM(E$7:E$10) -> 31% | L10: =F10/SUM(F$7:F$10) -> 32%
B13: Dakar (n=5,235; 22% male) | H13: Dakar (n=5,235; 22% male)
B14: CVD risk | C14: - Male | D14: Female | E14: Male | F14: Female | H14: CVD risk | I14: - Male | J14: Female | K14: Male | L14: Female
B15: low | C15: ='Raw Data - DK'!AJ49 -> 90 | D15: ='Raw Data - DK'!AK49 -> 466 | E15: ='Raw Data - DK'!AJ76 -> 197 | F15: ='Raw Data - DK'!AK76 -> 811 | H15: low | I15: =C15/SUM(C$15:C$18) -> 15% | J15: =D15/SUM(D$15:D$18) -> 19% | K15: 17% | L15: 20%
B16: medium | C16: ='Raw Data - DK'!AJ50 -> 162 | D16: ='Raw Data - DK'!AK50 -> 666 | E16: ='Raw Data - DK'!AJ77 -> 316 | F16: ='Raw Data - DK'!AK77 -> 1121 | H16: medium | I16: =C16/SUM(C$15:C$18) -> 27% | J16: =D16/SUM(D$15:D$18) -> 28% | K16: =E16/SUM(E$15:E$18) -> 27% | L16: =F16/SUM(F$15:F$18) -> 28%
B17: high | C17: ='Raw Data - DK'!AJ51 -> 276 | D17: ='Raw Data - DK'!AK51 -> 1055 | E17: ='Raw Data - DK'!AJ78 -> 514 | F17: ='Raw Data - DK'!AK78 -> 1775 | H17: high | I17: 46% | J17: 44% | K17: 44% | L17: 44%
B18: Missing | C18: ='Raw Data - DK'!AJ52 -> 74 | D18: ='Raw Data - DK'!AK52 -> 213 | E18: ='Raw Data - DK'!AJ79 -> 137 | F18: ='Raw Data - DK'!AK79 -> 365 | H18: Missing | I18: 12% | J18: 9% | K18: 12% | L18: 9%
B21: São Paulo (n=5,844; 27% male) | H21: São Paulo (n=5,844; 27% male)
B22: CVD risk | C22: - Male | D22: Female | E22: Male | F22: Female | H22: CVD risk | I22: - Male | J22: Female | K22: Male | L22: Female
B23: low | C23: ='Raw Data - SP'!AJ23 -> 4 | D23: ='Raw Data - SP'!AK23 -> 13 | E23: ='Raw Data - SP'!AJ50 -> 11 | F23: ='Raw Data - SP'!AK50 -> 21 | H23: low | I23: =C23/SUM(C$23:C$26) -> 2% | J23: =D23/SUM(D$23:D$26) -> 2% | K23: 3% | L23: 2%
B24: medium | C24: ='Raw Data - SP'!AJ24 -> 3 | D24: ='Raw Data - SP'!AK24 -> 20 | E24: ='Raw Data - SP'!AJ51 -> 11 | F24: ='Raw Data - SP'!AK51 -> 30 | H24: medium | I24: =C24/SUM(C$23:C$26) -> 1% | J24: =D24/SUM(D$23:D$26) -> 3% | K24: =E24/SUM(E$23:E$26) -> 3% | L24: =F24/SUM(F$23:F$26) -> 3%
B25: high | C25: ='Raw Data - SP'!AJ25 -> 24 | D25: ='Raw Data - SP'!AK25 -> 59 | E25: ='Raw Data - SP'!AJ52 -> 40 | F25: ='Raw Data - SP'!AK52 -> 90 | H25: high | I25: 11% | J25: 9% | K25: 10% | L25: 9%
B26: Missing | C26: ='Raw Data - SP'!AJ26 -> 192 | D26: ='Raw Data - SP'!AK26 -> 544 | E26: ='Raw Data - SP'!AJ53 -> 322 | F26: ='Raw Data - SP'!AK53 -> 904 | H26: Missing | I26: 86% | J26: 86% | K26: 84% | L26: 87%
H27: SP population linearly extrapolated to 24 clinics from data of 6
A31: T2
D33: Initital BP
D34: <120 and <80 | E34: 120-129 or 80-84 | F34: 130 - 139 or 85 - 89 | G34: 140 - 159 or 90 - 99 | H34: 160 - 179 or 100 - 109 | I34: ≥ 180 or ≥ 110
B35: HR after control
C36: CHD ( | D36: 1 | E36: 1 | F36: 0.96 | G36: 0.83 | H36: 0.51 | I36: 0.51
C37: )
C38: Stroke ( | D38: 1 | E38: 1 | F38: 1 | G38: 0.74 | H38: 0.39 | I38: 0.39
C39: )
B40: Number of patients (
B42: Ulaanbaatar
C43: CARDIO
C44: No CARDIO
B45: Dakar
C46: CARDIO
C47: No CARDIO
B48: São Paulo
C49: CARDIO
C50: No CARDIO
C54: Dakar (n=5236)
C55: No CARDIO | D55: CARDIO | E55: Averted
B56: Implementation phase
B57: CHD
B58: Total
B59: Per 1,000 patients
B60: Stroke
B61: Total
B62: Per 1,000 patients
B63: Deaths
B64: Total
B65: Per 1,000 patients
B67: 10-year projection phase
B68: CHD
B69: Total
B70: Per 1,000 patients
B71: Stroke
B72: Total
B73: Per 1,000 patients
B74: Deaths
B75: Total
B76: Per 1,000 patients
B77: Table S7
B79: Total cost savings from events averted (USD)
B80: CHD (implementation phase)
B81: CHD (projection phase)
B82: Stroke (implementation phase)
B83: Stroke (projection phase)
B85: Costs (USD)
B86: Incremental Cost
B88: QALYs
B89: Incremental QALYs
B90: Incremental QALYs/1,000 patients
B92: Cost-effectiveness (USD)
B93: ICER (per QALY gained)
B94: ICER threshold (per QALY gained) +
B95: Cost-effective
B96: Breakeven

Sheet Results
B1: Results
C2: =population_SP -> 5844 | E2: =population_Dakar -> 5236 | G2: =population_UB -> 10075
C3: ='Model Specification_Old_input'!D59 -> Sao Paulo | E3: Dakar | G3: Ulaanbaatar | AA3: Yes | AB3: 1 | AD3: =AA3 -> Yes | AE3: 2
B4: Intervention Period | C4: ='User Input -Scenario Assumption'!E4 -> Q4'18 to Q4'19 | E4: ='User Input -Scenario Assumption'!F4 -> Q1'19 to Q4'19 | G4: Q1'18 to Q3'19 (Feb'18 to Sep'19) | AA4: No | AD4: =AA4 -> No
B5: CARDIO Phase | C5: CARDIO | D5: No CARDIO | E5: CARDIO | F5: No CARDIO | G5: CARDIO | H5: No CARDIO
B6: Patients controlled over treated from baseline (%) | C6: =Trace_CARDIO_SP!R13 -> 30% | D6: =Trace_SoC_SP!R13 -> 12% | E6: =Trace_CARDIO_Dakar!R13 -> 19% | F6: =Trace_SoC_Dakar!R13 -> 13% | G6: =Trace_CARDIO_UB!R13 -> 19% | H6: =Trace_SoC_UB!R13 -> 3%
B7: Cost of HTN | C7: =SUM(Trace_CARDIO_SP!AM12:AN12) -> R$ 5,808,091 | D7: =SUM(Trace_SoC_SP!AM12:AN12) -> R$ 5,808,091 | E7: =SUM(Trace_CARDIO_Dakar!AM12:AN12) -> R$ 3,861,806 | F7: =SUM(Trace_SoC_Dakar!AM12:AN12) -> R$ 3,861,806 | G7: =SUM(Trace_CARDIO_UB!AM12:AN12) -> R$ 1,802,474 | H7: =SUM(Trace_SoC_UB!AM12:AN12) -> R$ 1,802,474
B8: Cost of CHD events | C8: =Trace_CARDIO_SP!AO12 -> R$ 1,136,886 | D8: =Trace_SoC_SP!AO12 -> R$ 1,291,040 | E8: =Trace_CARDIO_Dakar!AO12 -> R$ 582,599 | F8: =Trace_SoC_Dakar!AO12 -> R$ 601,686 | G8: =Trace_CARDIO_UB!AO12 -> R$ 230,016 | H8: =Trace_SoC_UB!AO12 -> R$ 256,076 | K8: =((D8-C8)*exchange_SP)/1000 -> R$ 28.71 | L8: =((F8-E8)*exchange_SP)/1000 -> R$ 3.55 | M8: =((H8-G8)*exchange_SP)/1000 -> R$ 4.85
B9: Cost of Stroke events | C9: =Trace_CARDIO_SP!AP12 -> R$ 1,292,615 | D9: =Trace_SoC_SP!AP12 -> R$ 1,494,646 | E9: =Trace_CARDIO_Dakar!AP12 -> R$ 671,279 | F9: =Trace_SoC_Dakar!AP12 -> R$ 697,831 | G9: =Trace_CARDIO_UB!AP12 -> R$ 263,895 | H9: =Trace_SoC_UB!AP12 -> R$ 296,074 | K9: =((D9-C9)*exchange_SP)/1000 -> R$ 37.63 | L9: =((F9-E9)*exchange_SP)/1000 -> R$ 4.95 | M9: =((H9-G9)*exchange_SP)/1000 -> R$ 5.99
B10: Productivity loss - CHD | C10: =Trace_CARDIO_SP!AQ12 -> R$ 21,310 | D10: =Trace_SoC_SP!AQ12 -> R$ 24,200 | E10: =Trace_CARDIO_Dakar!AQ12 -> R$ 10,920 | F10: =Trace_SoC_Dakar!AQ12 -> R$ 11,278 | G10: =Trace_CARDIO_UB!AQ12 -> R$ 4,312 | H10: =Trace_SoC_UB!AQ12 -> R$ 4,800
B11: Productivity loss - Stroke | C11: =Trace_CARDIO_SP!AR12 -> R$ 17,848 | D11: =Trace_SoC_SP!AR12 -> R$ 22,496 | E11: =Trace_CARDIO_Dakar!AR12 -> R$ 9,572 | F11: =Trace_SoC_Dakar!AR12 -> R$ 10,252 | G11: =Trace_CARDIO_UB!AR12 -> R$ 3,985 | H11: =Trace_SoC_UB!AR12 -> R$ 4,736
B12: Number of CHD events | C12: =ROUND(Trace_CARDIO_SP!AJ12,0) -> 139 | D12: =ROUND(Trace_SoC_SP!AJ12,0) -> 158 | E12: =ROUND(Trace_CARDIO_Dakar!AJ12,0) -> 98 | F12: =ROUND(Trace_SoC_Dakar!AJ12,0) -> 101 | G12: =ROUND(Trace_CARDIO_UB!AJ12,0) -> 157 | H12: =ROUND(Trace_SoC_UB!AJ12,0) -> 175 | T12: =J12/I12-1 -> 
B13: Number of Stroke events | C13: =ROUND(Trace_CARDIO_SP!AK12,0) -> 41 | D13: =ROUND(Trace_SoC_SP!AK12,0) -> 47 | E13: =ROUND(Trace_CARDIO_Dakar!AK12,0) -> 29 | F13: =ROUND(Trace_SoC_Dakar!AK12,0) -> 30 | G13: =ROUND(Trace_CARDIO_UB!AK12,0) -> 47 | H13: =ROUND(Trace_SoC_UB!AK12,0) -> 52
B14: Deaths | C14: =ROUND(Trace_CARDIO_SP!AL12,0) -> 167 | D14: =ROUND(Trace_SoC_SP!AL12,0) -> 167 | E14: =ROUND(Trace_CARDIO_Dakar!AL12,0) -> 65 | F14: =ROUND(Trace_SoC_Dakar!AL12,0) -> 65 | G14: =ROUND(Trace_CARDIO_UB!AL12,0) -> 262 | H14: =ROUND(Trace_SoC_UB!AL12,0) -> 262
M15: =C3 -> Sao Paulo | N15: =E3 -> Dakar
B22: Budget Impact - CHD (in R$) | C22: =SUM(C7:C8,C10)-SUM(D7:D8,D10) -> -R$ 157,043 | E22: =SUM(E7:E8,E10)-SUM(F7:F8,F10) -> -R$ 19,445 | G22: =SUM(G7:G8,G10)-SUM(H7:H8,H10) -> -R$ 26,548 | L22: =B22 -> Budget Impact - CHD (in R$) | M22: =C24 -> $(29,248.88) | N22: =E22 -> $(19,444.72)
B23: Budget Impact - Stroke (in R$) | C23: =SUM(C7,C9,C11)-SUM(D7,D9,D11) -> -R$ 206,679 | E23: =SUM(E7,E9,E11)-SUM(F7,F9,F11) -> -R$ 27,233 | G23: =SUM(G7,G9,G11)-SUM(H7,H9,H11) -> -R$ 32,930 | L23: =B23 -> Budget Impact - Stroke (in R$) | M23: =C25 -> $(38,493.43) | N23: =E23 -> $(27,232.83)
B24: Budget Impact - CHD (in USD) | C24: =C22*exchange_SP -> -R$ 29,249 | E24: =E22*exchange_SP -> -R$ 3,622 | G24: =G22*exchange_SP -> -R$ 4,944
B25: Budget Impact - Stroke (in USD) | C25: =C23*exchange_SP -> -R$ 38,493 | E25: =E23*exchange_SP -> -R$ 5,072 | G25: =G23*exchange_SP -> -R$ 6,133
B26: CHD events averted saving per person (in USD) | C26: =((D8-C8)*exchange_SP)/population_SP -> $4.9 | E26: =((F8-E8)*exchange_SP)/population_Dakar -> $0.7 | G26: =((H8-G8)*exchange_SP)/population_UB -> $0.5
B27: Stroke events averted saving per person (in USD) | C27: =((D9-C9)*exchange_SP)/population_SP -> $6.4 | E27: =((F9-E9)*exchange_SP)/population_Dakar -> $0.9 | G27: =((H9-G9)*exchange_SP)/population_UB -> $0.6
B28: Cost of program (in USD) | D28: ='Model Sensitivity control'!D67 -> $591,230 | F28: ='Model Sensitivity control'!E67 -> $428,927 | H28: ='Model Sensitivity control'!F67 -> $663,772
B29: Net Budget Impact (CHD) | D29: =$D$28+C24 -> $561,981 | F29: =$F$28+E24 -> $425,306 | H29: =$H$28+G24 -> $658,827
B30: Net Budget Impact (Stroke) | D30: =$D$28+C25 -> $552,736 | F30: =$F$28+E25 -> $423,855 | H30: =$H$28+G25 -> $657,639 | M30: =C3 -> Sao Paulo | N30: =D3 -> 0
B31: CHD events averted | C31: =ROUND(D12-C12,0) -> 19 | E31: =F12-E12 -> 3 | G31: =H12-G12 -> 18 | K31: =C31/D12 -> 12.03% | L31: =E31/F12 -> 3.0% | M31: =G31/H12 -> 10.29% | N31: =D5 -> No CARDIO | O31: =C31/population_SP -> 0.00325119781 | P31: =O31*100 -> 0.33 | Q31: =E31/population_Dakar -> 0.0005729564553 | R31: =Q31*100 -> 0.06 | S31: =G31/population_UB -> 0.001786600496 | T31: =S31*100 -> 0.18
B32: Stroke events averted | C32: =D13-C13 -> 6 | E32: =F13-E13 -> 1 | G32: =H13-G13 -> 5 | K32: =C32/D13 -> 12.77% | L32: =E32/F13 -> 3.33% | M32: =G32/H13 -> 9.62% | N32: =D6 -> 0.1207891099 | O32: =C32/population_SP -> 0.001026694045 | P32: =O32*100 -> 0.10 | Q32: =E32/population_Dakar -> 0.0001909854851 | R32: =Q32*100 -> 0.02 | S32: =G32/population_UB -> 0.0004962779156 | T32: =S32*100 -> 0.05
B33: Total deaths averted | C33: =D14-C14 -> 0 | E33: =F14-E14 -> 0 | G33: =H14-G14 -> 0 | N33: =D7 -> 5808091.197
B35: Scenario | C35: Include cost of program | E35: Include cost of running program
B36: Projected Phase
B38: Sao Paulo
B39: Intervention | C39: Total undiscounted Costs | D39: Total undiscounted QALY | E39: Total discounted costs | F39: Total discounted QALY | G39: Incremental Cost | H39: Incremental QALY | I39: ICER
B40: CARDIO | C40: =costs_undisc_CARDIO_SP -> R$ 67,783,106.35 | D40: =QALYs_undisc_CARDIO_SP -> 37,492.87 | E40: =costs_disc_CARDIO_SP -> R$ 53,793,767.08 | F40: =QALYs_disc_CARDIO_SP -> 29,535.34 | G40: =E40-E41 -> R$ 2,406,738.66 | H40: =F40-F41 -> 571.59 | I40: =IF(Incr_Cost_SP>0,IF(Incr_QALY_SP>0,Incr_Cost_SP/Incr_QALY_SP,IF(Incr_QALY_SP=0,"Cost Increasing","Dominated")),IF(Incr_Cost_SP=0,IF(Incr_QALY_SP>0,"More Effective",IF(Incr_QALY_SP=0,"Same Outcome","Less Effective")),IF(Incr_QALY_SP>0,"Dominant",IF(Incr_QALY_SP=0,"Cost Saving","Less Effective")))) -> R$ 784.22
B41: No CARDIO | C41: =costs_undisc_SoC_SP -> R$ 65,273,011.49 | D41: =QALYs_undisc_SoC_SP -> 36,695.05 | E41: =costs_disc_SoC_SP -> R$ 51,387,028.42 | F41: =QALYs_disc_SoC_SP -> 28,963.76
B45: Dakar
B46: Intervention | C46: Total undiscounted Costs | D46: Total undiscounted QALY | E46: Total discounted costs | F46: Total discounted QALY | G46: Incremental Cost | H46: Incremental QALY | I46: ICER
B47: CARDIO | C47: =costs_undisc_CARDIO_Dakar*exchange_SP -> $8,901,881.80 | D47: =QALYs_undisc_CARDIO_Dakar -> 37,541.03 | E47: =costs_disc_CARDIO_Dakar*exchange_SP -> $7,689,511.43 | F47: =QALYs_disc_CARDIO_Dakar -> 32,224 | G47: =E47-E48 -> $375,541 | H47: =F47-F48 -> 121.48 | I47: =IF(Incr_Cost_Dakar>0,IF(Incr_QALY_Dakar>0,Incr_Cost_Dakar/Incr_QALY_Dakar,IF(Incr_QALY_Dakar=0,"Cost Increasing","Dominated")),IF(Incr_Cost_Dakar=0,IF(Incr_QALY_Dakar>0,"More Effective",IF(Incr_QALY_Dakar=0,"Same Outcome","Less Effective")),IF(Incr_QALY_Dakar>0,"Dominant",IF(Incr_QALY_Dakar=0,"Cost Saving","Less Effective")))) -> $3,091
B48: No CARDIO | C48: =costs_undisc_SoC_Dakar*exchange_SP -> $8,518,942.95 | D48: =QALYs_undisc_SoC_Dakar -> 37,391.61 | E48: =costs_disc_SoC_Dakar*exchange_SP -> $7,313,970.87 | F48: =QALYs_disc_SoC_Dakar -> 32,103
B50: Approach1 | D50: Senegal CE threshold (PPP adjusted) | E50: $73-$1,166 / QALY | F50: Source: Woods B, Revill P, Sculpher M, Claxton K. Country-Level Cost-Effectiveness Thresholds: Initial Estimates and the Need for Further Research. Value Health. 2016;19(8):929-935
B51: Approach2 | D51: Senegal CE threshold (GDP per capita) | E51: GDP Per Capita | F51: $1,471.80 | G51: Min | H51: =F51*1 -> $1,471.80 | I51: Max | J51: =F51*3 -> $4,415.40
B53: Time horizon | C53: =time_horizon -> 10 Years
C54: Events | E54: Cost
C55: CARDIO | D55: No CARDIO | E55: =C55 -> CARDIO | F55: =D55 -> No CARDIO
B56: Number of CHD events | C56: =ROUND(CHD_CARDIO_Dakar,0) -> 865 | D56: =ROUND(CHD_SoC_Dakar,0) -> 890 | E56: =Trace_CARDIO_Dakar!BC64*exchange_SP -> $824,260.31 | F56: =Trace_CARDIO_Dakar!BC65*exchange_SP -> $848,975.72 | G56: =F56-E56 -> $24,715.40
B57: Number of Stroke events | C57: =ROUND(Stroke_CARDIO_Dakar,0) -> 258 | D57: =ROUND(Stroke_SoC_Dakar,0) -> 268 | E57: =Trace_CARDIO_Dakar!BD64*exchange_SP -> $949,556.56 | F57: =Trace_CARDIO_Dakar!BD65*exchange_SP -> $984,800.19 | G57: =F57-E57 -> $35,243.63
B58: Number of deaths | C58: =ROUND(Deaths_CARDIO_Dakar,0) -> 1,215 | D58: =ROUND(Deaths_SoC_Dakar,0) -> 1,249
C60: Total Events | D60: Per 1000 Patients | E60: Total Savings | F60: Savings Per Patients
B61: CHD events averted | C61: =D56-C56 -> 25 | D61: =(C61/population_Dakar)*1000 -> 4.8 | E61: =E56-F56 -> $(24,715.40) | F61: =(E61/population_Dakar) -> $(4.72)
B62: Stroke events averted | C62: =D57-C57 -> 10 | D62: =(C62/population_Dakar)*1000 -> 1.9 | E62: =E57-F57 -> $(35,243.63) | F62: =(E62/population_Dakar) -> $(6.73)
B63: Total deaths averted | C63: =D58-C58 -> 34 | D63: =(C63/population_Dakar)*1000 -> 6
B66: BREAKEVEN YEAR* | C66: =IF(BRE_DK>10,"Breakeven not reached",BRE_DK) -> Breakeven not reached | D66: *The year in which the cumulative costs for No CARDIO arm exceed the CARDIO arm costs
B70: Ulaanbaatar
B71: Intervention | C71: Total undiscounted Costs | D71: Total undiscounted QALY | E71: Total discounted costs | F71: Total discounted QALY | G71: Incremental Cost | H71: Incremental QALY | I71: ICER
B72: CARDIO | C72: =costs_undisc_CARDIO_UB*exchange_SP -> $3,948,236.75 | D72: =QALYs_undisc_CARDIO_UB -> 65,666.57 | E72: =costs_disc_CARDIO_UB*exchange_SP -> $3,474,099.24 | F72: =QALYs_disc_CARDIO_UB -> 56,663.35 | G72: =E72-E73 -> $661,312.68 | H72: =F72-F73 -> 884.42 | I72: =IF(Incr_Cost_UB>0,IF(Incr_QALY_UB>0,Incr_Cost_UB/Incr_QALY_UB,IF(Incr_QALY_UB=0,"Cost Increasing","Dominated")),IF(Incr_Cost_UB=0,IF(Incr_QALY_UB>0,"More Effective",IF(Incr_QALY_UB=0,"Same Outcome","Less Effective")),IF(Incr_QALY_UB>0,"Dominant",IF(Incr_QALY_UB=0,"Cost Saving","Less Effective")))) -> $747.73
B73: No CARDIO | C73: =costs_undisc_SoC_UB*exchange_SP -> $3,261,902.53 | D73: =QALYs_undisc_SoC_UB -> 64,581.18 | E73: =costs_disc_SoC_UB*exchange_SP -> $2,812,786.56 | F73: =QALYs_disc_SoC_UB -> 55,778.93
B75: Approach1 | C75: Mongolia CE threshold (PPP adjusted) | E75: $1,624-$4,849 / QALY | F75: Source: Woods B, Revill P, Sculpher M, Claxton K. Country-Level Cost-Effectiveness Thresholds: Initial Estimates and the Need for Further Research. Value Health. 2016;19(8):929-935
B76: Approach2 | D76: Senegal CE threshold per QALY (GDP per capita) | E76: GDP Per Capita | F76: $4,061.00 | G76: Min | H76: =F76*1 -> $4,061.00 | I76: Max | J76: =F76*3 -> $12,183.00
B78: Time horizon | C78: =time_horizon -> 10 Years
C79: Events | E79: Cost
C80: CARDIO | D80: No CARDIO | E80: =C80 -> CARDIO | F80: =D80 -> No CARDIO | G80: Incremental cost
B81: Number of CHD events | C81: =ROUND(CHD_CARDIO_UB,0) -> 836 | D81: =ROUND(CHD_SoC_UB,0) -> 869 | E81: =Trace_CARDIO_UB!BC64*exchange_SP -> $196,665.61 | F81: =Trace_CARDIO_UB!BC65*exchange_SP -> $204,762.94 | G81: =F81-E81 -> $8,097.33
B82: Number of Stroke events | C82: =ROUND(Stroke_CARDIO_UB,0) -> 247 | D82: =ROUND(Stroke_SoC_UB,0) -> 261 | E82: =Trace_CARDIO_UB!BD64*exchange_SP -> $224,444.87 | F82: =Trace_CARDIO_UB!BD65*exchange_SP -> $236,746.38 | G82: =F82-E82 -> $12,301.51
B83: Number of deaths | C83: =ROUND(Deaths_CARDIO_UB,0) -> 3,507 | D83: =ROUND(Deaths_SoC_UB,0) -> 3,761
C85: Total | D85: Per 1000 Patients | E85: Total Savings | F85: Savings Per Patients
B86: CHD events averted | C86: =D81-C81 -> 33 | D86: =(C86/population_UB)*1000 -> 3.3 | E86: =E81-F81 -> $(8,097.33) | F86: =(E86/population_UB) -> $(0.80) | N86: =E86/C86 -> $(245.37) | O86: ='Model Specification_Old_input'!F74 -> 273.17 | P86: =O86/N86-1 -> $(2.11)
B87: Stroke events averted | C87: =D82-C82 -> 14 | D87: =(C87/population_UB)*1000 -> 1.4 | E87: =E82-F82 -> $(12,301.51) | F87: =(E87/population_UB) -> $(1.22) | N87: =E87/C87 -> $(878.68) | O87: ='Model Specification_Old_input'!F75 -> 1,052.78 | P87: =O87/N87-1 -> $(2.20)
B88: Total deaths averted | C88: =D83-C83 -> 254 | D88: =(C88/population_UB)*1000 -> 25.2
B91: BREAKEVEN YEAR* | C91: =IF(BRE_UB>10,"Breakeven not reached",BRE_UB) -> Breakeven not reached | D91: *The year in which the cumulative costs for No CARDIO arm exceed the CARDIO arm costs
B96: Sao Paulo
B97: Intervention | C97: Total undiscounted Costs | D97: Total undiscounted QALY | E97: Total discounted costs | F97: Total discounted QALY | G97: Incremental Cost | H97: Incremental QALY | I97: ICER
B98: CARDIO | C98: =costs_undisc_CARDIO_SP*exchange_SP -> $12,624,433 | D98: =QALYs_undisc_CARDIO_SP -> 37,492.87 | E98: =costs_disc_CARDIO_SP*exchange_SP -> $10,018,954 | F98: =QALYs_disc_CARDIO_SP -> 29,535.34 | G98: =E98-E99 -> $448,249.02 | H98: =F98-F99 -> 571.59 | I98: =IF(Incr_Cost_SP>0,IF(Incr_QALY_SP>0,Incr_Cost_SP/Incr_QALY_SP,IF(Incr_QALY_SP=0,"Cost Increasing","Dominated")),IF(Incr_Cost_SP=0,IF(Incr_QALY_SP>0,"More Effective",IF(Incr_QALY_SP=0,"Same Outcome","Less Effective")),IF(Incr_QALY_SP>0,"Dominant",IF(Incr_QALY_SP=0,"Cost Saving","Less Effective")))) -> $784.22
B99: No CARDIO | C99: =costs_undisc_SoC_SP*exchange_SP -> $12,156,934 | D99: =QALYs_undisc_SoC_SP -> 36,695.05 | E99: =costs_disc_SoC_SP*exchange_SP -> $9,570,704.84 | F99: =QALYs_disc_SoC_SP -> 28,963.76
B101: Approach1 | C101: Brazil CE threshold (PPP adjusted) | E101: $3,210-$10,122 / QALY | F101: Source: Woods B, Revill P, Sculpher M, Claxton K. Country-Level Cost-Effectiveness Thresholds: Initial Estimates and the Need for Further Research. Value Health. 2016;19(8):929-935
B102: Approach2 | D102: Senegal CE threshold (GDP per capita) | E102: GDP Per Capita | F102: $6,796.80 | G102: Min | H102: =F102*1 -> $6,796.80 | I102: Max | J102: =F102*3 -> $20,390.40
B104: Time horizon | C104: =time_horizon -> 10 Years
C105: Events | E105: Cost
C106: CARDIO | D106: No CARDIO | E106: =C106 -> CARDIO | F106: =D106 -> No CARDIO
B107: Number of CHD events | C107: =ROUND(CHD_CARDIO_SP,0) -> 961 | D107: =ROUND(CHD_SoC_SP,0) -> 1,042 | E107: =Trace_CARDIO_SP!BC64*exchange_SP -> $1,149,119.21 | F107: =Trace_CARDIO_SP!BC65*exchange_SP -> $1,248,510.16 | G107: =F107-E107 -> $99,390.95
B108: Number of Stroke events | C108: =ROUND(Stroke_CARDIO_SP,0) -> 282 | D108: =ROUND(Stroke_SoC_SP,0) -> 313 | E108: =Trace_CARDIO_SP!BD64*exchange_SP -> $1,300,538.49 | F108: =Trace_CARDIO_SP!BD65*exchange_SP -> $1,446,028.33 | G108: =F108-E108 -> $145,489.85
B109: Number of deaths | C109: =ROUND(Deaths_CARDIO_SP,0) -> 2,159 | D109: =ROUND(Deaths_SoC_SP,0) -> 2,343
C111: Total | D111: Per 1000 Patients | E111: Total Savings | F111: Savings Per Patients
B112: CHD events averted | C112: =D107-C107 -> 81 | D112: =(C112/population_SP)*1000 -> 14 | E112: =E107-F107 -> $(99,390.95) | F112: =(E112/population_SP) -> $(17.01)
B113: Stroke events averted | C113: =D108-C108 -> 31 | D113: =(C113/population_SP)*1000 -> 5 | E113: =E108-F108 -> $(145,489.85) | F113: =(E113/population_SP) -> $(24.90)
B114: Total deaths averted | C114: =D109-C109 -> 184 | D114: =(C114/population_SP)*1000 -> 31
B117: BREAKEVEN YEAR* | C117: =IF(BRE_SP>10,"Breakeven not reached",BRE_SP) -> 6 | D117: *The year in which the cumulative costs for No CARDIO arm exceed the CARDIO arm costs
B124: Overall Summary
B127: Incremental Cost | C127: =G97 -> Incremental Cost | D127: =H97 -> Incremental QALY | E127: Incremental QALYs / patient | F127: ICER | G127: Incremental QALYs / 1000patient
B128: =B96 -> Sao Paulo | C128: =Incr_Cost_SP -> $448,249 | D128: =Incr_QALY_SP -> $572 | E128: =D128/population_SP -> 0.10 | F128: =C128/D128 -> $784 | G128: =E128*1000 -> 98
B129: =B45 -> Dakar | C129: =Incr_Cost_Dakar -> $375,541 | D129: =Incr_QALY_Dakar -> $121 | E129: =D129/population_Dakar -> 0.02 | F129: =C129/D129 -> $3,091 | G129: =E129*1000 -> 23
B130: =B70 -> Ulaanbaatar | C130: =Incr_Cost_UB -> $661,313 | D130: =Incr_QALY_UB -> $884 | E130: =D130/population_UB -> 0.09 | F130: =C130/D130 -> $748 | G130: 88
B137: CHD / Stroke Events Averted - YoY Cumulative Savings
BF141: Data for graph
BF142: =C3 -> Sao Paulo | BG142: CHD | BH142: Stroke | BI142: =E3 -> Dakar | BJ142: CHD | BK142: Stroke | BM142: =G3 -> Ulaanbaatar | BN142: CHD | BO142: Stroke
BF143: Year1 | BG143: =Trace_CARDIO_SP!CF16 -> 16,626 | BH143: =Trace_CARDIO_SP!CG16 -> 23,372 | BI143: Year1 | BJ143: =Trace_CARDIO_Dakar!CF16 -> 3,336 | BK143: =Trace_CARDIO_Dakar!CG16 -> 4,660 | BM143: Year1 | BN143: =Trace_CARDIO_UB!CF16 -> 1,374 | BO143: =Trace_CARDIO_UB!CG16 -> 1,954
BF144: Year2 | BG144: =Trace_CARDIO_SP!CF17 -> 31,534 | BH144: =Trace_CARDIO_SP!CG17 -> 44,486 | BI144: Year2 | BJ144: =Trace_CARDIO_Dakar!CF17 -> 6,467 | BK144: =Trace_CARDIO_Dakar!CG17 -> 9,049 | BM144: Year2 | BN144: =Trace_CARDIO_UB!CF17 -> 2,602 | BO144: =Trace_CARDIO_UB!CG17 -> 3,723
BF145: Year3 | BG145: =Trace_CARDIO_SP!CF18 -> 44,814 | BH145: =Trace_CARDIO_SP!CG18 -> 63,459 | BI145: Year3 | BJ145: =Trace_CARDIO_Dakar!CF18 -> 9,403 | BK145: =Trace_CARDIO_Dakar!CG18 -> 13,184 | BM145: Year3 | BN145: =Trace_CARDIO_UB!CF18 -> 3,697 | BO145: =Trace_CARDIO_UB!CG18 -> 5,320
BF146: Year4 | BG146: =Trace_CARDIO_SP!CF19 -> 56,553 | BH146: =Trace_CARDIO_SP!CG19 -> 80,401 | BI146: Year4 | BJ146: =Trace_CARDIO_Dakar!CF19 -> 12,156 | BK146: =Trace_CARDIO_Dakar!CG19 -> 17,077 | BM146: Year4 | BN146: =Trace_CARDIO_UB!CF19 -> 4,669 | BO146: =Trace_CARDIO_UB!CG19 -> 6,760
BF147: Year5 | BG147: =Trace_CARDIO_SP!CF20 -> 66,836 | BH147: =Trace_CARDIO_SP!CG20 -> 95,422 | BI147: Year5 | BJ147: =Trace_CARDIO_Dakar!CF20 -> 14,737 | BK147: =Trace_CARDIO_Dakar!CG20 -> 20,743 | BM147: Year5 | BN147: =Trace_CARDIO_UB!CF20 -> 5,530 | BO147: =Trace_CARDIO_UB!CG20 -> 8,056
BF148: Year6 | BG148: =Trace_CARDIO_SP!CF21 -> 75,745 | BH148: =Trace_CARDIO_SP!CG21 -> 108,626 | BI148: Year6 | BJ148: =Trace_CARDIO_Dakar!CF21 -> 17,103 | BK148: =Trace_CARDIO_Dakar!CG21 -> 24,128 | BM148: Year6 | BN148: =Trace_CARDIO_UB!CF21 -> 6,287 | BO148: =Trace_CARDIO_UB!CG21 -> 9,219
BF149: Year7 | BG149: =Trace_CARDIO_SP!CF22 -> 83,367 | BH149: =Trace_CARDIO_SP!CG22 -> 120,124 | BI149: Year7 | BJ149: =Trace_CARDIO_Dakar!CF22 -> 19,269 | BK149: =Trace_CARDIO_Dakar!CG22 -> 27,253 | BM149: Year7 | BN149: =Trace_CARDIO_UB!CF22 -> 6,908 | BO149: =Trace_CARDIO_UB!CG22 -> 10,206
BF150: Year8 | BG150: =Trace_CARDIO_SP!CF23 -> 89,790 | BH150: =Trace_CARDIO_SP!CG23 -> 130,027 | BI150: Year8 | BJ150: =Trace_CARDIO_Dakar!CF23 -> 21,251 | BK150: =Trace_CARDIO_Dakar!CG23 -> 30,136 | BM150: Year8 | BN150: =Trace_CARDIO_UB!CF23 -> 7,407 | BO150: =Trace_CARDIO_UB!CG23 -> 11,038
BF151: Year9 | BG151: =Trace_CARDIO_SP!CF24 -> 95,102 | BH151: =Trace_CARDIO_SP!CG24 -> 138,445 | BI151: Year9 | BJ151: =Trace_CARDIO_Dakar!CF24 -> 23,062 | BK151: =Trace_CARDIO_Dakar!CG24 -> 32,794 | BM151: Year9 | BN151: =Trace_CARDIO_UB!CF24 -> 7,799 | BO151: =Trace_CARDIO_UB!CG24 -> 11,731
BF152: Year10 | BG152: =Trace_CARDIO_SP!CF25 -> 99,391 | BH152: =Trace_CARDIO_SP!CG25 -> 145,490 | BI152: Year10 | BJ152: =Trace_CARDIO_Dakar!CF25 -> 24,715 | BK152: =Trace_CARDIO_Dakar!CG25 -> 35,244 | BM152: Year10 | BN152: =Trace_CARDIO_UB!CF25 -> 8,097 | BO152: =Trace_CARDIO_UB!CG25 -> 12,302
BG153: =BG152+E112 -> 0 | BH153: =BH152+E113 -> 0 | BJ153: =BJ152+E61 -> $0.00 | BK153: =BK152+E62 -> $0.00 | BN153: =BN152+E86 -> $0.0000 | BO153: =BO152+E87 -> 0

Sheet Efficacy
B3: Dakar | L3: Ulaanbaatar | V3: Sao Paulo
B4: Efficacy-CARDIO baseline | L4: Efficacy-CARDIO baseline | V4: Efficacy-CARDIO baseline
B5: Category | C5: 1 | D5: 2 | E5: 3 | F5: 4 | G5: 5 | H5: 6 | L5: Category | M5: 1 | N5: 2 | O5: 3 | P5: 4 | Q5: 5 | R5: 6 | V5: Category | W5: 1 | X5: 2 | Y5: 3 | Z5: 4 | AA5: 5 | AB5: 6
B6: BP categories at baseline | C6: <120 and <80 mmHg | D6: 120-129 or 80-84 | E6: 130 - 139 or 85 - 89 | F6: 140 - 159 or 90 - 99 | G6: 160 - 179 or 100 - 109 | H6: ≥ 180 or ≥ 110 | L6: BP categories at baseline | M6: <120 and <80 mmHg | N6: 120-129 or 80-84 | O6: 130 - 139 or 85 - 89 | P6: 140 - 159 or 90 - 99 | Q6: 160 - 179 or 100 - 109 | R6: ≥ 180 or ≥ 110 | V6: BP categories at baseline | W6: <120 and <80 mmHg | X6: 120-129 or 80-84 | Y6: 130 - 139 or 85 - 89 | Z6: 140 - 159 or 90 - 99 | AA6: 160 - 179 or 100 - 109 | AB6: ≥ 180 or ≥ 110
B7: HR for CHD after control | C7: 1.00 | D7: 1.00 | E7: 0.96 | F7: 0.83 | G7: 0.51 | H7: 0.51 | L7: HR for CHD after control | M7: 1.00 | N7: 1.00 | O7: 0.96 | P7: 0.83 | Q7: 0.51 | R7: 0.51 | V7: HR for CHD after control | W7: 1.00 | X7: 1.00 | Y7: 0.96 | Z7: 0.83 | AA7: 0.51 | AB7: 0.51
B8: Rate of CHD | C8: =HRcat1_CHD*r_CHD_Dakar -> 0.020 | D8: =HRcat2_CHD*r_CHD_Dakar -> 0.020 | E8: =HRcat3_CHD*r_CHD_Dakar -> 0.019 | F8: =HRcat4_CHD*r_CHD_Dakar -> 0.016 | G8: =HRcat5_CHD*r_CHD_Dakar -> 0.010 | H8: =HRcat6_CHD*r_CHD_Dakar -> 0.010 | L8: Rate of CHD | M8: =HRcat1_CHD*r_CHD_UB -> 0.011 | N8: =HRcat2_CHD*r_CHD_UB -> 0.011 | O8: =HRcat3_CHD*r_CHD_UB -> 0.010 | P8: =HRcat4_CHD*r_CHD_UB -> 0.009 | Q8: =HRcat5_CHD*r_CHD_UB -> 0.006 | R8: =HRcat6_CHD*r_CHD_UB -> 0.006 | V8: Rate of CHD | W8: =HRcat1_CHD*r_CHD_SP -> 0.023 | X8: =HRcat2_CHD*r_CHD_SP -> 0.023 | Y8: =HRcat3_CHD*r_CHD_SP -> 0.022 | Z8: =HRcat4_CHD*r_CHD_SP -> 0.019 | AA8: =HRcat5_CHD*r_CHD_SP -> 0.012 | AB8: =HRcat6_CHD*r_CHD_SP -> 0.012
B9: HR for Stroke after control | C9: 1.00 | D9: 1.00 | E9: 1.00 | F9: 0.74 | G9: 0.39 | H9: 0.39 | L9: HR for Stroke after control | M9: 1.00 | N9: 1.00 | O9: 1.00 | P9: 0.74 | Q9: 0.39 | R9: 0.39 | V9: HR for Stroke after control | W9: 1.00 | X9: 1.00 | Y9: 1.00 | Z9: 0.74 | AA9: 0.39 | AB9: 0.39
B10: Rate of Stroke | C10: =HRcat1_Stroke*r_Stroke_Dakar -> 0.006 | D10: =HRcat2_Stroke*r_Stroke_Dakar -> 0.006 | E10: =HRcat3_Stroke*r_Stroke_Dakar -> 0.006 | F10: =HRcat4_Stroke*r_Stroke_Dakar -> 0.004 | G10: =HRcat5_Stroke*r_Stroke_Dakar -> 0.002 | H10: =HRcat6_Stroke*r_Stroke_Dakar -> 0.002 | L10: Rate of Stroke | M10: =HRcat1_Stroke*r_Stroke_UB -> 0.003 | N10: =HRcat2_Stroke*r_Stroke_UB -> 0.003 | O10: =HRcat3_Stroke*r_Stroke_UB -> 0.003 | P10: =HRcat4_Stroke*r_Stroke_UB -> 0.002 | Q10: =HRcat5_Stroke*r_Stroke_UB -> 0.001 | R10: =HRcat6_Stroke*r_Stroke_UB -> 0.001 | V10: Rate of Stroke | W10: =HRcat1_Stroke*r_Stroke_SP -> 0.007 | X10: =HRcat2_Stroke*r_Stroke_SP -> 0.007 | Y10: =HRcat3_Stroke*r_Stroke_SP -> 0.007 | Z10: =HRcat4_Stroke*r_Stroke_SP -> 0.005 | AA10: =HRcat5_Stroke*r_Stroke_SP -> 0.003 | AB10: =HRcat6_Stroke*r_Stroke_SP -> 0.003
V11: Source: Systolic Blood Pressure Reduction and Risk of Cardiovascular Disease and Mortality: A Systematic Review and Network Meta-analysis, 2017
B12: Efficacy-After CARDIO | L12: Efficacy-After CARDIO | V12: Efficacy-After CARDIO
B13: Category | C13: 1 | D13: 2 | E13: 3 | F13: 4 | G13: 5 | H13: 6 | L13: Category | M13: 1 | N13: 2 | O13: 3 | P13: 4 | Q13: 5 | R13: 6 | V13: Category | W13: 1 | X13: 2 | Y13: 3 | Z13: 4 | AA13: 5 | AB13: 6
B14: BP categories at baseline | C14: <120 and <80 mmHg | D14: 120-129 or 80-84 | E14: 130 - 139 or 85 - 89 | F14: 140 - 159 or 90 - 99 | G14: 160 - 179 or 100 - 109 | H14: ≥ 180 or ≥ 110 | L14: BP categories at baseline | M14: <120 and <80 mmHg | N14: 120-129 or 80-84 | O14: 130 - 139 or 85 - 89 | P14: 140 - 159 or 90 - 99 | Q14: 160 - 179 or 100 - 109 | R14: ≥ 180 or ≥ 110 | V14: BP categories at baseline | W14: <120 and <80 mmHg | X14: 120-129 or 80-84 | Y14: 130 - 139 or 85 - 89 | Z14: 140 - 159 or 90 - 99 | AA14: 160 - 179 or 100 - 109 | AB14: ≥ 180 or ≥ 110
B15: HR for CHD after control | C15: 1.00 | D15: 1.00 | E15: 0.96 | F15: 0.83 | G15: 0.51 | H15: 0.51 | L15: HR for CHD after control | M15: 1.00 | N15: 1.00 | O15: 0.96 | P15: 0.83 | Q15: 0.51 | R15: 0.51 | V15: HR for CHD after control | W15: 1.00 | X15: 1.00 | Y15: 0.96 | Z15: 0.83 | AA15: 0.51 | AB15: 0.51
B16: Rate of CHD | C16: =HRcat1_CHD*r_CHD_CARDIO_Dakar -> 0.019 | D16: =HRcat2_CHD*r_CHD_CARDIO_Dakar -> 0.019 | E16: =HRcat3_CHD*r_CHD_CARDIO_Dakar -> 0.019 | F16: =HRcat4_CHD*r_CHD_CARDIO_Dakar -> 0.016 | G16: =HRcat5_CHD*r_CHD_CARDIO_Dakar -> 0.010 | H16: =HRcat6_CHD*r_CHD_CARDIO_Dakar -> 0.010 | L16: Rate of CHD | M16: =HRcat1_CHD*r_CHD_CARDIO_UB -> 0.011 | N16: =HRcat2_CHD*r_CHD_CARDIO_UB -> 0.011 | O16: =HRcat3_CHD*r_CHD_CARDIO_UB -> 0.010 | P16: =HRcat4_CHD*r_CHD_CARDIO_UB -> 0.009 | Q16: =HRcat5_CHD*r_CHD_CARDIO_UB -> 0.005 | R16: =HRcat6_CHD*r_CHD_CARDIO_UB -> 0.005 | V16: Rate of CHD | W16: =HRcat1_CHD*r_CHD_CARDIO_SP -> 0.022 | X16: =HRcat2_CHD*r_CHD_CARDIO_SP -> 0.022 | Y16: =HRcat3_CHD*r_CHD_CARDIO_SP -> 0.021 | Z16: =HRcat4_CHD*r_CHD_CARDIO_SP -> 0.018 | AA16: =HRcat5_CHD*r_CHD_CARDIO_SP -> 0.011 | AB16: =HRcat6_CHD*r_CHD_CARDIO_SP -> 0.011
B17: HR for Stroke after control | C17: 1.00 | D17: 1.00 | E17: 1.00 | F17: 0.74 | G17: 0.39 | H17: 0.39 | L17: HR for Stroke after control | M17: 1.00 | N17: 1.00 | O17: 1.00 | P17: 0.74 | Q17: 0.39 | R17: 0.39 | V17: HR for Stroke after control | W17: 1.00 | X17: 1.00 | Y17: 1.00 | Z17: 0.74 | AA17: 0.39 | AB17: 0.39
B18: Rate of Stroke | C18: =HRcat1_Stroke*r_Stroke_CARDIO_Dakar -> 0.006 | D18: =HRcat2_Stroke*r_Stroke_CARDIO_Dakar -> 0.006 | E18: =HRcat3_Stroke*r_Stroke_CARDIO_Dakar -> 0.006 | F18: =HRcat4_Stroke*r_Stroke_CARDIO_Dakar -> 0.004 | G18: =HRcat5_Stroke*r_Stroke_CARDIO_Dakar -> 0.002 | H18: =HRcat6_Stroke*r_Stroke_CARDIO_Dakar -> 0.002 | L18: Rate of Stroke | M18: =M17*r_Stroke_CARDIO_UB -> 0.003 | N18: 0.003 | O18: 0.003 | P18: 0.002 | Q18: 0.001 | R18: 0.001 | V18: Rate of Stroke | W18: =W17*r_Stroke_CARDIO_SP -> 0.007 | X18: 0.007 | Y18: 0.007 | Z18: 0.005 | AA18: 0.003 | AB18: 0.003
C24: ='Raw Data - DK'!BI8 -> Q1 2019 | E24: ='Raw Data - DK'!BK8 -> After CARDIO-Q1'19 to Q4'19 | M24: Baseline - Q2 2018 | O24: After CARDIO - Q2 2020 | W24: Baseline - Q4 2018 | Y24: After CARDIO - Q2 2020
B25: Dakar | C25: Dakar - Male | D25: Dakar - Female | E25: Dakar - Male | F25: Dakar - Female | L25: UB | M25: UB - Male | N25: UB - Female | O25: UB - Male | P25: UB - Female | V25: SP | W25: SP - Male | X25: SP - Female | Y25: SP - Male | Z25: SP - Female
B26: Risk of CHD | C26: N | D26: N | E26: N | F26: N | L26: Risk of CHD | M26: N | N26: N | O26: N | P26: N | V26: Risk of CHD | W26: N | X26: N | Y26: N | Z26: N
B27: Low | C27: ='Raw Data - DK'!BI11 -> 90 | D27: ='Raw Data - DK'!BJ11 -> 466 | E27: ='Raw Data - DK'!BK11 -> 197 | F27: ='Raw Data - DK'!BL11 -> 811 | L27: Low | M27: ='Raw Data - UB'!BI10 -> 320 | N27: ='Raw Data - UB'!BJ10 -> 651 | O27: ='Raw Data - UB'!BK10 -> 1156 | P27: ='Raw Data - UB'!BL10 -> 2351 | V27: Low | W27: ='Raw Data - SP'!BI10 -> 4 | X27: ='Raw Data - SP'!BJ10 -> 13 | Y27: ='Raw Data - SP'!BK10 -> 11 | Z27: ='Raw Data - SP'!BL10 -> 21
B28: Medium | C28: ='Raw Data - DK'!BI12 -> 162 | D28: ='Raw Data - DK'!BJ12 -> 666 | E28: ='Raw Data - DK'!BK12 -> 316 | F28: ='Raw Data - DK'!BL12 -> 1121 | L28: Medium | M28: ='Raw Data - UB'!BI11 -> 301 | N28: ='Raw Data - UB'!BJ11 -> 477 | O28: ='Raw Data - UB'!BK11 -> 1088 | P28: ='Raw Data - UB'!BL11 -> 1724 | V28: Medium | W28: ='Raw Data - SP'!BI11 -> 3 | X28: ='Raw Data - SP'!BJ11 -> 20 | Y28: ='Raw Data - SP'!BK11 -> 11 | Z28: ='Raw Data - SP'!BL11 -> 30
B29: High | C29: ='Raw Data - DK'!BI13 -> 276 | D29: ='Raw Data - DK'!BJ13 -> 1055 | E29: ='Raw Data - DK'!BK13 -> 514 | F29: ='Raw Data - DK'!BL13 -> 1775 | L29: High | M29: ='Raw Data - UB'!BI12 -> 81 | N29: ='Raw Data - UB'!BJ12 -> 70 | O29: ='Raw Data - UB'!BK12 -> 291 | P29: ='Raw Data - UB'!BL12 -> 254 | V29: High | W29: ='Raw Data - SP'!BI12 -> 24 | X29: ='Raw Data - SP'!BJ12 -> 59 | Y29: ='Raw Data - SP'!BK12 -> 40 | Z29: ='Raw Data - SP'!BL12 -> 90
E33: Before CARDIO | G33: After CARDIO | O33: Before CARDIO | Q33: After CARDIO* | Y33: Before CARDIO | AA33: After CARDIO
B34: Dakar | E34: Dakar - Male | F34: Dakar - Female | G34: Dakar-Male | H34: Dakar-Female | L34: UB | O34: UB - Male | P34: UB - Female | Q34: UB-Male | R34: UB - Female | V34: SP | Y34: SP - Male | Z34: SP - Female | AA34: SP - Male | AB34: SP - Female
B35: Risk of CHD | C35: 10 y Risk-male | D35: 10 y Risk-female | E35: Proportion | F35: Proportion | G35: Proportion | H35: Proportion | L35: Risk of CHD | M35: 10 y Risk-male | N35: 10 y Risk-female | O35: Proportion | P35: Proportion | Q35: Proportion | R35: Proportion | V35: Risk of CHD | W35: 10 y Risk-male | X35: 10 y Risk-female | Y35: Proportion | Z35: Proportion | AA35: Proportion | AB35: Proportion
B36: Low | C36: =AVERAGE(0,0.094) -> 4.7% | D36: =AVERAGE(0,0.086) -> 4.3% | E36: =C27/SUM($C$27:$C$29) -> 17% | F36: =D27/SUM($D$27:$D$29) -> 21% | G36: =E27/SUM($E$27:$E$29) -> 19% | H36: =F27/SUM($F$27:$F$29) -> 22% | L36: Low | M36: =AVERAGE(0,0.094) -> 4.7% | N36: =AVERAGE(0,0.086) -> 4.3% | O36: =M27/SUM($M$27:$M$29) -> 46% | P36: =N27/SUM($N$27:$N$29) -> 54% | Q36: =O27/SUM($O$27:$O$29) -> 46% | R36: =P27/SUM($P$27:$P$29) -> 54% | V36: Low | W36: =AVERAGE(0,0.094) -> 4.7% | X36: =AVERAGE(0,0.086) -> 4.3% | Y36: =W27/SUM($W$27:$W$29) -> 13% | Z36: =X27/SUM($X$27:$X$29) -> 14% | AA36: =Y27/SUM($Y$27:$Y$29) -> 18% | AB36: =Z27/SUM($Z$27:$Z$29) -> 15%
B37: Medium | C37: =AVERAGE(0.112,0.184) -> 14.8% | D37: =AVERAGE(0.1,0.185) -> 14.3% | E37: =C28/SUM($C$27:$C$29) -> 31% | F37: =D28/SUM($D$27:$D$29) -> 30% | G37: =E28/SUM($E$27:$E$29) -> 31% | H37: =F28/SUM($F$27:$F$29) -> 30% | L37: Medium | M37: =AVERAGE(0.112,0.184) -> 14.8% | N37: =AVERAGE(0.1,0.185) -> 14.3% | O37: =M28/SUM($M$27:$M$29) -> 43% | P37: =N28/SUM($N$27:$N$29) -> 40% | Q37: =O28/SUM($O$27:$O$29) -> 43% | R37: =P28/SUM($P$27:$P$29) -> 40% | V37: Medium | W37: =AVERAGE(0.112,0.184) -> 14.8% | X37: =AVERAGE(0.1,0.185) -> 14.3% | Y37: =W28/SUM($W$27:$W$29) -> 10% | Z37: =X28/SUM($X$27:$X$29) -> 22% | AA37: =Y28/SUM($Y$27:$Y$29) -> 18% | AB37: =Z28/SUM($Z$27:$Z$29) -> 21%
B38: High | C38: =AVERAGE(0.216,0.3) -> 25.8% | D38: =AVERAGE(0.215,0.3) -> 25.8% | E38: =C29/SUM($C$27:$C$29) -> 52% | F38: =D29/SUM($D$27:$D$29) -> 48% | G38: =E29/SUM($E$27:$E$29) -> 50% | H38: =F29/SUM($F$27:$F$29) -> 48% | L38: High | M38: =AVERAGE(0.216,0.3) -> 25.8% | N38: =AVERAGE(0.215,0.3) -> 25.8% | O38: =M29/SUM($M$27:$M$29) -> 11% | P38: =N29/SUM($N$27:$N$29) -> 6% | Q38: =O29/SUM($O$27:$O$29) -> 11% | R38: =P29/SUM($P$27:$P$29) -> 6% | V38: High | W38: =AVERAGE(0.216,0.3) -> 25.8% | X38: =AVERAGE(0.215,0.3) -> 25.8% | Y38: =W29/SUM($W$27:$W$29) -> 77% | Z38: =X29/SUM($X$27:$X$29) -> 64% | AA38: =Y29/SUM($Y$27:$Y$29) -> 65% | AB38: =Z29/SUM($Z$27:$Z$29) -> 64%
B39: Average risk | E39: =SUMPRODUCT(C36:C38,E36:E38) -> 18.8% | F39: =SUMPRODUCT(D36:D38,F36:F38) -> 17.7% | G39: =SUMPRODUCT(C36:C38,G36:G38) -> 18.4% | H39: =SUMPRODUCT(D36:D38,H36:H38) -> 17.6% | L39: Average risk | O39: =SUMPRODUCT(M36:M38,O36:O38) -> 11.5% | P39: =SUMPRODUCT(N36:N38,P36:P38) -> 9.5% | Q39: =SUMPRODUCT(M36:M38,Q36:Q38) -> 11.5% | R39: =SUMPRODUCT(N36:N38,R36:R38) -> 9.5% | V39: Average risk | Y39: =SUMPRODUCT(W36:W38,Y36:Y38) -> 22.0% | Z39: =SUMPRODUCT(X36:X38,Z36:Z38) -> 20.2% | AA39: =SUMPRODUCT(W36:W38,AA36:AA38) -> 20.1% | AB39: =SUMPRODUCT(X36:X38,AB36:AB38) -> 20.1%
B40: Average risk (overall) | E40: =(male_Dakar*E39)+((1-male_Dakar)*F39) -> 17.94% | G40: =(male_Dakar*G39)+((1-male_Dakar)*H39) -> 17.76% | I40: =G40/E40-1 -> -0.01 | L40: Average risk (overall) | O40: =(male_UB*O39)+((1-male_UB)*P39) -> 10.23% | Q40: =(male_UB*Q39)+((1-male_UB)*R39) -> 10.23% | V40: Average risk (overall) | Y40: =(male_SP*Y39)+((1-male_SP)*Z39) -> 20.70% | AA40: =(male_SP*AA39)+((1-male_SP)*AB39) -> 20.11%
B41: 10 year CHD risk | E41: =E40 -> 17.94% | G41: =G40 -> 17.76% | H41: 7.00% | L41: 10 year CHD risk | O41: =O40/N54 -> 10.3% | Q41: =Q40 -> 10.23% | R41: 7.00% | V41: 10 year CHD risk | Y41: =Y40 -> 20.70% | AA41: =AA40 -> 20.11% | AB41: 7.00%
B42: Annual risk - CHD | E42: =(1-((1-E41)^(1/10))) -> 1.96% | G42: =(1-((1-G41)^(1/10))) -> 1.94% | L42: =B42 -> Annual risk - CHD | O42: =(1-((1-O41)^(1/10))) -> 1.08% | Q42: =(1-((1-Q41)^(1/10))) -> 1.07% | V42: =B42 -> Annual risk - CHD | Y42: =(1-((1-Y41)^(1/10))) -> 2.29% | AA42: =(1-((1-AA41)^(1/10))) -> 2.22%
B43: 2 year risk - CHD | E43: =(1-((1-E41)^(2/10))) -> 3.88% | G43: =(1-((1-G41)^(2/10))) -> 3.83% | L43: 2 year risk - CHD | O43: =(1-((1-O41)^(2/10))) -> 2.16% | Q43: =(1-((1-Q41)^(2/10))) -> 2.14% | V43: =B43 -> 2 year risk - CHD | Y43: =(1-((1-Y41)^(2/10))) -> 4.53% | AA43: =(1-((1-AA41)^(2/10))) -> 4.39%
B44: Annual risk - Stroke | E44: =E42*'Model Specification_Old_input'!$E$61 -> 0.59% | G44: =G42*'Model Specification_Old_input'!$E$61 -> 0.58% | L44: Annual risk - Stroke | O44: =O42*'Model Specification_Old_input'!$E$61 -> 0.33% | Q44: =Q42*'Model Specification_Old_input'!$E$61 -> 0.32% | V44: =B44 -> Annual risk - Stroke | Y44: =Y42*'Model Specification_Old_input'!$D$61 -> 0.69% | AA44: =AA42*'Model Specification_Old_input'!$H$60 -> 0.049%
B45: 2 year risk - Stroke | E45: =E43*0.3 -> 1.16% | G45: =G43*'Model Specification_Old_input'!$E$61 -> 1.15% | L45: 2 year risk - Stroke | O45: =O43*'Model Specification_Old_input'!$E$61 -> 0.65% | Q45: =Q43*'Model Specification_Old_input'!$E$61 -> 0.64% | V45: =B45 -> 2 year risk - Stroke | Y45: =Y43*'Model Specification_Old_input'!$D$61 -> 1.36% | AA45: =AA43*'Model Specification_Old_input'!$H$60 -> 0.097%
B46: ='Model Specification_Old_input'!E5 -> One Year | L46: ='Model Specification_Old_input'!F5 -> Two Year | V46: ='Model Specification_Old_input'!D5 -> One Year
B47: risk - CHD | C47: for intervention period | E47: =IF('Model Specification_Old_input'!$E5="One Year",(1-((1-E41)^(1/10))),(1-((1-E41)^(1.75/10)))) -> 1.96% | G47: =IF('Model Specification_Old_input'!$E5="One Year",(1-((1-G41)^(1/10))),(1-((1-G41)^(1.75/10)))) -> 1.94% | L47: =B47 -> risk - CHD | M47: for intervention period | O47: =IF('Model Specification_Old_input'!$F5="One Year",(1-((1-O41)^(1/10))),(1-((1-O41)^(1.66666666666667/10)))) -> 1.80% | Q47: =IF('Model Specification_Old_input'!$F5="One Year",(1-((1-Q41)^(1/10))),(1-((1-Q41)^(1.66666666666667/10)))) -> 1.78% | V47: =L47 -> risk - CHD | W47: for intervention period | Y47: =IF('Model Specification_Old_input'!$D5="One Year",(1-((1-Y41)^(1.25/10))),"ZZ") -> 2.86% | AA47: =IF('Model Specification_Old_input'!$D5="One Year",(1-((1-AA41)^(1.25/10))),"ZZ") -> 2.77%
B48: risk - Stroke | C48: for intervention period | E48: =r_CHD_2y_SoC_DK*'Model Specification_Old_input'!E61 -> 0.59% | G48: =r_CHD_2y_CARDIO_DK*'Model Specification_Old_input'!E61 -> 0.58% | L48: =B48 -> risk - Stroke | M48: for intervention period | O48: =r_CHD_2y_SoC_UB*'Model Specification_Old_input'!F61 -> 0.54% | Q48: =r_CHD_2y_CARDIO_UB*'Model Specification_Old_input'!F61 -> 0.53% | V48: =L48 -> risk - Stroke | W48: for intervention period | Y48: =r_CHD_2y_SoC_SP*'Model Specification_Old_input'!D61 -> 0.86% | AA48: =r_CHD_2y_CARDIO_SP*'Model Specification_Old_input'!D61 -> 0.83%
L50: *Since after CARDIO distribution is not available a treatment effect factor is applied on top of baseline data
G54: =r_CHD_2y_CARDIO_DK/r_CHD_2y_SoC_DK-1 -> -1.09% | M54: Adjustment factor | N54: =G41/E41 -> 99.00%
M55: Assumption:change in reduction is equivalent to DK city

Sheet Model Limitation

Sheet Parameter Defn and Ref. (hidden)
A2: S.N. | B2: Parameter | C2: Source / Reference | D2: Definition /Scope
A3: 1 | B3: Population (Total diagnosed at last time point) | C3: CARDIO Raw Data | D3: All data comes from last quarter data from age classification. E.g. for SP, this is from 'Quarter - 2017 Q4 to 2020 Q1' in file '20200817_CARDIO_DataCollectionFormat_v0.3'. Note that the SP data was for 6 clinics (1962) and was extrapolated to 24 by multiplying by 4
A4: 2 | B4: HTN Control Defn. | C4: Dashboard (Cumulative total # of patients with controlled BP at last known visit following treatment initiation (assumes the patient has been diagnosed and has at least 1 follow-up visit where they BP was measured and documented) | D4: HTN Defn.: SP and DK: Uncontrolled > BP above 140 or 90 , UB Uncontrolled > BP above 130 or 85
A5: 3 | B5: BP categories at baseline | C5: Raw Data | D5: Distribution of BP categories. This defines which category the patients are there when it comes to SBP.
A6: 4 | B6: Control Rates | C6: Dashboard values | D6: Proportion of patients controlled due to CARDIO. Control rates further derives the CARDIO impact
A7: 5 | B7: Mean age | C7: The mean age was calculated based on proportion of patients in each age category and mid-point of each age category in the last quarter of the CARDIO phase on 2020 | D7: Mean age values are used in defining patient cohort starting age which further derives the mortality rate in the model
A8: 6 | B8: Male Proportion (%) | C8: Male % calculated based on proportion of patients in each age category and mid-point of each age category in the last quarter of the CARDIO phase on 2020 | D8: Male and female proportion are used in defining the weighted HTN / CHD/ Stroke risk score. In general female have lesser HTN / CHD/ Stroke events risk in comparison to male
A9: 7 | B9: Discount (costs) / Discount (benefits) | C9: 1. Discount-Brazil: Brazil. Ministério da Saúde. Secretaria de Ciência, Tecnologia e Insumos Estratégicos. Departamento de Ciência e Tecnologia. Diretrizes Metodológicas: estudos de avaliação econômica de tecnologias em saúde. Bras00EDlia2009. A 2. Discount: Bertram MY, Stenberg K, Brindley C, Li J, Serje J, Watts R et al. Disease control programme support costs: an update of WHO-CHOICE methodology, 128 WHO guide for standardization of economic evaluations of immunization programmes price databases and quantity assumptions. Cost Eff Resource Alloc. 2017;15:21. Epub 2017/11/02. doi:10.1186/s12962-017-0083-6. PubMed PMID: 29089861. PubMed Central PMCID: PMCPMC5658944 Note: 3% discounting factor in case of DK and UB based on WHO guideline | D9: Factor used for adjusting future costs and outcomes of health‐care interventions to “present value”
A10: 8 | B10: Risk Coronary heart disease | C10: Hazard ratio estimates derived from Bundy et al - Systolic Blood Pressure Reduction and Risk of Cardiovascular Disease and Mortality: A Systematic Review and Network Meta-analysis, 2017 | D10: CHD events includes,CHD, stroke, heart failure, and CVD deaths
A11: 9 | B11: Proportion of CHD events that are Stroke | C11: NEJM-‘LIPID study | D11: Due to additional comorbidity risk factor (Diab. Obesity etc.) and conservative assumptions we rounded the stroke events to 30% instead of 33% Quoted in reference paper
A12: 10 | B12: Direct costs / Adjustment factor | C12: Budget_overall_spend' tab in the file 'CARDIO data_All cities'. Discounting values based on internal assumption | D12: Programme cost, discount
A13: 11 | B13: Hypertension - controlled Cost | C13: Da Costa et al 2003 | D13: Hypertension cost includes the averages cost of the drug, health insurance, medical consultation, laboratory tests, transportation, and meals. Reference article assumes HTN cost based on the costs of antihypertensive treatment monthly expenditure on drugs.
A14: 12 | B14: Hypertension - uncontrolled Cost | C14: Similar to Hypertension controlled cost | D14: Similar to Hypertension controlled cost
A15: 13 | B15: Coronary heart disease/event cost | C15: Rosane Paixão Schlatter, Schlatter et al. BMC Cardiovascular Disorders (2017) 17:180 | D15: CHD Cost outpatient and hospitalization costs
A16: 14 | B16: Stroke/event cost | C16: Dos Santos RF et al,De Souza et al 2015 | D16: Stroke event cost includes specialists’ opinion, medical visit, hospitalizations, laboratory tests, procedures, and drug cost
A17: 15 | B17: Annual loss of productivity cost | C17: =C13 -> Da Costa et al 2003 | D17: productivity losses caused by partial or total absence from work were estimated via the proportional per-capita income earned during one working day.
A18: 16 | B18: Utility of health states | C18: Mould-Quevedo et al 2015 | D18: It is annual quality of life (QOL) for alive HTN patients and disutility when the event CHD/ stroke occurs
A19: 17 | B19: Exchange rate | C19: Novartis Treasury rates | D19: Exchange factors used to define results outcome in USD
A20: 18 | B20: Purchasing power parity conversion factor | C20: PPP: World Bank’s International Comparison Program (ICP), https://databank.worldbank.org/reports.aspx?source=international-comparison-program-(icp)-2011 | D20: PPP factor are used to determine the cost values for DK and UB
A21: 19 | B21: HTN mortality multiplier | C21: da Silva et al 2015 | D21: This factor used in determining HTN specific mortality rates from life table
A22: 20 | B22: Mortality rate / Lifetable | C22: https://apps.who.int/gho/data/view.main.61450?lang=en | D22: Life table used in determining HTN specific mortality and death avoided cases of projection phased of CARDIO

Sheet Model Specification_Old_input (hidden)
D2: Select Scenario | E2: 1
C3: Model Specific Assumptions | K3: Select Scenario | L3: Base case
C4: Intervention Period in year | D4: Sao Paulo | E4: Dakar | F4: UlaanBaatar
C5: =IF(Sc_1=1,'User Input -Scenario Assumption'!C7,IF(Sc_1=2,'User Input -Scenario Assumption'!C8,'User Input -Scenario Assumption'!C9)) -> Base case | D5: =IF(Sc_1=1,'User Input -Scenario Assumption'!E7,IF(Sc_1=2,'User Input -Scenario Assumption'!E8,'User Input -Scenario Assumption'!E9)) -> One Year | E5: =IF(Sc_1=1,'User Input -Scenario Assumption'!F7,IF(Sc_1=2,'User Input -Scenario Assumption'!F8,'User Input -Scenario Assumption'!F9)) -> One Year | F5: =IF(Sc_1=1,'User Input -Scenario Assumption'!G7,IF(Sc_1=2,'User Input -Scenario Assumption'!G8,'User Input -Scenario Assumption'!G9)) -> Two Year
D7: Sao Paulo | E7: Dakar | F7: UlaanBaatar
C8: Population (Total diagnosed at last time point) | D8: =IF(Sc_1=1,'User Input -Scenario Assumption'!E12,IF(Sc_1=2,'User Input -Scenario Assumption'!E13,'User Input -Scenario Assumption'!E14)) -> 5844 | E8: =IF(Sc_1=1,'User Input -Scenario Assumption'!F12,IF(Sc_1=2,'User Input -Scenario Assumption'!F13,'User Input -Scenario Assumption'!F14)) -> 5236 | F8: =IF(Sc_1=1,'User Input -Scenario Assumption'!G12,IF(Sc_1=2,'User Input -Scenario Assumption'!G13,'User Input -Scenario Assumption'!G14)) -> 10075 | G8: *SP population linearly extrapolated to 24 clinics from data of 6
C10: HTN Defn. | D10: Sao Paulo | E10: Dakar | F10: UlaanBaatar
C11: <120 and <80 mmHg | D11: =IF(Sc_1=1,'User Input -Scenario Assumption'!E27,IF(Sc_1=2,'User Input -Scenario Assumption'!E33,'User Input -Scenario Assumption'!E39)) -> Controlled | E11: =IF(Sc_1=1,'User Input -Scenario Assumption'!F27,IF(Sc_1=2,'User Input -Scenario Assumption'!F33,'User Input -Scenario Assumption'!F39)) -> Controlled | F11: =IF(Sc_1=1,'User Input -Scenario Assumption'!G27,IF(Sc_1=2,'User Input -Scenario Assumption'!G33,'User Input -Scenario Assumption'!G39)) -> Controlled
C12: 120-129 or 80-84 | D12: =IF(Sc_1=1,'User Input -Scenario Assumption'!E28,IF(Sc_1=2,'User Input -Scenario Assumption'!E34,'User Input -Scenario Assumption'!E40)) -> Controlled | E12: =IF(Sc_1=1,'User Input -Scenario Assumption'!F28,IF(Sc_1=2,'User Input -Scenario Assumption'!F34,'User Input -Scenario Assumption'!F40)) -> Controlled | F12: =IF(Sc_1=1,'User Input -Scenario Assumption'!G28,IF(Sc_1=2,'User Input -Scenario Assumption'!G34,'User Input -Scenario Assumption'!G40)) -> Controlled
C13: 130 - 139 or 85 - 89 | D13: =IF(Sc_1=1,'User Input -Scenario Assumption'!E29,IF(Sc_1=2,'User Input -Scenario Assumption'!E35,'User Input -Scenario Assumption'!E41)) -> Controlled | E13: =IF(Sc_1=1,'User Input -Scenario Assumption'!F29,IF(Sc_1=2,'User Input -Scenario Assumption'!F35,'User Input -Scenario Assumption'!F41)) -> Controlled | F13: =IF(Sc_1=1,'User Input -Scenario Assumption'!G29,IF(Sc_1=2,'User Input -Scenario Assumption'!G35,'User Input -Scenario Assumption'!G41)) -> Uncontrolled
C14: 140 - 159 or 90 - 99 | D14: =IF(Sc_1=1,'User Input -Scenario Assumption'!E30,IF(Sc_1=2,'User Input -Scenario Assumption'!E36,'User Input -Scenario Assumption'!E42)) -> Uncontrolled | E14: =IF(Sc_1=1,'User Input -Scenario Assumption'!F30,IF(Sc_1=2,'User Input -Scenario Assumption'!F36,'User Input -Scenario Assumption'!F42)) -> Uncontrolled | F14: =IF(Sc_1=1,'User Input -Scenario Assumption'!G30,IF(Sc_1=2,'User Input -Scenario Assumption'!G36,'User Input -Scenario Assumption'!G42)) -> Uncontrolled
C15: 160 - 179 or 100 - 109 | D15: =IF(Sc_1=1,'User Input -Scenario Assumption'!E31,IF(Sc_1=2,'User Input -Scenario Assumption'!E37,'User Input -Scenario Assumption'!E43)) -> Uncontrolled | E15: =IF(Sc_1=1,'User Input -Scenario Assumption'!F31,IF(Sc_1=2,'User Input -Scenario Assumption'!F37,'User Input -Scenario Assumption'!F43)) -> Uncontrolled | F15: =IF(Sc_1=1,'User Input -Scenario Assumption'!G31,IF(Sc_1=2,'User Input -Scenario Assumption'!G37,'User Input -Scenario Assumption'!G43)) -> Uncontrolled
C16: ≥ 180 or ≥ 110 | D16: =IF(Sc_1=1,'User Input -Scenario Assumption'!E32,IF(Sc_1=2,'User Input -Scenario Assumption'!E38,'User Input -Scenario Assumption'!E44)) -> Uncontrolled | E16: =IF(Sc_1=1,'User Input -Scenario Assumption'!F32,IF(Sc_1=2,'User Input -Scenario Assumption'!F38,'User Input -Scenario Assumption'!F44)) -> Uncontrolled | F16: =IF(Sc_1=1,'User Input -Scenario Assumption'!G32,IF(Sc_1=2,'User Input -Scenario Assumption'!G38,'User Input -Scenario Assumption'!G44)) -> Uncontrolled
C19: Baseline distribution
C20: Scenario | D20: Raw Data | E20: Raw Data | F20: Raw Data | H20: User input
H21: Baseline
D22: Sao Paulo | E22: Dakar | F22: UlaanBaatar | H22: Sao Paulo | I22: Dakar | J22: UlaanBaatar
C23: BP categories at baseline | D23: Proportion | E23: Proportion | F23: Proportion | H23: Proportion | I23: Proportion | J23: Proportion
C24: <120 and <80 mmHg | D24: =IF(Sc_1=1,'User Input -Scenario Assumption'!E49,IF(Sc_1=2,'User Input -Scenario Assumption'!E56,'User Input -Scenario Assumption'!E63)) -> 3% | E24: =IF(Sc_1=1,'User Input -Scenario Assumption'!F49,IF(Sc_1=2,'User Input -Scenario Assumption'!F56,'User Input -Scenario Assumption'!F63)) -> 2% | F24: =IF(Sc_1=1,'User Input -Scenario Assumption'!G49,IF(Sc_1=2,'User Input -Scenario Assumption'!G56,'User Input -Scenario Assumption'!G63)) -> 1%
C25: 120-129 or 80-84 | D25: =IF(Sc_1=1,'User Input -Scenario Assumption'!E50,IF(Sc_1=2,'User Input -Scenario Assumption'!E57,'User Input -Scenario Assumption'!E64)) -> 6% | E25: =IF(Sc_1=1,'User Input -Scenario Assumption'!F50,IF(Sc_1=2,'User Input -Scenario Assumption'!F57,'User Input -Scenario Assumption'!F64)) -> 4% | F25: =IF(Sc_1=1,'User Input -Scenario Assumption'!G50,IF(Sc_1=2,'User Input -Scenario Assumption'!G57,'User Input -Scenario Assumption'!G64)) -> 2%
C26: 130 - 139 or 85 - 89 | D26: =IF(Sc_1=1,'User Input -Scenario Assumption'!E51,IF(Sc_1=2,'User Input -Scenario Assumption'!E58,'User Input -Scenario Assumption'!E65)) -> 4% | E26: =IF(Sc_1=1,'User Input -Scenario Assumption'!F51,IF(Sc_1=2,'User Input -Scenario Assumption'!F58,'User Input -Scenario Assumption'!F65)) -> 8% | F26: =IF(Sc_1=1,'User Input -Scenario Assumption'!G51,IF(Sc_1=2,'User Input -Scenario Assumption'!G58,'User Input -Scenario Assumption'!G65)) -> 23%
C27: 140 - 159 or 90 - 99 | D27: =IF(Sc_1=1,'User Input -Scenario Assumption'!E52,IF(Sc_1=2,'User Input -Scenario Assumption'!E59,'User Input -Scenario Assumption'!E66)) -> 42% | E27: =IF(Sc_1=1,'User Input -Scenario Assumption'!F52,IF(Sc_1=2,'User Input -Scenario Assumption'!F59,'User Input -Scenario Assumption'!F66)) -> 39% | F27: =IF(Sc_1=1,'User Input -Scenario Assumption'!G52,IF(Sc_1=2,'User Input -Scenario Assumption'!G59,'User Input -Scenario Assumption'!G66)) -> 40%
C28: 160 - 179 or 100 - 109 | D28: =IF(Sc_1=1,'User Input -Scenario Assumption'!E53,IF(Sc_1=2,'User Input -Scenario Assumption'!E60,'User Input -Scenario Assumption'!E67)) -> 34% | E28: =IF(Sc_1=1,'User Input -Scenario Assumption'!F53,IF(Sc_1=2,'User Input -Scenario Assumption'!F60,'User Input -Scenario Assumption'!F67)) -> 27% | F28: =IF(Sc_1=1,'User Input -Scenario Assumption'!G53,IF(Sc_1=2,'User Input -Scenario Assumption'!G60,'User Input -Scenario Assumption'!G67)) -> 25%
C29: ≥ 180 or ≥ 110 | D29: =IF(Sc_1=1,'User Input -Scenario Assumption'!E54,IF(Sc_1=2,'User Input -Scenario Assumption'!E61,'User Input -Scenario Assumption'!E68)) -> 12% | E29: =IF(Sc_1=1,'User Input -Scenario Assumption'!F54,IF(Sc_1=2,'User Input -Scenario Assumption'!F61,'User Input -Scenario Assumption'!F68)) -> 20% | F29: =IF(Sc_1=1,'User Input -Scenario Assumption'!G54,IF(Sc_1=2,'User Input -Scenario Assumption'!G61,'User Input -Scenario Assumption'!G68)) -> 9%
C30: Total | D30: =IF(Sc_1=1,'User Input -Scenario Assumption'!E55,IF(Sc_1=2,'User Input -Scenario Assumption'!E62,'User Input -Scenario Assumption'!E69)) -> 100% | E30: =IF(Sc_1=1,'User Input -Scenario Assumption'!F55,IF(Sc_1=2,'User Input -Scenario Assumption'!F62,'User Input -Scenario Assumption'!F69)) -> 100% | F30: =IF(Sc_1=1,'User Input -Scenario Assumption'!G55,IF(Sc_1=2,'User Input -Scenario Assumption'!G62,'User Input -Scenario Assumption'!G69)) -> 100%
C32: CARDIO Time period
C33: Hypertension control evolution over time (change from baseline)
C34: CARDIO | D34: Dashboard Values | F34: Dashboard Values | H34: Dashboard Values | K34: User input | P34: Without CARDIO
D35: Sao Paulo | E35: End of CARDIO | F35: Dakar | H35: UlaanBaatar | K35: At End of CARDIO Programme | Q35: Sao Paulo | S35: Dakar | U35: UlaanBaatar
C36: BP categories Y1,Y2 | D36: Y1 | E36: Y2 | F36: Y1 | G36: Y2 | H36: Y1 | I36: Y2 | K36: Sao Paulo | L36: Dakar | M36: UlaanBaatar | P36: BP categories at baseline | Q36: Y1 | R36: Y2 | S36: Y1 | T36: Y2 | U36: Y1 | V36: Y2
C37: Total control (N) | D37: =IF(D$34<>"Raw Data", "",'Raw Data - SP'!Q37) ->  | E37: =IF(Sc_1=1,'User Input -Scenario Assumption'!E74,IF(Sc_1=2,'User Input -Scenario Assumption'!E81,'User Input -Scenario Assumption'!E88)) -> 1,824 | G37: =IF(Sc_1=1,'User Input -Scenario Assumption'!F74,IF(Sc_1=2,'User Input -Scenario Assumption'!F81,'User Input -Scenario Assumption'!F88)) -> 1,016 | I37: =IF(Sc_1=1,'User Input -Scenario Assumption'!G74,IF(Sc_1=2,'User Input -Scenario Assumption'!G81,'User Input -Scenario Assumption'!G88)) -> 1,986 | K37: Proportion | L37: Proportion | M37: Proportion
C38: <120 and <80 mmHg | D38: =IF(D$34<>"Raw Data",0,'Raw Data - SP'!T30) -> 0.0% | E38: =IF(Sc_1=1,'User Input -Scenario Assumption'!E75,IF(Sc_1=2,'User Input -Scenario Assumption'!E82,'User Input -Scenario Assumption'!E89)) -> 100% | F38: =IF(F$34<>"Raw Data",0,'Raw Data - DK'!T30) -> 0.0% | G38: =IF(Sc_1=1,'User Input -Scenario Assumption'!F75,IF(Sc_1=2,'User Input -Scenario Assumption'!F82,'User Input -Scenario Assumption'!F89)) -> 100% | H38: =IF(H$34<>"Raw Data",0,F38) -> 0.0% | I38: =IF(Sc_1=1,'User Input -Scenario Assumption'!G75,IF(Sc_1=2,'User Input -Scenario Assumption'!G82,'User Input -Scenario Assumption'!G89)) -> 100% | P38: <120 and <80 mmHg | R38: =IF(Sc_1=1,'User Input -Scenario Assumption'!H75,IF(Sc_1=2,'User Input -Scenario Assumption'!H82,'User Input -Scenario Assumption'!H89)) -> 100% | T38: =IF(Sc_1=1,'User Input -Scenario Assumption'!I75,IF(Sc_1=2,'User Input -Scenario Assumption'!I82,'User Input -Scenario Assumption'!I89)) -> 100% | V38: =IF(Sc_1=1,'User Input -Scenario Assumption'!J75,IF(Sc_1=2,'User Input -Scenario Assumption'!J82,'User Input -Scenario Assumption'!J89)) -> 100%
C39: 120-129 or 80-84 | D39: =IF(D$34<>"Raw Data",0,'Raw Data - SP'!T31) -> 0.0% | E39: =IF(Sc_1=1,'User Input -Scenario Assumption'!E76,IF(Sc_1=2,'User Input -Scenario Assumption'!E83,'User Input -Scenario Assumption'!E90)) -> 100.0% | F39: =IF(F$34<>"Raw Data",0,'Raw Data - DK'!T31) -> 0.0% | G39: =IF(Sc_1=1,'User Input -Scenario Assumption'!F76,IF(Sc_1=2,'User Input -Scenario Assumption'!F83,'User Input -Scenario Assumption'!F90)) -> 100.0% | H39: 0.0% | I39: =IF(Sc_1=1,'User Input -Scenario Assumption'!G76,IF(Sc_1=2,'User Input -Scenario Assumption'!G83,'User Input -Scenario Assumption'!G90)) -> 100.0% | P39: 120-129 or 80-84 | R39: =IF(Sc_1=1,'User Input -Scenario Assumption'!H76,IF(Sc_1=2,'User Input -Scenario Assumption'!H83,'User Input -Scenario Assumption'!H90)) -> 100.0% | T39: =IF(Sc_1=1,'User Input -Scenario Assumption'!I76,IF(Sc_1=2,'User Input -Scenario Assumption'!I83,'User Input -Scenario Assumption'!I90)) -> 100.0% | V39: =IF(Sc_1=1,'User Input -Scenario Assumption'!J76,IF(Sc_1=2,'User Input -Scenario Assumption'!J83,'User Input -Scenario Assumption'!J90)) -> 100.0%
C40: 130 - 139 or 85 - 89 | D40: =IF(D$34<>"Raw Data",0,'Raw Data - SP'!T32) -> 0.0% | E40: =IF(Sc_1=1,'User Input -Scenario Assumption'!E77,IF(Sc_1=2,'User Input -Scenario Assumption'!E84,'User Input -Scenario Assumption'!E91)) -> 100.0% | F40: =IF(F$34<>"Raw Data",0,'Raw Data - DK'!T32) -> 0.0% | G40: =IF(Sc_1=1,'User Input -Scenario Assumption'!F77,IF(Sc_1=2,'User Input -Scenario Assumption'!F84,'User Input -Scenario Assumption'!F91)) -> 100.0% | H40: 0.0% | I40: =IF(Sc_1=1,'User Input -Scenario Assumption'!G77,IF(Sc_1=2,'User Input -Scenario Assumption'!G84,'User Input -Scenario Assumption'!G91)) -> 17.2% | P40: 130 - 139 or 85 - 89 | R40: =IF(Sc_1=1,'User Input -Scenario Assumption'!H77,IF(Sc_1=2,'User Input -Scenario Assumption'!H84,'User Input -Scenario Assumption'!H91)) -> 100.0% | T40: =IF(Sc_1=1,'User Input -Scenario Assumption'!I77,IF(Sc_1=2,'User Input -Scenario Assumption'!I84,'User Input -Scenario Assumption'!I91)) -> 100.0% | V40: =IF(Sc_1=1,'User Input -Scenario Assumption'!J77,IF(Sc_1=2,'User Input -Scenario Assumption'!J84,'User Input -Scenario Assumption'!J91)) -> 0.0%
C41: 140 - 159 or 90 - 99 | D41: =IF(D$34<>"Raw Data",0,'Raw Data - SP'!T33) -> 0.0% | E41: =IF(Sc_1=1,'User Input -Scenario Assumption'!E78,IF(Sc_1=2,'User Input -Scenario Assumption'!E85,'User Input -Scenario Assumption'!E92)) -> 21.6% | F41: =IF(F$34<>"Raw Data",0,'Raw Data - DK'!T33) -> 0.0% | G41: =IF(Sc_1=1,'User Input -Scenario Assumption'!F78,IF(Sc_1=2,'User Input -Scenario Assumption'!F85,'User Input -Scenario Assumption'!F92)) -> 7.0% | H41: 0.0% | I41: =IF(Sc_1=1,'User Input -Scenario Assumption'!G78,IF(Sc_1=2,'User Input -Scenario Assumption'!G85,'User Input -Scenario Assumption'!G92)) -> 17.2% | P41: 140 - 159 or 90 - 99 | R41: =IF(Sc_1=1,'User Input -Scenario Assumption'!H78,IF(Sc_1=2,'User Input -Scenario Assumption'!H85,'User Input -Scenario Assumption'!H92)) -> 0.0% | T41: =IF(Sc_1=1,'User Input -Scenario Assumption'!I78,IF(Sc_1=2,'User Input -Scenario Assumption'!I85,'User Input -Scenario Assumption'!I92)) -> 0.0% | V41: =IF(Sc_1=1,'User Input -Scenario Assumption'!J78,IF(Sc_1=2,'User Input -Scenario Assumption'!J85,'User Input -Scenario Assumption'!J92)) -> 0.0%
C42: 160 - 179 or 100 - 109 | D42: =IF(D$34<>"Raw Data",0,'Raw Data - SP'!T34) -> 0.0% | E42: =IF(Sc_1=1,'User Input -Scenario Assumption'!E79,IF(Sc_1=2,'User Input -Scenario Assumption'!E86,'User Input -Scenario Assumption'!E93)) -> 21.6% | F42: =IF(F$34<>"Raw Data",0,'Raw Data - DK'!T34) -> 0.0% | G42: =IF(Sc_1=1,'User Input -Scenario Assumption'!F79,IF(Sc_1=2,'User Input -Scenario Assumption'!F86,'User Input -Scenario Assumption'!F93)) -> 7.0% | H42: 0.0% | I42: =IF(Sc_1=1,'User Input -Scenario Assumption'!G79,IF(Sc_1=2,'User Input -Scenario Assumption'!G86,'User Input -Scenario Assumption'!G93)) -> 17.2% | P42: 160 - 179 or 100 - 109 | R42: =IF(Sc_1=1,'User Input -Scenario Assumption'!H79,IF(Sc_1=2,'User Input -Scenario Assumption'!H86,'User Input -Scenario Assumption'!H93)) -> 0.0% | T42: =IF(Sc_1=1,'User Input -Scenario Assumption'!I79,IF(Sc_1=2,'User Input -Scenario Assumption'!I86,'User Input -Scenario Assumption'!I93)) -> 0.0% | V42: =IF(Sc_1=1,'User Input -Scenario Assumption'!J79,IF(Sc_1=2,'User Input -Scenario Assumption'!J86,'User Input -Scenario Assumption'!J93)) -> 0.0%
C43: ≥ 180 or ≥ 110 | D43: =IF(D$34<>"Raw Data",0,'Raw Data - SP'!T35) -> 0.0% | E43: =IF(Sc_1=1,'User Input -Scenario Assumption'!E80,IF(Sc_1=2,'User Input -Scenario Assumption'!E87,'User Input -Scenario Assumption'!E94)) -> 21.6% | F43: =IF(F$34<>"Raw Data",0,'Raw Data - DK'!T35) -> 0.0% | G43: =IF(Sc_1=1,'User Input -Scenario Assumption'!F80,IF(Sc_1=2,'User Input -Scenario Assumption'!F87,'User Input -Scenario Assumption'!F94)) -> 7.0% | H43: 0.0% | I43: =IF(Sc_1=1,'User Input -Scenario Assumption'!G80,IF(Sc_1=2,'User Input -Scenario Assumption'!G87,'User Input -Scenario Assumption'!G94)) -> 17.2% | P43: ≥ 180 or ≥ 110 | R43: =IF(Sc_1=1,'User Input -Scenario Assumption'!H80,IF(Sc_1=2,'User Input -Scenario Assumption'!H87,'User Input -Scenario Assumption'!H94)) -> 0.0% | T43: =IF(Sc_1=1,'User Input -Scenario Assumption'!I80,IF(Sc_1=2,'User Input -Scenario Assumption'!I87,'User Input -Scenario Assumption'!I94)) -> 0.0% | V43: =IF(Sc_1=1,'User Input -Scenario Assumption'!J80,IF(Sc_1=2,'User Input -Scenario Assumption'!J87,'User Input -Scenario Assumption'!J94)) -> 0.0%
S44: =IF(E17="Controlled",100%,0) -> 0 | V44: =IF(G17="Controlled",100%,0) -> 0
C46: Projected Time period
D47: Sao Paulo | E47: Dakar | F47: UlaanBaatar
C48: Population | D48: =population_SP -> 5844 | E48: =population_Dakar -> 5236 | F48: =population_UB -> 10075
C50: Time horizon (in years) | D50: =IF(Sc_1=1,'User Input -Scenario Assumption'!E98,IF(Sc_1=2,'User Input -Scenario Assumption'!E99,'User Input -Scenario Assumption'!E100)) -> 10 | E50: =IF(Sc_1=1,'User Input -Scenario Assumption'!F98,IF(Sc_1=2,'User Input -Scenario Assumption'!F99,'User Input -Scenario Assumption'!F100)) -> 10 | F50: =IF(Sc_1=1,'User Input -Scenario Assumption'!G98,IF(Sc_1=2,'User Input -Scenario Assumption'!G99,'User Input -Scenario Assumption'!G100)) -> 10
D52: Sao Paulo | E52: Dakar | F52: UlaanBaatar
C53: Mean age | D53: =IF(Sc_1=1,'User Input -Scenario Assumption'!E17,IF(Sc_1=2,'User Input -Scenario Assumption'!E18,'User Input -Scenario Assumption'!E19)) -> 62 | E53: =IF(Sc_1=1,'User Input -Scenario Assumption'!F17,IF(Sc_1=2,'User Input -Scenario Assumption'!F18,'User Input -Scenario Assumption'!F19)) -> 58 | F53: =IF(Sc_1=1,'User Input -Scenario Assumption'!G17,IF(Sc_1=2,'User Input -Scenario Assumption'!G18,'User Input -Scenario Assumption'!G19)) -> 61
C54: Male | D54: =IF(Sc_1=1,'User Input -Scenario Assumption'!E22,IF(Sc_1=2,'User Input -Scenario Assumption'!E23,'User Input -Scenario Assumption'!E24)) -> 27% | E54: =IF(Sc_1=1,'User Input -Scenario Assumption'!F22,IF(Sc_1=2,'User Input -Scenario Assumption'!F23,'User Input -Scenario Assumption'!F24)) -> 22% | F54: =IF(Sc_1=1,'User Input -Scenario Assumption'!G22,IF(Sc_1=2,'User Input -Scenario Assumption'!G23,'User Input -Scenario Assumption'!G24)) -> 37%
C55: Discount (costs) | D55: =IF(Sc_1=1,'User Input -Scenario Assumption'!E102,IF(Sc_1=2,'User Input -Scenario Assumption'!E104,'User Input -Scenario Assumption'!E106)) -> 5.0% | E55: =IF(Sc_1=1,'User Input -Scenario Assumption'!F102,IF(Sc_1=2,'User Input -Scenario Assumption'!F104,'User Input -Scenario Assumption'!F106)) -> 3.0% | F55: =IF(Sc_1=1,'User Input -Scenario Assumption'!G102,IF(Sc_1=2,'User Input -Scenario Assumption'!G104,'User Input -Scenario Assumption'!G106)) -> 3%
C56: Discount (benefits) | D56: =IF(Sc_1=1,'User Input -Scenario Assumption'!E103,IF(Sc_1=2,'User Input -Scenario Assumption'!E105,'User Input -Scenario Assumption'!E107)) -> 5% | E56: =IF(Sc_1=1,'User Input -Scenario Assumption'!F103,IF(Sc_1=2,'User Input -Scenario Assumption'!F105,'User Input -Scenario Assumption'!F107)) -> 3% | F56: =IF(Sc_1=1,'User Input -Scenario Assumption'!G103,IF(Sc_1=2,'User Input -Scenario Assumption'!G105,'User Input -Scenario Assumption'!G107)) -> 3%
C58: Risk of CV (annual) | D58: =Efficacy!E33 -> Before CARDIO | H58: =Efficacy!G33 -> After CARDIO
D59: Sao Paulo | E59: Dakar | F59: UlaanBaatar | H59: Sao Paulo | I59: Dakar | J59: UlaanBaatar
C60: Coronary heart disease*(CVD) | D60: =IF(Sc_1=1,'User Input -Scenario Assumption'!E111,IF(Sc_1=2,'User Input -Scenario Assumption'!E113,'User Input -Scenario Assumption'!E115)) -> 2.29% | E60: =IF(Sc_1=1,'User Input -Scenario Assumption'!F111,IF(Sc_1=2,'User Input -Scenario Assumption'!F113,'User Input -Scenario Assumption'!F115)) -> 1.96% | F60: =IF(Sc_1=1,'User Input -Scenario Assumption'!G111,IF(Sc_1=2,'User Input -Scenario Assumption'!G113,'User Input -Scenario Assumption'!G115)) -> 1.08% | H60: =IF(Sc_1=1,'User Input -Scenario Assumption'!H111,IF(Sc_1=2,'User Input -Scenario Assumption'!H113,'User Input -Scenario Assumption'!E115)) -> 2.22% | I60: =IF(Sc_1=1,'User Input -Scenario Assumption'!I111,IF(Sc_1=2,'User Input -Scenario Assumption'!I113,'User Input -Scenario Assumption'!F115)) -> 1.94% | J60: =IF(Sc_1=1,'User Input -Scenario Assumption'!J111,IF(Sc_1=2,'User Input -Scenario Assumption'!J113,'User Input -Scenario Assumption'!G115)) -> 1.07%
C61: Proportion of CHD events that are Stroke | D61: =IF(Sc_1=1,'User Input -Scenario Assumption'!E112,IF(Sc_1=2,'User Input -Scenario Assumption'!E114,'User Input -Scenario Assumption'!E116)) -> 30.00% | E61: =IF(Sc_1=1,'User Input -Scenario Assumption'!F112,IF(Sc_1=2,'User Input -Scenario Assumption'!F114,'User Input -Scenario Assumption'!F116)) -> 30.00% | F61: =IF(Sc_1=1,'User Input -Scenario Assumption'!G112,IF(Sc_1=2,'User Input -Scenario Assumption'!G114,'User Input -Scenario Assumption'!G116)) -> 30.00% | H61: =IF(Sc_1=1,'User Input -Scenario Assumption'!H112,IF(Sc_1=2,'User Input -Scenario Assumption'!H114,'User Input -Scenario Assumption'!E116)) -> 30.00% | I61: =IF(Sc_1=1,'User Input -Scenario Assumption'!I112,IF(Sc_1=2,'User Input -Scenario Assumption'!I114,'User Input -Scenario Assumption'!F116)) -> 30.00% | J61: =IF(Sc_1=1,'User Input -Scenario Assumption'!J112,IF(Sc_1=2,'User Input -Scenario Assumption'!J114,'User Input -Scenario Assumption'!G116)) -> 30.00%
C62: Stroke | D62: =D61*D60 -> 0.69% | E62: =E61*E60 -> 0.59% | F62: =F61*F60 -> 0.33% | H62: =H61*H60 -> 0.67% | I62: =I61*I60 -> 0.58% | J62: =J61*J60 -> 0.32%
C63: Note:* CVD includes CHD, stroke, heart failure, and CVD deaths
C64: Costs | D64: In USD | H64: In Real
D65: =H65 -> Sao Paulo | E65: =I65 -> Dakar | F65: =J65 -> UlaanBaatar | H65: Sao Paulo | I65: Dakar | J65: UlaanBaatar
C66: Direct costs | D66: =IF(Sc_1=1,'User Input -Scenario Assumption'!E136,IF(Sc_1=2,'User Input -Scenario Assumption'!E138,'User Input -Scenario Assumption'!E140)) -> $1,182,459 | E66: =IF(Sc_1=1,'User Input -Scenario Assumption'!F136,IF(Sc_1=2,'User Input -Scenario Assumption'!F138,'User Input -Scenario Assumption'!F140)) -> $857,854 | F66: =IF(Sc_1=1,'User Input -Scenario Assumption'!G136,IF(Sc_1=2,'User Input -Scenario Assumption'!G138,'User Input -Scenario Assumption'!G140)) -> $1,327,543 | H66: =D66/$D$95 -> R$ 6,348,859 | I66: =E66/$D$95 -> R$ 4,605,990 | J66: =F66/$D$95 -> R$ 7,127,844
C67: Adjustment factor | D67: =IF(Sc_1=1,'User Input -Scenario Assumption'!E137,IF(Sc_1=2,'User Input -Scenario Assumption'!E139,'User Input -Scenario Assumption'!E141)) -> 50% | E67: =IF(Sc_1=1,'User Input -Scenario Assumption'!F137,IF(Sc_1=2,'User Input -Scenario Assumption'!F139,'User Input -Scenario Assumption'!F141)) -> 50% | F67: =IF(Sc_1=1,'User Input -Scenario Assumption'!G137,IF(Sc_1=2,'User Input -Scenario Assumption'!G139,'User Input -Scenario Assumption'!G141)) -> 50%
C68: Cost of implementing program | D68: =D66*(1-D67) -> $591,230 | E68: =E66*(1-E67) -> $428,927 | F68: =F66*(1-F67) -> $663,772 | H68: =D68/$D$95 -> R$ 3,174,430 | I68: =E68/$D$95 -> R$ 2,302,996 | J68: =F68/$D$95 -> R$ 3,563,923
C70: Post CARDIO running. cost | D70: =IF(Sc_1=1,'User Input -Scenario Assumption'!E145,IF(Sc_1=2,'User Input -Scenario Assumption'!E146,'User Input -Scenario Assumption'!E147))*D68 -> $59,122.96 | E70: =IF(Sc_1=1,'User Input -Scenario Assumption'!F145,IF(Sc_1=2,'User Input -Scenario Assumption'!F146,'User Input -Scenario Assumption'!F147))*E68 -> $42,893 | F70: =IF(Sc_1=1,'User Input -Scenario Assumption'!G145,IF(Sc_1=2,'User Input -Scenario Assumption'!G146,'User Input -Scenario Assumption'!G147))*F68 -> $66,377 | H70: =D70/$D$95 -> R$ 317,443 | I70: =E70/$D$95 -> R$ 230,300 | J70: =F70/$D$95 -> R$ 356,392
C72: Hypertension - controlled | D72: =IF(Sc_1=1,'User Input -Scenario Assumption'!E150,IF(Sc_1=2,'User Input -Scenario Assumption'!E154,'User Input -Scenario Assumption'!E158)) -> $191 | E72: =IF(Sc_1=1,'User Input -Scenario Assumption'!F150,IF(Sc_1=2,'User Input -Scenario Assumption'!F154,'User Input -Scenario Assumption'!F158)) -> $139 | F72: =IF(Sc_1=1,'User Input -Scenario Assumption'!G150,IF(Sc_1=2,'User Input -Scenario Assumption'!G154,'User Input -Scenario Assumption'!G158)) -> $34 | H72: =D72/$D$95 -> R$ 1,023 | I72: =E72/$D$95 -> R$ 747 | J72: R$ 183.68
C73: Hypertension - uncontrolled | D73: =IF(Sc_1=1,'User Input -Scenario Assumption'!E151,IF(Sc_1=2,'User Input -Scenario Assumption'!E155,'User Input -Scenario Assumption'!E159)) -> $191 | E73: =IF(Sc_1=1,'User Input -Scenario Assumption'!F151,IF(Sc_1=2,'User Input -Scenario Assumption'!F155,'User Input -Scenario Assumption'!F159)) -> $139 | F73: =IF(Sc_1=1,'User Input -Scenario Assumption'!G151,IF(Sc_1=2,'User Input -Scenario Assumption'!G155,'User Input -Scenario Assumption'!G159)) -> $34 | H73: =D73/$D$95 -> R$ 1,023 | I73: R$ 747 | J73: R$ 183.68
C74: Coronary heart disease/event | D74: =IF(Sc_1=1,'User Input -Scenario Assumption'!E152,IF(Sc_1=2,'User Input -Scenario Assumption'!E156,'User Input -Scenario Assumption'!E160)) -> $1,522 | E74: =IF(Sc_1=1,'User Input -Scenario Assumption'!F152,IF(Sc_1=2,'User Input -Scenario Assumption'!F156,'User Input -Scenario Assumption'!F160)) -> $1,111 | F74: =IF(Sc_1=1,'User Input -Scenario Assumption'!G152,IF(Sc_1=2,'User Input -Scenario Assumption'!G156,'User Input -Scenario Assumption'!G160)) -> $273 | H74: =D74/$D$95 -> R$ 8,169 | I74: R$ 5,963 | J74: R$ 1,466.69
C75: Stroke/event | D75: =IF(Sc_1=1,'User Input -Scenario Assumption'!E153,IF(Sc_1=2,'User Input -Scenario Assumption'!E157,'User Input -Scenario Assumption'!E161)) -> $5,864 | E75: =IF(Sc_1=1,'User Input -Scenario Assumption'!F153,IF(Sc_1=2,'User Input -Scenario Assumption'!F157,'User Input -Scenario Assumption'!F161)) -> $4,280 | F75: =IF(Sc_1=1,'User Input -Scenario Assumption'!G153,IF(Sc_1=2,'User Input -Scenario Assumption'!G157,'User Input -Scenario Assumption'!G161)) -> $1,053 | H75: =D75/$D$95 -> R$ 31,485 | I75: R$ 22,982 | J75: R$ 5,652.60
C77: Fatal event costs | D77: Sao Paulo | E77: Dakar | F77: UlaanBaatar
C78: Coronary heart disease | D78: $1,000 | E78: $1,000 | F78: $1,000
C79: Stroke | D79: $10,000 | E79: $10,000 | F79: $10,000
C81: Indirect costs | D81: Sao Paulo | E81: Dakar | F81: UlaanBaatar
C82: Annual loss of productivity cost(HTN) | D82: =IF(Sc_1=1,'User Input -Scenario Assumption'!E165,IF(Sc_1=2,'User Input -Scenario Assumption'!E166,'User Input -Scenario Assumption'!E167)) -> $153 | E82: =IF(Sc_1=1,'User Input -Scenario Assumption'!F165,IF(Sc_1=2,'User Input -Scenario Assumption'!F166,'User Input -Scenario Assumption'!F167)) -> $112 | F82: =IF(Sc_1=1,'User Input -Scenario Assumption'!G165,IF(Sc_1=2,'User Input -Scenario Assumption'!G166,'User Input -Scenario Assumption'!G167)) -> $27
C84: Utility of health states
C85: Hypertension utility with age | D85: Sao Paulo | E85: Dakar | F85: UlaanBaatar
C86: Age 50-59 | D86: =IF(Sc_1=1,'User Input -Scenario Assumption'!E171,IF(Sc_1=2,'User Input -Scenario Assumption'!E179,'User Input -Scenario Assumption'!E187)) -> 0.84 | E86: =IF(Sc_1=1,'User Input -Scenario Assumption'!F171,IF(Sc_1=2,'User Input -Scenario Assumption'!F179,'User Input -Scenario Assumption'!F187)) -> 0.84 | F86: =IF(Sc_1=1,'User Input -Scenario Assumption'!G171,IF(Sc_1=2,'User Input -Scenario Assumption'!G179,'User Input -Scenario Assumption'!G187)) -> 0.84
C87: Age 60-69 | D87: =IF(Sc_1=1,'User Input -Scenario Assumption'!E172,IF(Sc_1=2,'User Input -Scenario Assumption'!E180,'User Input -Scenario Assumption'!E188)) -> 0.82 | E87: =IF(Sc_1=1,'User Input -Scenario Assumption'!F172,IF(Sc_1=2,'User Input -Scenario Assumption'!F180,'User Input -Scenario Assumption'!F188)) -> 0.82 | F87: =IF(Sc_1=1,'User Input -Scenario Assumption'!G172,IF(Sc_1=2,'User Input -Scenario Assumption'!G180,'User Input -Scenario Assumption'!G188)) -> 0.82
C88: Age 70-79 | D88: =IF(Sc_1=1,'User Input -Scenario Assumption'!E173,IF(Sc_1=2,'User Input -Scenario Assumption'!E181,'User Input -Scenario Assumption'!E189)) -> 0.78 | E88: =IF(Sc_1=1,'User Input -Scenario Assumption'!F173,IF(Sc_1=2,'User Input -Scenario Assumption'!F181,'User Input -Scenario Assumption'!F189)) -> 0.78 | F88: =IF(Sc_1=1,'User Input -Scenario Assumption'!G173,IF(Sc_1=2,'User Input -Scenario Assumption'!G181,'User Input -Scenario Assumption'!G189)) -> 0.78
C89: Age 80-100 | D89: =IF(Sc_1=1,'User Input -Scenario Assumption'!E174,IF(Sc_1=2,'User Input -Scenario Assumption'!E182,'User Input -Scenario Assumption'!E190)) -> 0.74 | E89: =IF(Sc_1=1,'User Input -Scenario Assumption'!F174,IF(Sc_1=2,'User Input -Scenario Assumption'!F182,'User Input -Scenario Assumption'!F190)) -> 0.74 | F89: =IF(Sc_1=1,'User Input -Scenario Assumption'!G174,IF(Sc_1=2,'User Input -Scenario Assumption'!G182,'User Input -Scenario Assumption'!G190)) -> 0.74
C90: Disutility (annual)
C91: Coronary heart disease | D91: =IF(Sc_1=1,'User Input -Scenario Assumption'!E176,IF(Sc_1=2,'User Input -Scenario Assumption'!E184,'User Input -Scenario Assumption'!E192)) -> -0.018 | E91: =IF(Sc_1=1,'User Input -Scenario Assumption'!F176,IF(Sc_1=2,'User Input -Scenario Assumption'!F184,'User Input -Scenario Assumption'!F192)) -> -0.018 | F91: =IF(Sc_1=1,'User Input -Scenario Assumption'!G176,IF(Sc_1=2,'User Input -Scenario Assumption'!G184,'User Input -Scenario Assumption'!G192)) -> -0.018
C92: Stroke | D92: =IF(Sc_1=1,'User Input -Scenario Assumption'!E177,IF(Sc_1=2,'User Input -Scenario Assumption'!E185,'User Input -Scenario Assumption'!E193)) -> -0.048 | E92: =IF(Sc_1=1,'User Input -Scenario Assumption'!F177,IF(Sc_1=2,'User Input -Scenario Assumption'!F185,'User Input -Scenario Assumption'!F193)) -> -0.048 | F92: =IF(Sc_1=1,'User Input -Scenario Assumption'!G177,IF(Sc_1=2,'User Input -Scenario Assumption'!G185,'User Input -Scenario Assumption'!G193)) -> -0.048
C94: Exchange rate
C95: Real to USD | D95: =IF(Sc_1=1,'User Input -Scenario Assumption'!E121,IF(Sc_1=2,'User Input -Scenario Assumption'!E122,'User Input -Scenario Assumption'!E123)) -> 0.19 | E95: Source: Novartis Treasury rates
C97: Purchasing power parity conversion factor
C98: Sao Paulo to Senegal | D98: =IF(Sc_1=1,'User Input -Scenario Assumption'!E126,IF(Sc_1=2,'User Input -Scenario Assumption'!E128,'User Input -Scenario Assumption'!E130)) -> 1.37
C99: Sao Paulo to Mongolia | D99: =IF(Sc_1=1,'User Input -Scenario Assumption'!E127,IF(Sc_1=2,'User Input -Scenario Assumption'!E129,'User Input -Scenario Assumption'!E131)) -> 5.57
C101: Mortality multiplier
C102: HTN - Controlled | D102: =IF(Sc_1=1,'User Input -Scenario Assumption'!E196,IF(Sc_1=2,'User Input -Scenario Assumption'!E198,'User Input -Scenario Assumption'!E200)) -> 2.10 | E102: Source: da Silva et al 2015
C103: HTN - Uncontrolled | D103: 6.10 | E103: Source: da Silva et al 2015
D106: =D81 -> Sao Paulo | E106: =E81 -> Dakar | F106: =F81 -> UlaanBaatar
C107: CARDIO Programme Duration | D107: Two Year | E107: Two Year | F107: Two Year

Sheet Scenario calculation (hidden)
A2: Baseline Distrubution at end of CARDIO | J2: Controlled
C3: Q4'19 | D3: Q4'19 | R3: slide deck data (2020 Achievement) | T3: Jun'19
E4: Q118 | K4: Dasboard @ Baseline | P4: Scenario list | R4: Baseline
C5: ='Model Sensitivity control'!D21 -> Sao Paulo | D5: ='Model Sensitivity control'!E21 -> Dakar | E5: ='Model Sensitivity control'!F21 -> UlaanBaatar | G5: =C5 -> Sao Paulo | H5: =D5 -> Dakar | I5: =E5 -> UlaanBaatar | L5: =G5 -> Sao Paulo | M5: =H5 -> Dakar | N5: =I5 -> UlaanBaatar | P5: Raw Data | S5: Treated | T5: Control | U5: Control % | V5: Uncontrol % | X5: Time
B6: ='Model Sensitivity control'!C23 -> <120 and <80 mmHg | C6: ='Raw Data - SP'!BD36 -> 8% | D6: ='Raw Data - DK'!BD64 -> 3% | E6: ='Raw Data - UB'!BD36 -> 4% | G6: ='Model Sensitivity control'!D10 -> Controlled | H6: ='Model Sensitivity control'!E10 -> Controlled | I6: ='Model Sensitivity control'!F10 -> Controlled | K6: Controlled | L6: =SUMIF(G$6:G$11,$K6,C$6:C$11) -> 39% | M6: 19% | N6: 12% | P6: National Estimates | R6: =L5 -> Sao Paulo | S6: ='Raw Data - SP'!BE3 -> 880 | T6: ='Raw Data - SP'!BF3 -> 108 | U6: =T6/S6 -> 12% | V6: =1-U6 -> 88% | W6: =S6+T6 -> 988 | X6: Q3'18
B7: ='Model Sensitivity control'!C24 -> 120-129 or 80-84 | C7: ='Raw Data - SP'!BD37 -> 19% | D7: ='Raw Data - DK'!BD65 -> 5% | E7: ='Raw Data - UB'!BD37 -> 8% | G7: ='Model Sensitivity control'!D11 -> Controlled | H7: ='Model Sensitivity control'!E11 -> Controlled | I7: ='Model Sensitivity control'!F11 -> Controlled | K7: Uncontrolled | L7: 61% | M7: 81% | N7: 88% | P7: Dashboard Values | R7: =M5 -> Dakar | S7: 872 | T7: 30 | U7: =T7/S7 -> 3% | V7: =1-U7 -> 97% | W7: =S7+T7 -> 902 | X7: Q2'18
B8: ='Model Sensitivity control'!C25 -> 130 - 139 or 85 - 89 | C8: ='Raw Data - SP'!BD38 -> 12% | D8: ='Raw Data - DK'!BD66 -> 11% | E8: ='Raw Data - UB'!BD38 -> 21% | G8: ='Model Sensitivity control'!D12 -> Controlled | H8: ='Model Sensitivity control'!E12 -> Controlled | I8: ='Model Sensitivity control'!F12 -> Uncontrolled | P8: User Input | R8: =N5 -> UlaanBaatar | S8: 7261 | T8: 804 | U8: =T8/S8 -> 11% | V8: =1-U8 -> 89% | W8: =S8+T8 -> 8065 | X8: Q4'18
B9: ='Model Sensitivity control'!C26 -> 140 - 159 or 90 - 99 | C9: ='Raw Data - SP'!BD39 -> 29% | D9: ='Raw Data - DK'!BD67 -> 37% | E9: ='Raw Data - UB'!BD39 -> 36% | G9: ='Model Sensitivity control'!D13 -> Uncontrolled | H9: ='Model Sensitivity control'!E13 -> Uncontrolled | I9: ='Model Sensitivity control'!F13 -> Uncontrolled
B10: ='Model Sensitivity control'!C27 -> 160 - 179 or 100 - 109 | C10: ='Raw Data - SP'!BD40 -> 23% | D10: ='Raw Data - DK'!BD68 -> 25% | E10: ='Raw Data - UB'!BD40 -> 23% | G10: ='Model Sensitivity control'!D14 -> Uncontrolled | H10: ='Model Sensitivity control'!E14 -> Uncontrolled | I10: ='Model Sensitivity control'!F14 -> Uncontrolled | P10: Dashboard Values | R10: At the end of programme
B11: ='Model Sensitivity control'!C28 -> ≥ 180 or ≥ 110 | C11: ='Raw Data - SP'!BD41 -> 8% | D11: ='Raw Data - DK'!BD69 -> 19% | E11: ='Raw Data - UB'!BD41 -> 8% | G11: ='Model Sensitivity control'!D15 -> Uncontrolled | H11: ='Model Sensitivity control'!E15 -> Uncontrolled | I11: ='Model Sensitivity control'!F15 -> Uncontrolled
P12: Raw Data | R12: =R6 -> Sao Paulo | S12: 1459 | T12: 815 | U12: =T12/S12 -> 56% | V12: =1-U12 -> 44% | W12: =S12+T12 -> 2274 | X12: Q12020 | Z12: =Results!C6 -> 30%
P13: User Input | R13: =R7 -> Dakar | S13: 6081 | T13: 1645 | U13: =T13/S13 -> 27% | V13: =1-U13 -> 73% | W13: =S13+T13 -> 7726 | X13: Q22020 | Z13: =Results!E6 -> 19%
B14: National Statistics | G14: Dashboard Values | R14: =R8 -> UlaanBaatar | S14: 8278 | T14: 990 | U14: =T14/S14 -> 12% | V14: =1-U14 -> 88% | W14: =S14+T14 -> 9268 | X14: Q32019 | Z14: =Results!G6 -> 19%
C15: =C5 -> Sao Paulo | D15: =D5 -> Dakar | E15: =E5 -> UlaanBaatar | J15: Sao Paulo | K15: Dakar | L15: UlaanBaatar
B16: Controlled | I16: =G6 -> Controlled | J16: ='Raw Data - SP'!BH3 -> 12.3% | K16: ='Raw Data - DK'!BH3 -> 13.3% | L16: ='Raw Data - UB'!BH3 -> 3.1%
B17: Uncontrolled | I17: Uncontrolled | J17: =1-J16 -> 87.7% | K17: =1-K16 -> 86.7% | L17: =1-L16 -> 96.9% | R17: Growth | S17: Controlled | T17: Uncontrolled
R18: =R12 -> Sao Paulo | S18: =U12/U6-1 -> 355% | T18: -50%
C19: =C5 -> Sao Paulo | D19: =D5 -> Dakar | E19: =E5 -> UlaanBaatar | G19: =J19 -> Sao Paulo | H19: =K19 -> Dakar | I19: =L19 -> UlaanBaatar | J19: =J15 -> Sao Paulo | K19: =K15 -> Dakar | L19: =L15 -> UlaanBaatar | R19: =R13 -> Dakar | S19: 686% | T19: -24%
A20: =G6 -> Controlled | B20: =B6 -> <120 and <80 mmHg | C20: =C6/VLOOKUP($A20,$K$6:$N$7,MATCH(C$19,$K$5:$N$5,0),0)*VLOOKUP($A20,$B$15:$E$17,MATCH(C$19,$B$15:$E$15,0),0) -> 0.0% | D20: 0.0% | E20: 0.0% | G20: =G6 -> Controlled | H20: =H6 -> Controlled | I20: =I6 -> Controlled | J20: =C6/VLOOKUP(G6,$K$6:$N$7,MATCH(J$19,$K$5:$N$5,0),0)*VLOOKUP(G20,$I$15:$L$17,MATCH(J$19,$I$15:$L$15,0),0) -> 2.5% | K20: 1.8% | L20: 1.0% | P20: Scenario list | R20: =R14 -> UlaanBaatar | S20: 8% | T20: -1%
A21: Controlled | B21: 120-129 or 80-84 | C21: 0.0% | D21: 0.0% | E21: 0.0% | G21: =G7 -> Controlled | H21: Controlled | I21: Controlled | J21: 5.8% | K21: 3.8% | L21: 2.1% | P21: Raw Data | AC21: Excluding Death
A22: Controlled | B22: 130 - 139 or 85 - 89 | C22: 0.0% | D22: 0.0% | E22: 0.0% | G22: Controlled | H22: Controlled | I22: Uncontrolled | J22: 3.9% | K22: 7.7% | L22: 23.4% | P22: Dashboard Values
A23: Uncontrolled | B23: 140 - 159 or 90 - 99 | C23: =C9/VLOOKUP($A23,$K$6:$N$7,MATCH(C$19,$K$5:$N$5,0),0)*VLOOKUP($A23,$B$15:$E$17,MATCH(C$19,$B$15:$E$15,0),0) -> 0.0% | D23: 0.0% | E23: 0.0% | G23: =G9 -> Uncontrolled | H23: Uncontrolled | I23: Uncontrolled | J23: =C9/VLOOKUP(G9,$K$6:$N$7,MATCH(J$19,$K$5:$N$5,0),0)*VLOOKUP(G23,$I$15:$L$17,MATCH(J$19,$I$15:$L$15,0),0) -> 42.4% | K23: 39.3% | L23: 39.8% | P23: User Input
A24: Uncontrolled | B24: 160 - 179 or 100 - 109 | C24: 0.0% | D24: 0.0% | E24: 0.0% | G24: Uncontrolled | H24: Uncontrolled | I24: Uncontrolled | J24: 33.7% | K24: 27.2% | L24: 25.2% | R24: =population_Dakar -> 5236
A25: Uncontrolled | B25: ≥ 180 or ≥ 110 | C25: 0.0% | D25: 0.0% | E25: 0.0% | G25: Uncontrolled | H25: Uncontrolled | I25: Uncontrolled | J25: 11.6% | K25: 20.2% | L25: 8.5%
S26: =R24*U6 -> 642.6 | T26: =R24*V6 -> 4593.4
S27: =S26*(1+S18) -> 2924.838931 | T27: =T26*(1+T18) -> 2311.161069
S28: =S27/R24 -> 0.558601782 | T28: =T27/R24 -> 0.441398218
C35: ='Model Sensitivity control'!D51 -> Sao Paulo | D35: ='Model Sensitivity control'!E51 -> Dakar | E35: ='Model Sensitivity control'!F51 -> UlaanBaatar | G35: =C35 -> Sao Paulo | H35: =D35 -> Dakar | I35: =E35 -> UlaanBaatar | K35: Dasboard @ end of CARDIO | P35: Net Budget Impact (CHD)
B36: =B6 -> <120 and <80 mmHg | C36: =C6 -> 8.0% | D36: =D6 -> 2.5% | E36: =E6 -> 4% | G36: =G6 -> Controlled | H36: Controlled | I36: Controlled | L36: =L5 -> Sao Paulo | M36: =M5 -> Dakar | N36: =N5 -> UlaanBaatar | P36: Net Budget Impact (Stroke)
B37: 120-129 or 80-84 | C37: 18.6% | D37: 5.4% | E37: 8% | G37: Controlled | H37: Controlled | I37: Controlled | K37: Controlled | L37: =SUMIF(G$36:G$41,$K37,C$36:C$41) -> 39% | M37: 19% | N37: 12% | AD37: Control Patients as % of total population | AF37: % of controlled post CARDIO
B38: 130 - 139 or 85 - 89 | C38: 12.4% | D38: 10.8% | E38: 21% | G38: Controlled | H38: Controlled | I38: Uncontrolled | K38: Uncontrolled | L38: 61% | M38: 81% | N38: 88% | AD38: At start of programme | AE38: at end of programme | AF38: % of controlled patients at statrt of CARDIO | AG38: Point scale jump in % of controlled patients at statrt of CARDIO
B39: 140 - 159 or 90 - 99 | C39: 29.5% | D39: 36.8% | E39: 36% | G39: Uncontrolled | H39: Uncontrolled | I39: Uncontrolled | AC39: Sao Paulo | AD39: =U6 -> 12.27% | AE39: =Results!C6 -> 30.4% | AF39: =AE39/AD39 -> 248.0% | AG39: =AE39-AD39 -> 18.2%
B40: 160 - 179 or 100 - 109 | C40: 23.5% | D40: 25.5% | E40: 23% | G40: Uncontrolled | H40: Uncontrolled | I40: Uncontrolled | AC40: Dakar | AD40: =U7 -> 3.4% | AE40: =Results!E6 -> 19.2% | AF40: =AE40/AD40 -> 559.0% | AG40: =AE40-AD40 -> 15.8%
B41: ≥ 180 or ≥ 110 | C41: 8.0% | D41: 18.9% | E41: 8% | G41: Uncontrolled | H41: Uncontrolled | I41: Uncontrolled | AC41: UlaanBaatar | AD41: =U8 -> 11.1% | AE41: =Results!G6 -> 19.2% | AF41: =AE41/AD41 -> 173.7% | AG41: =AE41-AD41 -> 8.2%
B44: National Statistics | G44: Raw data Values @ End of prgramme | AC44: Population distrubution by BP category
C45: =C35 -> Sao Paulo | D45: =D35 -> Dakar | E45: =E35 -> UlaanBaatar | J45: Sao Paulo | K45: Dakar | L45: UlaanBaatar
B46: Controlled | I46: Controlled | J46: ='Raw Data - SP'!BO4 -> 31.2% | K46: ='Raw Data - DK'!BO5 -> 19.4% | L46: ='Raw Data - UB'!BO4 -> 19.7% | AC46: BP Category | AD46: At start of CARDIO | AE46: at end of CARDIO
B47: Uncontrolled | I47: Uncontrolled | J47: =1-J46 -> 68.8% | K47: =1-K46 -> 80.6% | L47: =1-L46 -> 80.3% | AB47: =Trace_CARDIO_SP!A1 -> Sao Paulo | AD47: Patients at starting of the CARDIO | AE47: Remains Uncontrolled | AF47: Controlled after end of CARDIO | AG47: controlled (%)
AC48: <120 and <80 mmHg | AD48: =Trace_CARDIO_SP!F9 -> 148 | AE48: =Trace_CARDIO_SP!F12 -> 0.00 | AF48: =Trace_CARDIO_SP!M12 -> 145.29 | AG48: =AF48/AD48 -> 98%
C49: =C35 -> Sao Paulo | D49: =D35 -> Dakar | E49: =E35 -> UlaanBaatar | J49: =J45 -> Sao Paulo | K49: =K45 -> Dakar | L49: =L45 -> UlaanBaatar | AC49: 120-129 or 80-84 | AD49: =Trace_CARDIO_SP!G9 -> 341 | AE49: =Trace_CARDIO_SP!G12 -> 0.00 | AF49: =Trace_CARDIO_SP!N12 -> 335.59 | AG49: 98%
A50: =G36 -> Controlled | B50: =B36 -> <120 and <80 mmHg | C50: =C36/VLOOKUP($A50,$K$6:$N$7,MATCH(C$19,$K$5:$N$5,0),0)*VLOOKUP($A50,$B$15:$E$17,MATCH(C$19,$B$15:$E$15,0),0) -> 0.0% | D50: 0.0% | E50: 0.0% | G50: =G36 -> Controlled | H50: Controlled | I50: Controlled | J50: =C36/VLOOKUP(G36,$K$37:$N$38,MATCH(J$49,$K$36:$N$36,0),0)*VLOOKUP(G50,$I$45:$L$47,MATCH(J$49,$I$45:$L$45,0),0) -> 6.4% | K50: 2.6% | L50: 6.6% | O50: =J50-J20 -> 3.9% | P50: 0.8% | Q50: 5.5% | AC50: 130 - 139 or 85 - 89 | AD50: =Trace_CARDIO_SP!H9 -> 229 | AE50: =Trace_CARDIO_SP!H12 -> 0.00 | AF50: =Trace_CARDIO_SP!O12 -> 225.01 | AG50: 98%
A51: Controlled | B51: 120-129 or 80-84 | C51: 0.0% | D51: 0.0% | E51: 0.0% | G51: Controlled | H51: Controlled | I51: Controlled | J51: 14.8% | K51: 5.6% | L51: 13.2% | O51: 9.0% | P51: 1.7% | Q51: 11.1% | AC51: 140 - 159 or 90 - 99 | AD51: =Trace_CARDIO_SP!I9 -> 2,480 | AE51: =Trace_CARDIO_SP!I12 -> 1885.30 | AF51: =Trace_CARDIO_SP!P12 -> 519.06 | AG51: 21%
A52: Controlled | B52: 130 - 139 or 85 - 89 | C52: 0.0% | D52: 0.0% | E52: 0.0% | G52: Controlled | H52: Controlled | I52: Uncontrolled | J52: 9.9% | K52: 11.2% | L52: 19.4% | O52: 6.0% | P52: 3.5% | Q52: -4.0% | AC52: 160 - 179 or 100 - 109 | AD52: =Trace_CARDIO_SP!J9 -> 1,972 | AE52: =Trace_CARDIO_SP!J12 -> 1499.16 | AF52: =Trace_CARDIO_SP!Q12 -> 412.75 | AG52: 21%
A53: Uncontrolled | B53: 140 - 159 or 90 - 99 | C53: 0.0% | D53: 0.0% | E53: 0.0% | G53: Uncontrolled | H53: Uncontrolled | I53: Uncontrolled | J53: 33.3% | K53: 36.5% | L53: 33.0% | O53: -9.2% | P53: -2.8% | Q53: -6.8% | AC53: ≥ 180 or ≥ 110 | AD53: =Trace_CARDIO_SP!K9 -> 675 | AE53: =Trace_CARDIO_SP!K12 -> 513.35 | AF53: =Trace_CARDIO_SP!R12 -> 141.33 | AG53: 21%
A54: Uncontrolled | B54: 160 - 179 or 100 - 109 | C54: 0.0% | D54: 0.0% | E54: 0.0% | G54: Uncontrolled | H54: Uncontrolled | I54: Uncontrolled | J54: 26.5% | K54: 25.3% | L54: 20.9% | O54: =J54-J24 -> -7.3% | P54: -1.9% | Q54: -4.3% | AC54: Death | AE54: =Trace_CARDIO_SP!L12 -> 122.19 | AF54: =Trace_CARDIO_SP!S12 -> 44.97
A55: Uncontrolled | B55: ≥ 180 or ≥ 110 | C55: 0.0% | D55: 0.0% | E55: 0.0% | G55: Uncontrolled | H55: Uncontrolled | I55: Uncontrolled | J55: 9.1% | K55: 18.8% | L55: 7.0% | O55: -2.5% | P55: -1.4% | Q55: -1.5% | AD55: =SUM(AD48:AD54)=population_SP -> TRUE | AE55: =SUM(AE48:AF54)=population_SP -> TRUE
G57: Patient Switch for control group | H57: =J49 -> Sao Paulo | I57: =K49 -> Dakar | J57: =L49 -> UlaanBaatar | AC57: Population distrubution by BP category
G58: =B50 -> <120 and <80 mmHg | H58: =IF(G50="Controlled",1,1-(1-ABS(O50)/J20)) -> 100.00% | I58: 100.00% | J58: 100.00%
G59: 120-129 or 80-84 | H59: 100.00% | I59: 100.00% | J59: 100.00% | AC59: BP Category | AD59: At start of CARDIO | AE59: at end of CARDIO
G60: 130 - 139 or 85 - 89 | H60: 100.00% | I60: 100.00% | J60: 17.15% | AB60: =Trace_SoC_Dakar!A1 -> Dakar | AD60: Patients at starting of the CARDIO | AE60: Remains Uncontrolled | AF60: Controlled after end of CARDIO | AG60: controlled (%)
G61: 140 - 159 or 90 - 99 | H61: 21.59% | I61: 7.01% | J61: 17.15% | AC61: <120 and <80 mmHg | AD61: =Trace_CARDIO_Dakar!F9 -> 94 | AE61: =Trace_CARDIO_Dakar!F12 -> 0.00 | AF61: =Trace_CARDIO_Dakar!M12 -> 93.09 | AG61: =AF61/AD61 -> 99%
G62: 160 - 179 or 100 - 109 | H62: =IF(G54="Controlled",1,1-(1-ABS(O54)/J24)) -> 21.59% | I62: 7.01% | J62: 17.15% | AC62: 120-129 or 80-84 | AD62: =Trace_SoC_Dakar!G9 -> 200 | AE62: =Trace_CARDIO_Dakar!G12 -> 0.00 | AF62: =Trace_CARDIO_Dakar!N12 -> 198.98 | AG62: 99%
G63: ≥ 180 or ≥ 110 | H63: 21.59% | I63: 7.01% | J63: 17.15% | AC63: 130 - 139 or 85 - 89 | AD63: =Trace_SoC_Dakar!H9 -> 404 | AE63: =Trace_CARDIO_Dakar!H12 -> 0.00 | AF63: =Trace_CARDIO_Dakar!O12 -> 400.80 | AG63: 99%
AC64: 140 - 159 or 90 - 99 | AD64: =Trace_SoC_Dakar!I9 -> 2,057 | AE64: =Trace_CARDIO_Dakar!I12 -> 1887.59 | AF64: =Trace_CARDIO_Dakar!P12 -> 142.39 | AG64: 7%
AC65: 160 - 179 or 100 - 109 | AD65: =Trace_SoC_Dakar!J9 -> 1,424 | AE65: =Trace_CARDIO_Dakar!J12 -> 1306.65 | AF65: =Trace_CARDIO_Dakar!Q12 -> 98.57 | AG65: 7%
AC66: ≥ 180 or ≥ 110 | AD66: =Trace_SoC_Dakar!K9 -> 1,057 | AE66: =Trace_CARDIO_Dakar!K12 -> 969.89 | AF66: =Trace_CARDIO_Dakar!R12 -> 73.16 | AG66: 7%
AC67: Death | AE67: =Trace_CARDIO_Dakar!L12 -> 55.87 | AF67: =Trace_CARDIO_Dakar!S12 -> 9.01
AD68: =SUM(AD61:AD67)=population_Dakar -> TRUE | AE68: =SUM(AE61:AF67)=population_Dakar -> TRUE
AC71: Population distrubution by BP category
AC73: BP Category | AD73: At start of CARDIO | AE73: at end of CARDIO
AB74: =Trace_CARDIO_UB!A1 -> UlaanBaatar | AD74: Patients at starting of the CARDIO | AE74: Remains Uncontrolled | AF74: Controlled after end of CARDIO | AG74: controlled (%)
AC75: <120 and <80 mmHg | AD75: =Trace_CARDIO_UB!F9 -> 103 | AE75: =Trace_CARDIO_UB!F12 -> 0.00 | AF75: =Trace_CARDIO_UB!M12 -> 102.04 | AG75: =AF75/AD75 -> 99%
AC76: 120-129 or 80-84 | AD76: =Trace_CARDIO_UB!G9 -> 208 | AE76: =Trace_CARDIO_UB!G12 -> 0.00 | AF76: =Trace_CARDIO_UB!N12 -> 204.69 | AG76: 99%
AC77: 130 - 139 or 85 - 89 | AD77: =Trace_CARDIO_UB!H9 -> 2,358 | AE77: =Trace_CARDIO_UB!H12 -> 1901.52 | AF77: =Trace_CARDIO_UB!O12 -> 393.75 | AG77: 17%
AC78: 140 - 159 or 90 - 99 | AD78: =Trace_CARDIO_UB!I9 -> 4,012 | AE78: =Trace_CARDIO_UB!I12 -> 3235.94 | AF78: =Trace_CARDIO_UB!P12 -> 670.07 | AG78: 17%
AC79: 160 - 179 or 100 - 109 | AD79: =Trace_CARDIO_UB!J9 -> 2,538 | AE79: =Trace_CARDIO_UB!J12 -> 2046.85 | AF79: =Trace_CARDIO_UB!Q12 -> 423.84 | AG79: 17%
AC80: ≥ 180 or ≥ 110 | AD80: =Trace_CARDIO_UB!K9 -> 857 | AE80: =Trace_CARDIO_UB!K12 -> 691.09 | AF80: =Trace_CARDIO_UB!R12 -> 143.11 | AG80: 17%
AC81: Death | AE81: =Trace_CARDIO_UB!L12 -> 213.60 | AF81: =Trace_CARDIO_UB!S12 -> 48.50
AD82: =SUM(AD75:AD81)=population_UB -> TRUE | AE82: =SUM(AE75:AF81)=population_UB -> TRUE

Sheet Raw Data - DK
AA1: Data received: 30 March 2021
BC2: =AC7 -> Dakar | BD2: Total Diagnosed (#) | BE2: Total Treated (#) | BF2: Controlled (#) | BG2: Controlled over Diag.(%) | BH2: Controlled over treated.(%)
B3: Dakar | BG3: =BG4 -> 11% | BH3: =BH4 -> 13%
BC4: =AB31 -> Q1 2019 | BD4: =AG42 -> 3615 | BE4: =AL42 -> 3002 | BF4: =AQ42 -> 400 | BG4: =BF4/BD4 -> 11% | BH4: =BF4/BE4 -> 13%
B5: Baseline | AB5: Q2 2018 | AC5: Cumulative Total Patients Data by BP categories at Q2 2018 (starting quarter of the CARDIO) | BC5: =AB58 -> Q4 2019 | BD5: =AG69 -> 6056 | BE5: =AL69 -> 5236 | BF5: =AQ69 -> 1016 | BG5: =BF5/BD5 -> 17% | BH5: =BF5/BE5 -> 19% | BJ5: ='User Input -Scenario Assumption'!F4 -> Q1'19 to Q4'19 | BK5: =IF($BJ5="Q4'18 to Q3'20",BD6,BD5) -> 6056 | BL5: =IF($BJ5="Q4'18 to Q3'20",BE6,BE5) -> 5236 | BM5: =IF($BJ5="Q4'18 to Q3'20",BF6,BF5) -> 1016 | BN5: =BM5/BK5 -> 17% | BO5: =BM5/BL5 -> 19%
B6: BP categories at baseline* | C6: Male | D6: Female | E6: Total | F6: %ge | BC6: =AB85 -> Q3 2020 | BD6: =AG96 -> 7531 | BE6: =AL96 -> 6595 | BF6: =AQ96 -> 1264 | BG6: =BF6/BD6 -> 17% | BH6: =BF6/BE6 -> 19%
B7: <120 and <80 mmHg | C7: =G18 -> 1 | D7: 0 | E7: 1 | F7: =E7/$E$14 -> 0% | AC7: Dakar | AD7: Total of Patients Diagnosed with HTN (patients with at least one visit between April 2018-June 2018) | AI7: Total of Patients Prescribed Medication Treatment (patients with at least one visit between April 2018-June 2018) | AN7: Total Controlled BP Patients (patients who were prescribed medication treatment with at least 2 visits between April 2018-June 2018) | AS7: Total Uncontrolled BP Patients (patients who were prescribed medication treatment with at least 2 visits between April 2018-June 2018)
B8: 120-129 or 80-84 | C8: 2 | D8: 4 | E8: 6 | F8: 2% | AD8: BP categories at baseline* | AE8: Male | AF8: Female | AG8: Total | AI8: BP categories at baseline* | AJ8: Male | AK8: Female | AL8: Total | AN8: BP categories at baseline* | AO8: Male | AP8: Female | AQ8: Total | AS8: BP categories at baseline* | AT8: Male | AU8: Female | AV8: Total | BC8: Patient % by BP Category: | BI8: =AB31 -> Q1 2019 | BK8: ="After CARDIO"&"-"&BJ5 -> After CARDIO-Q1'19 to Q4'19
B9: 130 - 139 or 85 - 89 | C9: 2 | D9: 35 | E9: 37 | F9: 11% | AD9: <120 and <80 mmHg | AE9: 2 | AF9: 2 | AG9: 4 | AI9: <120 and <80 mmHg | AJ9: 2 | AK9: 2 | AL9: 4 | AN9: <120 and <80 mmHg | AO9: 0 | AP9: 0 | AQ9: 0 | AS9: <120 and <80 mmHg | AT9: 0 | AU9: 0 | AV9: 0 | BC9: =BC3 -> 0 | BD9: Treated | BE9: Controlled | BH9: DK | BI9: DK - Male | BJ9: DK - Female | BK9: DK - Male | BL9: DK - Female
B10: 140 - 159 or 90 - 99 | C10: 22 | D10: 111 | E10: 133 | F10: 41% | AD10: 120-129 or 80-84 | AE10: 2 | AF10: 9 | AG10: 11 | AI10: 120-129 or 80-84 | AJ10: 1 | AK10: 9 | AL10: 10 | AN10: 120-129 or 80-84 | AO10: 0 | AP10: 0 | AQ10: 0 | AS10: 120-129 or 80-84 | AT10: 0 | AU10: 0 | AV10: 0 | BC10: =AI9 -> <120 and <80 mmHg | BD10: =AL35/SUM($AL$35:$AL$40) -> 2% | BE10: =AP35/SUM($AP$35:$AP$40) -> 2.48% | BH10: Risk of CHD | BI10: N | BJ10: N | BK10: N | BL10: N
B11: 160 - 179 or 100 - 109 | C11: 16 | D11: 77 | E11: 93 | F11: 29% | AD11: 130 - 139 or 85 - 89 | AE11: 4 | AF11: 42 | AG11: 46 | AI11: 130 - 139 or 85 - 89 | AJ11: 4 | AK11: 35 | AL11: 39 | AN11: 130 - 139 or 85 - 89 | AO11: 0 | AP11: 1 | AQ11: 1 | AS11: 130 - 139 or 85 - 89 | AT11: 0 | AU11: 6 | AV11: 6 | BC11: 120-129 or 80-84 | BD11: =AL36/SUM($AL$35:$AL$40) -> 5% | BE11: =AP36/SUM($AP$35:$AP$40) -> 7.12% | BH11: Low | BI11: =AJ49 -> 90 | BJ11: 466 | BK11: =AJ76 -> 197 | BL11: =AK76 -> 811
B12: ≥ 180 or ≥ 110 | C12: 14 | D12: 41 | E12: 55 | F12: 17% | AD12: 140 - 159 or 90 - 99 | AE12: 32 | AF12: 152 | AG12: 184 | AI12: 140 - 159 or 90 - 99 | AJ12: 22 | AK12: 123 | AL12: 145 | AN12: 140 - 159 or 90 - 99 | AO12: 1 | AP12: 12 | AQ12: 13 | AS12: 140 - 159 or 90 - 99 | AT12: 3 | AU12: 18 | AV12: 21 | BC12: 130 - 139 or 85 - 89 | BD12: 11% | BE12: 16.41% | BH12: Medium | BI12: 162 | BJ12: 666 | BK12: =AJ77 -> 316 | BL12: 1121
B13: MISSING DATA | AD13: 160 - 179 or 100 - 109 | AE13: 21 | AF13: 110 | AG13: 131 | AI13: 160 - 179 or 100 - 109 | AJ13: 16 | AK13: 83 | AL13: 99 | AN13: 160 - 179 or 100 - 109 | AO13: 1 | AP13: 7 | AQ13: 8 | AS13: 160 - 179 or 100 - 109 | AT13: 2 | AU13: 17 | AV13: 19 | BC13: 140 - 159 or 90 - 99 | BD13: 38% | BE13: 44.58% | BH13: High | BI13: 276 | BJ13: 1055 | BK13: 514 | BL13: 1775
B14: Total | C14: =SUM(C7:C12) -> 57 | D14: =SUM(D7:D12) -> 268 | E14: =SUM(E7:E12) -> 325 | AD14: ≥ 180 or ≥ 110 | AE14: 17 | AF14: 63 | AG14: 80 | AI14: ≥ 180 or ≥ 110 | AJ14: 12 | AK14: 47 | AL14: 59 | AN14: ≥ 180 or ≥ 110 | AO14: 1 | AP14: 1 | AQ14: 2 | AS14: ≥ 180 or ≥ 110 | AT14: 0 | AU14: 13 | AV14: 13 | BC14: 160 - 179 or 100 - 109 | BD14: 26% | BE14: 21.98%
G15: Start of implementation | AD15: MISSING DATA | AE15: 6 | AF15: 8 | AG15: 14 | AI15: MISSING DATA | AJ15: 2 | AK15: 2 | AL15: 4 | AN15: MISSING DATA | AS15: MISSING DATA | BC15: ≥ 180 or ≥ 110 | BD15: 19% | BE15: 7.43%
B16: 2018 | C16: Q1 | G16: Q2 | K16: Q3 | O16: Q4 | AD16: Total | AE16: 84 | AF16: 386 | AG16: 470 | AI16: Total | AJ16: 59 | AK16: 301 | AL16: 360 | AN16: Total | AO16: 3 | AP16: 21 | AQ16: 24 | AS16: Total | AT16: 5 | AU16: 54 | AV16: 59
B17: BP categories at baseline* | C17: Male | D17: Female | E17: Total | F17: Total - diagnosed | G17: Male | H17: Female | I17: Total | J17: Total - diagnosed | K17: Male | L17: Female | M17: Total | N17: Total - diagnosed | O17: Male | P17: Female | Q17: Total | R17: Total - diagnosed | T17: %ge controlled - Year | AC17: * at first visit during the period Apr 2018 - Jun 2018 | AI17: * at first visit during the period Apr 2018 - Jun 2018 | AN17: * at first visit during the period Apr 2018 - Jun 2018 | AS17: * at first visit during the period Apr 2018 - Jun 2018 | BC17: Missing values excluded in above calculation
B18: <120 and <80 mmHg | G18: 1 | H18: 0 | I18: 1 | K18: 1 | L18: 3 | M18: 4 | N18: 11 | O18: 1 | P18: 2 | Q18: 3 | R18: 11 | T18: =Q18/$Q$25 -> 2.0%
B19: 120-129 or 80-84 | G19: 2 | H19: 4 | I19: 6 | K19: 1 | L19: 2 | M19: 3 | N19: 18 | O19: 0 | P19: 9 | Q19: 9 | R19: 53 | T19: 6.0% | AC19: Risk Profile | AK19: `
B20: 130 - 139 or 85 - 89 | G20: 2 | H20: 35 | I20: 37 | K20: 0 | L20: 10 | M20: 10 | N20: 56 | O20: 0 | P20: 29 | Q20: 29 | R20: 100 | T20: 19.3%
B21: 140 - 159 or 90 - 99 | G21: 22 | H21: 111 | I21: 133 | K21: 2 | L21: 20 | M21: 22 | N21: 132 | O21: 9 | P21: 55 | Q21: 64 | R21: 430 | T21: 42.7% | AC21: Dakar | AD21: Total of Patients Diagnosed with HTN (patients with at least one visit between April 2018-June 2018) | AI21: Total of Patients Prescribed Medication Treatment (patients with at least one visit between April 2018-June 2018) | AN21: Total Controlled BP Patients (patients who were prescribed medication treatment with at least 2 visits between April 2018-June 2018) | AS21: Total Uncontrolled BP Patients (patients who were prescribed medication treatment with at least 2 visits between April 2018-June 2018)
B22: 160 - 179 or 100 - 109 | G22: 16 | H22: 77 | I22: 93 | K22: 0 | L22: 8 | M22: 8 | N22: 71 | O22: 2 | P22: 29 | Q22: 31 | R22: 300 | T22: 20.7% | AD22: Cardiovascular risk | AE22: Male | AF22: Female | AG22: Total | AI22: Cardiovascular risk | AJ22: Male | AK22: Female | AL22: Total | AN22: Cardiovascular risk | AO22: Male | AP22: Female | AQ22: Total | AS22: Cardiovascular risk | AT22: Male | AU22: Female | AV22: Total
B23: ≥ 180 or ≥ 110 | G23: 14 | H23: 41 | I23: 55 | K23: 0 | L23: 5 | M23: 5 | N23: 64 | O23: 6 | P23: 8 | Q23: 14 | R23: 222 | T23: 9.3% | AE23: 15 | AF23: 70 | AG23: 85 | AI23: Low | AJ23: 12 | AK23: 63 | AL23: 75 | AN23: Low | AO23: 1 | AP23: 5 | AQ23: 6 | AS23: Low | AT23: 2 | AU23: 14 | AV23: 16
B24: MISSING DATA | O24: 0 | P24: 1 | Q24: 1 | AD24: Moderate | AE24: 17 | AF24: 97 | AG24: 114 | AI24: Moderate | AJ24: 17 | AK24: 85 | AL24: 102 | AN24: Moderate | AO24: 1 | AP24: 2 | AQ24: 3 | AS24: Moderate | AT24: 2 | AU24: 8 | AV24: 10
B25: Total | G25: =SUM(G18:G23) -> 57 | H25: 268 | I25: 325 | J25: 0 | K25: 4 | L25: 48 | M25: 52 | N25: 352 | O25: =SUM(O18:O23) -> 18 | P25: =SUM(P18:P23) -> 132 | Q25: =SUM(Q18:Q23) -> 150 | R25: =SUM(R18:R23) -> 1,116 | T25: =Q25/R25 -> 13.4% | AD25: High | AE25: 24 | AF25: 127 | AG25: 151 | AI25: High | AJ25: 18 | AK25: 114 | AL25: 132 | AN25: High | AO25: 0 | AP25: 14 | AQ25: 14 | AS25: High | AT25: 1 | AU25: 29 | AV25: 30
AD26: MISSING DATA | AE26: 28 | AF26: 92 | AG26: 120 | AI26: MISSING DATA | AJ26: 12 | AK26: 39 | AL26: 51 | AN26: MISSING DATA | AO26: 1 | AP26: 0 | AQ26: 1 | AS26: MISSING DATA | AT26: 0 | AU26: 3 | AV26: 3
B27: CONTROL | AD27: Total | AE27: 84 | AF27: 386 | AG27: 470 | AI27: Total | AJ27: 59 | AK27: 301 | AL27: 360 | AN27: Total | AO27: 3 | AP27: 21 | AQ27: 24 | AS27: Total | AT27: 5 | AU27: 54 | AV27: 59
B28: 2019 | C28: Q1 | G28: Q2 | K28: Q3 | O28: Q4
B29: BP categories at baseline* | C29: Male | D29: Female | E29: Total | F29: Total - diagnosed | G29: Male | H29: Female | I29: Total | J29: Total - diagnosed | K29: Male | L29: Female | M29: Total | N29: Total - diagnosed | O29: Male | P29: Female | Q29: Total | R29: Total - diagnosed | T29: %ge controlled - Year
B30: <120 and <80 mmHg | O30: 6 | P30: 39 | Q30: 45 | R30: 133 | T30: =Q30/$Q$37 -> 3.3%
B31: 120-129 or 80-84 | O31: 16 | P31: 82 | Q31: 98 | R31: 296 | T31: 7.2% | AB31: Q1 2019 | AC31: Cumulative Total Patients Data by BP categories at Q1 2019
B32: 130 - 139 or 85 - 89 | O32: 26 | P32: 164 | Q32: 190 | R32: 610 | T32: 14.0%
B33: 140 - 159 or 90 - 99 | O33: 122 | P33: 459 | Q33: 581 | R33: 2,214 | T33: 42.9% | AC33: Dakar | AD33: Cumulative Total of Patients Diagnosed with HTN (patients with at least one visit between April 2018-March 2019) | AI33: Cumulative Total of Patients Prescribed Medication Treatment (patients with at least one visit between April 2018-March 2019) | AN33: Cumulative Total of Controlled BP (patients who were prescribed medication treatment with at least 2 visits between April-March 2019) | AS33: Cumulative Total of Uncontrolled BP (patients who were prescribed medication treatment with at least 2 visits between April-March 2019)
B34: 160 - 179 or 100 - 109 | O34: 65 | P34: 250 | Q34: 315 | R34: 1,579 | T34: 23.3% | AD34: BP categories at baseline* | AE34: Male | AF34: Female | AG34: Total | AI34: BP categories at baseline* | AJ34: Male | AK34: Female | AL34: Total | AN34: BP categories at baseline* | AO34: Male | AP34: Female | AQ34: Total | AS34: BP categories at baseline* | AT34: Male | AU34: Female | AV34: Total
B35: ≥ 180 or ≥ 110 | O35: 34 | P35: 91 | Q35: 125 | R35: 1,127 | T35: 9.2% | AD35: <120 and <80 mmHg | AE35: 8 | AF35: 60 | AG35: 68 | AI35: <120 and <80 mmHg | AJ35: 7 | AK35: 52 | AL35: 59 | AN35: <120 and <80 mmHg | AO35: 4 | AP35: 8 | AQ35: 12 | AS35: <120 and <80 mmHg | AT35: 0 | AU35: 7 | AV35: 7 | BC35: =AB31 -> Q1 2019 | BD35: Treated | BE35: Controlled
B36: MISSING DATA | AD36: 120-129 or 80-84 | AE36: 20 | AF36: 146 | AG36: 166 | AI36: 120-129 or 80-84 | AJ36: 17 | AK36: 129 | AL36: 146 | AN36: 120-129 or 80-84 | AO36: 4 | AP36: 23 | AQ36: 27 | AS36: 120-129 or 80-84 | AT36: 3 | AU36: 23 | AV36: 26 | BC36: =AI35 -> <120 and <80 mmHg | BD36: =AL35/SUM($AL$35:$AL$40) -> 2% | BE36: =AP35/SUM($AP$35:$AP$40) -> 2.5%
B37: Total | C37: =SUM(C30:C35) -> 0 | D37: =SUM(D30:D35) -> 0 | E37: 0 | F37: 0 | G37: 0 | H37: 0 | I37: 0 | J37: 0 | K37: 0 | L37: 0 | M37: 0 | N37: 0 | O37: 269 | P37: 1,085 | Q37: 1,354 | R37: 5,959 | S37: ='Raw Data - SP'!S37 -> Total control >> | T37: =Q37/$R$37 -> 22.7% | AD37: 130 - 139 or 85 - 89 | AE37: 57 | AF37: 319 | AG37: 376 | AI37: 130 - 139 or 85 - 89 | AJ37: 46 | AK37: 268 | AL37: 314 | AN37: 130 - 139 or 85 - 89 | AO37: 3 | AP37: 53 | AQ37: 56 | AS37: 130 - 139 or 85 - 89 | AT37: 11 | AU37: 73 | AV37: 84 | BC37: 120-129 or 80-84 | BD37: 5% | BE37: 7.1%
AD38: 140 - 159 or 90 - 99 | AE38: 263 | AF38: 1094 | AG38: 1357 | AI38: 140 - 159 or 90 - 99 | AJ38: 202 | AK38: 940 | AL38: 1142 | AN38: 140 - 159 or 90 - 99 | AO38: 40 | AP38: 144 | AQ38: 184 | AS38: 140 - 159 or 90 - 99 | AT38: 51 | AU38: 270 | AV38: 321 | BC38: 130 - 139 or 85 - 89 | BD38: 11% | BE38: 16.4%
AD39: 160 - 179 or 100 - 109 | AE39: 209 | AF39: 707 | AG39: 916 | AI39: 160 - 179 or 100 - 109 | AJ39: 174 | AK39: 597 | AL39: 771 | AN39: 160 - 179 or 100 - 109 | AO39: 16 | AP39: 71 | AQ39: 87 | AS39: 160 - 179 or 100 - 109 | AT39: 57 | AU39: 198 | AV39: 255 | BC39: 140 - 159 or 90 - 99 | BD39: 38% | BE39: 44.6%
B40: 2020 | C40: Q1 | G40: Q2 | K40: Q3 | O40: Q4 | AD40: ≥ 180 or ≥ 110 | AE40: 184 | AF40: 473 | AG40: 657 | AI40: ≥ 180 or ≥ 110 | AJ40: 150 | AK40: 404 | AL40: 554 | AN40: ≥ 180 or ≥ 110 | AO40: 9 | AP40: 24 | AQ40: 33 | AS40: ≥ 180 or ≥ 110 | AT40: 37 | AU40: 132 | AV40: 169 | BC40: 160 - 179 or 100 - 109 | BD40: 26% | BE40: 22.0%
B41: BP categories at baseline* | C41: Male | D41: Female | E41: Total | F41: Total - diagnosed | G41: Male | H41: Female | I41: Total | J41: Total - diagnosed | K41: Male | L41: Female | M41: Total | N41: Total - diagnosed | O41: Male | P41: Female | Q41: Total | R41: Total - diagnosed | T41: %ge controlled - Year | AD41: MISSING DATA | AE41: 27 | AF41: 48 | AG41: 75 | AI41: MISSING DATA | AJ41: 6 | AK41: 10 | AL41: 16 | AN41: MISSING DATA | AO41: 1 | AP41: 0 | AQ41: 1 | AS41: MISSING DATA | AT41: 1 | AU41: 1 | AV41: 2 | BC41: ≥ 180 or ≥ 110 | BD41: 19% | BE41: 7.4%
B42: <120 and <80 mmHg | G42: 8 | H42: 50 | I42: 58 | J42: 161 | T42: =J42/$J$49 -> 2.3% | AD42: Total | AE42: 362 | AF42: 1473 | AG42: 3615 | AI42: Total | AJ42: 602 | AK42: 2400 | AL42: 3002 | AN42: Total | AO42: 77 | AP42: 323 | AQ42: 400 | AS42: Total | AT42: 160 | AU42: 704 | AV42: 864
B43: 120-129 or 80-84 | G43: 19 | H43: 99 | I43: 118 | J43: 332 | T43: 4.8% | AC43: * at first visit during the period April 2018 - March 2019 | AI43: * at first visit during the period April 2018 - March 2019 | AN43: * at first visit during the period April 2018 - March 2019 | AQ43: =AQ42/AL42 -> 13% | AS43: * at first visit during the period April 2018 - March 2019 | BC43: Missing values excluded in above calculation
B44: 130 - 139 or 85 - 89 | G44: 30 | H44: 197 | I44: 227 | J44: 707 | T44: 10.2%
B45: 140 - 159 or 90 - 99 | G45: 143 | H45: 545 | I45: 688 | J45: 2,531 | T45: 36.6% | AC45: Risk Profile | AK45: `
B46: 160 - 179 or 100 - 109 | G46: 81 | H46: 306 | I46: 387 | J46: 1,847 | T46: 26.7%
B47: ≥ 180 or ≥ 110 | G47: 42 | H47: 118 | I47: 160 | J47: 1,332 | T47: 19.3% | AC47: Dakar | AD47: Cumulative Total of Patients Diagnosed with HTN (patients with at least one visit between April 2018-March 2019) | AI47: Cumulative Total of Patients Prescribed Medication Treatment (patients with at least one visit between April 2018-March 2019) | AN47: Cumulative Total of Controlled BP (patients who were prescribed medication treatment with at least 2 visits between April-March 2019) | AS47: Cumulative Total of Uncontrolled BP (patients who were prescribed medication treatment with at least 2 visits between April-March 2019)
B48: MISSING DATA | AD48: Cardiovascular risk | AE48: Male | AF48: Female | AG48: Total | AI48: Cardiovascular risk | AJ48: Male | AK48: Female | AL48: Total | AN48: Cardiovascular risk | AO48: Male | AP48: Female | AQ48: Total | AS48: Cardiovascular risk | AT48: Male | AU48: Female | AV48: Total
B49: Total | C49: =SUM(C42:C47) -> 0 | D49: =SUM(D42:D47) -> 0 | E49: 0 | F49: 0 | G49: 323 | H49: 1,315 | I49: 1,638 | J49: 6,910 | K49: 0 | L49: 0 | M49: 0 | N49: 0 | O49: 0 | P49: 0 | Q49: 0 | R49: 0 | S49: ='Raw Data - SP'!S49 -> Total control >> | T49: =I49/$J$49 -> 23.7% | AD49: Low | AE49: 114 | AF49: 519 | AG49: 633 | AI49: Low | AJ49: 90 | AK49: 466 | AL49: 556 | AN49: Low | AO49: 18 | AP49: 73 | AQ49: 91 | AS49: Low | AT49: 29 | AU49: 150 | AV49: 179
AD50: Moderate | AE50: 187 | AF50: 727 | AG50: 914 | AI50: Moderate | AJ50: 162 | AK50: 666 | AL50: 828 | AN50: Moderate | AO50: 20 | AP50: 93 | AQ50: 113 | AS50: Moderate | AT50: 42 | AU50: 196 | AV50: 238
B51: 2021 | C51: Q1 | G51: Q2 | K51: Q3 | O51: Q4 | AD51: High | AE51: 303 | AF51: 1144 | AG51: 1447 | AI51: High | AJ51: 276 | AK51: 1055 | AL51: 1331 | AN51: High | AO51: 32 | AP51: 133 | AQ51: 165 | AS51: High | AT51: 60 | AU51: 278 | AV51: 338
B52: BP categories at baseline* | C52: Male | D52: Female | E52: Total | F52: Total - diagnosed | G52: Male | H52: Female | I52: Total | J52: Total - diagnosed | K52: Male | L52: Female | M52: Total | N52: Total - diagnosed | O52: Male | P52: Female | Q52: Total | R52: Total - diagnosed | AD52: MISSING DATA | AE52: 164 | AF52: 457 | AG52: 621 | AI52: MISSING DATA | AJ52: 74 | AK52: 213 | AL52: 287 | AN52: MISSING DATA | AO52: 7 | AP52: 24 | AQ52: 31 | AS52: MISSING DATA | AT52: 29 | AU52: 80 | AV52: 109
B53: <120 and <80 mmHg | AD53: Total | AE53: 768 | AF53: 2847 | AG53: 3615 | AI53: Total | AJ53: 602 | AK53: 2400 | AL53: 3002 | AN53: Total | AO53: 77 | AP53: 323 | AQ53: 400 | AS53: Total | AT53: 160 | AU53: 704 | AV53: 864
B54: 120-129 or 80-84
B55: 130 - 139 or 85 - 89
B56: 140 - 159 or 90 - 99
B57: 160 - 179 or 100 - 109
B58: ≥ 180 or ≥ 110 | AB58: Q4 2019 | AC58: Cumulative Total Patients Data by BP categories at Q4 2019
B59: MISSING DATA
B60: Total | C60: =SUM(C53:C58) -> 0 | D60: =SUM(D53:D58) -> 0 | E60: 0 | G60: 0 | H60: 0 | I60: 0 | J60: 0 | K60: 0 | L60: 0 | M60: 0 | N60: 0 | O60: 0 | P60: 0 | Q60: 0 | R60: 0 | S60: ='Raw Data - SP'!S60 -> Total control >> | AC60: Dakar | AD60: Cumulative Total of Patients Diagnosed with HTN (patients with at least one visit between April 2018-Dec 2019) | AI60: Cumulative Total of Patients Prescribed Medication Treatment (patients with at least one visit between April 2018-Dec 2019) | AN60: Cumulative Total of Controlled BP (patients who were prescribed medication treatment with at least 2 visits between April 2018-Dec 2019) | AS60: Cumulative Total Uncontrolled BP Patients (patients who were prescribed medication treatment with at least 2 visits between April 2018-Dec 2019)
AD61: BP categories at baseline* | AE61: Male | AF61: Female | AG61: Total | AI61: BP categories at baseline* | AJ61: Male | AK61: Female | AL61: Total | AN61: BP categories at baseline* | AO61: Male | AP61: Female | AQ61: Total | AS61: BP categories at baseline* | AT61: Male | AU61: Female | AV61: Total
AD62: <120 and <80 mmHg | AE62: 20 | AF62: 126 | AG62: 146 | AI62: <120 and <80 mmHg | AJ62: 18 | AK62: 113 | AL62: 131 | AN62: <120 and <80 mmHg | AO62: 8 | AP62: 33 | AQ62: 41 | AS62: <120 and <80 mmHg | AT62: 5 | AU62: 56 | AV62: 61 | BC62: Patient % by BP Category:
AD63: 120-129 or 80-84 | AE63: 45 | AF63: 268 | AG63: 313 | AI63: 120-129 or 80-84 | AJ63: 39 | AK63: 241 | AL63: 280 | AN63: 120-129 or 80-84 | AO63: 13 | AP63: 72 | AQ63: 85 | AS63: 120-129 or 80-84 | AT63: 18 | AU63: 115 | AV63: 133 | BC63: =AB58 -> Q4 2019 | BD63: Treated | BE63: Controlled
AD64: 130 - 139 or 85 - 89 | AE64: 111 | AF64: 545 | AG64: 656 | AI64: 130 - 139 or 85 - 89 | AJ64: 93 | AK64: 471 | AL64: 564 | AN64: 130 - 139 or 85 - 89 | AO64: 22 | AP64: 130 | AQ64: 152 | AS64: 130 - 139 or 85 - 89 | AT64: 51 | AU64: 255 | AV64: 306 | BC64: =BC10 -> <120 and <80 mmHg | BD64: =AL62/SUM($AL$62:$AL$67) -> 3% | BE64: =AQ62/SUM($AQ$62:$AQ$67) -> 4%
AD65: 140 - 159 or 90 - 99 | AE65: 468 | AF65: 1740 | AG65: 2208 | AI65: 140 - 159 or 90 - 99 | AJ65: 385 | AK65: 1532 | AL65: 1917 | AN65: 140 - 159 or 90 - 99 | AO65: 97 | AP65: 330 | AQ65: 427 | AS65: 140 - 159 or 90 - 99 | AT65: 235 | AU65: 945 | AV65: 1180 | BC65: 120-129 or 80-84 | BD65: 5% | BE65: 8%
AD66: 160 - 179 or 100 - 109 | AE66: 392 | AF66: 1131 | AG66: 1523 | AI66: 160 - 179 or 100 - 109 | AJ66: 340 | AK66: 987 | AL66: 1327 | AN66: 160 - 179 or 100 - 109 | AO66: 44 | AP66: 174 | AQ66: 218 | AS66: 160 - 179 or 100 - 109 | AT66: 235 | AU66: 657 | AV66: 892 | BC66: 130 - 139 or 85 - 89 | BD66: 11% | BE66: 15%
AD67: ≥ 180 or ≥ 110 | AE67: 322 | AF67: 793 | AG67: 1115 | AI67: ≥ 180 or ≥ 110 | AJ67: 282 | AK67: 703 | AL67: 985 | AN67: ≥ 180 or ≥ 110 | AO67: 26 | AP67: 64 | AQ67: 90 | AS67: ≥ 180 or ≥ 110 | AT67: 218 | AU67: 540 | AV67: 758 | BC67: 140 - 159 or 90 - 99 | BD67: 37% | BE67: 42%
AD68: MISSING DATA | AE68: 29 | AF68: 66 | AG68: 95 | AI68: MISSING DATA | AJ68: 7 | AK68: 25 | AL68: 32 | AN68: MISSING DATA | AO68: 0 | AP68: 3 | AQ68: 3 | AS68: MISSING DATA | AT68: 6 | AU68: 18 | AV68: 24 | BC68: 160 - 179 or 100 - 109 | BD68: 25% | BE68: 22%
AD69: Total | AE69: 1387 | AF69: 4669 | AG69: 6056 | AI69: Total | AJ69: 1164 | AK69: 4072 | AL69: 5236 | AN69: Total | AO69: 210 | AP69: 806 | AQ69: 1016 | AS69: Total | AT69: 768 | AU69: 2586 | AV69: 3354 | BC69: ≥ 180 or ≥ 110 | BD69: 19% | BE69: 9%
AC70: *at first visit during the period April 2018-Dec 2019 | AI70: *at first visit during the period April 2018-Dec 2019 | AN70: *at first visit during the period April 2018-Dec 2019 | AQ70: =AQ69/AL69 -> 19% | AS70: *at first visit during the period April 2018-Dec 2019
BC71: Missing values excluded in above calculation
AC72: Risk Profile
AC74: Dakar | AD74: Cumulative Total of Patients Diagnosed with HTN (patients with at least one visit between April 2018-Dec 2019) | AI74: Cumulative Total of Patients Prescribed Medication Treatment (patients with at least one visit between April 2018-Dec 2019) | AN74: Cumulative Total of Controlled BP (patients who were prescribed medication treatment with at least 2 visits between April 2018-Dec 2019) | AS74: Cumulative Total Uncontrolled BP Patients (patients who were prescribed medication treatment with at least 2 visits between April 2018-Dec 2019)
AD75: Cardiovascular risk | AE75: Male | AF75: Female | AG75: Total | AI75: Cardiovascular risk | AJ75: Male | AK75: Female | AL75: Total | AN75: Cardiovascular risk | AO75: Male | AP75: Female | AQ75: Total | AS75: Cardiovascular risk | AT75: Male | AU75: Female | AV75: Total
AD76: Low | AE76: 228 | AF76: 892 | AG76: 1120 | AI76: Low | AJ76: 197 | AK76: 811 | AL76: 1008 | AN76: Low | AO76: 45 | AP76: 192 | AQ76: 237 | AS76: Low | AT76: 60 | AU76: 286 | AV76: 346
AD77: Moderate | AE77: 359 | AF77: 1206 | AG77: 1565 | AI77: Moderate | AJ77: 316 | AK77: 1121 | AL77: 1437 | AN77: Moderate | AO77: 59 | AP77: 223 | AQ77: 282 | AS77: Moderate | AT77: 103 | AU77: 400 | AV77: 503
AD78: High | AE78: 551 | AF78: 1907 | AG78: 2458 | AI78: High | AJ78: 514 | AK78: 1775 | AL78: 2289 | AN78: High | AO78: 85 | AP78: 300 | AQ78: 385 | AS78: High | AT78: 159 | AU78: 586 | AV78: 745
AD79: MISSING DATA | AE79: 249 | AF79: 664 | AG79: 913 | AI79: MISSING DATA | AJ79: 137 | AK79: 365 | AL79: 502 | AN79: MISSING DATA | AO79: 21 | AP79: 91 | AQ79: 112 | AS79: MISSING DATA | AT79: 61 | AU79: 172 | AV79: 233
AD80: Total | AE80: 1387 | AF80: 4669 | AG80: 6056 | AI80: Total | AJ80: 1164 | AK80: 4072 | AL80: 5236 | AN80: Total | AO80: 210 | AP80: 806 | AQ80: 1016 | AS80: Total | AT80: 383 | AU80: 1444 | AV80: 1827
AB85: Q3 2020 | AC85: Cumulative Total Patients Data by BP categories at Q3 2020
AC87: Dakar | AD87: Cumulative Total of Patients Diagnosed with HTN (patients with at least one visit between April 2018-Sept 2020) | AI87: Cumulative Total of Patients Prescribed Medication Treatment (patients with at least one visit between April 2018-Sept 2020) | AN87: Cumulative Total of Controlled BP (patients who were prescribed medication treatment with at least 2 visits between April 2018-Sept 2020) | AS87: Cumulative Total Uncontrolled BP Patients (patients who were prescribed medication treatment with at least 2 visits between April 2018-Sept 2020)
AD88: BP categories at baseline* | AE88: Male | AF88: Female | AG88: Total | AI88: BP categories at baseline* | AJ88: Male | AK88: Female | AL88: Total | AN88: BP categories at baseline* | AO88: Male | AP88: Female | AQ88: Total | AS88: BP categories at baseline* | AT88: Male | AU88: Female | AV88: Total
AD89: <120 and <80 mmHg | AE89: 32 | AF89: 160 | AG89: 192 | AI89: <120 and <80 mmHg | AJ89: 27 | AK89: 146 | AL89: 173 | AN89: <120 and <80 mmHg | AO89: 9 | AP89: 46 | AQ89: 55 | AS89: <120 and <80 mmHg | AT89: 4 | AU89: 39 | AV89: 43 | BC89: Patient % by BP Category:
AD90: 120-129 or 80-84 | AE90: 58 | AF90: 324 | AG90: 382 | AI90: 120-129 or 80-84 | AJ90: 51 | AK90: 289 | AL90: 340 | AN90: 120-129 or 80-84 | AO90: 17 | AP90: 80 | AQ90: 97 | AS90: 120-129 or 80-84 | AT90: 9 | AU90: 80 | AV90: 89 | BC90: =AB85 -> Q3 2020 | BD90: Treated | BE90: Controlled
AD91: 130 - 139 or 85 - 89 | AE91: 138 | AF91: 661 | AG91: 799 | AI91: 130 - 139 or 85 - 89 | AJ91: 120 | AK91: 578 | AL91: 698 | AN91: 130 - 139 or 85 - 89 | AO91: 24 | AP91: 152 | AQ91: 176 | AS91: 130 - 139 or 85 - 89 | AT91: 32 | AU91: 188 | AV91: 220 | BC91: =BC64 -> <120 and <80 mmHg | BD91: =AL89/SUM($AL$89:$AL$94) -> 3% | BE91: =AQ89/SUM($AQ$89:$AQ$94) -> 4%
AD92: 140 - 159 or 90 - 99 | AE92: 588 | AF92: 2135 | AG92: 2723 | AI92: 140 - 159 or 90 - 99 | AJ92: 493 | AK92: 1896 | AL92: 2389 | AN92: 140 - 159 or 90 - 99 | AO92: 112 | AP92: 408 | AQ92: 520 | AS92: 140 - 159 or 90 - 99 | AT92: 162 | AU92: 652 | AV92: 814 | BC92: 120-129 or 80-84 | BD92: 5% | BE92: 8%
AD93: 160 - 179 or 100 - 109 | AE93: 518 | AF93: 1388 | AG93: 1906 | AI93: 160 - 179 or 100 - 109 | AJ93: 454 | AK93: 1223 | AL93: 1677 | AN93: 160 - 179 or 100 - 109 | AO93: 64 | AP93: 229 | AQ93: 293 | AS93: 160 - 179 or 100 - 109 | AT93: 178 | AU93: 462 | AV93: 640 | BC93: 130 - 139 or 85 - 89 | BD93: 11% | BE93: 14%
AD94: ≥ 180 or ≥ 110 | AE94: 414 | AF94: 994 | AG94: 1408 | AI94: ≥ 180 or ≥ 110 | AJ94: 373 | AK94: 892 | AL94: 1265 | AN94: ≥ 180 or ≥ 110 | AO94: 33 | AP94: 88 | AQ94: 121 | AS94: ≥ 180 or ≥ 110 | AT94: 117 | AU94: 307 | AV94: 424 | BC94: 140 - 159 or 90 - 99 | BD94: 37% | BE94: 41%
AD95: MISSING DATA | AE95: 37 | AF95: 84 | AG95: 121 | AI95: MISSING DATA | AJ95: 14 | AK95: 39 | AL95: 53 | AN95: MISSING DATA | AO95: 0 | AP95: 2 | AQ95: 2 | AS95: MISSING DATA | AT95: 4 | AU95: 7 | AV95: 11 | BC95: 160 - 179 or 100 - 109 | BD95: 26% | BE95: 23%
AD96: Total | AE96: 1785 | AF96: 5746 | AG96: 7531 | AI96: Total | AJ96: 1532 | AK96: 5063 | AL96: 6595 | AN96: Total | AO96: 259 | AP96: 1005 | AQ96: 1264 | AS96: Total | AT96: 506 | AU96: 1735 | AV96: 2241 | BC96: ≥ 180 or ≥ 110 | BD96: 19% | BE96: 10%
AC97: * at first visit during the period April 2018-Sept 2020 | AI97: * at first visit during the period April 2018-Sept 2020 | AN97: * at first visit during the period April 2018-Sept 2020 | AS97: * at first visit during the period April 2018-Sept 2020
BC98: Missing values excluded in above calculation
AC99: Risk Profile
AC101: Dakar | AD101: Cumulative Total of Patients Diagnosed with HTN (patients with at least one visit between April 2018-Sept 2020) | AI101: Cumulative Total of Patients Prescribed Medication Treatment (patients with at least one visit between April 2018-Sept 2020) | AN101: Cumulative Total of Controlled BP (patients who were prescribed medication treatment with at least 2 visits between April 2018-Sept 2020) | AS101: Cumulative Total Uncontrolled BP Patients (patients who were prescribed medication treatment with at least 2 visits between April 2018-Sept 2020)
AD102: Cardiovascular risk | AE102: Male | AF102: Female | AG102: Total | AI102: Cardiovascular risk | AJ102: Male | AK102: Female | AL102: Total | AN102: Cardiovascular risk | AO102: Male | AP102: Female | AQ102: Total | AS102: Cardiovascular risk | AT102: Male | AU102: Female | AV102: Total
AD103: Low | AE103: 265 | AF103: 1070 | AG103: 1335 | AI103: Low | AJ103: 233 | AK103: 981 | AL103: 1214 | AN103: Low | AO103: 44 | AP103: 249 | AQ103: 293 | AS103: Low | AT103: 82 | AU103: 349 | AV103: 431
AD104: Moderate | AE104: 444 | AF104: 1449 | AG104: 1893 | AI104: Moderate | AJ104: 398 | AK104: 1352 | AL104: 1750 | AN104: Moderate | AO104: 71 | AP104: 263 | AQ104: 334 | AS104: Moderate | AT104: 141 | AU104: 486 | AV104: 627
AD105: High | AE105: 719 | AF105: 2326 | AG105: 3045 | AI105: High | AJ105: 674 | AK105: 2172 | AL105: 2846 | AN105: High | AO105: 108 | AP105: 390 | AQ105: 498 | AS105: High | AT105: 201 | AU105: 694 | AV105: 895
AD106: MISSING DATA | AE106: 357 | AF106: 901 | AG106: 1258 | AI106: MISSING DATA | AJ106: 228 | AK106: 557 | AL106: 785 | AN106: MISSING DATA | AO106: 36 | AP106: 103 | AQ106: 139 | AS106: MISSING DATA | AT106: 82 | AU106: 206 | AV106: 288
AD107: Total | AE107: 1785 | AF107: 5746 | AG107: 7531 | AI107: Total | AJ107: 1533 | AK107: 5062 | AL107: 6595 | AN107: Total | AO107: 259 | AP107: 1005 | AQ107: 1264 | AS107: Total | AT107: 506 | AU107: 1735 | AV107: 2241
AS112: Dakar: Cumulative Total of Patients Prescribed Medication Treatment
AS113: Age Classification | AT113: Male | AU113: Female | AV113: Total
AS114: 18-29 | AT114: 14 | AU114: 70 | AV114: 84 | BC114: Age Classification | BD114: Male | BE114: Female | BF114: Total | BG114: Age Mean | BH114: % of total
AS115: 30-44 | AT115: 95 | AU115: 557 | AV115: 652 | BC115: 18–29 | BD115: =AT114 -> 14 | BE115: 70 | BF115: =BD115+BE115 -> 84 | BG115: =AVERAGE(18,29) -> 24 | BH115: =BF115/SUM(BF$115:BF$120) -> 2%
AS116: 45-59 | AT116: 345 | AU116: 1408 | AV116: 1753 | BC116: 30–44 | BD116: 95 | BE116: 557 | BF116: 652 | BG116: =AVERAGE(30,44) -> 37 | BH116: 13%
AS117: 60-69 | AT117: 409 | AU117: 1175 | AV117: 1584 | BC117: 45–59 | BD117: 345 | BE117: 1,408 | BF117: 1,753 | BG117: =AVERAGE(45,59) -> 52 | BH117: 35%
AS118: 70 -79 | AT118: 205 | AU118: 538 | AV118: 743 | BC118: 60–69 | BD118: 409 | BE118: 1,175 | BF118: 1,584 | BG118: =AVERAGE(60,69) -> 65 | BH118: 32%
AS119: 80 and above | AT119: 56 | AU119: 128 | AV119: 184 | BC119: 70–79 | BD119: 205 | BE119: 538 | BF119: 743 | BG119: =AVERAGE(70,79) -> 75 | BH119: 15%
AS120: UNKNOW AGE | AT120: 41 | AU120: 195 | AV120: 236 | BC120: ≥80 | BD120: 56 | BE120: 128 | BF120: 184 | BG120: =AVERAGE(80) -> 80 | BH120: 4%
AS121: Total | AT121: 1165 | AU121: 4071 | AV121: 5236
AS122: These data could either be based on the age in the patient folder from the first diagnosis visit (which could have occurred before CARDIO), or could have come from age information collected at the first visit during CARDIO. (There is no way to discern where the age information comes from.)
BG123: Age | BH123: Male %
AS124: APRIL 2018 through DECEMBER 2019 | BG124: =ROUND(SUMPRODUCT(BG115:BG120,BH115:BH120),0) -> 58.00 | BH124: =SUM(BD115:BD120)/SUM(BD115:BE120) -> 22%

Sheet Raw Data - SP
AA1: Data received: 17 Jan2021 | AD1: SAO PAULO DATA REQUEST
AD2: Date: request sent on 10.12.2020 | BC2: Sao Paulo | BD2: Total Diagnosed (#) | BE2: Total Treated (#) | BF2: Controlled (#) | BG2: Controlled over Diag.(%) | BH2: Controlled over treated.(%) | BJ2: Q4'18 to Q3'20
B3: Sao Paulo | AD3: This is related to the third filter: consent date. In the first version, the patients were being selected based on date of consent (up to March 2020). In this new version, we selected the patients based on the consent date considering the whole study period (October 2018 to March 2020). | BB3: =BE3-BD3 -> -146 | BC3: Q4 2018 | BD3: =AG16 -> 1026 | BE3: =AM16 -> 880 | BF3: =AS16 -> 108 | BG3: =BF3/BD3 -> 10.5% | BH3: =BF3/BE3 -> 12.27%
BB4: =BE4-BD4 -> -291 | BC4: Q4 2019 | BD4: =AG43 -> 1752 | BE4: =AM43 -> 1461 | BF4: =AS43 -> 456 | BG4: =BF4/BD4 -> 26% | BH4: =BF4/BE4 -> 31.2% | BJ4: ='User Input -Scenario Assumption'!E4 -> Q4'18 to Q4'19 | BK4: =IF($BJ4="Q4'18 to Q3'20",BD5,BD4) -> 1752 | BL4: =IF($BJ4="Q4'18 to Q3'20",BE5,BE4) -> 1461 | BM4: =IF($BJ4="Q4'18 to Q3'20",BF5,BF4) -> 456 | BN4: =BM4/BK4 -> 26% | BO4: =BM4/BL4 -> 31%
B5: Baseline | AA5: Q4 2018 | AB5: Total Patients Data by BP categories in Q4 2018 (starting quarter of the CARDIO) | BB5: =BE5-BD5 -> -297 | BC5: Q3 2020 | BD5: =AG70 -> 1784 | BE5: =AM70 -> 1487 | BF5: =AS70 -> 374 | BG5: =BF5/BD5 -> 21% | BH5: =BF5/BE5 -> 25%
B6: BP categories at baseline* | C6: Male | D6: Female | E6: Total | F6: Proportion (%) | BE6: =BE3/BD3 -> 86%
B7: <120 and <80 mmHg | C7: =O18 -> 36 | D7: 87 | E7: 123 | F7: =E7/$E$14 -> 11% | AB7: Sao Paulo | AC7: Total of Patients Diagnosed with HTN (patients with at least one visit between Oct 2018-Dec 2018) | AI7: Total of Patients Prescribed Medication Treatment (patients with at least one visit between Oct 2018-Dec 2018) | AO7: Total Controlled BP Patients (patients who were prescribed medication treatment with at least 2 visits between Oct 2018-Dec 2018) | AU7: Total Uncontrolled BP Patients (patients who were prescribed medication treatment with at least 2 visits between Oct 2018-Dec 2018) | BC7: Patient % by BP Category: | BE7: =BE4/BD4 -> 83% | BI7: ="Baseline - "&BC8 -> Baseline - Q4 2018 | BK7: ="After CARDIO -"&BJ4 -> After CARDIO -Q4'18 to Q4'19
B8: 120-129 or 80-84 | C8: 184 | D8: 440 | E8: 624 | F8: 54% | AC8: BP categories at baseline* | AD8: Male | AE8: Female | AF8: Not reported | AG8: Total | AI8: =AC8 -> BP categories at baseline* | AJ8: Male | AK8: Female | AL8: Not reported | AM8: Total | AO8: =AI8 -> BP categories at baseline* | AP8: Male | AQ8: Female | AR8: Not reported | AS8: Total | AU8: =AO8 -> BP categories at baseline* | AV8: Male | AW8: Female | AX8: Not reported | AY8: Total | BC8: =BC3 -> Q4 2018 | BD8: Treated | BE8: Controlled | BH8: SP | BI8: SP - Male | BJ8: SP - Female | BK8: SP - Male | BL8: SP - Female
B9: 130 - 139 or 85 - 89 | C9: 22 | D9: 49 | E9: 71 | F9: 6% | AC9: <120 and <80 mmHg | AD9: 22 | AE9: 73 | AF9: 3 | AG9: 98 | AI9: <120 and <80 mmHg | AJ9: 20 | AK9: 61 | AL9: 3 | AM9: 84 | AO9: <120 and <80 mmHg | AP9: 5 | AQ9: 9 | AR9: 1 | AS9: 15 | AU9: <120 and <80 mmHg | AV9: 3 | AW9: 1 | AX9: 1 | AY9: 5 | BC9: =AI9 -> <120 and <80 mmHg | BD9: =AM9/SUM($AM$9:$AM$14) -> 10% | BE9: =AS9/SUM($AS$9:$AS$14) -> 14% | BF9: ?which one will apply | BH9: Risk of CHD | BI9: N | BJ9: N | BK9: N | BL9: N
B10: 140 - 159 or 90 - 99 | C10: 73 | D10: 148 | E10: 221 | F10: 19% | AC10: 120-129 or 80-84 | AD10: 44 | AE10: 138 | AF10: 8 | AG10: 190 | AI10: 120-129 or 80-84 | AJ10: 36 | AK10: 110 | AL10: 4 | AM10: 150 | AO10: 120-129 or 80-84 | AP10: 6 | AQ10: 18 | AR10: 0 | AS10: 24 | AU10: 120-129 or 80-84 | AV10: 2 | AW10: 7 | AX10: 0 | AY10: 9 | BC10: 120-129 or 80-84 | BD10: 18% | BE10: 22% | BH10: Low | BI10: =AJ23 -> 4 | BJ10: 13 | BK10: =IF($BJ$4="Q4'18 to Q3'20",AJ77,AJ50) -> 11 | BL10: 21
B11: 160 - 179 or 100 - 109 | C11: 28 | D11: 69 | E11: 97 | F11: 8% | AC11: 130 - 139 or 85 - 89 | AD11: 34 | AE11: 88 | AF11: 3 | AG11: 125 | AI11: 130 - 139 or 85 - 89 | AJ11: 28 | AK11: 77 | AL11: 3 | AM11: 108 | AO11: 130 - 139 or 85 - 89 | AP11: 7 | AQ11: 4 | AR11: 0 | AS11: 11 | AU11: 130 - 139 or 85 - 89 | AV11: 2 | AW11: 2 | AX11: 1 | AY11: 5 | BC11: 130 - 139 or 85 - 89 | BD11: 13% | BE11: 10% | BH11: Medium | BI11: 3 | BJ11: 20 | BK11: 11 | BL11: 30
B12: ≥ 180 or ≥ 110 | C12: 11 | D12: 11 | E12: 22 | F12: 2% | AC12: 140 - 159 or 90 - 99 | AD12: 72 | AE12: 209 | AF12: 6 | AG12: 287 | AI12: 140 - 159 or 90 - 99 | AJ12: 67 | AK12: 175 | AL12: 5 | AM12: 247 | AO12: 140 - 159 or 90 - 99 | AP12: 12 | AQ12: 23 | AR12: 1 | AS12: 36 | AU12: 140 - 159 or 90 - 99 | AV12: 9 | AW12: 19 | AX12: 0 | AY12: 28 | BC12: 140 - 159 or 90 - 99 | BD12: 29% | BE12: 33% | BH12: High | BI12: 24 | BJ12: 59 | BK12: 40 | BL12: 90
B13: MISSING DATA | AC13: 160 - 179 or 100 - 109 | AD13: 51 | AE13: 152 | AF13: 6 | AG13: 209 | AI13: 160 - 179 or 100 - 109 | AJ13: 48 | AK13: 143 | AL13: 6 | AM13: 197 | AO13: 160 - 179 or 100 - 109 | AP13: 4 | AQ13: 13 | AR13: 1 | AS13: 18 | AU13: 160 - 179 or 100 - 109 | AV13: 6 | AW13: 19 | AX13: 0 | AY13: 25 | BC13: 160 - 179 or 100 - 109 | BD13: 23% | BE13: 17%
B14: Total | C14: =SUM(C7:C12) -> 354 | D14: =SUM(D7:D12) -> 804 | E14: =SUM(E7:E12) -> 1158 | AC14: ≥ 180 or ≥ 110 | AD14: 22 | AE14: 47 | AF14: 0 | AG14: 69 | AI14: ≥ 180 or ≥ 110 | AJ14: 17 | AK14: 46 | AL14: 0 | AM14: 63 | AO14: ≥ 180 or ≥ 110 | AP14: 1 | AQ14: 3 | AR14: 0 | AS14: 4 | AU14: ≥ 180 or ≥ 110 | AV14: 3 | AW14: 7 | AX14: 0 | AY14: 10 | BC14: ≥ 180 or ≥ 110 | BD14: 7% | BE14: 4%
O15: Start of implementation | AC15: MISSING DATA | AD15: 15 | AE15: 33 | AF15: 0 | AG15: 48 | AI15: MISSING DATA | AJ15: 7 | AK15: 24 | AL15: 0 | AM15: 31 | AO15: MISSING DATA | AP15: 0 | AQ15: 0 | AR15: 0 | AS15: 0 | AU15: MISSING DATA | AV15: 0 | AW15: 0 | AX15: 0 | AY15: 0
B16: 2018 | C16: Q1 | G16: Q2 | K16: Q3 | O16: Q4 | AC16: Total | AD16: 260 | AE16: 740 | AF16: 26 | AG16: 1,026.00 | AI16: Total | AJ16: 223 | AK16: 636 | AL16: 21 | AM16: 880 | AO16: Total | AP16: 35 | AQ16: 70 | AR16: 3 | AS16: 108 | AU16: Total | AV16: 25 | AW16: 55 | AX16: 2 | AY16: 82 | BC16: Missing values excluded in above calculation
B17: BP categories at baseline* | C17: Male | D17: Female | E17: Total | F17: Total - diagnosed | G17: Male | H17: Female | I17: Total | J17: Total - diagnosed | K17: Male | L17: Female | M17: Total | N17: Total - diagnosed | O17: Male | P17: Female | Q17: Total | R17: Total - diagnosed | T17: %ge controlled - Year | AB17: * at first visit during the period Oct 2018-Dec 2018 | AI17: * at first visit during the period Oct 2018-Dec 2018 | AO17: * at first visit during the period Oct 2018-Dec 2018 | AU17: * at first visit during the period Oct 2018-Dec 2018
B18: <120 and <80 mmHg | O18: 36 | P18: 87 | Q18: 123 | R18: 15 | T18: =Q18/$Q$25 -> 10.6% | AM18: =AS16/AM16 -> 12% | AS18: =AS16+AY16 -> 190
B19: 120-129 or 80-84 | O19: 184 | P19: 440 | Q19: 624 | R19: 124 | T19: 53.9% | AB19: Risk Profile | AK19: ` | AL19: `
B20: 130 - 139 or 85 - 89 | O20: 22 | P20: 49 | Q20: 71 | R20: 473 | T20: 6.1%
B21: 140 - 159 or 90 - 99 | O21: 73 | P21: 148 | Q21: 221 | R21: 466 | T21: 19.1% | AB21: =AB7 -> Sao Paulo | AC21: =AC7 -> Total of Patients Diagnosed with HTN (patients with at least one visit between Oct 2018-Dec 2018) | AI21: =AI7 -> Total of Patients Prescribed Medication Treatment (patients with at least one visit between Oct 2018-Dec 2018) | AO21: =AO7 -> Total Controlled BP Patients (patients who were prescribed medication treatment with at least 2 visits between Oct 2018-Dec 2018) | AU21: =AU7 -> Total Uncontrolled BP Patients (patients who were prescribed medication treatment with at least 2 visits between Oct 2018-Dec 2018)
B22: 160 - 179 or 100 - 109 | O22: 28 | P22: 69 | Q22: 97 | R22: 330 | T22: 8.4% | AC22: Cardiovascular risk | AD22: Male | AE22: Female | AF22: Not reported | AG22: Total | AI22: =AC22 -> Cardiovascular risk | AJ22: Male | AK22: Female | AL22: Not reported | AM22: Total | AO22: =AI22 -> Cardiovascular risk | AP22: Male | AQ22: Female | AR22: Not reported | AS22: Total | AU22: Cardiovascular risk | AV22: Male | AW22: Female | AX22: Not reported | AY22: Total
B23: ≥ 180 or ≥ 110 | O23: 11 | P23: 11 | Q23: 22 | R23: 104 | T23: 1.9% | AC23: Low | AD23: 4 | AE23: 15 | AF23: 0 | AG23: 19 | AI23: Low | AJ23: 4 | AK23: 13 | AL23: 0 | AM23: 17 | AO23: Low | AP23: 0 | AQ23: 3 | AR23: 0 | AS23: 3 | AU23: Low | AV23: 3 | AW23: 0 | AX23: 0 | AY23: 3
B24: MISSING DATA | AC24: Moderate | AD24: 3 | AE24: 21 | AF24: 1 | AG24: 25 | AI24: Moderate | AJ24: 3 | AK24: 20 | AL24: 0 | AM24: 23 | AO24: Moderate | AP24: 0 | AQ24: 5 | AR24: 0 | AS24: 5 | AU24: Moderate | AV24: 0 | AW24: 4 | AX24: 0 | AY24: 4
B25: Total | C25: =SUM(C18:C23) -> 0 | D25: =SUM(D18:D23) -> 0 | E25: 0 | F25: 0 | G25: 0 | H25: 0 | I25: 0 | J25: 0 | K25: 0 | L25: 0 | M25: 0 | N25: 0 | O25: =SUM(O18:O23) -> 354 | P25: =SUM(P18:P23) -> 804 | Q25: =SUM(Q18:Q23) -> 1,158 | R25: =SUM(R18:R23) -> 1,512 | T25: =Q25/R25 -> 76.6% | AC25: High | AD25: 28 | AE25: 66 | AF25: 0 | AG25: 94 | AI25: High | AJ25: 24 | AK25: 59 | AL25: 0 | AM25: 83 | AO25: High | AP25: 2 | AQ25: 6 | AR25: 0 | AS25: 8 | AU25: High | AV25: 4 | AW25: 10 | AX25: 0 | AY25: 14
AC26: MISSING DATA | AD26: 225 | AE26: 638 | AF26: 25 | AG26: 888 | AI26: MISSING DATA | AJ26: 192 | AK26: 544 | AL26: 21 | AM26: 757 | AO26: MISSING DATA | AP26: 33 | AQ26: 56 | AR26: 3 | AS26: 92 | AU26: MISSING DATA | AV26: 18 | AW26: 41 | AX26: 2 | AY26: 61
B27: CONTROL | AC27: Total | AD27: 260 | AE27: 740 | AF27: 26 | AG27: 1,026.00 | AI27: Total | AJ27: 223 | AK27: 636 | AL27: 21 | AM27: 880 | AO27: Total | AP27: 35 | AQ27: 70 | AR27: 3 | AS27: 108 | AU27: Total | AV27: 25 | AW27: 55 | AX27: 2 | AY27: 82
B28: 2019 | C28: Q1 | G28: Q2 | K28: Q3 | O28: Q4
B29: BP categories at baseline* | C29: Male | D29: Female | E29: Total | F29: Total - diagnosed | G29: Male | H29: Female | I29: Total | J29: Total - diagnosed | K29: Male | L29: Female | M29: Total | N29: Total - diagnosed | O29: Male | P29: Female | Q29: Total | R29: Total - diagnosed | T29: %ge controlled - Year
B30: <120 and <80 mmHg | O30: 20 | P30: 50 | Q30: 70 | R30: 26 | T30: =Q30/$Q$37 -> 10.0%
B31: 120-129 or 80-84 | O31: 114 | P31: 297 | Q31: 411 | R31: 173 | T31: 58.6%
B32: 130 - 139 or 85 - 89 | O32: 14 | P32: 32 | Q32: 46 | R32: 612 | T32: 6.6% | AA32: Q4 2019 | AB32: Cumulative Total Patients Data by BP categories at Q4 2019
B33: 140 - 159 or 90 - 99 | O33: 35 | P33: 91 | Q33: 126 | R33: 605 | T33: 18.0%
B34: 160 - 179 or 100 - 109 | O34: 10 | P34: 31 | Q34: 41 | R34: 406 | T34: 5.8% | AB34: =AB21 -> Sao Paulo | AC34: Cumulative Total of Patients Diagnosed with HTN (patients with at least one visit between Oct 2018-Dec 2019) | AI34: Cumulative Total of Patients Prescribed Medication Treatment (patients with at least one visit between Oct 2018-Dec 2019) | AO34: Cumulative Total of Controlled BP (patients who were prescribed medication treatment with at least 2 visits between Oct 2018-Dec 2019) | AU34: Cumulative Total of Uncontrolled BP (patients who were prescribed medication treatment with at least 2 visits between Oct 2018-Dec 2019) | BC34: Patient % by BP Category:
B35: ≥ 180 or ≥ 110 | O35: 3 | P35: 4 | Q35: 7 | R35: 129 | T35: 1.0% | AC35: BP categories at baseline* | AD35: Male | AE35: Female | AF35: Not reported | AG35: Total | AI35: =AC35 -> BP categories at baseline* | AJ35: Male | AK35: Female | AL35: Not reported | AM35: Total | AO35: =AI35 -> BP categories at baseline* | AP35: Male | AQ35: Female | AR35: Not reported | AS35: Total | AU35: =AO35 -> BP categories at baseline* | AV35: Male | AW35: Female | AX35: Not reported | AY35: Total | BC35: =AA32 -> Q4 2019 | BD35: Treated | BE35: Controlled
B36: MISSING DATA | AC36: <120 and <80 mmHg | AD36: 33 | AE36: 104 | AF36: 4 | AG36: 141 | AI36: <120 and <80 mmHg | AJ36: 26 | AK36: 84 | AL36: 3 | AM36: 113 | AO36: <120 and <80 mmHg | AP36: 11 | AQ36: 31 | AR36: 1 | AS36: 43 | AU36: <120 and <80 mmHg | AV36: 4 | AW36: 7 | AX36: 0 | AY36: 11 | BC36: =BC9 -> <120 and <80 mmHg | BD36: =AM36/SUM($AM$36:$AM$41) -> 8% | BE36: =AS36/SUM($AS$36:$AS$41) -> 9%
B37: Total | C37: =SUM(C30:C35) -> 0 | D37: =SUM(D30:D35) -> 0 | E37: 0 | F37: 0 | G37: 0 | H37: 0 | I37: 0 | J37: 0 | K37: 0 | L37: 0 | M37: 0 | N37: 0 | O37: 196 | P37: 505 | Q37: 701 | R37: 1,951 | S37: Total control >> | T37: =Q37/$R$37 -> 35.9% | AC37: 120-129 or 80-84 | AD37: 81 | AE37: 231 | AF37: 14 | AG37: 326 | AI37: 120-129 or 80-84 | AJ37: 65 | AK37: 190 | AL37: 6 | AM37: 261 | AO37: 120-129 or 80-84 | AP37: 32 | AQ37: 75 | AR37: 3 | AS37: 110 | AU37: 120-129 or 80-84 | AV37: 13 | AW37: 40 | AX37: 0 | AY37: 53 | BC37: 120-129 or 80-84 | BD37: 19% | BE37: 24%
AC38: 130 - 139 or 85 - 89 | AD38: 61 | AE38: 146 | AF38: 5 | AG38: 212 | AI38: 130 - 139 or 85 - 89 | AJ38: 46 | AK38: 124 | AL38: 5 | AM38: 175 | AO38: 130 - 139 or 85 - 89 | AP38: 13 | AQ38: 44 | AR38: 2 | AS38: 59 | AU38: 130 - 139 or 85 - 89 | AV38: 5 | AW38: 23 | AX38: 0 | AY38: 28 | BC38: 130 - 139 or 85 - 89 | BD38: 12% | BE38: 13%
AC39: 140 - 159 or 90 - 99 | AD39: 137 | AE39: 354 | AF39: 9 | AG39: 500 | AI39: 140 - 159 or 90 - 99 | AJ39: 116 | AK39: 293 | AL39: 6 | AM39: 415 | AO39: 140 - 159 or 90 - 99 | AP39: 41 | AQ39: 83 | AR39: 1 | AS39: 125 | AU39: 140 - 159 or 90 - 99 | AV39: 33 | AW39: 79 | AX39: 1 | AY39: 113 | BC39: 140 - 159 or 90 - 99 | BD39: 29% | BE39: 27%
B40: 2020 | C40: Q1 | G40: Q2 | K40: Q3 | O40: Q4 | AC40: 160 - 179 or 100 - 109 | AD40: 99 | AE40: 257 | AF40: 9 | AG40: 365 | AI40: 160 - 179 or 100 - 109 | AJ40: 86 | AK40: 235 | AL40: 9 | AM40: 330 | AO40: 160 - 179 or 100 - 109 | AP40: 25 | AQ40: 67 | AR40: 1 | AS40: 93 | AU40: 160 - 179 or 100 - 109 | AV40: 22 | AW40: 61 | AX40: 3 | AY40: 86 | BC40: 160 - 179 or 100 - 109 | BD40: 23% | BE40: 20%
B41: BP categories at baseline* | C41: Male | D41: Female | E41: Total | F41: Total - diagnosed | G41: Male | H41: Female | I41: Total | J41: Total - diagnosed | K41: Male | L41: Female | M41: Total | N41: Total - diagnosed | O41: Male | P41: Female | Q41: Total | R41: Total - diagnosed | T41: %ge controlled - Year | AC41: ≥ 180 or ≥ 110 | AD41: 32 | AE41: 86 | AF41: 3 | AG41: 121 | AI41: ≥ 180 or ≥ 110 | AJ41: 27 | AK41: 83 | AL41: 3 | AM41: 113 | AO41: ≥ 180 or ≥ 110 | AP41: 8 | AQ41: 16 | AR41: 2 | AS41: 26 | AU41: ≥ 180 or ≥ 110 | AV41: 9 | AW41: 26 | AX41: 0 | AY41: 35 | BC41: ≥ 180 or ≥ 110 | BD41: 8% | BE41: 6%
B42: <120 and <80 mmHg | C42: 20 | D42: 45 | E42: =SUM(C42:D42) -> 65 | F42: 26 | T42: =E42/$E$49 -> 9.5% | AC42: MISSING DATA | AD42: 32 | AE42: 54 | AF42: 1 | AG42: 87 | AI42: MISSING DATA | AJ42: 18 | AK42: 36 | AL42: 0 | AM42: 54 | AO42: MISSING DATA | AP42: 0 | AQ42: 0 | AR42: 0 | AS42: 0 | AU42: MISSING DATA | AV42: 0 | AW42: 0 | AX42: 0 | AY42: 0
B43: 120-129 or 80-84 | C43: 114 | D43: 286 | E43: 400 | F43: 173 | T43: 58.4% | AC43: Total | AD43: 475 | AE43: 1232 | AF43: 45 | AG43: 1752 | AI43: Total | AJ43: 384 | AK43: 1,045.00 | AL43: 32 | AM43: 1,461.00 | AO43: Total | AP43: 130 | AQ43: 316 | AR43: 10 | AS43: 456 | AU43: Total | AV43: 86 | AW43: 236 | AX43: 4 | AY43: 326 | BC43: Missing values excluded in above calculation
B44: 130 - 139 or 85 - 89 | C44: 16 | D44: 30 | E44: 46 | F44: 616 | T44: 6.7% | AB44: *at first visit during the period Oct 2018- Dec 2019 | AI44: *at first visit during the period Oct 2018- Dec 2019 | AO44: *at first visit during the period Oct 2018- Dec 2019 | AU44: *at first visit during the period Oct 2018- Dec 2019
B45: 140 - 159 or 90 - 99 | C45: 36 | D45: 88 | E45: 124 | F45: 609 | T45: 18.1%
B46: 160 - 179 or 100 - 109 | C46: 10 | D46: 33 | E46: 43 | F46: 409 | T46: 6.3% | AB46: Risk Profile
B47: ≥ 180 or ≥ 110 | C47: 3 | D47: 4 | E47: 7 | F47: 129 | T47: 1.0%
B48: MISSING DATA | AB48: =AB34 -> Sao Paulo | AC48: =AC34 -> Cumulative Total of Patients Diagnosed with HTN (patients with at least one visit between Oct 2018-Dec 2019) | AI48: =AI34 -> Cumulative Total of Patients Prescribed Medication Treatment (patients with at least one visit between Oct 2018-Dec 2019) | AO48: =AO34 -> Cumulative Total of Controlled BP (patients who were prescribed medication treatment with at least 2 visits between Oct 2018-Dec 2019) | AU48: =AU34 -> Cumulative Total of Uncontrolled BP (patients who were prescribed medication treatment with at least 2 visits between Oct 2018-Dec 2019)
B49: Total | C49: =SUM(C42:C47) -> 199.00 | D49: =SUM(D42:D47) -> 486.00 | E49: 685.00 | F49: 1,962.00 | G49: 0 | H49: 0 | I49: 0 | J49: 0 | K49: 0 | L49: 0 | M49: 0 | N49: 0 | O49: 0 | P49: 0 | Q49: 0 | R49: 0 | S49: =S37 -> Total control >> | T49: =E49/F49 -> 34.9% | AC49: Cardiovascular risk | AD49: Male | AE49: Female | AF49: Not reported | AG49: Total | AI49: =AC49 -> Cardiovascular risk | AJ49: Male | AK49: Female | AL49: Not reported | AM49: Total | AO49: =AC49 -> Cardiovascular risk | AP49: Male | AQ49: Female | AR49: Not reported | AS49: Total | AU49: =AC49 -> Cardiovascular risk | AV49: Male | AW49: Female | AX49: Not reported | AY49: Total
AC50: Low | AD50: 11 | AE50: 23 | AF50: 0 | AG50: 34 | AI50: Low | AJ50: 11 | AK50: 21 | AL50: 0 | AM50: 32 | AO50: Low | AP50: 7 | AQ50: 11 | AR50: 0 | AS50: 18 | AU50: Low | AV50: 2 | AW50: 5 | AX50: 0 | AY50: 7
B51: 2021 | C51: Q1 | G51: Q2 | K51: Q3 | O51: Q4 | AC51: Moderate | AD51: 11 | AE51: 33 | AF51: 1 | AG51: 45 | AI51: Moderate | AJ51: 11 | AK51: 30 | AL51: 0 | AM51: 41 | AO51: Moderate | AP51: 4 | AQ51: 15 | AR51: 0 | AS51: 19 | AU51: Moderate | AV51: 1 | AW51: 9 | AX51: 0 | AY51: 10
B52: BP categories at baseline* | C52: Male | D52: Female | E52: Total | F52: Total - diagnosed | G52: Male | H52: Female | I52: Total | J52: Total - diagnosed | K52: Male | L52: Female | M52: Total | N52: Total - diagnosed | O52: Male | P52: Female | Q52: Total | R52: Total - diagnosed | T52: =T41 -> %ge controlled - Year | AC52: High | AD52: 48 | AE52: 101 | AF52: 0 | AG52: 149 | AI52: High | AJ52: 40 | AK52: 90 | AL52: 0 | AM52: 130 | AO52: High | AP52: 14 | AQ52: 33 | AR52: 0 | AS52: 47 | AU52: High | AV52: 14 | AW52: 35 | AX52: 0 | AY52: 49
B53: <120 and <80 mmHg | AC53: MISSING DATA | AD53: 405 | AE53: 1,075.00 | AF53: 44 | AG53: 1,524.00 | AI53: MISSING DATA | AJ53: 322 | AK53: 904 | AL53: 32 | AM53: 1,258.00 | AO53: MISSING DATA | AP53: 105 | AQ53: 257 | AR53: 10 | AS53: 372 | AU53: MISSING DATA | AV53: 69 | AW53: 187 | AX53: 4 | AY53: 260
B54: 120-129 or 80-84 | AC54: Total | AD54: 475 | AE54: 1,232.00 | AF54: 45 | AG54: 1,752.00 | AI54: Total | AJ54: 384 | AK54: 1,045.00 | AL54: 32 | AM54: 1,461.00 | AO54: Total | AP54: 130 | AQ54: 316 | AR54: 10 | AS54: 456 | AU54: Total | AV54: 86 | AW54: 236 | AX54: 4 | AY54: 326
B55: 130 - 139 or 85 - 89
B56: 140 - 159 or 90 - 99
B57: 160 - 179 or 100 - 109
B58: ≥ 180 or ≥ 110
B59: MISSING DATA | AA59: Q3 2020 | AB59: Total Patients Data by BP categories at Q3 2020
B60: Total | C60: =SUM(C53:C58) -> 0 | D60: =SUM(D53:D58) -> 0 | E60: 0 | G60: 0 | H60: 0 | I60: 0 | J60: 0 | K60: 0 | L60: 0 | M60: 0 | N60: 0 | O60: 0 | P60: 0 | Q60: 0 | R60: 0 | S60: =S49 -> Total control >>
AB61: =AB48 -> Sao Paulo | AC61: Cumulative Total of Patients Diagnosed with HTN (patients with at least one visit between Oct 2018-Sept 2020) | AI61: Cumulative Total of Patients Prescribed Medication Treatment (patients with at least one visit between Oct 2018-Sept 2020) | AO61: Cumulative Total of Controlled BP (patients who were prescribed medication treatment with at least 2 visits between Oct 2018-Sept 2020) | AU61: Cumulative Total Uncontrolled BP Patients (patients who were prescribed medication treatment with at least 2 visits between Oct 2018-Sept 2020) | BC61: Patient % by BP Category:
AC62: =AC35 -> BP categories at baseline* | AD62: Male | AE62: Female | AF62: Not reported | AG62: Total | AI62: =AC62 -> BP categories at baseline* | AJ62: Male | AK62: Female | AL62: Not reported | AM62: Total | AO62: =AI62 -> BP categories at baseline* | AP62: Male | AQ62: Female | AR62: Not reported | AS62: Total | AU62: =AO62 -> BP categories at baseline* | AV62: Male | AW62: Female | AX62: Not reported | AY62: Total | BC62: =AA59 -> Q3 2020 | BD62: Treated | BE62: Controlled
AC63: <120 and <80 mmHg | AD63: 33 | AE63: 107 | AF63: 4 | AG63: 144 | AI63: <120 and <80 mmHg | AJ63: 26 | AK63: 85 | AL63: 3 | AM63: 114 | AO63: <120 and <80 mmHg | AP63: 10 | AQ63: 27 | AR63: 2 | AS63: 39 | AU63: <120 and <80 mmHg | AV63: 2 | AW63: 11 | AX63: 0 | AY63: 13 | BC63: =BC36 -> <120 and <80 mmHg | BD63: =AM63/SUM($AM$63:$AM$68) -> 8% | BE63: =AS63/SUM($AS$63:$AS$68) -> 10%
B64: Age Classification | C64: Male | D64: Female | E64: Total | F64: Age Mean | G64: % of total | AC64: 120-129 or 80-84 | AD64: 81 | AE64: 233 | AF64: 14 | AG64: 328 | AI64: 120-129 or 80-84 | AJ64: 65 | AK64: 191 | AL64: 6 | AM64: 262 | AO64: 120-129 or 80-84 | AP64: 25 | AQ64: 69 | AR64: 2 | AS64: 96 | AU64: 120-129 or 80-84 | AV64: 11 | AW64: 42 | AX64: 0 | AY64: 53 | BC64: 120-129 or 80-84 | BD64: 18% | BE64: 26%
B65: 18–29 | C65: 1 | D65: 14 | E65: 15 | F65: =AVERAGE(18,29) -> 24 | G65: =E65/SUM($E$65:$E$70) -> 1% | AC65: 130 - 139 or 85 - 89 | AD65: 63 | AE65: 147 | AF65: 5 | AG65: 215 | AI65: 130 - 139 or 85 - 89 | AJ65: 48 | AK65: 125 | AL65: 5 | AM65: 178 | AO65: 130 - 139 or 85 - 89 | AP65: 12 | AQ65: 38 | AR65: 0 | AS65: 50 | AU65: 130 - 139 or 85 - 89 | AV65: 7 | AW65: 32 | AX65: 1 | AY65: 40 | BC65: 130 - 139 or 85 - 89 | BD65: 12% | BE65: 13%
B66: 30–44 | C66: 26 | D66: 98 | E66: 124 | F66: =AVERAGE(30,44) -> 37 | G66: 8% | AC66: 140 - 159 or 90 - 99 | AD66: 137 | AE66: 362 | AF66: 10 | AG66: 509 | AI66: 140 - 159 or 90 - 99 | AJ66: 116 | AK66: 300 | AL66: 7 | AM66: 423 | AO66: 140 - 159 or 90 - 99 | AP66: 28 | AQ66: 73 | AR66: 2 | AS66: 103 | AU66: 140 - 159 or 90 - 99 | AV66: 34 | AW66: 88 | AX66: 2 | AY66: 124 | BC66: 140 - 159 or 90 - 99 | BD66: 30% | BE66: 28%
B67: 45–59 | C67: 111 | D67: 362 | E67: 473 | F67: =AVERAGE(45,59) -> 52 | G67: 31% | AC67: 160 - 179 or 100 - 109 | AD67: 104 | AE67: 260 | AF67: 10 | AG67: 374 | AI67: 160 - 179 or 100 - 109 | AJ67: 91 | AK67: 238 | AL67: 9 | AM67: 338 | AO67: 160 - 179 or 100 - 109 | AP67: 19 | AQ67: 47 | AR67: 1 | AS67: 67 | AU67: 160 - 179 or 100 - 109 | AV67: 32 | AW67: 79 | AX67: 4 | AY67: 115 | BC67: 160 - 179 or 100 - 109 | BD67: 24% | BE67: 18%
B68: 60–69 | C68: 140 | D68: 326 | E68: 466 | F68: =AVERAGE(60,69) -> 65 | G68: 31% | AC68: ≥ 180 or ≥ 110 | AD68: 32 | AE68: 89 | AF68: 3 | AG68: 124 | AI68: ≥ 180 or ≥ 110 | AJ68: 27 | AK68: 86 | AL68: 3 | AM68: 116 | AO68: ≥ 180 or ≥ 110 | AP68: 4 | AQ68: 14 | AR68: 1 | AS68: 19 | AU68: ≥ 180 or ≥ 110 | AV68: 11 | AW68: 40 | AX68: 1 | AY68: 52 | BC68: ≥ 180 or ≥ 110 | BD68: 8% | BE68: 5%
B69: 70–79 | C69: 119 | D69: 211 | E69: 330 | F69: =AVERAGE(70,79) -> 75 | G69: 22% | AC69: MISSING DATA | AD69: 33 | AE69: 56 | AF69: 1 | AG69: 90 | AI69: MISSING DATA | AJ69: 19 | AK69: 37 | AL69: 0 | AM69: 56 | AO69: MISSING DATA | AP69: 0 | AQ69: 0 | AR69: 0 | AS69: 0 | AU69: MISSING DATA | AV69: 0 | AW69: 0 | AX69: 0 | AY69: 0
B70: ≥80 | C70: 31 | D70: 73 | E70: 104 | F70: =AVERAGE(80) -> 80 | G70: 7% | AC70: Total | AD70: 483 | AE70: 1254 | AF70: 47 | AG70: 1784 | AI70: Total | AJ70: 392 | AK70: 1,062.00 | AL70: 33 | AM70: 1,487.00 | AO70: Total | AP70: 98 | AQ70: 268 | AR70: 8 | AS70: 374 | AU70: Total | AV70: 97 | AW70: 292 | AX70: 8 | AY70: 397 | BC70: Missing values excluded in above calculation
B71: Total | C71: =SUM(C65:C70) -> 428.00 | D71: =SUM(D65:D70) -> 1,084.00 | E71: =SUM(E65:E70) -> 1,512.00 | G71: =SUM(G65:G70) -> 100% | AB71: *at first visit during the period Oct 2018-Sept 2020 | AI71: *at first visit during the period Oct 2018-Sept 2020 | AO71: *at first visit during the period Oct 2018-Sept 2020 | AU71: *at first visit during the period Oct 2018-Sept 2020
F73: Age | G73: Male % | AB73: Risk Profile
F74: =SUMPRODUCT(F65:F70,G65:G70) -> 61.18 | G74: =SUM(C65:C70)/SUM(C65:D70) -> 28%
AB75: =AB61 -> Sao Paulo | AC75: =AC61 -> Cumulative Total of Patients Diagnosed with HTN (patients with at least one visit between Oct 2018-Sept 2020) | AI75: =AI61 -> Cumulative Total of Patients Prescribed Medication Treatment (patients with at least one visit between Oct 2018-Sept 2020) | AO75: =AO61 -> Cumulative Total of Controlled BP (patients who were prescribed medication treatment with at least 2 visits between Oct 2018-Sept 2020) | AU75: =AU61 -> Cumulative Total Uncontrolled BP Patients (patients who were prescribed medication treatment with at least 2 visits between Oct 2018-Sept 2020)
AC76: Cardiovascular risk | AD76: Male | AE76: Female | AF76: Not reported | AG76: Total | AI76: =AC76 -> Cardiovascular risk | AJ76: Male | AK76: Female | AL76: Not reported | AM76: Total | AO76: =AC76 -> Cardiovascular risk | AP76: Male | AQ76: Female | AR76: Not reported | AS76: Total | AU76: =AC76 -> Cardiovascular risk | AV76: Male | AW76: Female | AX76: Not reported | AY76: Total
AC77: Low | AD77: 11 | AE77: 23 | AF77: 0 | AG77: 34 | AI77: Low | AJ77: 11 | AK77: 21 | AL77: 0 | AM77: 32 | AO77: Low | AP77: 5 | AQ77: 12 | AR77: 0 | AS77: 17 | AU77: Low | AV77: 4 | AW77: 2 | AX77: 0 | AY77: 6
AC78: Moderate | AD78: 11 | AE78: 33 | AF78: 1 | AG78: 45 | AI78: Moderate | AJ78: 11 | AK78: 30 | AL78: 0 | AM78: 41 | AO78: Moderate | AP78: 4 | AQ78: 8 | AR78: 0 | AS78: 12 | AU78: Moderate | AV78: 2 | AW78: 10 | AX78: 0 | AY78: 12
AC79: High | AD79: 48 | AE79: 101 | AF79: 0 | AG79: 149 | AI79: High | AJ79: 40 | AK79: 90 | AL79: 0 | AM79: 130 | AO79: High | AP79: 11 | AQ79: 26 | AR79: 0 | AS79: 37 | AU79: High | AV79: 12 | AW79: 32 | AX79: 0 | AY79: 44
AC80: MISSING DATA | AD80: 413 | AE80: 1,097.00 | AF80: 46 | AG80: 1,556.00 | AI80: MISSING DATA | AJ80: 330 | AK80: 921 | AL80: 33 | AM80: 1,284.00 | AO80: MISSING DATA | AP80: 78 | AQ80: 222 | AR80: 8 | AS80: 308 | AU80: MISSING DATA | AV80: 79 | AW80: 248 | AX80: 8 | AY80: 335
AC81: Total | AD81: 483 | AE81: 1,254.00 | AF81: 47 | AG81: 1,784.00 | AI81: Total | AJ81: 392 | AK81: 1,062.00 | AL81: 33 | AM81: 1,487.00 | AO81: Total | AP81: 98 | AQ81: 268 | AR81: 8 | AS81: 374 | AU81: Total | AV81: 97 | AW81: 292 | AX81: 8 | AY81: 397
AU86: Sao Paulo: Cumulative Total of Patients Prescribed Medication Treatment (patients with at least one VISIT during from October 2018 – December 2019)
AU87: Age Classification | AV87: Male | AW87: Female | AX87: Not reported | AY87: Total | BC87: Age Classification | BD87: Male | BE87: Female | BF87: Total | BG87: Age Mean | BH87: % of total
AU88: 18-29 | AV88: 1 | AW88: 6 | AX88: 0 | AY88: 7 | BC88: 18–29 | BD88: =AV88 -> 1 | BE88: =AW88 -> 6 | BF88: =BD88+BE88 -> 7 | BG88: =AVERAGE(18,29) -> 24 | BH88: =BF88/SUM($BF$88:$BF$93) -> 0%
AU89: 30-44 | AV89: 26 | AW89: 84 | AX89: 1 | AY89: 111 | BC89: 30–44 | BD89: =AV89 -> 26 | BE89: 84 | BF89: 110 | BG89: =AVERAGE(30,44) -> 37 | BH89: 8%
AU90: 45-59 | AV90: 85 | AW90: 330 | AX90: 8 | AY90: 423 | BC90: 45–59 | BD90: 85 | BE90: 330 | BF90: 415 | BG90: =AVERAGE(45,59) -> 52 | BH90: 29%
AU91: 60-69 | AV91: 132 | AW91: 320 | AX91: 9 | AY91: 461 | BC91: 60–69 | BD91: 132 | BE91: 320 | BF91: 452 | BG91: =AVERAGE(60,69) -> 65 | BH91: 32%
AU92: 70 -79 | AV92: 107 | AW92: 231 | AX92: 12 | AY92: 350 | BC92: 70–79 | BD92: 107 | BE92: 231 | BF92: 338 | BG92: =AVERAGE(70,79) -> 75 | BH92: 24%
AU93: 80 and above | AV93: 33 | AW93: 74 | AX93: 2 | AY93: 109 | BC93: ≥80 | BD93: 33 | BE93: 74 | BF93: 107 | BG93: =AVERAGE(80) -> 80 | BH93: 7%
AU94: Total | AV94: 384 | AW94: 1045 | AX94: 32 | AY94: 1461
BG96: Age | BH96: Male %
BG97: =ROUND(SUMPRODUCT(BG88:BG93,BH88:BH93),0) -> 62.00 | BH97: =SUM(BD88:BD93)/SUM(BD88:BE93) -> 27%

Sheet Raw Data - UB
AD1: UB
BC2: =AB7 -> Ulaanbaatar | BD2: Total Diagnosed (#) | BE2: Total Treated (#) | BF2: Controlled (#) | BG2: Controlled over Diag.(%) | BH2: Controlled over treated.(%) | BJ2: Q4'18 to Q3'20
B3: Ulaanbaatar | M3: Data from PDF file | BB3: =BE3-BD3 -> -121 | BC3: Q1 2018 | BD3: =AG16 -> 2,907 | BE3: =AM16 -> 2786 | BF3: =AS16 -> 86 | BG3: =BF3/BD3 -> 3% | BH3: =BF3/BE3 -> 3.1%
M4: Calculatiion | AO4: =AO6/AI6 -> 3% | BB4: =BE4-BD4 -> -1114 | BC4: Q3 2019 | BD4: =AG43 -> 11189 | BE4: =AM43 -> 10075 | BF4: =AS43 -> 1986 | BG4: =BF4/BD4 -> 18% | BH4: =BF4/BE4 -> 19.7% | BJ4: ='User Input -Scenario Assumption'!E4 -> Q4'18 to Q4'19 | BK4: =IF($BJ4="Q4'18 to Q3'20",BD5,BD4) -> 11189 | BL4: =IF($BJ4="Q4'18 to Q3'20",BE5,BE4) -> 10075 | BM4: =IF($BJ4="Q4'18 to Q3'20",BF5,BF4) -> 1986 | BN4: =BM4/BK4 -> 18% | BO4: =BM4/BL4 -> 20%
B5: Baseline | R5: <120 and <80 mmHg | S5: =M7 -> Controlled | T5: 4% | AA5: Q1 2018 | AB5: Total Patients Data by BP categories in Q4 2018 (starting quarter of the CARDIO) | BB5: =BE5-BD5 -> 0 | BC5: Q3 2020 | BD5: =AG70 -> 0 | BE5: =AM70 -> 0 | BF5: =AS70 -> 0 | BG5: =BF5/BD5 ->  | BH5: =BF5/BE5 -> 
B6: BP categories at baseline* | C6: Male | D6: Female | E6: Total | F6: %ge | O6: Normalized score | R6: 120-129 or 80-84 | S6: =S5 -> Controlled | T6: 8% | AC6: =AE91 -> 2907 | AI6: =AE94 -> 2786 | AO6: =AE97 -> 86 | BE6: =BE3/BD3 -> 96%
B7: <120 and <80 mmHg | C7: =C18 -> 69 | D7: 292 | E7: =SUM(C7:D7) -> 361 | F7: =O7*(T5/(T5+T6)) -> 8% | M7: Controlled | N7: 6.6 | O7: =N7/(N7+N8) -> 24% | R7: 130 - 139 or 85 - 89 | S7: =M8 -> Uncontrolled | T7: 21% | AB7: Ulaanbaatar | AC7: Total of Patients Diagnosed with HTN (patients with at least one visit between Oct 2018-Dec 2018) | AI7: Total of Patients Prescribed Medication Treatment (patients with at least one visit between Oct 2018-Dec 2018) | AO7: Total Controlled BP Patients (patients who were prescribed medication treatment with at least 2 visits between Oct 2018-Dec 2018) | AU7: Total Uncontrolled BP Patients (patients who were prescribed medication treatment with at least 2 visits between Oct 2018-Dec 2018) | BC7: Patient % by BP Category: | BE7: =BE4/BD4 -> 90% | BI7: ="Baseline - "&BC8 -> Baseline - Q1 2018 | BK7: ="After CARDIO -"&BJ4 -> After CARDIO -Q4'18 to Q4'19
B8: 120-129 or 80-84 | C8: 206 | D8: 488 | E8: =SUM(C8:D8) -> 694 | F8: =O7*(T6/(T5+T6)) -> 16% | M8: Uncontrolled | N8: 21.4 | O8: =N8/(N8+N7) -> 76% | R8: 140 - 159 or 90 - 99 | S8: =S7 -> Uncontrolled | T8: 37% | AC8: BP categories at baseline* | AD8: Male | AE8: Female | AF8: Not reported | AG8: Total | AI8: =AC8 -> BP categories at baseline* | AJ8: Male | AK8: Female | AL8: Not reported | AM8: Total | AO8: =AI8 -> BP categories at baseline* | AP8: Male | AQ8: Female | AR8: Not reported | AS8: Total | AU8: =AO8 -> BP categories at baseline* | AV8: Male | AW8: Female | AX8: Not reported | AY8: Total | BC8: =BC3 -> Q1 2018 | BD8: Treated | BE8: Controlled | BH8: SP | BI8: UB - Male | BJ8: UB - Female | BK8: UB - Male | BL8: UB - Female
B9: 130 - 139 or 85 - 89 | C9: 628 | D9: 1201 | E9: 1829 | F9: =(T7/SUM($T$7:$T$10))*$O$8 -> 19% | R9: 160 - 179 or 100 - 109 | S9: =S8 -> Uncontrolled | T9: 23% | AC9: <120 and <80 mmHg | AD9: =(AD36/SUM($AD$36:$AE$41))*$AC$6 -> 21 | AE9: =(AE36/SUM($AD$36:$AE$41))*$AC$6 -> 86 | AG9: =AD9+AE9 -> 107 | AI9: <120 and <80 mmHg | AJ9: =(AJ36/SUM($AJ$36:$AK$41))*$AI$6 -> 20 | AK9: =(AK36/SUM($AJ$36:$AK$41))*$AI$6 -> 86 | AM9: =AJ9+AK9 -> 107 | AO9: <120 and <80 mmHg | AP9: =(AP36/SUM($AP$36:$AQ$41))*$AO$6 -> 1 | AQ9: =(AQ36/SUM($AP$36:$AQ$41))*$AO$6 -> 4 | AS9: =AP9+AQ9 -> 5 | AU9: <120 and <80 mmHg | BC9: =AI9 -> <120 and <80 mmHg | BD9: =AM9/SUM($AM$9:$AM$14) -> 4% | BE9: =AS9/SUM($AS$9:$AS$14) -> 6% | BH9: Risk of CHD | BI9: N | BJ9: N | BK9: N | BL9: N
B10: 140 - 159 or 90 - 99 | C10: 1189 | D10: 1942 | E10: 3131 | F10: =(T8/SUM($T$7:$T$10))*$O$8 -> 32% | R10: ≥ 180 or ≥ 110 | S10: =S9 -> Uncontrolled | T10: 7% | AC10: 120-129 or 80-84 | AD10: 61 | AE10: 146 | AG10: 207 | AI10: 120-129 or 80-84 | AJ10: 62 | AK10: 151 | AM10: 213 | AO10: 120-129 or 80-84 | AP10: =(AP37/SUM($AP$36:$AQ$41))*$AO$6 -> 3 | AQ10: 7 | AS10: 10 | AU10: 120-129 or 80-84 | BC10: 120-129 or 80-84 | BD10: 8% | BE10: 12% | BH10: Low | BI10: =AJ23 -> 320 | BJ10: 651 | BK10: =IF($BJ$4="Q4'18 to Q3'20",AJ77,AJ50) -> 1156 | BL10: 2351
B11: 160 - 179 or 100 - 109 | C11: 826 | D11: 1103 | E11: 1929 | F11: =(T9/SUM($T$7:$T$10))*$O$8 -> 20% | AC11: 130 - 139 or 85 - 89 | AD11: 230 | AE11: 434 | AG11: 664 | AI11: 130 - 139 or 85 - 89 | AJ11: 200 | AK11: 396 | AM11: 596 | AO11: 130 - 139 or 85 - 89 | AP11: 6 | AQ11: 13 | AS11: 19 | AU11: 130 - 139 or 85 - 89 | BC11: 130 - 139 or 85 - 89 | BD11: 21% | BE11: 23% | BH11: Medium | BI11: 301 | BJ11: 477 | BK11: 1088 | BL11: 1724
B12: ≥ 180 or ≥ 110 | C12: 292 | D12: 326 | E12: 618 | F12: =(T10/SUM($T$7:$T$10))*$O$8 -> 6% | AC12: 140 - 159 or 90 - 99 | AD12: 410 | AE12: 661 | AG12: 1,071 | AI12: 140 - 159 or 90 - 99 | AJ12: 383 | AK12: 630 | AM12: 1,013 | AO12: 140 - 159 or 90 - 99 | AP12: 8 | AQ12: 17 | AS12: 26 | AU12: 140 - 159 or 90 - 99 | BC12: 140 - 159 or 90 - 99 | BD12: 36% | BE12: 30% | BH12: High | BI12: 81 | BJ12: 70 | BK12: 291 | BL12: 254
B13: MISSING DATA | AC13: 160 - 179 or 100 - 109 | AD13: 271 | AE13: 373 | AG13: 644 | AI13: 160 - 179 or 100 - 109 | AJ13: 269 | AK13: 371 | AM13: 640 | AO13: 160 - 179 or 100 - 109 | AP13: 7 | AQ13: 12 | AS13: 19 | AU13: 160 - 179 or 100 - 109 | BC13: 160 - 179 or 100 - 109 | BD13: 23% | BE13: 22%
B14: Total | C14: =SUM(C7:C12) -> 3210 | D14: =SUM(D7:D12) -> 5352 | E14: 8562 | AC14: ≥ 180 or ≥ 110 | AD14: 100 | AE14: 115 | AG14: 214 | AI14: ≥ 180 or ≥ 110 | AJ14: 100 | AK14: 117 | AM14: 217 | AO14: ≥ 180 or ≥ 110 | AP14: 3 | AQ14: 4 | AS14: 6 | AU14: ≥ 180 or ≥ 110 | BC14: ≥ 180 or ≥ 110 | BD14: 8% | BE14: 7%
C15: Start of implementation | O15: Start of implementation | AC15: MISSING DATA | AI15: MISSING DATA | AO15: MISSING DATA | AU15: MISSING DATA
B16: 2018 | C16: Q1 | G16: Q2 | K16: Q3 | O16: Q4 | AC16: Total | AD16: =SUM(AD9:AD15) -> 1,092 | AE16: =SUM(AE9:AE15) -> 1,815 | AF16: =SUM(AF9:AF15) -> 0 | AG16: =SUM(AG9:AG15) -> 2,907 | AI16: Total | AJ16: =SUM(AJ9:AJ15) -> 1,034 | AK16: =SUM(AK9:AK15) -> 1,752 | AL16: =SUM(AL9:AL15) -> 0 | AM16: =SUM(AM9:AM15) -> 2,786 | AO16: Total | AP16: =SUM(AP9:AP15) -> 27 | AQ16: =SUM(AQ9:AQ15) -> 59 | AR16: =SUM(AR9:AR15) -> 0 | AS16: =SUM(AS9:AS15) -> 86 | AU16: Total | BC16: Missing values excluded in above calculation
B17: BP categories at baseline* | C17: Male | D17: Female | E17: Total | F17: Total - diagnosed | G17: Male | H17: Female | I17: Total | J17: Total - diagnosed | K17: Male | L17: Female | M17: Total | N17: Total - diagnosed | O17: Male | P17: Female | Q17: Total | R17: Total - diagnosed | T17: %ge controlled - Year | AO17: * at first visit during the period Oct 2018-Dec 2018 | AU17: * at first visit during the period Oct 2018-Dec 2018
B18: <120 and <80 mmHg | C18: 69 | D18: 292 | O18: 39 | P18: 82 | Q18: 121 | T18: =IFERROR(Q18/R18,"NA") -> NA | AM18: =AS16/AM16 -> 3% | AS18: =AS16+AY16 -> 86
B19: 120-129 or 80-84 | C19: 206 | D19: 488 | O19: 188 | P19: 473 | Q19: 661 | T19: =IFERROR(Q19/R19,"NA") -> NA | AB19: Risk Profile | AK19: ` | AL19: `
B20: 130 - 139 or 85 - 89 | C20: 628 | D20: 1,201 | O20: 23 | P20: 58 | Q20: 81 | T20: NA
B21: 140 - 159 or 90 - 99 | C21: 1,189 | D21: 1,942 | O21: 62 | P21: 119 | Q21: 181 | T21: NA | AB21: =AB7 -> Ulaanbaatar | AC21: =AC7 -> Total of Patients Diagnosed with HTN (patients with at least one visit between Oct 2018-Dec 2018) | AI21: =AI7 -> Total of Patients Prescribed Medication Treatment (patients with at least one visit between Oct 2018-Dec 2018) | AO21: =AO7 -> Total Controlled BP Patients (patients who were prescribed medication treatment with at least 2 visits between Oct 2018-Dec 2018) | AU21: =AU7 -> Total Uncontrolled BP Patients (patients who were prescribed medication treatment with at least 2 visits between Oct 2018-Dec 2018)
B22: 160 - 179 or 100 - 109 | C22: 826 | D22: 1,103 | O22: 26 | P22: 52 | Q22: 78 | T22: NA | AC22: Cardiovascular risk | AD22: Male | AE22: Female | AF22: Not reported | AG22: Total | AI22: =AC22 -> Cardiovascular risk | AJ22: Male | AK22: Female | AL22: Not reported | AM22: Total | AO22: =AI22 -> Cardiovascular risk | AP22: Male | AQ22: Female | AR22: Not reported | AS22: Total | AU22: Cardiovascular risk | AV22: Male | AW22: Female | AX22: Not reported | AY22: Total
B23: ≥ 180 or ≥ 110 | C23: 292 | D23: 326 | O23: 10 | P23: 12 | Q23: 22 | T23: NA | AC23: Low | AD23: =(AD50/SUM($AD$50:$AE$53))*$AC$6 -> 312 | AE23: 633 | AG23: =AD23+AE23 -> 945 | AI23: Low | AJ23: =(AJ50/SUM($AJ$50:$AK$53))*$AI$6 -> 320 | AK23: 651 | AM23: =AJ23+AK23 -> 971 | AO23: Low | AP23: =(AP50/SUM($AP$50:$AQ$53))*$AO$6 -> 8 | AQ23: 22 | AS23: =AP23+AQ23 -> 30 | AU23: Low | AV23: =AV50 -> 0 | AW23: 0 | AY23: =AV23+AW23 -> 0
B24: MISSING DATA | T24: NA | AC24: Moderate | AD24: 290 | AE24: 456 | AG24: =AD24+AE24 -> 747 | AI24: Moderate | AJ24: 301 | AK24: 477 | AM24: =AJ24+AK24 -> 779 | AO24: Moderate | AP24: 7 | AQ24: 11 | AS24: =AP24+AQ24 -> 18 | AU24: Moderate | AV24: 0 | AW24: 0 | AY24: =AV24+AW24 -> 0
B25: Total | O25: =SUM(O18:O23) -> 348 | P25: =SUM(P18:P23) -> 796 | Q25: =SUM(Q18:Q23) -> 1,144 | R25: =SUM(R18:R23) -> 0 | T25: NA | AC25: High | AD25: 78 | AE25: 69 | AG25: =AD25+AE25 -> 146 | AI25: High | AJ25: 81 | AK25: 70 | AM25: =AJ25+AK25 -> 151 | AO25: High | AP25: 2 | AQ25: 2 | AS25: =AP25+AQ25 -> 4 | AU25: High | AV25: 0 | AW25: 0 | AY25: =AV25+AW25 -> 0
AC26: MISSING DATA | AD26: 399 | AE26: 671 | AG26: =AD26+AE26 -> 1069 | AI26: MISSING DATA | AJ26: 320 | AK26: 565 | AM26: =AJ26+AK26 -> 886 | AO26: MISSING DATA | AP26: 11 | AQ26: 23 | AS26: =AP26+AQ26 -> 34 | AU26: MISSING DATA | AV26: 0 | AW26: 0 | AY26: =AV26+AW26 -> 0
B27: CONTROL | AC27: Total | AD27: =SUM(AD23:AD26) -> 1079 | AE27: =SUM(AE23:AE26) -> 1828 | AG27: =AD27+AE27 -> 2907 | AI27: Total | AJ27: =SUM(AJ23:AJ26) -> 1022 | AK27: =SUM(AK23:AK26) -> 1764 | AM27: =AJ27+AK27 -> 2786 | AO27: Total | AP27: =SUM(AP23:AP26) -> 28 | AQ27: =SUM(AQ23:AQ26) -> 58 | AS27: =AP27+AQ27 -> 86 | AU27: Total | AV27: =SUM(AV23:AV26) -> 0 | AW27: =SUM(AW23:AW26) -> 0 | AY27: =AV27+AW27 -> 0
B28: 2019 | C28: Q1 | G28: Q2 | K28: Q3 | O28: Q4
B29: BP categories at baseline* | C29: Male | D29: Female | E29: Total | F29: Total - diagnosed | G29: Male | H29: Female | I29: Total | J29: Total - diagnosed | K29: Male | L29: Female | M29: Total | N29: Total - diagnosed | O29: Male | P29: Female | Q29: Total | R29: Total - diagnosed | T29: %ge controlled - Year
B30: <120 and <80 mmHg | C30: 24 | D30: 47 | E30: 71 | F30: 18 | G30: 19 | H30: 53 | I30: 72 | J30: 19 | K30: 25 | L30: 54 | M30: 79 | N30: 24 | O30: 31 | P30: 61 | Q30: 92 | R30: 26 | T30: =Q30/$R$37 -> 4.7%
B31: 120-129 or 80-84 | C31: 111 | D31: 265 | E31: 376 | F31: 145 | G31: 122 | H31: 306 | I31: 428 | J31: 161 | K31: 144 | L31: 364 | M31: 508 | N31: 166 | O31: 150 | P31: 392 | Q31: 542 | R31: 173 | T31: =Q31/$R$37 -> 27.8%
B32: 130 - 139 or 85 - 89 | C32: 12 | D32: 32 | E32: 44 | F32: 551 | G32: 22 | H32: 38 | I32: 60 | J32: 575 | K32: 20 | L32: 44 | M32: 64 | N32: 603 | O32: 16 | P32: 54 | Q32: 70 | R32: 612 | T32: 3.6% | AA32: Q3 2019 | AB32: Cumulative Total Patients Data by BP categories at Q3 2019
B33: 140 - 159 or 90 - 99 | C33: 0 | D33: 0 | E33: 0 | F33: 534 | G33: 0 | H33: 0 | I33: 0 | J33: 572 | K33: 0 | L33: 0 | M33: 0 | N33: 588 | O33: 0 | P33: 0 | Q33: 0 | R33: 605 | T33: 0.0%
B34: 160 - 179 or 100 - 109 | C34: 0 | D34: 0 | E34: 0 | F34: 367 | G34: 0 | H34: 0 | I34: 0 | J34: 396 | K34: 0 | L34: 0 | M34: 0 | N34: 400 | O34: 0 | P34: 0 | Q34: 0 | R34: 406 | T34: 0.0% | AB34: =AB21 -> Ulaanbaatar | AC34: Cumulative Total of Patients Diagnosed with HTN (patients with at least one VISIT during from February 2018– September 2019) | AI34: Cumulative Total of Patients Prescribed Medication Treatment (patients with at least one VISIT during from February 2018– September 2019) | AO34: Cumulative Total of Controlled BP (patients who were prescribed medication treatment with at least 2 visits between Oct 2018-Dec 2019) | AU34: Cumulative Total of Uncontrolled BP (patients who were prescribed medication treatment with at least 2 visits between Oct 2018-Dec 2019) | BC34: Patient % by BP Category:
B35: ≥ 180 or ≥ 110 | C35: 0 | D35: 0 | E35: 0 | F35: 125 | G35: 0 | H35: 0 | I35: 0 | J35: 127 | K35: 0 | L35: 0 | M35: 0 | N35: 129 | O35: 0 | P35: 0 | Q35: 0 | R35: 129 | T35: 0.0% | AC35: BP categories at baseline* | AD35: Male | AE35: Female | AF35: Not reported | AG35: Total | AI35: =AC35 -> BP categories at baseline* | AJ35: Male | AK35: Female | AL35: Not reported | AM35: Total | AO35: =AI35 -> BP categories at baseline* | AP35: Male | AQ35: Female | AR35: Not reported | AS35: Total | AU35: =AO35 -> BP categories at baseline* | AV35: Male | AW35: Female | AX35: Not reported | AY35: Total | BC35: =AA32 -> Q3 2019 | BD35: Treated | BE35: Controlled
B36: MISSING DATA | T36: 0.0% | AC36: <120 and <80 mmHg | AD36: 70 | AE36: 292 | AF36: 0 | AG36: 362 | AI36: <120 and <80 mmHg | AJ36: 64 | AK36: 271 | AL36: 0 | AM36: 335 | AO36: <120 and <80 mmHg | AP36: 15 | AQ36: 75 | AR36: 0 | AS36: 90 | AU36: <120 and <80 mmHg | BC36: =BC9 -> <120 and <80 mmHg | BD36: =AM36/SUM($AM$36:$AM$41) -> 4% | BE36: =AS36/SUM($AS$36:$AS$41) -> 6%
B37: Total | C37: =SUM(C30:C35) -> 147.00 | D37: =SUM(D30:D35) -> 344.00 | E37: 491.00 | F37: 1,740.00 | G37: 163.00 | H37: 397.00 | I37: 560.00 | J37: 1,850.00 | K37: 189.00 | L37: 462.00 | M37: 651.00 | N37: 1,910.00 | O37: 197 | P37: 507 | Q37: 704 | R37: 1,951 | S37: ='Raw Data - SP'!S37 -> Total control >> | T37: 36.1% | AC37: 120-129 or 80-84 | AD37: 205 | AE37: 496 | AF37: 3 | AG37: 704 | AI37: 120-129 or 80-84 | AJ37: 195 | AK37: 474 | AL37: 3 | AM37: 672 | AO37: 120-129 or 80-84 | AP37: 46 | AQ37: 124 | AR37: 0 | AS37: 170 | AU37: 120-129 or 80-84 | BC37: 120-129 or 80-84 | BD37: 8% | BE37: 12%
AC38: 130 - 139 or 85 - 89 | AD38: 780 | AE38: 1470 | AF38: 2 | AG38: 2252 | AI38: 130 - 139 or 85 - 89 | AJ38: 627 | AK38: 1243 | AL38: 1 | AM38: 1871 | AO38: 130 - 139 or 85 - 89 | AP38: 103 | AQ38: 227 | AR38: 1 | AS38: 331 | AU38: 130 - 139 or 85 - 89 | BC38: 130 - 139 or 85 - 89 | BD38: 21% | BE38: 23%
AC39: 140 - 159 or 90 - 99 | AD39: 1389 | AE39: 2240 | AF39: 3 | AG39: 3632 | AI39: 140 - 159 or 90 - 99 | AJ39: 1203 | AK39: 1978 | AL39: 3 | AM39: 3184 | AO39: 140 - 159 or 90 - 99 | AP39: 138 | AQ39: 295 | AR39: 0 | AS39: 433 | AU39: 140 - 159 or 90 - 99 | BC39: 140 - 159 or 90 - 99 | BD39: 36% | BE39: 30%
B40: 2020 | C40: Q1 | G40: Q2 | K40: Q3 | O40: Q4 | AC40: 160 - 179 or 100 - 109 | AD40: 917 | AE40: 1264 | AF40: 4 | AG40: 2185 | AI40: 160 - 179 or 100 - 109 | AJ40: 844 | AK40: 1166 | AL40: 4 | AM40: 2014 | AO40: 160 - 179 or 100 - 109 | AP40: 118 | AQ40: 209 | AR40: 1 | AS40: 328 | AU40: 160 - 179 or 100 - 109 | BC40: 160 - 179 or 100 - 109 | BD40: 23% | BE40: 22%
B41: BP categories at baseline* | C41: Male | D41: Female | E41: Total | F41: Total - diagnosed | G41: Male | H41: Female | I41: Total | J41: Total - diagnosed | K41: Male | L41: Female | M41: Total | N41: Total - diagnosed | O41: Male | P41: Female | Q41: Total | R41: Total - diagnosed | T41: %ge controlled - Year | AC41: ≥ 180 or ≥ 110 | AD41: 338 | AE41: 388 | AF41: 0 | AG41: 726 | AI41: ≥ 180 or ≥ 110 | AJ41: 314 | AK41: 366 | AL41: 0 | AM41: 680 | AO41: ≥ 180 or ≥ 110 | AP41: 44 | AQ41: 65 | AR41: 0 | AS41: 109 | AU41: ≥ 180 or ≥ 110 | BC41: ≥ 180 or ≥ 110 | BD41: 8% | BE41: 7%
B42: <120 and <80 mmHg | C42: 33 | D42: 65 | E42: 98 | F42: 26 | T42: =E42/$F$49 -> 5.0% | AC42: MISSING DATA | AD42: 448 | AE42: 879 | AF42: 1 | AG42: 1328 | AI42: MISSING DATA | AJ42: 445 | AK42: 873 | AL42: 1 | AM42: 1319 | AO42: MISSING DATA | AP42: 175 | AQ42: 349 | AR42: 1 | AS42: 525 | AU42: MISSING DATA
B43: 120-129 or 80-84 | C43: 148 | D43: 378 | E43: 526 | F43: 173 | T43: =E43/$F$49 -> 26.8% | AC43: Total | AD43: =SUM(AD36:AD42) -> 4147 | AE43: =SUM(AE36:AE42) -> 7029 | AF43: =SUM(AF36:AF42) -> 13 | AG43: =SUM(AG36:AG42) -> 11189 | AI43: Total | AJ43: =SUM(AJ36:AJ42) -> 3692 | AK43: =SUM(AK36:AK42) -> 6371 | AL43: =SUM(AL36:AL42) -> 12 | AM43: =SUM(AM36:AM42) -> 10075 | AO43: Total | AP43: =SUM(AP36:AP42) -> 639 | AQ43: =SUM(AQ36:AQ42) -> 1344 | AR43: =SUM(AR36:AR42) -> 3 | AS43: =SUM(AS36:AS42) -> 1986 | AU43: Total | BC43: Missing values excluded in above calculation
B44: 130 - 139 or 85 - 89 | C44: 19 | D44: 46 | E44: 65 | F44: 616 | T44: 3.3% | AB44: *First visit during February 2018 through September 2019); report as missing if BP not documented at first visit | AI44: *First visit during October 2018 through September 2019); report as missing if BP not documented at first visit | AO44: *First visit during CARDIO program (February 2018 through September 2019); report as missing if BP not documented at first visit Example: Of the 977 patients, X number of patients had BP between 140 - 159 or 90 – 99 at their first visit during CARDIO
B45: 140 - 159 or 90 - 99 | C45: 0 | D45: 0 | E45: 0 | F45: 609 | T45: 0.0%
B46: 160 - 179 or 100 - 109 | C46: 0 | D46: 0 | E46: 0 | F46: 409 | T46: 0.0% | AB46: Risk Profile
B47: ≥ 180 or ≥ 110 | C47: 0 | D47: 0 | E47: 0 | F47: 129 | T47: 0.0%
B48: MISSING DATA | T48: 0.0% | AB48: =AB34 -> Ulaanbaatar | AC48: =AC34 -> Cumulative Total of Patients Diagnosed with HTN (patients with at least one VISIT during from February 2018– September 2019) | AI48: =AI34 -> Cumulative Total of Patients Prescribed Medication Treatment (patients with at least one VISIT during from February 2018– September 2019) | AO48: =AO34 -> Cumulative Total of Controlled BP (patients who were prescribed medication treatment with at least 2 visits between Oct 2018-Dec 2019) | AU48: =AU34 -> Cumulative Total of Uncontrolled BP (patients who were prescribed medication treatment with at least 2 visits between Oct 2018-Dec 2019)
B49: Total | C49: =SUM(C42:C47) -> 200.00 | D49: =SUM(D42:D47) -> 489.00 | E49: 689.00 | F49: 1,962.00 | G49: 0 | H49: 0 | I49: 0 | J49: 0 | K49: 0 | L49: 0 | M49: 0 | N49: 0 | O49: 0 | P49: 0 | Q49: 0 | R49: 0 | S49: ='Raw Data - SP'!S49 -> Total control >> | T49: 35.1% | AC49: Cardiovascular risk | AD49: Male | AE49: Female | AF49: Not reported | AG49: Total | AI49: =AC49 -> Cardiovascular risk | AJ49: Male | AK49: Female | AL49: Not reported | AM49: Total | AO49: =AC49 -> Cardiovascular risk | AP49: Male | AQ49: Female | AR49: Not reported | AS49: Total | AU49: =AC49 -> Cardiovascular risk | AV49: Male | AW49: Female | AX49: Not reported | AY49: Total
AC50: Low | AD50: 1200 | AE50: 2432 | AF50: 4 | AG50: 3636 | AI50: Low | AJ50: 1156 | AK50: 2351 | AL50: 4 | AM50: 3511 | AO50: Low | AP50: 174 | AQ50: 515 | AR50: 1 | AS50: 690 | AU50: Low
B51: 2021 | C51: Q1 | G51: Q2 | K51: Q3 | O51: Q4 | AC51: Moderate | AD51: 1115 | AE51: 1755 | AF51: 4 | AG51: 2874 | AI51: Moderate | AJ51: 1088 | AK51: 1724 | AL51: 4 | AM51: 2816 | AO51: Moderate | AP51: 150 | AQ51: 256 | AR51: 0 | AS51: 406 | AU51: Moderate
B52: BP categories at baseline* | C52: Male | D52: Female | E52: Total | F52: Total - diagnosed | G52: Male | H52: Female | I52: Total | J52: Total - diagnosed | K52: Male | L52: Female | M52: Total | N52: Total - diagnosed | O52: Male | P52: Female | Q52: Total | R52: Total - diagnosed | AC52: High | AD52: 299 | AE52: 264 | AF52: 2 | AG52: 565 | AI52: High | AJ52: 291 | AK52: 254 | AL52: 2 | AM52: 547 | AO52: High | AP52: 53 | AQ52: 45 | AR52: 1 | AS52: 99 | AU52: High
B53: <120 and <80 mmHg | AC53: MISSING DATA | AD53: 1533 | AE53: 2,578 | AF53: 3 | AG53: 4,144 | AI53: MISSING DATA | AJ53: 1157 | AK53: 2,042 | AL53: 2 | AM53: 3,201 | AO53: MISSING DATA | AP53: 262 | AQ53: 528 | AR53: 1 | AS53: 791 | AU53: MISSING DATA
B54: 120-129 or 80-84 | AC54: Total | AD54: =SUM(AD50:AD53) -> 4147 | AE54: =SUM(AE50:AE53) -> 7029 | AF54: =SUM(AF50:AF53) -> 13 | AG54: =SUM(AG50:AG53) -> 11219 | AI54: Total | AJ54: =SUM(AJ50:AJ53) -> 3692 | AK54: =SUM(AK50:AK53) -> 6371 | AL54: =SUM(AL50:AL53) -> 12 | AM54: =SUM(AM50:AM53) -> 10075 | AO54: Total | AP54: =SUM(AP50:AP53) -> 639 | AQ54: =SUM(AQ50:AQ53) -> 1344 | AR54: =SUM(AR50:AR53) -> 3 | AS54: =SUM(AS50:AS53) -> 1986 | AU54: Total
B55: 130 - 139 or 85 - 89
B56: 140 - 159 or 90 - 99
B57: 160 - 179 or 100 - 109
B58: ≥ 180 or ≥ 110
B59: MISSING DATA | AA59: Q3 2020 | AB59: Total Patients Data by BP categories at Q3 2020
B60: Total | C60: =SUM(C53:C58) -> 0 | D60: =SUM(D53:D58) -> 0 | E60: 0 | G60: 0 | H60: 0 | I60: 0 | J60: 0 | K60: 0 | L60: 0 | M60: 0 | N60: 0 | O60: 0 | P60: 0 | Q60: 0 | R60: 0 | S60: ='Raw Data - SP'!S60 -> Total control >>
AB61: =AB48 -> Ulaanbaatar | AC61: Cumulative Total of Patients Diagnosed with HTN (patients with at least one visit between Oct 2018-Sept 2020) | AI61: Cumulative Total of Patients Prescribed Medication Treatment (patients with at least one visit between Oct 2018-Sept 2020) | AO61: Cumulative Total of Controlled BP (patients who were prescribed medication treatment with at least 2 visits between Oct 2018-Sept 2020) | AU61: Cumulative Total Uncontrolled BP Patients (patients who were prescribed medication treatment with at least 2 visits between Oct 2018-Sept 2020)
AC62: =AC35 -> BP categories at baseline* | AD62: Male | AE62: Female | AF62: Not reported | AG62: Total | AI62: =AC62 -> BP categories at baseline* | AJ62: Male | AK62: Female | AL62: Not reported | AM62: Total | AO62: =AI62 -> BP categories at baseline* | AP62: Male | AQ62: Female | AR62: Not reported | AS62: Total | AU62: =AO62 -> BP categories at baseline* | AV62: Male | AW62: Female | AX62: Not reported | AY62: Total
AC63: <120 and <80 mmHg | AI63: <120 and <80 mmHg | AO63: <120 and <80 mmHg | AU63: <120 and <80 mmHg
AC64: 120-129 or 80-84 | AI64: 120-129 or 80-84 | AO64: 120-129 or 80-84 | AU64: 120-129 or 80-84
AC65: 130 - 139 or 85 - 89 | AI65: 130 - 139 or 85 - 89 | AO65: 130 - 139 or 85 - 89 | AU65: 130 - 139 or 85 - 89
AC66: 140 - 159 or 90 - 99 | AI66: 140 - 159 or 90 - 99 | AO66: 140 - 159 or 90 - 99 | AU66: 140 - 159 or 90 - 99
AC67: 160 - 179 or 100 - 109 | AI67: 160 - 179 or 100 - 109 | AO67: 160 - 179 or 100 - 109 | AU67: 160 - 179 or 100 - 109
AC68: ≥ 180 or ≥ 110 | AI68: ≥ 180 or ≥ 110 | AO68: ≥ 180 or ≥ 110 | AU68: ≥ 180 or ≥ 110
AC69: MISSING DATA | AI69: MISSING DATA | AO69: MISSING DATA | AU69: MISSING DATA
AC70: Total | AI70: Total | AO70: Total | AU70: Total | BC70: Missing values excluded in above calculation
AB71: *at first visit during the period Oct 2018-Sept 2020 | AI71: *at first visit during the period Oct 2018-Sept 2020 | AO71: *at first visit during the period Oct 2018-Sept 2020 | AU71: *at first visit during the period Oct 2018-Sept 2020
AB73: Risk Profile
AB75: =AB61 -> Ulaanbaatar | AC75: =AC61 -> Cumulative Total of Patients Diagnosed with HTN (patients with at least one visit between Oct 2018-Sept 2020) | AI75: =AI61 -> Cumulative Total of Patients Prescribed Medication Treatment (patients with at least one visit between Oct 2018-Sept 2020) | AO75: =AO61 -> Cumulative Total of Controlled BP (patients who were prescribed medication treatment with at least 2 visits between Oct 2018-Sept 2020) | AU75: =AU61 -> Cumulative Total Uncontrolled BP Patients (patients who were prescribed medication treatment with at least 2 visits between Oct 2018-Sept 2020)
AC76: Cardiovascular risk | AD76: Male | AE76: Female | AF76: Not reported | AG76: Total | AI76: =AC76 -> Cardiovascular risk | AJ76: Male | AK76: Female | AL76: Not reported | AM76: Total | AO76: =AC76 -> Cardiovascular risk | AP76: Male | AQ76: Female | AR76: Not reported | AS76: Total | AU76: =AC76 -> Cardiovascular risk | AV76: Male | AW76: Female | AX76: Not reported | AY76: Total
AC77: Low | AI77: Low | AO77: Low | AU77: Low
AC78: Moderate | AI78: Moderate | AO78: Moderate | AU78: Moderate
AC79: High | AI79: High | AO79: High | AU79: High
AC80: MISSING DATA | AI80: MISSING DATA | AO80: MISSING DATA | AU80: MISSING DATA
AC81: Total | AI81: Total | AO81: Total | AU81: Total
AU86: =BE109 -> Ulaanbaatar: Cumulative Total of Patients Prescribed Medication Treatment (patients with at least one VISIT during from February 2018– September 2019)
AU87: =BD110 -> Age Classification | AV87: =BF110 -> Male | AW87: =BG110 -> Female | AX87: =BH110 -> Missing | AY87: =BI110 -> Total | BC87: Age Classification | BD87: Male | BE87: Female | BF87: Total | BG87: Age Mean | BH87: % of total
AU88: =BD111 -> 18-29 | AV88: =BF111 -> 43 | AW88: =BG111 -> 40 | AX88: =BH111 -> 0 | AY88: =BI111 -> 83 | BC88: 18–29 | BD88: =AV88 -> 43 | BE88: =AW88 -> 40 | BF88: =BD88+BE88 -> 83 | BG88: =AVERAGE(18,29) -> 24 | BH88: =BF88/SUM($BF$88:$BF$93) -> 1%
AC89: Measurement Period | AD89: Date missing/ | AE89: Q1 2018 | AF89: Q1 - Q2 2018 | AG89: Q1 - Q3 2018 | AH89: Q1 -Q4 2018 | AI89: Q1 2018 - Q1 2019 | AJ89: Q1 2018 - Q2 2019 | AK89: Q1 2018 - Q3 2019 | AU89: 30-44 | AV89: 341 | AW89: 459 | AX89: 0 | AY89: 800 | BC89: 30–44 | BD89: =AV89 -> 341 | BE89: 459 | BF89: 800 | BG89: =AVERAGE(30,44) -> 37 | BH89: 8%
AD90: unknown | AU90: 45-59 | AV90: 1237 | AW90: 2145 | AX90: 3 | AY90: 3385 | BC90: 45–59 | BD90: 1,237 | BE90: 2,145 | BF90: 3,382 | BG90: =AVERAGE(45,59) -> 52 | BH90: 34%
AC91: Total Diagnosed | AE91: 2907 | AF91: 4350 | AG91: x | AH91: 7403 | AI91: 9478 | AJ91: 10368 | AK91: 11189 | AU91: 60-69 | AV91: 1124 | AW91: 2153 | AX91: 2 | AY91: 3279 | BC91: 60–69 | BD91: 1,124 | BE91: 2,153 | BF91: 3,277 | BG91: =AVERAGE(60,69) -> 65 | BH91: 33%
AC92: Total Follow-Up (Among Diagnosed) | AE92: 712 | AF92: 1876 | AG92: X | AH92: 3049 | AI92: 4631 | AJ92: 5463 | AK92: 6121 | AU92: 70 -79 | AV92: 664 | AW92: 1133 | AX92: 3 | AY92: 1800 | BC92: 70–79 | BD92: 664 | BE92: 1,133 | BF92: 1,797 | BG92: =AVERAGE(70,79) -> 75 | BH92: 18%
AC93: Total Follow-Up with BP (Among Diagnosed) | AE93: 712 | AF93: 1876 | AG93: X | AH93: 2099 | AI93: 3559 | AJ93: 4461 | AK93: 5152 | AU93: 80 and above | AV93: 270 | AW93: 421 | AX93: 2 | AY93: 693 | BC93: ≥80 | BD93: 270 | BE93: 421 | BF93: 691 | BG93: =AVERAGE(80) -> 80 | BH93: 7%
AC94: Total Treated | AE94: 2786 | AF94: 4115 | AG94: X | AH94: 6618 | AI94: 8402 | AJ94: 9292 | AK94: 10075 | AU94: Total | AV94: =SUM(AV88:AV93) -> 3679 | AW94: =SUM(AW88:AW93) -> 6351 | AX94: =SUM(AX88:AX93) -> 10 | AY94: =SUM(AY88:AY93) -> 10040
AC95: Total Follow-Up (Among Treated) | AE95: 690 | AF95: 1786 | AG95: X | AH95: 2950 | AI95: 4516 | AJ95: 5351 | AK95: 6009
AC96: Total Follow-Up with BP (Among Treated) | AE96: 690 | AF96: 1786 | AG96: X | AH96: 2000 | AI96: 3446 | AJ96: 4351 | AK96: 5042 | BG96: Age | BH96: Male %
AC97: Total Controlled (Among Treated) | AE97: 86 | AF97: 240 | AG97: X | AH97: 1526 | AI97: 1681 | AJ97: 1865 | AK97: 1986 | BG97: =ROUND(SUMPRODUCT(BG88:BG93,BH88:BH93),0) -> 61.00 | BH97: =SUM(BD88:BD93)/SUM(BD88:BE93) -> 37%
AC98: Total Controlled (Among Diagnosed) | AE98: 86 | AF98: 244 | AG98: X | AH98: 1529 | AI98: 1686 | AJ98: 1870 | AK98: 1991
AC99: For this row, include each diagnosed patient in the quarter they came in for their first visit during the CARDIO period (regardless of when they were diagnosed with HTN)
AC100: Reminder of definition: Patients diagnosed, both prior or after the program start, with arterial hypertension ICD-10 (whole I10 category) or under hypertension drug treatment (see drugs below) with at least ONE VISIT in the measurement period
AC101: The only patients that should fall into the “date missing” category is those who have the date of their visit during CARDIO missing (we don’t need to know the date they were diagnosed, that is only relevant for the previous table on pages 5-6). Could you fix the numbers in this row?
AC102: Follow-up refers to having at least 2 visits
AC103: Ever treated
AC104: Regarding follow up visits with BP recorded, and control during each quarter, the question I have is: If a patient has more than one follow up visit during a quarter, do we look at the data available from the last visit that patient had within that quarter OR the last known follow up visit that had BP recorded in that quarter
AC105: 5/25/2021: Confirmed that other CARDIO cities looked at the last visit in the quarter (even if patient had multiple visits) to determine if the patient had a BP taken. If they did not have a BP taken at this visit then they do not fall into the “follow up w/ BP category.” Control is based off this last visit so all patients in the follow up w/ BP category are either controlled or uncontrolled. Therefore, you only need to do the calculations for follow up w/BP and control this calculations this way.
AC106: March 11 Notes
BE109: Ulaanbaatar: Cumulative Total of Patients Prescribed Medication Treatment (patients with at least one VISIT during from February 2018– September 2019)
BD110: Age Classification | BF110: Male | BG110: Female | BH110: Missing | BI110: Total
BD111: 18-29 | BF111: 43 | BG111: 40 | BH111: 0 | BI111: 83
AB112: Assuming initial baseline risk proportion similar to SP | BD112: 30-44 | BF112: 341 | BG112: 459 | BH112: 0 | BI112: 800
BD113: 45-59 | BF113: 1237 | BG113: 2145 | BH113: 3 | BI113: 3385
BD114: 60-69 | BF114: 1124 | BG114: 2153 | BH114: 2 | BI114: 3279
AB115: ='Raw Data - SP'!AB21 -> Sao Paulo | AC115: ='Raw Data - SP'!AC21:AG21 -> Total of Patients Diagnosed with HTN (patients with at least one visit between Oct 2018-Dec 2018) | AI115: ='Raw Data - SP'!AI21:AM21 -> Total of Patients Prescribed Medication Treatment (patients with at least one visit between Oct 2018-Dec 2018) | AO115: ='Raw Data - SP'!AO21:AS21 -> Total Controlled BP Patients (patients who were prescribed medication treatment with at least 2 visits between Oct 2018-Dec 2018) | AU115: ='Raw Data - SP'!AU21:AY21 -> Total Uncontrolled BP Patients (patients who were prescribed medication treatment with at least 2 visits between Oct 2018-Dec 2018) | BD115: 70 -79 | BF115: 664 | BG115: 1133 | BH115: 3 | BI115: 1800
AC116: ='Raw Data - SP'!AC22 -> Cardiovascular risk | AD116: ='Raw Data - SP'!AD22 -> Male | AE116: ='Raw Data - SP'!AE22 -> Female | AF116: ='Raw Data - SP'!AF22 -> Not reported | AG116: ='Raw Data - SP'!AG22 -> Total | AH116: ='Raw Data - SP'!AH22 -> 0 | AI116: ='Raw Data - SP'!AI22 -> Cardiovascular risk | AJ116: ='Raw Data - SP'!AJ22 -> Male | AK116: ='Raw Data - SP'!AK22 -> Female | AL116: ='Raw Data - SP'!AL22 -> Not reported | AM116: ='Raw Data - SP'!AM22 -> Total | AN116: ='Raw Data - SP'!AN22 -> 0 | AO116: ='Raw Data - SP'!AO22 -> Cardiovascular risk | AP116: ='Raw Data - SP'!AP22 -> Male | AQ116: ='Raw Data - SP'!AQ22 -> Female | AR116: ='Raw Data - SP'!AR22 -> Not reported | AS116: ='Raw Data - SP'!AS22 -> Total | AT116: ='Raw Data - SP'!AT22 -> 0 | AU116: ='Raw Data - SP'!AU22 -> Cardiovascular risk | AV116: ='Raw Data - SP'!AV22 -> Male | AW116: ='Raw Data - SP'!AW22 -> Female | AX116: ='Raw Data - SP'!AX22 -> Not reported | AY116: ='Raw Data - SP'!AY22 -> Total | BD116: 80 and above | BF116: 270 | BG116: 421 | BH116: 2 | BI116: 693
AC117: ='Raw Data - SP'!AC23 -> Low | AD117: ='Raw Data - SP'!AD23 -> 4 | AE117: ='Raw Data - SP'!AE23 -> 15 | AF117: ='Raw Data - SP'!AF23 -> 0 | AG117: ='Raw Data - SP'!AG23 -> 19 | AH117: ='Raw Data - SP'!AH23 -> 0 | AI117: ='Raw Data - SP'!AI23 -> Low | AJ117: ='Raw Data - SP'!AJ23 -> 4 | AK117: ='Raw Data - SP'!AK23 -> 13 | AL117: ='Raw Data - SP'!AL23 -> 0 | AM117: ='Raw Data - SP'!AM23 -> 17 | AN117: ='Raw Data - SP'!AN23 -> 0 | AO117: ='Raw Data - SP'!AO23 -> Low | AP117: ='Raw Data - SP'!AP23 -> 0 | AQ117: ='Raw Data - SP'!AQ23 -> 3 | AR117: ='Raw Data - SP'!AR23 -> 0 | AS117: ='Raw Data - SP'!AS23 -> 3 | AT117: ='Raw Data - SP'!AT23 -> 0 | AU117: ='Raw Data - SP'!AU23 -> Low | AV117: ='Raw Data - SP'!AV23 -> 3 | AW117: ='Raw Data - SP'!AW23 -> 0 | AX117: ='Raw Data - SP'!AX23 -> 0 | AY117: ='Raw Data - SP'!AY23 -> 3 | BD117: Missing | BF117: 13 | BG117: 20 | BH117: 2 | BI117: 35
AC118: ='Raw Data - SP'!AC24 -> Moderate | AD118: ='Raw Data - SP'!AD24 -> 3 | AE118: ='Raw Data - SP'!AE24 -> 21 | AF118: ='Raw Data - SP'!AF24 -> 1 | AG118: ='Raw Data - SP'!AG24 -> 25 | AH118: ='Raw Data - SP'!AH24 -> 0 | AI118: ='Raw Data - SP'!AI24 -> Moderate | AJ118: ='Raw Data - SP'!AJ24 -> 3 | AK118: ='Raw Data - SP'!AK24 -> 20 | AL118: ='Raw Data - SP'!AL24 -> 0 | AM118: ='Raw Data - SP'!AM24 -> 23 | AN118: ='Raw Data - SP'!AN24 -> 0 | AO118: ='Raw Data - SP'!AO24 -> Moderate | AP118: ='Raw Data - SP'!AP24 -> 0 | AQ118: ='Raw Data - SP'!AQ24 -> 5 | AR118: ='Raw Data - SP'!AR24 -> 0 | AS118: ='Raw Data - SP'!AS24 -> 5 | AT118: ='Raw Data - SP'!AT24 -> 0 | AU118: ='Raw Data - SP'!AU24 -> Moderate | AV118: ='Raw Data - SP'!AV24 -> 0 | AW118: ='Raw Data - SP'!AW24 -> 4 | AX118: ='Raw Data - SP'!AX24 -> 0 | AY118: ='Raw Data - SP'!AY24 -> 4 | BD118: Total | BF118: 3692 | BG118: 6371 | BH118: 12 | BI118: 10075
AC119: ='Raw Data - SP'!AC25 -> High | AD119: ='Raw Data - SP'!AD25 -> 28 | AE119: ='Raw Data - SP'!AE25 -> 66 | AF119: ='Raw Data - SP'!AF25 -> 0 | AG119: ='Raw Data - SP'!AG25 -> 94 | AH119: ='Raw Data - SP'!AH25 -> 0 | AI119: ='Raw Data - SP'!AI25 -> High | AJ119: ='Raw Data - SP'!AJ25 -> 24 | AK119: ='Raw Data - SP'!AK25 -> 59 | AL119: ='Raw Data - SP'!AL25 -> 0 | AM119: ='Raw Data - SP'!AM25 -> 83 | AN119: ='Raw Data - SP'!AN25 -> 0 | AO119: ='Raw Data - SP'!AO25 -> High | AP119: ='Raw Data - SP'!AP25 -> 2 | AQ119: ='Raw Data - SP'!AQ25 -> 6 | AR119: ='Raw Data - SP'!AR25 -> 0 | AS119: ='Raw Data - SP'!AS25 -> 8 | AT119: ='Raw Data - SP'!AT25 -> 0 | AU119: ='Raw Data - SP'!AU25 -> High | AV119: ='Raw Data - SP'!AV25 -> 4 | AW119: ='Raw Data - SP'!AW25 -> 10 | AX119: ='Raw Data - SP'!AX25 -> 0 | AY119: ='Raw Data - SP'!AY25 -> 14
AC120: ='Raw Data - SP'!AC26 -> MISSING DATA | AD120: ='Raw Data - SP'!AD26 -> 225 | AE120: ='Raw Data - SP'!AE26 -> 638 | AF120: ='Raw Data - SP'!AF26 -> 25 | AG120: ='Raw Data - SP'!AG26 -> 888 | AH120: ='Raw Data - SP'!AH26 -> 0 | AI120: ='Raw Data - SP'!AI26 -> MISSING DATA | AJ120: ='Raw Data - SP'!AJ26 -> 192 | AK120: ='Raw Data - SP'!AK26 -> 544 | AL120: ='Raw Data - SP'!AL26 -> 21 | AM120: ='Raw Data - SP'!AM26 -> 757 | AN120: ='Raw Data - SP'!AN26 -> 0 | AO120: ='Raw Data - SP'!AO26 -> MISSING DATA | AP120: ='Raw Data - SP'!AP26 -> 33 | AQ120: ='Raw Data - SP'!AQ26 -> 56 | AR120: ='Raw Data - SP'!AR26 -> 3 | AS120: ='Raw Data - SP'!AS26 -> 92 | AT120: ='Raw Data - SP'!AT26 -> 0 | AU120: ='Raw Data - SP'!AU26 -> MISSING DATA | AV120: ='Raw Data - SP'!AV26 -> 18 | AW120: ='Raw Data - SP'!AW26 -> 41 | AX120: ='Raw Data - SP'!AX26 -> 2 | AY120: ='Raw Data - SP'!AY26 -> 61
AC121: ='Raw Data - SP'!AC27 -> Total | AD121: ='Raw Data - SP'!AD27 -> 260 | AE121: ='Raw Data - SP'!AE27 -> 740 | AF121: ='Raw Data - SP'!AF27 -> 26 | AG121: ='Raw Data - SP'!AG27 -> 1026 | AH121: ='Raw Data - SP'!AH27 -> 0 | AI121: ='Raw Data - SP'!AI27 -> Total | AJ121: ='Raw Data - SP'!AJ27 -> 223 | AK121: ='Raw Data - SP'!AK27 -> 636 | AL121: ='Raw Data - SP'!AL27 -> 21 | AM121: ='Raw Data - SP'!AM27 -> 880 | AN121: ='Raw Data - SP'!AN27 -> 0 | AO121: ='Raw Data - SP'!AO27 -> Total | AP121: ='Raw Data - SP'!AP27 -> 35 | AQ121: ='Raw Data - SP'!AQ27 -> 70 | AR121: ='Raw Data - SP'!AR27 -> 3 | AS121: ='Raw Data - SP'!AS27 -> 108 | AT121: ='Raw Data - SP'!AT27 -> 0 | AU121: ='Raw Data - SP'!AU27 -> Total | AV121: ='Raw Data - SP'!AV27 -> 25 | AW121: ='Raw Data - SP'!AW27 -> 55 | AX121: ='Raw Data - SP'!AX27 -> 2 | AY121: ='Raw Data - SP'!AY27 -> 82
AD122: =AD121/(AD121+AE121) -> 0.26

Sheet OLD_RefResults (hidden)
A1: Results Comments
A4: Q1 | B4: What is the % change in control rate in the cohort after 2 years? ---> The X% change in BP control is X.
D6: Refer the table below:
E7: Control Patients as % of total population | G7: Controlled patients (%) post CARDIO
E8: Without CARDIO | F8: With CARDIO | G8: Relative increase - as % of no CARDIO | H8: Abs. increase - as % of no CARDIO
D9: Sao Paulo | E9: =Results!D6 -> 12.08% | F9: =Results!C6 -> 30.44% | G9: =F9/E9-1 -> 152% | H9: =F9-E9 -> 18.36%
D10: Dakar | E10: =Results!F6 -> 13.23% | F10: =Results!E6 -> 19.23% | G10: =F10/E10-1 -> 45% | H10: =F10-E10 -> 6.00%
D11: Ulaanbaatar | E11: =Results!H6 -> 3.04% | F11: =Results!G6 -> 19.23% | G11: =F11/E11-1 -> 532% | H11: =F11-E11 -> 16.19%
A13: Q2 | B13: Which patients (in which category) were the most susceptible to reach control after CARDIO? --> e.g. In our cohort, X% patients from X BP category came under control
D14: Refer the table below:
D15: Population distribution by BP category
D17: BP Category | E17: Without CARDIO | F17: With CARDIO
C18: Sao Paulo | E18: BP Category | F18: Remain Uncontrolled | G18: Controlled after end of CARDIO | H18: CARDIO Controlled (%) and Deaths avoided
D19: <120 and <80 mmHg | E19: =Trace_SoC_SP!M12 -> 145 | F19: =HLOOKUP($D19,Trace_CARDIO_SP!$F$8:$K$12,5,0) -> 0 | G19: =HLOOKUP($D19,Trace_CARDIO_SP!$M$8:$R$12,5,0) -> 145 | H19: =G19/E19 -> 100%
D20: 120-129 or 80-84 | E20: =Trace_SoC_SP!N12 -> 336 | F20: =HLOOKUP($D20,Trace_CARDIO_SP!$F$8:$K$12,5,0) -> 0 | G20: =HLOOKUP($D20,Trace_CARDIO_SP!$M$8:$R$12,5,0) -> 336 | H20: =G20/E20 -> 100%
D21: 130 - 139 or 85 - 89 | E21: =Trace_SoC_SP!O12 -> 225 | F21: =HLOOKUP($D21,Trace_CARDIO_SP!$F$8:$K$12,5,0) -> 0 | G21: =HLOOKUP($D21,Trace_CARDIO_SP!$M$8:$R$12,5,0) -> 225 | H21: 100%
D22: 140 - 159 or 90 - 99 | E22: =Trace_SoC_SP!I12 -> 2,404 | F22: =HLOOKUP($D22,Trace_CARDIO_SP!$F$8:$K$12,5,0) -> 1885 | G22: =HLOOKUP($D22,Trace_CARDIO_SP!$M$8:$R$12,5,0) -> 519 | H22: 22%
D23: 160 - 179 or 100 - 109 | E23: =Trace_SoC_SP!J12 -> 1,912 | F23: =HLOOKUP($D23,Trace_CARDIO_SP!$F$8:$K$12,5,0) -> 1499 | G23: =HLOOKUP($D23,Trace_CARDIO_SP!$M$8:$R$12,5,0) -> 413 | H23: 22%
D24: ≥ 180 or ≥ 110 | E24: =Trace_SoC_SP!K12 -> 655 | F24: =HLOOKUP($D24,Trace_CARDIO_SP!$F$8:$K$12,5,0) -> 513 | G24: =HLOOKUP($D24,Trace_CARDIO_SP!$M$8:$R$12,5,0) -> 141 | H24: 22%
A25: Death-Uncontrolled | D25: Death | E25: =Trace_SoC_SP!L12+Trace_SoC_SP!S12 -> 167 | F25: =Trace_CARDIO_SP!L12 -> 122 | G25: =Trace_CARDIO_SP!S11 -> 45 | H25: -
D26: Total | E26: =SUM(E19:E25) -> 5,844 | F26: =SUM(F19:F25) -> 4,020 | G26: =SUM(G19:G25) -> 1,824 | H26: 31%
E27: =E26=population_SP -> TRUE | F27: =F26+G26=E26 -> TRUE
C28: Dakar | D28: <120 and <80 mmHg | E28: =Trace_SoC_Dakar!M12 -> 93 | F28: =HLOOKUP($D28,Trace_CARDIO_Dakar!$F$8:$K$12,5,0) -> 0 | G28: =HLOOKUP($D28,Trace_CARDIO_Dakar!$M$8:$R$12,5,0) -> 93 | H28: =G28/E28 -> 100%
D29: 120-129 or 80-84 | E29: =Trace_SoC_Dakar!N12 -> 199 | F29: =HLOOKUP($D29,Trace_CARDIO_Dakar!$F$8:$K$12,5,0) -> 0 | G29: =HLOOKUP($D29,Trace_CARDIO_Dakar!$M$8:$R$12,5,0) -> 199 | H29: 100%
D30: 130 - 139 or 85 - 89 | E30: =Trace_SoC_Dakar!O12 -> 401 | F30: =HLOOKUP($D30,Trace_CARDIO_Dakar!$F$8:$K$12,5,0) -> 0 | G30: =HLOOKUP($D30,Trace_CARDIO_Dakar!$M$8:$R$12,5,0) -> 401 | H30: 100%
D31: 140 - 159 or 90 - 99 | E31: =Trace_SoC_Dakar!I12 -> 2,030 | F31: =HLOOKUP($D31,Trace_CARDIO_Dakar!$F$8:$K$12,5,0) -> 1888 | G31: =HLOOKUP($D31,Trace_CARDIO_Dakar!$M$8:$R$12,5,0) -> 142 | H31: 7%
D32: 160 - 179 or 100 - 109 | E32: =Trace_SoC_Dakar!J12 -> 1,405 | F32: =HLOOKUP($D32,Trace_CARDIO_Dakar!$F$8:$K$12,5,0) -> 1307 | G32: =HLOOKUP($D32,Trace_CARDIO_Dakar!$M$8:$R$12,5,0) -> 99 | H32: 7%
D33: ≥ 180 or ≥ 110 | E33: =Trace_SoC_Dakar!K12 -> 1,043 | F33: =HLOOKUP($D33,Trace_CARDIO_Dakar!$F$8:$K$12,5,0) -> 970 | G33: =HLOOKUP($D33,Trace_CARDIO_Dakar!$M$8:$R$12,5,0) -> 73 | H33: 7%
D34: Death | E34: =Trace_SoC_Dakar!L12+Trace_SoC_Dakar!S12 -> 65 | F34: =Trace_CARDIO_Dakar!L12 -> 56 | G34: =Trace_CARDIO_Dakar!S12 -> 9 | H34: -
D35: Total | E35: =SUM(E28:E34) -> 5,236 | F35: =SUM(F28:F34) -> 4,220 | G35: =SUM(G28:G34) -> 1,016 | H35: =G35/E35 -> 19%
E36: =E35=population_Dakar -> TRUE | F36: =F35+G35=E35 -> TRUE
C37: Ulaanbaatar | D37: <120 and <80 mmHg | E37: =Trace_SoC_UB!M12 -> 102 | F37: =HLOOKUP($D37,Trace_CARDIO_UB!$F$8:$K$12,5,0) -> 0 | G37: =HLOOKUP($D37,Trace_CARDIO_UB!$M$8:$R$12,5,0) -> 102 | H37: =G37/E37 -> 100%
D38: 120-129 or 80-84 | E38: =Trace_SoC_UB!N12 -> 205 | F38: =HLOOKUP($D38,Trace_CARDIO_UB!$F$8:$K$12,5,0) -> 0 | G38: =HLOOKUP($D38,Trace_CARDIO_UB!$M$8:$R$12,5,0) -> 205 | H38: 100%
D39: 130 - 139 or 85 - 89 | E39: =Trace_SoC_UB!H12 -> 2,295 | F39: =HLOOKUP($D39,Trace_CARDIO_UB!$F$8:$K$12,5,0) -> 1902 | G39: =HLOOKUP($D39,Trace_CARDIO_UB!$M$8:$R$12,5,0) -> 394 | H39: 17%
D40: 140 - 159 or 90 - 99 | E40: =Trace_SoC_UB!I12 -> 3,906 | F40: =HLOOKUP($D40,Trace_CARDIO_UB!$F$8:$K$12,5,0) -> 3236 | G40: =HLOOKUP($D40,Trace_CARDIO_UB!$M$8:$R$12,5,0) -> 670 | H40: 17%
D41: 160 - 179 or 100 - 109 | E41: =Trace_SoC_UB!J12 -> 2,471 | F41: =HLOOKUP($D41,Trace_CARDIO_UB!$F$8:$K$12,5,0) -> 2047 | G41: =HLOOKUP($D41,Trace_CARDIO_UB!$M$8:$R$12,5,0) -> 424 | H41: 17%
D42: ≥ 180 or ≥ 110 | E42: =Trace_SoC_UB!K12 -> 834 | F42: =HLOOKUP($D42,Trace_CARDIO_UB!$F$8:$K$12,5,0) -> 691 | G42: =HLOOKUP($D42,Trace_CARDIO_UB!$M$8:$R$12,5,0) -> 143 | H42: 17%
B43: What’s the likelihood of being controlled with CARDIO? --> e.g. Individuals are twice as likely to be controlled if enrolled in CARDIO | D43: Death | E43: =Trace_SoC_UB!L12+Trace_SoC_UB!S12 -> 262 | F43: =Trace_CARDIO_UB!L12 -> 214 | G43: =Trace_CARDIO_UB!S12 -> 48 | H43: -
D44: Total | E44: =SUM(E37:E43) -> 10,075 | F44: =SUM(F37:F43) -> 8,089 | G44: =SUM(G37:G43) -> 1,986 | H44: =G44/E44 -> 20%
E45: =E44=population_UB -> TRUE | F45: =F44+G44=E44 -> TRUE
A46: Q3 | D46: What’s the likelihood of being controlled with CARDIO? --> e.g. Individuals are twice as likely to be controlled if enrolled in CARDIO
D47: SP > | E47: =ROUND(F9/E9,1)&" times likely to controlled if enrolled in CARDIO" -> 2.5 times likely to controlled if enrolled in CARDIO
D48: DK > | E48: =ROUND(F10/E10,1)&" times likely to controlled if enrolled in CARDIO" -> 1.5 times likely to controlled if enrolled in CARDIO
D49: UB > | E49: =ROUND(F11/E11,1)&" times likely to controlled if enrolled in CARDIO" -> 6.3 times likely to controlled if enrolled in CARDIO
A51: Q4 | B51: What’s the annual change in the risk of developing a CHD event? --> The risk of CHD events is reduced by 5% for CARDIO patients
F53: ='Model Specification_Old_input'!H59 -> Sao Paulo | G53: ='Model Specification_Old_input'!I59 -> Dakar | H53: ='Model Specification_Old_input'!J59 -> UlaanBaatar
D54: Relative risk of developing CHD evets reduced by | F54: =-('Model Specification_Old_input'!H60/'Model Specification_Old_input'!D60-1) -> 3.2% | G54: =-('Model Specification_Old_input'!I60/'Model Specification_Old_input'!E60-1) -> 1.1% | H54: =-('Model Specification_Old_input'!J60/'Model Specification_Old_input'!F60-1) -> 1.0%
A58: Q5 | B58: How many CHD/stroke events have we averted in 2 years --> The number of CHD and stroke events was reduced by 20%
E60: Number of CHD events | H60: Number of Stroke events
E61: Without CARDIO | F61: With CARDIO | G61: Change as % of no CARDIO | H61: Without CARDIO | I61: With CARDIO
D62: Sao Paulo | E62: =Results!D12 -> 158 | F62: =Results!C12 -> 139 | G62: =F62/E62-1 -> -12% | H62: =Results!D13 -> 47 | I62: =Results!C13 -> 41.00 | J62: =I62/H62-1 -> -13%
D63: Dakar | E63: =Results!F12 -> 101 | F63: =Results!E12 -> 98 | G63: =F63/E63-1 -> -3% | H63: =Results!F13 -> 30 | I63: =Results!E13 -> 29.00 | J63: =I63/H63-1 -> -3%
D64: Ulaanbaatar | E64: =Results!H12 -> 175 | F64: =Results!G12 -> 157 | G64: -6% | H64: =Results!H13 -> 52 | I64: =Results!G13 -> 47.00 | J64: =I64/H64-1 -> -10%
F66: =F53 -> Sao Paulo | G66: =G53 -> Dakar | H66: =H53 -> UlaanBaatar
D67: % expected CHD events reduced | F67: =-G62 -> 12.0% | G67: =-G63 -> 3.0% | H67: =-G64 -> 6.2%
D68: % expected Stroke events reduced | F68: =-J62 -> 12.8% | G68: =-J63 -> 3.3% | H68: =-J64 -> 9.6%
A70: Q6 | B70: How much money did we save from averting CHD events? --> Over the 2 years, savings related to averted CHD events reached XXX. Projected to 10 years, this is XXX. This represents hospital costs related to the event and the cost of living with HTN.
D72: At end of programme 2 Year
D73: Cost saved due to CHD events averted
E75: Sao Paulo | F75: Dakar | G75: Ulaanbaatar
D76: CHD (in USD) | E76: =Results!C24 -> $(29,248.88) | F76: =Results!E24 -> $(3,621.53) | G76: =Results!G24 -> $(4,944.45)
D77: Stroke (in USD) | E77: =Results!C25 -> $(38,493.43) | F77: =Results!E25 -> $(5,072.05) | G77: =Results!G25 -> $(6,133.10)
D80: Projected Phase 10 year
D81: Discounted Cost saved due to CHD events averted
E82: Sao Paulo | F82: Dakar | G82: Ulaanbaatar
D83: CHD (in USD) | E83: =Results!E112 -> $(99,390.95) | F83: =Results!E61 -> $(24,715.40) | G83: =Results!E86 -> $(8,097.33)
D84: Stroke (in USD) | E84: =Results!E113 -> $(145,489.85) | F84: =Results!E62 -> $(35,243.63) | G84: =Results!E87 -> $(12,301.51)
A87: Q7 | B87: How many QALYs are gained and how does that evolve over time? ---> Total QALY gains is XX and increases over time, representing an X% increase over X years.
D89: Refer sheet tab: Result_QALY Gain
A92: Q8 | B92: How many events did we avert per 100 patients? --> X events averted per 100 patients
D93: Events averted per 100 patients
D95: At end of CARDIO (2 Years): | E95: Sao Paulo | F95: Dakar | G95: Ulaanbaatar | I95: Projection Phase | J95: Sao Paulo | K95: Dakar | L95: Ulaanbaatar
D96: CHD events averted | E96: =(Results!C31/population_SP)*100 -> 0.33 | F96: =(Results!E31/population_Dakar)*100 -> 0.06 | G96: =(Results!G31/population_UB)*100 -> 0.18 | I96: CHD events averted | J96: =Results!D112/10 -> 1.39 | K96: =Results!D61/10 -> 0.48 | L96: =Results!D86/10 -> 0.33
D97: Stroke events averted | E97: =(Results!C32/population_SP)*100 -> 0.10 | F97: =(Results!E32/population_Dakar)*100 -> 0.02 | G97: =(Results!G32/population_UB)*100 -> 0.05 | I97: Stroke events averted | J97: =Results!D113/10 -> 0.53 | K97: =Results!D62/10 -> 0.19 | L97: =Results!D87/10 -> 0.14
D98: Death | E98: 0.00 | F98: 0.00 | G98: 0.00 | I98: Death | J98: =Results!D114/10 -> 3.15 | K98: =Results!D63/10 -> 0.65 | L98: =Results!D88/10 -> 2.52
A100: Q10 | B100: Comparison
B102: · Analysis of the start cohort and end cohort – for each city
B114: · Which city was found most cost-effective – why? / least cost-effective – why? Refer the result summary
D116: Refer ICER table below
E118: =Results!C127 -> Incremental Cost | F118: =Results!D127 -> Incremental QALY | G118: ICER | H118: Threshold range | I118: Cost Effective
D119: =Results!B128 -> Sao Paulo | E119: =Results!C128 -> $448,249 | F119: =Results!D128 -> $572 | G119: =Results!F128 -> 784.22 | H119: $3,210-$10,122 / QALY | I119: Yes
D120: =Results!B129 -> Dakar | E120: =Results!C129 -> $375,541 | F120: =Results!D129 -> $121 | G120: =Results!F129 -> 3,091.48 | H120: $73-$1,166 / QALY | I120: No
D121: =Results!B130 -> Ulaanbaatar | E121: =Results!C130 -> $661,313 | F121: =Results!D130 -> $884 | G121: =Results!F130 -> 747.73 | H121: $1,624-$4,849 / QALY | I121: Yes
B123: Do we observe any significant difference between male/female in the results? Across cities?
D126: Projected phase events averted
D127: Events | E127: SP | F127: Dakar | G127: UB
D128: CHD | E128: =Results!C112 -> 81 | F128: =Results!C61 -> 25 | G128: =Results!C86 -> 33
D129: Stroke | E129: =Results!C113 -> 31 | F129: =Results!C62 -> 10 | G129: =Results!C87 -> 14
D130: Death | E130: =Results!C114 -> 184 | F130: =Results!C63 -> 34 | G130: =Results!C88 -> 254
G162: First quarter of CARDIO (Baseline) | I162: Last quarter of CARDIO
E163: Ulaanbaatar (37% male)
F164: CVD risk | G164: - Male | H164: Female | I164: Male | J164: Female
F165: low | G165: ='Raw Data - UB'!BI10 -> 320 | H165: ='Raw Data - UB'!BJ10 -> 651 | I165: ='Raw Data - UB'!BK10 -> 1156 | J165: ='Raw Data - UB'!BL10 -> 2351 | N165: ='Raw Data - UB'!BK10 -> 1156 | O165: ='Raw Data - UB'!BL10 -> 2351
F166: medium | G166: ='Raw Data - UB'!BI11 -> 301 | H166: ='Raw Data - UB'!BJ11 -> 477 | I166: ='Raw Data - UB'!BK11 -> 1088 | J166: ='Raw Data - UB'!BL11 -> 1724 | N166: ='Raw Data - UB'!BK11 -> 1088 | O166: ='Raw Data - UB'!BL11 -> 1724
F167: high | G167: ='Raw Data - UB'!BI12 -> 81 | H167: ='Raw Data - UB'!BJ12 -> 70 | I167: ='Raw Data - UB'!BK12 -> 291 | J167: ='Raw Data - UB'!BL12 -> 254 | N167: ='Raw Data - UB'!BK12 -> 291 | O167: ='Raw Data - UB'!BL12 -> 254
E168: Dakar (22% male)
F169: CVD risk | G169: - Male | H169: Female | I169: Male | J169: Female
F170: low | G170: ='Raw Data - DK'!BI11 -> 90 | H170: ='Raw Data - DK'!BJ11 -> 466 | I170: ='Raw Data - DK'!BK11 -> 197 | J170: ='Raw Data - DK'!BL11 -> 811 | L170: 90 | M170: 466 | N170: 197 | O170: 811
F171: medium | G171: ='Raw Data - DK'!BI12 -> 162 | H171: ='Raw Data - DK'!BJ12 -> 666 | I171: ='Raw Data - DK'!BK12 -> 316 | J171: ='Raw Data - DK'!BL12 -> 1121 | L171: 162 | M171: 666 | N171: 316 | O171: 1121
F172: high | G172: ='Raw Data - DK'!BI13 -> 276 | H172: ='Raw Data - DK'!BJ13 -> 1055 | I172: ='Raw Data - DK'!BK13 -> 514 | J172: ='Raw Data - DK'!BL13 -> 1775 | L172: 276 | M172: 1055 | N172: 514 | O172: 1775
E173: São Paulo (27% male)
F174: CVD risk | G174: - Male | H174: Female | I174: Male | J174: Female
F175: low | G175: ='Raw Data - SP'!BI10 -> 4 | H175: ='Raw Data - SP'!BJ10 -> 13 | I175: ='Raw Data - SP'!BK10 -> 11 | J175: ='Raw Data - SP'!BL10 -> 21
F176: medium | G176: ='Raw Data - SP'!BI11 -> 3 | H176: ='Raw Data - SP'!BJ11 -> 20 | I176: ='Raw Data - SP'!BK11 -> 11 | J176: ='Raw Data - SP'!BL11 -> 30
F177: high | G177: ='Raw Data - SP'!BI12 -> 24 | H177: ='Raw Data - SP'!BJ12 -> 59 | I177: ='Raw Data - SP'!BK12 -> 40 | J177: ='Raw Data - SP'!BL12 -> 90
E179: Note: Assumption: In UB city, first quarter risk score were distrubted among risk profile using last quarter riks profile as proxy and futher assuming that change in risk from first to last quaerter is similar to Dakar city

Sheet Results_Events_ averted
D3: Reduction in Events
B4: ='Result_Sensitivity Results'!E2 -> Sao Paulo
Y5: Alternate view
Y7: SP | AG7: SP | AN7: SP | DE7: Reduction in Events
DF8: SP | DO8: ='Result_Sensitivity Results'!F2 -> Dakar | DX8: ='Result_Sensitivity Results'!G2 -> UlaanBaatar
DF9: CHD | DG9: Stroke | DH9: Death | DJ9: Cumulative Reduction in CHD events | DK9: Cumulative Reduction in Stroke events | DL9: Cumulative Reduction in Death events | DM9: YOY Deaths | DO9: CHD | DP9: Stroke | DQ9: Death | DS9: Cumulative Reduction in CHD events | DT9: Cumulative Reduction in Stroke events | DU9: Cumulative Reduction in Death events | DV9: YOY Deaths | DX9: CHD | DY9: Stroke | DZ9: Death | EB9: Cumulative Reduction in CHD events | EC9: Cumulative Reduction in Stroke events | ED9: Cumulative Reduction in Death events | EE9: YOY Deaths
DF10: =-(Trace_CARDIO_SP!AJ17-Trace_SoC_SP!AJ17) -> 11 | DG10: =-(Trace_CARDIO_SP!AK17-Trace_SoC_SP!AK17) -> 4 | DH10: =-(Trace_CARDIO_SP!AL17-Trace_SoC_SP!AL17) -> 17 | DI10: Year1 | DJ10: =DF10 -> 11 | DK10: =DG10 -> 4 | DL10: =DH10 -> 17 | DM10: =DH10 -> 17 | DO10: =-(Trace_CARDIO_Dakar!AJ17-Trace_SoC_Dakar!AJ17) -> 3 | DP10: =-(Trace_CARDIO_Dakar!AK17-Trace_SoC_Dakar!AK17) -> 1 | DQ10: =-(Trace_CARDIO_Dakar!AL17-Trace_SoC_Dakar!AL17) -> 3 | DR10: Year1 | DS10: =DO10 -> 3 | DT10: =DP10 -> 1 | DU10: =DQ10 -> 3 | DV10: =DQ10 -> 3 | DX10: =-(Trace_CARDIO_UB!AJ17-Trace_SoC_UB!AJ17) -> 5 | DY10: =-(Trace_CARDIO_UB!AK17-Trace_SoC_UB!AK17) -> 2 | DZ10: =-(Trace_CARDIO_UB!AL17-Trace_SoC_UB!AL17) -> 21 | EA10: Year1 | EB10: =DX10 -> 5 | EC10: =DY10 -> 2 | ED10: =DZ10 -> 21 | EE10: =DZ10 -> 21
DF11: =-(Trace_CARDIO_SP!AJ18-Trace_SoC_SP!AJ18) -> 11 | DG11: =-(Trace_CARDIO_SP!AK18-Trace_SoC_SP!AK18) -> 4 | DH11: =-(Trace_CARDIO_SP!AL18-Trace_SoC_SP!AL18) -> 35 | DI11: Year2 | DJ11: =DJ10+DF11 -> 22 | DK11: =DK10+DG11 -> 8 | DL11: =DH11 -> 35 | DM11: =DH11-DH10 -> 18 | DO11: =-(Trace_CARDIO_Dakar!AJ18-Trace_SoC_Dakar!AJ18) -> 3 | DP11: =-(Trace_CARDIO_Dakar!AK18-Trace_SoC_Dakar!AK18) -> 1 | DQ11: =-(Trace_CARDIO_Dakar!AL18-Trace_SoC_Dakar!AL18) -> 6 | DR11: Year2 | DS11: =DS10+DO11 -> 6 | DT11: =DT10+DP11 -> 2 | DU11: =DQ11 -> 6 | DV11: =DQ11-DQ10 -> 3 | DX11: =-(Trace_CARDIO_UB!AJ18-Trace_SoC_UB!AJ18) -> 5 | DY11: =-(Trace_CARDIO_UB!AK18-Trace_SoC_UB!AK18) -> 2 | DZ11: =-(Trace_CARDIO_UB!AL18-Trace_SoC_UB!AL18) -> 48 | EA11: Year2 | EB11: =EB10+DX11 -> 10 | EC11: =EC10+DY11 -> 4 | ED11: =DZ11 -> 48 | EE11: =DZ11-DZ10 -> 27
DF12: =-(Trace_CARDIO_SP!AJ19-Trace_SoC_SP!AJ19) -> 10 | DG12: =-(Trace_CARDIO_SP!AK19-Trace_SoC_SP!AK19) -> 4 | DH12: =-(Trace_CARDIO_SP!AL19-Trace_SoC_SP!AL19) -> 53 | DI12: Year3 | DJ12: =DJ11+DF12 -> 32 | DK12: 12 | DL12: 53 | DM12: 18 | DO12: =-(Trace_CARDIO_Dakar!AJ19-Trace_SoC_Dakar!AJ19) -> 3 | DP12: =-(Trace_CARDIO_Dakar!AK19-Trace_SoC_Dakar!AK19) -> 1 | DQ12: =-(Trace_CARDIO_Dakar!AL19-Trace_SoC_Dakar!AL19) -> 9 | DR12: Year3 | DS12: =DS11+DO12 -> 9 | DT12: 3 | DU12: 9 | DV12: 3 | DX12: =-(Trace_CARDIO_UB!AJ19-Trace_SoC_UB!AJ19) -> 4 | DY12: =-(Trace_CARDIO_UB!AK19-Trace_SoC_UB!AK19) -> 2 | DZ12: =-(Trace_CARDIO_UB!AL19-Trace_SoC_UB!AL19) -> 73 | EA12: Year3 | EB12: =EB11+DX12 -> 14 | EC12: 5 | ED12: 73 | EE12: 26
DF13: =-(Trace_CARDIO_SP!AJ20-Trace_SoC_SP!AJ20) -> 9 | DG13: =-(Trace_CARDIO_SP!AK20-Trace_SoC_SP!AK20) -> 4 | DH13: =-(Trace_CARDIO_SP!AL20-Trace_SoC_SP!AL20) -> 71 | DI13: Year4 | DJ13: 42 | DK13: 15 | DL13: 71 | DM13: 18 | DO13: =-(Trace_CARDIO_Dakar!AJ20-Trace_SoC_Dakar!AJ20) -> 3 | DP13: =-(Trace_CARDIO_Dakar!AK20-Trace_SoC_Dakar!AK20) -> 1 | DQ13: =-(Trace_CARDIO_Dakar!AL20-Trace_SoC_Dakar!AL20) -> 12 | DR13: Year4 | DS13: 12 | DT13: 4 | DU13: 12 | DV13: 3 | DX13: =-(Trace_CARDIO_UB!AJ20-Trace_SoC_UB!AJ20) -> 4 | DY13: =-(Trace_CARDIO_UB!AK20-Trace_SoC_UB!AK20) -> 2 | DZ13: =-(Trace_CARDIO_UB!AL20-Trace_SoC_UB!AL20) -> 98 | EA13: Year4 | EB13: 18 | EC13: 7 | ED13: 98 | EE13: 24
DF14: =-(Trace_CARDIO_SP!AJ21-Trace_SoC_SP!AJ21) -> 9 | DG14: =-(Trace_CARDIO_SP!AK21-Trace_SoC_SP!AK21) -> 3 | DH14: =-(Trace_CARDIO_SP!AL21-Trace_SoC_SP!AL21) -> 90 | DI14: Year5 | DJ14: 50 | DK14: 19 | DL14: 90 | DM14: 19 | DO14: =-(Trace_CARDIO_Dakar!AJ21-Trace_SoC_Dakar!AJ21) -> 3 | DP14: =-(Trace_CARDIO_Dakar!AK21-Trace_SoC_Dakar!AK21) -> 1 | DQ14: =-(Trace_CARDIO_Dakar!AL21-Trace_SoC_Dakar!AL21) -> 15 | DR14: Year5 | DS14: 14 | DT14: 5 | DU14: 15 | DV14: 3 | DX14: =-(Trace_CARDIO_UB!AJ21-Trace_SoC_UB!AJ21) -> 4 | DY14: =-(Trace_CARDIO_UB!AK21-Trace_SoC_UB!AK21) -> 1 | DZ14: =-(Trace_CARDIO_UB!AL21-Trace_SoC_UB!AL21) -> 120 | EA14: Year5 | EB14: 22 | EC14: 8 | ED14: 120 | EE14: 23
DF15: =-(Trace_CARDIO_SP!AJ22-Trace_SoC_SP!AJ22) -> 8 | DG15: =-(Trace_CARDIO_SP!AK22-Trace_SoC_SP!AK22) -> 3 | DH15: =-(Trace_CARDIO_SP!AL22-Trace_SoC_SP!AL22) -> 109 | DI15: Year6 | DJ15: 58 | DK15: 22 | DL15: 109 | DM15: 19 | DO15: =-(Trace_CARDIO_Dakar!AJ22-Trace_SoC_Dakar!AJ22) -> 3 | DP15: =-(Trace_CARDIO_Dakar!AK22-Trace_SoC_Dakar!AK22) -> 1 | DQ15: =-(Trace_CARDIO_Dakar!AL22-Trace_SoC_Dakar!AL22) -> 19 | DR15: Year6 | DS15: 17 | DT15: 6 | DU15: 19 | DV15: 4 | DX15: =-(Trace_CARDIO_UB!AJ22-Trace_SoC_UB!AJ22) -> 3 | DY15: =-(Trace_CARDIO_UB!AK22-Trace_SoC_UB!AK22) -> 1 | DZ15: =-(Trace_CARDIO_UB!AL22-Trace_SoC_UB!AL22) -> 142 | EA15: Year6 | EB15: 25 | EC15: 10 | ED15: 142 | EE15: 21
DF16: =-(Trace_CARDIO_SP!AJ23-Trace_SoC_SP!AJ23) -> 7 | DG16: =-(Trace_CARDIO_SP!AK23-Trace_SoC_SP!AK23) -> 3 | DH16: =-(Trace_CARDIO_SP!AL23-Trace_SoC_SP!AL23) -> 128 | DI16: Year7 | DJ16: 65 | DK16: 24 | DL16: 128 | DM16: 19 | DO16: =-(Trace_CARDIO_Dakar!AJ23-Trace_SoC_Dakar!AJ23) -> 2 | DP16: =-(Trace_CARDIO_Dakar!AK23-Trace_SoC_Dakar!AK23) -> 1 | DQ16: =-(Trace_CARDIO_Dakar!AL23-Trace_SoC_Dakar!AL23) -> 23 | DR16: Year7 | DS16: 19 | DT16: 7 | DU16: 23 | DV16: 4 | DX16: =-(Trace_CARDIO_UB!AJ23-Trace_SoC_UB!AJ23) -> 3 | DY16: =-(Trace_CARDIO_UB!AK23-Trace_SoC_UB!AK23) -> 1 | DZ16: =-(Trace_CARDIO_UB!AL23-Trace_SoC_UB!AL23) -> 174 | EA16: Year7 | EB16: 28 | EC16: 11 | ED16: 174 | EE16: 32
DF17: =-(Trace_CARDIO_SP!AJ24-Trace_SoC_SP!AJ24) -> 6 | DG17: =-(Trace_CARDIO_SP!AK24-Trace_SoC_SP!AK24) -> 2 | DH17: =-(Trace_CARDIO_SP!AL24-Trace_SoC_SP!AL24) -> 147 | DI17: Year8 | DJ17: 72 | DK17: 27 | DL17: 147 | DM17: 19 | DO17: =-(Trace_CARDIO_Dakar!AJ24-Trace_SoC_Dakar!AJ24) -> 2 | DP17: =-(Trace_CARDIO_Dakar!AK24-Trace_SoC_Dakar!AK24) -> 1 | DQ17: =-(Trace_CARDIO_Dakar!AL24-Trace_SoC_Dakar!AL24) -> 27 | DR17: Year8 | DS17: 22 | DT17: 8 | DU17: 27 | DV17: 4 | DX17: =-(Trace_CARDIO_UB!AJ24-Trace_SoC_UB!AJ24) -> 2 | DY17: =-(Trace_CARDIO_UB!AK24-Trace_SoC_UB!AK24) -> 1 | DZ17: =-(Trace_CARDIO_UB!AL24-Trace_SoC_UB!AL24) -> 204 | EA17: Year8 | EB17: 30 | EC17: 12 | ED17: 204 | EE17: 29
B18: ='Result_Sensitivity Results'!F2 -> Dakar | DF18: =-(Trace_CARDIO_SP!AJ25-Trace_SoC_SP!AJ25) -> 5 | DG18: =-(Trace_CARDIO_SP!AK25-Trace_SoC_SP!AK25) -> 2 | DH18: =-(Trace_CARDIO_SP!AL25-Trace_SoC_SP!AL25) -> 166 | DI18: Year9 | DJ18: 77 | DK18: 29 | DL18: 166 | DM18: 19 | DO18: =-(Trace_CARDIO_Dakar!AJ25-Trace_SoC_Dakar!AJ25) -> 2 | DP18: =-(Trace_CARDIO_Dakar!AK25-Trace_SoC_Dakar!AK25) -> 1 | DQ18: =-(Trace_CARDIO_Dakar!AL25-Trace_SoC_Dakar!AL25) -> 31 | DR18: Year9 | DS18: 24 | DT18: 9 | DU18: 31 | DV18: 4 | DX18: =-(Trace_CARDIO_UB!AJ25-Trace_SoC_UB!AJ25) -> 2 | DY18: =-(Trace_CARDIO_UB!AK25-Trace_SoC_UB!AK25) -> 1 | DZ18: =-(Trace_CARDIO_UB!AL25-Trace_SoC_UB!AL25) -> 230 | EA18: Year9 | EB18: 32 | EC18: 13 | ED18: 230 | EE18: 26
DF19: =-(Trace_CARDIO_SP!AJ26-Trace_SoC_SP!AJ26) -> 5 | DG19: =-(Trace_CARDIO_SP!AK26-Trace_SoC_SP!AK26) -> 2 | DH19: =-(Trace_CARDIO_SP!AL26-Trace_SoC_SP!AL26) -> 184 | DI19: Year10 | DJ19: 82 | DK19: 31 | DL19: 184 | DM19: 18 | DO19: =-(Trace_CARDIO_Dakar!AJ26-Trace_SoC_Dakar!AJ26) -> 2 | DP19: =-(Trace_CARDIO_Dakar!AK26-Trace_SoC_Dakar!AK26) -> 1 | DQ19: =-(Trace_CARDIO_Dakar!AL26-Trace_SoC_Dakar!AL26) -> 34 | DR19: Year10 | DS19: 26 | DT19: 10 | DU19: 34 | DV19: 3 | DX19: =-(Trace_CARDIO_UB!AJ26-Trace_SoC_UB!AJ26) -> 1 | DY19: =-(Trace_CARDIO_UB!AK26-Trace_SoC_UB!AK26) -> 1 | DZ19: =-(Trace_CARDIO_UB!AL26-Trace_SoC_UB!AL26) -> 254 | EA19: Year10 | EB19: 34 | EC19: 13 | ED19: 254 | EE19: 24
DF20: =SUM(DF10:DF19) -> 82 | DG20: =SUM(DG10:DG19) -> 31 | DH20: =SUM(DH10:DH19) -> 999 | DI20: Total | DM20: =SUM(DM10:DM19) -> 184 | DO20: =SUM(DO10:DO19) -> 26 | DP20: =SUM(DP10:DP19) -> 10 | DQ20: =SUM(DQ10:DQ19) -> 181 | DR20: Total | DV20: =SUM(DV10:DV19) -> 34 | DX20: =SUM(DX10:DX19) -> 34 | DY20: =SUM(DY10:DY19) -> 13 | EE20: =SUM(EE10:EE19) -> 254
DE24: Time | DF24: BHBH | DG24: No CARDIO
DE25: Year1 | DF25: =(Trace_CARDIO_SP!AJ17) -> 114.44 | DG25: =Trace_SoC_SP!AJ17 -> 125.91
DE26: Year2 | DF26: =(Trace_CARDIO_SP!AJ18) -> 110.86 | DG26: =Trace_SoC_SP!AJ18 -> 121.67
Y27: DK | AF27: DK | AN27: DK | DE27: Year3 | DF27: =(Trace_CARDIO_SP!AJ19) -> 107.10 | DG27: =Trace_SoC_SP!AJ19 -> 117.21
DE28: Year4 | DF28: =(Trace_CARDIO_SP!AJ20) -> 103.15 | DG28: =Trace_SoC_SP!AJ20 -> 112.53
DE29: Year5 | DF29: =(Trace_CARDIO_SP!AJ21) -> 99.00 | DG29: =Trace_SoC_SP!AJ21 -> 107.63
DE30: Year6 | DF30: =(Trace_CARDIO_SP!AJ22) -> 94.65 | DG30: =Trace_SoC_SP!AJ22 -> 102.49
DE31: Year7 | DF31: =(Trace_CARDIO_SP!AJ23) -> 90.11 | DG31: =Trace_SoC_SP!AJ23 -> 97.15
B32: ='Result_Sensitivity Results'!G2 -> UlaanBaatar | DE32: Year8 | DF32: =(Trace_CARDIO_SP!AJ24) -> 85.40 | DG32: =Trace_SoC_SP!AJ24 -> 91.63
DE33: Year9 | DF33: =(Trace_CARDIO_SP!AJ25) -> 80.53 | DG33: =Trace_SoC_SP!AJ25 -> 85.94
DE34: Year10 | DF34: =(Trace_CARDIO_SP!AJ26) -> 75.52 | DG34: =Trace_SoC_SP!AJ26 -> 80.11

Sheet Result_QALY Gain
D3: Projection Phase- Cumulative QALY Gain per Treated. Patients | AM3: Chart Data
AM5: Total / Per person | AN5: 1
AM9: Sao Paulo | AN9: CumulativeWith CARDIO | AO9: CumulativeW/O CARDIO | AP9: Jump | AQ9: With CARDIO | AR9: W/O CARDIO | AU9: Dakar | AV9: CumulativeWith CARDIO | AW9: CumulativeW/O CARDIO | AX9: Jump | AY9: With CARDIO | AZ9: W/O CARDIO | BB9: UlaanBaatar | BC9: CumulativeWith CARDIO | BD9: CumulativeW/O CARDIO | BE9: Jump | BF9: With CARDIO | BG9: W/O CARDIO
AM10: Year1 | AN10: =AQ10 -> 0.737 | AO10: =AR10 -> 0.734 | AP10: =AN10-AO10 -> 0.002 | AQ10: =Trace_CARDIO_SP!BM17/(IF(Check=0,1,population_SP)) -> 0.737 | AR10: =Trace_SoC_SP!BM17/(IF(Check=0,1,population_SP)) -> 0.734 | AU10: Year1 | AV10: =AY10 -> 0.771 | AW10: =AZ10 -> 0.770 | AX10: =AV10-AW10 -> 0.001 | AY10: =Trace_CARDIO_Dakar!BM17/(IF(Check=0,1,population_Dakar)) -> 0.771 | AZ10: =Trace_SoC_Dakar!BM17/(IF(Check=0,1,population_Dakar)) -> 0.770 | BB10: Year1 | BC10: =BF10 -> 0.757 | BD10: =BG10 -> 0.755 | BE10: =BC10-BD10 -> 0.002 | BF10: =Trace_CARDIO_UB!BM17/(IF(Check=0,1,population_UB)) -> 0.757 | BG10: =Trace_SoC_UB!BM17/(IF(Check=0,1,population_UB)) -> 0.755
AM11: Year2 | AN11: =AN10+AQ11 -> 1.417 | AO11: 1.410 | AP11: =AN11-AO11 -> 0.007 | AQ11: =Trace_CARDIO_SP!BM18/(IF(Check=0,1,population_SP)) -> 0.680 | AR11: =Trace_SoC_SP!BM18/(IF(Check=0,1,population_SP)) -> 0.676 | AU11: Year2 | AV11: =AV10+AY11 -> 1.504 | AW11: =AW10+AZ11 -> 1.503 | AX11: =AV11-AW11 -> 0.001 | AY11: =Trace_CARDIO_Dakar!BM18/(IF(Check=0,1,population_Dakar)) -> 0.734 | AZ11: =Trace_SoC_Dakar!BM18/(IF(Check=0,1,population_Dakar)) -> 0.733 | BB11: Year2 | BC11: =BC10+BF11 -> 1.467 | BD11: =BD10+BG11 -> 1.462 | BE11: =BC11-BD11 -> 0.005 | BF11: =Trace_CARDIO_UB!BM18/(IF(Check=0,1,population_UB)) -> 0.711 | BG11: =Trace_SoC_UB!BM18/(IF(Check=0,1,population_UB)) -> 0.707
AM12: Year3 | AN12: 2.043 | AO12: 2.030 | AP12: 0.013 | AQ12: =Trace_CARDIO_SP!BM19/(IF(Check=0,1,population_SP)) -> 0.626 | AR12: =Trace_SoC_SP!BM19/(IF(Check=0,1,population_SP)) -> 0.620 | AU12: Year3 | AV12: 2.203 | AW12: 2.200 | AX12: 0.003 | AY12: =Trace_CARDIO_Dakar!BM19/(IF(Check=0,1,population_Dakar)) -> 0.699 | AZ12: =Trace_SoC_Dakar!BM19/(IF(Check=0,1,population_Dakar)) -> 0.697 | BB12: Year3 | BC12: 2.134 | BD12: 2.124 | BE12: 0.011 | BF12: =Trace_CARDIO_UB!BM19/(IF(Check=0,1,population_UB)) -> 0.667 | BG12: =Trace_SoC_UB!BM19/(IF(Check=0,1,population_UB)) -> 0.662
AM13: Year4 | AN13: 2.619 | AO13: 2.597 | AP13: 0.021 | AQ13: =Trace_CARDIO_SP!BM20/(IF(Check=0,1,population_SP)) -> 0.575 | AR13: =Trace_SoC_SP!BM20/(IF(Check=0,1,population_SP)) -> 0.567 | AU13: Year4 | AV13: 2.869 | AW13: 2.864 | AX13: 0.005 | AY13: =Trace_CARDIO_Dakar!BM20/(IF(Check=0,1,population_Dakar)) -> 0.665 | AZ13: =Trace_SoC_Dakar!BM20/(IF(Check=0,1,population_Dakar)) -> 0.664 | BB13: Year4 | BC13: 2.761 | BD13: 2.744 | BE13: 0.018 | BF13: =Trace_CARDIO_UB!BM20/(IF(Check=0,1,population_UB)) -> 0.627 | BG13: =Trace_SoC_UB!BM20/(IF(Check=0,1,population_UB)) -> 0.620
AM14: Year5 | AN14: 3.145 | AO14: 3.114 | AP14: 0.031 | AQ14: =Trace_CARDIO_SP!BM21/(IF(Check=0,1,population_SP)) -> 0.526 | AR14: =Trace_SoC_SP!BM21/(IF(Check=0,1,population_SP)) -> 0.516 | AU14: Year5 | AV14: 3.502 | AW14: 3.496 | AX14: 0.007 | AY14: =Trace_CARDIO_Dakar!BM21/(IF(Check=0,1,population_Dakar)) -> 0.634 | AZ14: =Trace_SoC_Dakar!BM21/(IF(Check=0,1,population_Dakar)) -> 0.632 | BB14: Year5 | BC14: 3.350 | BD14: 3.324 | BE14: 0.026 | BF14: =Trace_CARDIO_UB!BM21/(IF(Check=0,1,population_UB)) -> 0.589 | BG14: =Trace_SoC_UB!BM21/(IF(Check=0,1,population_UB)) -> 0.580
AM15: Year6 | AN15: 3.625 | AO15: 3.582 | AP15: 0.043 | AQ15: =Trace_CARDIO_SP!BM22/(IF(Check=0,1,population_SP)) -> 0.480 | AR15: =Trace_SoC_SP!BM22/(IF(Check=0,1,population_SP)) -> 0.468 | AU15: Year6 | AV15: 4.099 | AW15: 4.090 | AX15: 0.009 | AY15: =Trace_CARDIO_Dakar!BM22/(IF(Check=0,1,population_Dakar)) -> 0.596 | AZ15: =Trace_SoC_Dakar!BM22/(IF(Check=0,1,population_Dakar)) -> 0.594 | BB15: Year6 | BC15: 3.904 | BD15: 3.868 | BE15: 0.036 | BF15: =Trace_CARDIO_UB!BM22/(IF(Check=0,1,population_UB)) -> 0.553 | BG15: =Trace_SoC_UB!BM22/(IF(Check=0,1,population_UB)) -> 0.544
AM16: Year7 | AN16: 4.040 | AO16: 3.985 | AP16: 0.055 | AQ16: =Trace_CARDIO_SP!BM23/(IF(Check=0,1,population_SP)) -> 0.415 | AR16: =Trace_SoC_SP!BM23/(IF(Check=0,1,population_SP)) -> 0.403 | AU16: Year7 | AV16: 4.660 | AW16: 4.648 | AX16: 0.012 | AY16: =Trace_CARDIO_Dakar!BM23/(IF(Check=0,1,population_Dakar)) -> 0.561 | AZ16: =Trace_SoC_Dakar!BM23/(IF(Check=0,1,population_Dakar)) -> 0.558 | BB16: Year7 | BC16: 4.388 | BD16: 4.341 | BE16: 0.047 | BF16: =Trace_CARDIO_UB!BM23/(IF(Check=0,1,population_UB)) -> 0.485 | BG16: =Trace_SoC_UB!BM23/(IF(Check=0,1,population_UB)) -> 0.474
AM17: Year8 | AN17: 4.415 | AO17: 4.346 | AP17: 0.068 | AQ17: =Trace_CARDIO_SP!BM24/(IF(Check=0,1,population_SP)) -> 0.375 | AR17: =Trace_SoC_SP!BM24/(IF(Check=0,1,population_SP)) -> 0.362 | AU17: Year8 | AV17: 5.189 | AW17: 5.173 | AX17: 0.015 | AY17: =Trace_CARDIO_Dakar!BM24/(IF(Check=0,1,population_Dakar)) -> 0.528 | AZ17: =Trace_SoC_Dakar!BM24/(IF(Check=0,1,population_Dakar)) -> 0.525 | BB17: Year8 | BC17: 4.835 | BD17: 4.775 | BE17: 0.059 | BF17: =Trace_CARDIO_UB!BM24/(IF(Check=0,1,population_UB)) -> 0.446 | BG17: =Trace_SoC_UB!BM24/(IF(Check=0,1,population_UB)) -> 0.434
AM18: Year9 | AN18: 4.752 | AO18: 4.669 | AP18: 0.083 | AQ18: =Trace_CARDIO_SP!BM25/(IF(Check=0,1,population_SP)) -> 0.337 | AR18: =Trace_SoC_SP!BM25/(IF(Check=0,1,population_SP)) -> 0.323 | AU18: Year9 | AV18: 5.686 | AW18: 5.667 | AX18: 0.019 | AY18: =Trace_CARDIO_Dakar!BM25/(IF(Check=0,1,population_Dakar)) -> 0.497 | AZ18: =Trace_SoC_Dakar!BM25/(IF(Check=0,1,population_Dakar)) -> 0.494 | BB18: Year9 | BC18: 5.246 | BD18: 5.173 | BE18: 0.073 | BF18: =Trace_CARDIO_UB!BM25/(IF(Check=0,1,population_UB)) -> 0.411 | BG18: =Trace_SoC_UB!BM25/(IF(Check=0,1,population_UB)) -> 0.397
AM19: Year10 | AN19: 5.054 | AO19: 4.956 | AP19: 0.098 | AQ19: =Trace_CARDIO_SP!BM26/(IF(Check=0,1,population_SP)) -> 0.302 | AR19: =Trace_SoC_SP!BM26/(IF(Check=0,1,population_SP)) -> 0.287 | AU19: Year10 | AV19: 6.154 | AW19: 6.131 | AX19: 0.023 | AY19: =Trace_CARDIO_Dakar!BM26/(IF(Check=0,1,population_Dakar)) -> 0.468 | AZ19: =Trace_SoC_Dakar!BM26/(IF(Check=0,1,population_Dakar)) -> 0.464 | BB19: Year10 | BC19: 5.624 | BD19: 5.536 | BE19: 0.088 | BF19: =Trace_CARDIO_UB!BM26/(IF(Check=0,1,population_UB)) -> 0.378 | BG19: =Trace_SoC_UB!BM26/(IF(Check=0,1,population_UB)) -> 0.364
AM20: Year11 | AN20: 4.154 | AO20: 3.879 | AP20: 0.275 | AQ20: 0.149 | AR20: 0.118 | AU20: Year11 | AV20: 5.287 | AW20: 5.125 | AX20: 0.163 | AY20: 0.247 | AZ20: 0.224 | BB20: Year11 | BC20: 4.530 | BD20: 4.264 | BE20: 0.266 | BF20: 0.180 | BG20: 0.147
AM21: Year12 | AN21: 4.277 | AO21: 3.973 | AP21: 0.305 | AQ21: 0.123 | AR21: 0.093 | AU21: Year12 | AV21: 5.501 | AW21: 5.315 | AX21: 0.186 | AY21: 0.214 | AZ21: 0.190 | BB21: Year12 | BC21: 4.680 | BD21: 4.381 | BE21: 0.299 | BF21: 0.150 | BG21: 0.117
AM22: Year13 | AN22: 4.378 | AO22: 4.045 | AP22: 0.333 | AQ22: 0.101 | AR22: 0.073 | AU22: Year13 | AV22: 5.687 | AW22: 5.477 | AX22: 0.210 | AY22: 0.186 | AZ22: 0.162 | BB22: Year13 | BC22: 4.805 | BD22: 4.474 | BE22: 0.332 | BF22: 0.125 | BG22: 0.093
AM23: Year14 | AN23: 4.460 | AO23: 4.102 | AP23: 0.359 | AQ23: 0.082 | AR23: 0.056 | AU23: Year14 | AV23: 5.848 | AW23: 5.614 | AX23: 0.234 | AY23: 0.161 | AZ23: 0.137 | BB23: Year14 | BC23: 4.911 | BD23: 4.548 | BE23: 0.363 | BF23: 0.105 | BG23: 0.074
AM24: Year15 | AN24: 4.527 | AO24: 4.145 | AP24: 0.383 | AQ24: 0.067 | AR24: 0.043 | AU24: Year15 | AV24: 5.978 | AW24: 5.721 | AX24: 0.257 | AY24: 0.130 | AZ24: 0.107 | BB24: Year15 | BC24: 5.000 | BD24: 4.607 | BE24: 0.392 | BF24: 0.089 | BG24: 0.059
D26: ='Result_Sensitivity Results'!E2 -> Sao Paulo | K26: ='Result_Sensitivity Results'!F2 -> Dakar | Q26: ='Result_Sensitivity Results'!G2 -> UlaanBaatar
E27: Year 1 | F27: Year 10 | L27: Year 1 | M27: Year 10 | R27: Year 1 | S27: Year 10
D28: % QALY gain | E28: =Trace_CARDIO_SP!BN17-1 -> 0.3% | F28: =Trace_CARDIO_SP!BN64-1 -> 2.0% | K28: % QALY gain | L28: =Trace_CARDIO_Dakar!BN17-1 -> 0.1% | M28: =Trace_CARDIO_Dakar!BN64-1 -> 0.4% | Q28: % QALY gain | R28: =Trace_CARDIO_UB!BN17-1 -> 0.22% | S28: =Trace_CARDIO_UB!BN64-1 -> 1.59%
D30: Change in QALY | E30: =F28-E28 -> 1.7% | K30: Change in QALY | L30: =M28-L28 -> 0.3% | Q30: Change in QALY | R30: =S28-R28 -> 1.4%

Sheet Result_Sensitivity Results
E2: ='Model Sensitivity control'!D6 -> Sao Paulo | F2: ='Model Sensitivity control'!E6 -> Dakar | G2: ='Model Sensitivity control'!F6 -> UlaanBaatar
D3: Set parameter deviation factor >> | E3: 10% | F3: 10% | G3: 10%
C5: One Way Sensitivity - Outcome | I5: Select City >> | AC5: Ulaanbaatar | AD5: Dakar | AE5: Sao Paulo
AC6: ='Manuscript data'!E35 -> Ulaanbaatar | AD6: ='Manuscript data'!F35 -> Dakar | AE6: ='Manuscript data'!G35 -> São Paulo
AC7: ='Manuscript data'!E48 -> $1,624-$4,849 / QALY | AD7: ='Manuscript data'!F48 -> $73-$1,166 / QALY | AE7: ='Manuscript data'!G48 -> $3,210-$10,122 / QALY
AB13: Graph Data
AB15: Parameter | AC15: 3
AC16: ="Net Budget Impact (CHD) - "&INDEX(City_list,City_sele,1) -> Net Budget Impact (CHD) - Ulaanbaatar | AD16: =IF(City_sele=1,AD33,IF(City_sele=2,AD47,AD62)) -> 658,827 | AH16: ="Net Budget Impact (Stroke) - "&INDEX(City_list,City_sele,1) -> Net Budget Impact (Stroke) - Ulaanbaatar | AI16: =IF(City_sele=1,AI33,IF(City_sele=2,AI47,AI62)) -> 657,639 | AM16: ="ICER - "&INDEX(City_list,City_sele,1) -> ICER - Ulaanbaatar | AN16: =IF(City_sele=1,AN33,IF(City_sele=2,AN47,AN62)) -> 748
AB17: Rank | AC17: Parameter | AD17: Budget Impact (CHD) - Lower Parameter Value | AE17: Budget Impact (CHD) - Upper Parameter Value | AG17: Rank | AH17: Parameter | AI17: Budget Impact (Stroke) - Lower Parameter Value | AJ17: Budget Impact (Stroke) - Upper Parameter Value | AL17: Rank | AM17: Parameter | AN17: ICER - Lower Parameter Value | AO17: ICER - Upper Parameter Value | AS17: Sao Paulo
AB18: 1 | AC18: =IF(City_sele=1,AC36,IF(City_sele=1,AC50,AC65)) -> Programme Direct costs | AD18: =IF(City_sele=1,AD36,IF(City_sele=2,AD50,AD65)) -> 592,450 | AE18: 725,204 | AG18: 1 | AH18: =IF(City_sele=1,AH36,IF(City_sele=1,AH50,AH65)) -> Programme Direct costs | AI18: =IF(City_sele=1,AI36,IF(City_sele=2,AI50,AI65)) -> 592,450 | AJ18: 724,016 | AL18: 1 | AM18: =IF(City_sele=1,AM36,IF(City_sele=1,AM50,AM65)) -> Mean age | AN18: =IF(City_sele=1,AN36,IF(City_sele=2,AN50,AN65)) -> 1,018 | AO18: 530 | AS18: Dakar
AB19: 2 | AC19: =IF(City_sele=1,AC37,IF(City_sele=1,AC51,AC66)) -> Cost Hypertension - uncontrolled | AD19: 664,406 | AE19: 653,248 | AG19: 2 | AH19: =IF(City_sele=1,AH37,IF(City_sele=1,AH51,AH66)) -> Cost Hypertension - uncontrolled | AI19: 664,406 | AJ19: 652,060 | AL19: 2 | AM19: =IF(City_sele=1,AM37,IF(City_sele=1,AM51,AM66)) -> Mortality multiplierHTN - Uncontrolled | AN19: 864 | AO19: 662 | AS19: Ulaanbaatar
AB20: 3 | AC20: =IF(City_sele=1,AC38,IF(City_sele=1,AC52,AC67)) -> Cost Hypertension - controlled | AD20: 653,248 | AE20: 664,406 | AG20: 3 | AH20: =IF(City_sele=1,AH38,IF(City_sele=1,AH52,AH67)) -> Cost Hypertension - controlled | AI20: 653,248 | AJ20: 663,218 | AL20: 3 | AM20: =IF(City_sele=1,AM38,IF(City_sele=1,AM52,AM67)) -> Programme Direct costs | AN20: 675 | AO20: 821
AB21: 4 | AC21: =IF(City_sele=1,AC39,IF(City_sele=1,AC53,AC68)) -> Cost Coronary heart disease/event | AD21: 659,313 | AE21: 658,342 | AG21: 4 | AH21: =IF(City_sele=1,AH39,IF(City_sele=1,AH53,AH68)) -> Cost Stroke/event | AI21: 658,827 | AJ21: 657,039 | AL21: 4 | AM21: =IF(City_sele=1,AM39,IF(City_sele=1,AM53,AM68)) -> Cost Hypertension - controlled | AN21: 699 | AO21: 796
AB22: 5 | AC22: =IF(City_sele=1,AC40,IF(City_sele=1,AC54,AC69)) -> Risk Coronary heart disease*(CVD) | AD22: 659,284 | AE22: 658,370 | AG22: 5 | AH22: =IF(City_sele=1,AH40,IF(City_sele=1,AH54,AH69)) -> Risk Stroke | AI22: 658,827 | AJ22: 657,156 | AL22: 5 | AM22: =IF(City_sele=1,AM40,IF(City_sele=1,AM54,AM69)) -> Cost Hypertension - uncontrolled | AN22: 792 | AO22: 703
E25: Baseline - CHD Budget Impact | F25: =Sen_CHD -> 658,827 | K25: Baseline - Stroke Budget Impact | L25: =Sen_Stk -> 657,639 | Q25: Baseline - ICER | R25: =Sen_ICER -> 748
Q26: ='Manuscript data'!D48 -> ICER threshold (per QALY gained)+ | R26: =HLOOKUP(INDEX(City_list,City_sele),$AC$5:$AE$7,3,0) -> $1,624-$4,849 / QALY
AB33: =AS17 -> Sao Paulo | AC33: ='Sensitivity engine'!AL10 -> Rank ΔNet Budget Impact (CHD) | AD33: =Results!D29 -> $561,981 | AG33: Sao Paulo | AH33: ='Sensitivity engine'!BN10 -> Δ Net Budget Impact (Stroke) | AI33: =Results!D30 -> $552,736.19 | AL33: Sao Paulo | AM33: ='Sensitivity engine'!BO10 -> Δ ICER | AN33: =Results!I98 -> $784.22
AB35: Rank | AC35: Parameter | AD35: Lower Limit | AE35: Upper Limit | AG35: Rank | AH35: Parameter | AI35: Lower Limit | AJ35: Upper Limit | AL35: Rank | AM35: Parameter | AN35: Lower Limit | AO35: Upper Limit | AP35: ICER with Lowe Parameter | AQ35: ICER with Upper Parameter
AB36: 1 | AC36: =INDEX('Sensitivity engine'!$AB$10:$AB$43,MATCH(AB36,'Sensitivity engine'!$AL$10:$AL$43,0),1) -> Programme Direct costs | AD36: =INDEX('Sensitivity engine'!$AC$10:$AC$43,MATCH(AB36,'Sensitivity engine'!$AL$10:$AL$43,0),1) -> 502,858 | AE36: =INDEX('Sensitivity engine'!$AF$10:$AF$43,MATCH(AB36,'Sensitivity engine'!$AL$10:$AL$43,0),1) -> 621,104 | AG36: 1 | AH36: =INDEX('Sensitivity engine'!$AB$10:$AB$43,MATCH(AG36,'Sensitivity engine'!$AM$10:$AM$43,0),1) -> Programme Direct costs | AI36: =INDEX('Sensitivity engine'!$AD$10:$AD$43,MATCH(AG36,'Sensitivity engine'!$AM$10:$AM$43,0),1) -> 493,613 | AJ36: =INDEX('Sensitivity engine'!$AG$10:$AG$43,MATCH(AG36,'Sensitivity engine'!$AM$10:$AM$43,0),1) -> 611,859 | AL36: 1 | AM36: =INDEX('Sensitivity engine'!$AB$10:$AB$43,MATCH(AL36,'Sensitivity engine'!$AN$10:$AN$43,0),1) -> Cost Hypertension - controlled | AN36: =INDEX('Sensitivity engine'!$AE$10:$AE$43,MATCH(AL36,'Sensitivity engine'!$AN$10:$AN$43,0),1) -> 537 | AO36: =INDEX('Sensitivity engine'!$AH$10:$AH$43,MATCH(AL36,'Sensitivity engine'!$AN$10:$AN$43,0),1) -> 1,031 | AP36: =AN36-AN$33 -> $(246.78) | AQ36: =AO36-AN$33 -> $246.78
AB37: 2 | AC37: =INDEX('Sensitivity engine'!$AB$10:$AB$43,MATCH(AB37,'Sensitivity engine'!$AL$10:$AL$43,0),1) -> Cost Hypertension - uncontrolled | AD37: =INDEX('Sensitivity engine'!$AC$10:$AC$43,MATCH(AB37,'Sensitivity engine'!$AL$10:$AL$43,0),1) -> 582,430 | AE37: =INDEX('Sensitivity engine'!$AF$10:$AF$43,MATCH(AB37,'Sensitivity engine'!$AL$10:$AL$43,0),1) -> 541,532 | AG37: 2 | AH37: =INDEX('Sensitivity engine'!$AB$10:$AB$43,MATCH(AG37,'Sensitivity engine'!$AM$10:$AM$43,0),1) -> Cost Hypertension - uncontrolled | AI37: =INDEX('Sensitivity engine'!$AD$10:$AD$43,MATCH(AG37,'Sensitivity engine'!$AM$10:$AM$43,0),1) -> 573,185 | AJ37: =INDEX('Sensitivity engine'!$AG$10:$AG$43,MATCH(AG37,'Sensitivity engine'!$AM$10:$AM$43,0),1) -> 532,287 | AL37: 2 | AM37: =INDEX('Sensitivity engine'!$AB$10:$AB$43,MATCH(AL37,'Sensitivity engine'!$AN$10:$AN$43,0),1) -> Risk Stroke | AN37: =INDEX('Sensitivity engine'!$AE$10:$AE$43,MATCH(AL37,'Sensitivity engine'!$AN$10:$AN$43,0),1) -> 1,014 | AO37: =INDEX('Sensitivity engine'!$AH$10:$AH$43,MATCH(AL37,'Sensitivity engine'!$AN$10:$AN$43,0),1) -> 555 | AP37: =AN37-AN$33 -> $229.73 | AQ37: =AO37-AN$33 -> $(228.87)
AB38: 3 | AC38: =INDEX('Sensitivity engine'!$AB$11:$AB$43,MATCH($AB38,'Sensitivity engine'!$AL$11:$AL$43,0)) -> Cost Hypertension - controlled | AD38: =INDEX('Sensitivity engine'!$AC$10:$AC$43,MATCH(AB38,'Sensitivity engine'!$AL$10:$AL$43,0),1) -> 541,532 | AE38: =INDEX('Sensitivity engine'!$AF$10:$AF$43,MATCH(AB38,'Sensitivity engine'!$AL$10:$AL$43,0),1) -> 582,430 | AG38: 3 | AH38: =INDEX('Sensitivity engine'!$AB$10:$AB$43,MATCH(AG38,'Sensitivity engine'!$AM$10:$AM$43,0),1) -> Cost Hypertension - controlled | AI38: =INDEX('Sensitivity engine'!$AD$10:$AD$43,MATCH(AG38,'Sensitivity engine'!$AM$10:$AM$43,0),1) -> 532,287 | AJ38: =INDEX('Sensitivity engine'!$AG$10:$AG$43,MATCH(AG38,'Sensitivity engine'!$AM$10:$AM$43,0),1) -> 573,185 | AL38: 3 | AM38: =INDEX('Sensitivity engine'!$AB$10:$AB$43,MATCH(AL38,'Sensitivity engine'!$AN$10:$AN$43,0),1) -> Cost Hypertension - uncontrolled | AN38: =INDEX('Sensitivity engine'!$AE$10:$AE$43,MATCH(AL38,'Sensitivity engine'!$AN$10:$AN$43,0),1) -> 1,007 | AO38: =INDEX('Sensitivity engine'!$AH$10:$AH$43,MATCH(AL38,'Sensitivity engine'!$AN$10:$AN$43,0),1) -> 561 | AP38: $222.98 | AQ38: $(222.98)
AB39: 4 | AC39: =INDEX('Sensitivity engine'!$AB$11:$AB$43,MATCH($AB39,'Sensitivity engine'!$AL$11:$AL$43,0)) -> Risk Coronary heart disease*(CVD) | AD39: =INDEX('Sensitivity engine'!$AC$10:$AC$43,MATCH(AB39,'Sensitivity engine'!$AL$10:$AL$43,0),1) -> 566,833 | AE39: =INDEX('Sensitivity engine'!$AF$10:$AF$43,MATCH(AB39,'Sensitivity engine'!$AL$10:$AL$43,0),1) -> 557,128 | AG39: 4 | AH39: =INDEX('Sensitivity engine'!$AB$10:$AB$43,MATCH(AG39,'Sensitivity engine'!$AM$10:$AM$43,0),1) -> Risk Stroke | AI39: =INDEX('Sensitivity engine'!$AD$10:$AD$43,MATCH(AG39,'Sensitivity engine'!$AM$10:$AM$43,0),1) -> 557,862 | AJ39: =INDEX('Sensitivity engine'!$AG$10:$AG$43,MATCH(AG39,'Sensitivity engine'!$AM$10:$AM$43,0),1) -> 547,611 | AL39: 4 | AM39: =INDEX('Sensitivity engine'!$AB$10:$AB$43,MATCH(AL39,'Sensitivity engine'!$AN$10:$AN$43,0),1) -> Risk Coronary heart disease*(CVD) | AN39: =INDEX('Sensitivity engine'!$AE$10:$AE$43,MATCH(AL39,'Sensitivity engine'!$AN$10:$AN$43,0),1) -> 994 | AO39: =INDEX('Sensitivity engine'!$AH$10:$AH$43,MATCH(AL39,'Sensitivity engine'!$AN$10:$AN$43,0),1) -> 575 | AP39: $209.86 | AQ39: $(208.87)
AB40: 5 | AC40: =INDEX('Sensitivity engine'!$AB$11:$AB$43,MATCH($AB40,'Sensitivity engine'!$AL$11:$AL$43,0)) -> Cost Coronary heart disease/event | AD40: =INDEX('Sensitivity engine'!$AC$10:$AC$43,MATCH(AB40,'Sensitivity engine'!$AL$10:$AL$43,0),1) -> 564,852 | AE40: =INDEX('Sensitivity engine'!$AF$10:$AF$43,MATCH(AB40,'Sensitivity engine'!$AL$10:$AL$43,0),1) -> 559,110 | AG40: 5 | AH40: =INDEX('Sensitivity engine'!$AB$10:$AB$43,MATCH(AG40,'Sensitivity engine'!$AM$10:$AM$43,0),1) -> Cost Stroke/event | AI40: =INDEX('Sensitivity engine'!$AD$10:$AD$43,MATCH(AG40,'Sensitivity engine'!$AM$10:$AM$43,0),1) -> 556,499 | AJ40: =INDEX('Sensitivity engine'!$AG$10:$AG$43,MATCH(AG40,'Sensitivity engine'!$AM$10:$AM$43,0),1) -> 548,973 | AL40: 5 | AM40: =INDEX('Sensitivity engine'!$AB$10:$AB$43,MATCH(AL40,'Sensitivity engine'!$AN$10:$AN$43,0),1) -> Mean age | AN40: =INDEX('Sensitivity engine'!$AE$10:$AE$43,MATCH(AL40,'Sensitivity engine'!$AN$10:$AN$43,0),1) -> 927 | AO40: =INDEX('Sensitivity engine'!$AH$10:$AH$43,MATCH(AL40,'Sensitivity engine'!$AN$10:$AN$43,0),1) -> 694 | AP40: $142.39 | AQ40: $(90.30)
AB41: 6 | AC41: =INDEX('Sensitivity engine'!$AB$11:$AB$43,MATCH($AB41,'Sensitivity engine'!$AL$11:$AL$43,0)) -> 160 - 179 or 100 - 109 | AD41: =INDEX('Sensitivity engine'!$AC$10:$AC$43,MATCH(AB41,'Sensitivity engine'!$AL$10:$AL$43,0),1) -> 563,027 | AE41: =INDEX('Sensitivity engine'!$AF$10:$AF$43,MATCH(AB41,'Sensitivity engine'!$AL$10:$AL$43,0),1) -> 560,935 | AG41: 6 | AH41: =INDEX('Sensitivity engine'!$AB$10:$AB$43,MATCH(AG41,'Sensitivity engine'!$AM$10:$AM$43,0),1) -> 160 - 179 or 100 - 109 | AI41: =INDEX('Sensitivity engine'!$AD$10:$AD$43,MATCH(AG41,'Sensitivity engine'!$AM$10:$AM$43,0),1) -> 554,146 | AJ41: =INDEX('Sensitivity engine'!$AG$10:$AG$43,MATCH(AG41,'Sensitivity engine'!$AM$10:$AM$43,0),1) -> 551,326 | AL41: 6 | AM41: =INDEX('Sensitivity engine'!$AB$10:$AB$43,MATCH(AL41,'Sensitivity engine'!$AN$10:$AN$43,0),1) -> Programme Direct costs | AN41: =INDEX('Sensitivity engine'!$AE$10:$AE$43,MATCH(AL41,'Sensitivity engine'!$AN$10:$AN$43,0),1) -> 686 | AO41: =INDEX('Sensitivity engine'!$AH$10:$AH$43,MATCH(AL41,'Sensitivity engine'!$AN$10:$AN$43,0),1) -> 883 | AP41: $(98.51) | AQ41: $98.51
AB42: 7 | AC42: =INDEX('Sensitivity engine'!$AB$11:$AB$43,MATCH($AB42,'Sensitivity engine'!$AL$11:$AL$43,0)) -> 140 - 159 or 90 - 99 | AD42: =INDEX('Sensitivity engine'!$AC$10:$AC$43,MATCH(AB42,'Sensitivity engine'!$AL$10:$AL$43,0),1) -> 562,725 | AE42: =INDEX('Sensitivity engine'!$AF$10:$AF$43,MATCH(AB42,'Sensitivity engine'!$AL$10:$AL$43,0),1) -> 561,237 | AG42: 7 | AH42: =INDEX('Sensitivity engine'!$AB$10:$AB$43,MATCH(AG42,'Sensitivity engine'!$AM$10:$AM$43,0),1) -> 140 - 159 or 90 - 99 | AI42: =INDEX('Sensitivity engine'!$AD$10:$AD$43,MATCH(AG42,'Sensitivity engine'!$AM$10:$AM$43,0),1) -> 553,797 | AJ42: =INDEX('Sensitivity engine'!$AG$10:$AG$43,MATCH(AG42,'Sensitivity engine'!$AM$10:$AM$43,0),1) -> 551,676 | AL42: 7 | AM42: =INDEX('Sensitivity engine'!$AB$10:$AB$43,MATCH(AL42,'Sensitivity engine'!$AN$10:$AN$43,0),1) -> Mortality multiplierHTN - Uncontrolled | AN42: =INDEX('Sensitivity engine'!$AE$10:$AE$43,MATCH(AL42,'Sensitivity engine'!$AN$10:$AN$43,0),1) -> 855 | AO42: =INDEX('Sensitivity engine'!$AH$10:$AH$43,MATCH(AL42,'Sensitivity engine'!$AN$10:$AN$43,0),1) -> 732 | AP42: $70.87 | AQ42: $(52.14)
AB43: 8 | AC43: =INDEX('Sensitivity engine'!$AB$11:$AB$43,MATCH($AB43,'Sensitivity engine'!$AL$11:$AL$43,0)) -> Mean age | AD43: =INDEX('Sensitivity engine'!$AC$10:$AC$43,MATCH(AB43,'Sensitivity engine'!$AL$10:$AL$43,0),1) -> 561,650 | AE43: =INDEX('Sensitivity engine'!$AF$10:$AF$43,MATCH(AB43,'Sensitivity engine'!$AL$10:$AL$43,0),1) -> 562,736 | AG43: 8 | AH43: =INDEX('Sensitivity engine'!$AB$10:$AB$43,MATCH(AG43,'Sensitivity engine'!$AM$10:$AM$43,0),1) -> Mean age | AI43: =INDEX('Sensitivity engine'!$AD$10:$AD$43,MATCH(AG43,'Sensitivity engine'!$AM$10:$AM$43,0),1) -> 552,300 | AJ43: =INDEX('Sensitivity engine'!$AG$10:$AG$43,MATCH(AG43,'Sensitivity engine'!$AM$10:$AM$43,0),1) -> 553,731 | AL43: 8 | AM43: =INDEX('Sensitivity engine'!$AB$10:$AB$43,MATCH(AL43,'Sensitivity engine'!$AN$10:$AN$43,0),1) -> Utility b/w Age 70-79 | AN43: =INDEX('Sensitivity engine'!$AE$10:$AE$43,MATCH(AL43,'Sensitivity engine'!$AN$10:$AN$43,0),1) -> 831 | AO43: =INDEX('Sensitivity engine'!$AH$10:$AH$43,MATCH(AL43,'Sensitivity engine'!$AN$10:$AN$43,0),1) -> 743 | AP43: $46.56 | AQ43: $(41.62)
AB44: 9 | AC44: =INDEX('Sensitivity engine'!$AB$11:$AB$43,MATCH($AB44,'Sensitivity engine'!$AL$11:$AL$43,0)) -> ≥ 180 or ≥ 110 | AD44: =INDEX('Sensitivity engine'!$AC$10:$AC$43,MATCH(AB44,'Sensitivity engine'!$AL$10:$AL$43,0),1) -> 562,339 | AE44: =INDEX('Sensitivity engine'!$AF$10:$AF$43,MATCH(AB44,'Sensitivity engine'!$AL$10:$AL$43,0),1) -> 561,623 | AG44: 9 | AH44: =INDEX('Sensitivity engine'!$AB$10:$AB$43,MATCH(AG44,'Sensitivity engine'!$AM$10:$AM$43,0),1) -> ≥ 180 or ≥ 110 | AI44: =INDEX('Sensitivity engine'!$AD$10:$AD$43,MATCH(AG44,'Sensitivity engine'!$AM$10:$AM$43,0),1) -> 553,219 | AJ44: =INDEX('Sensitivity engine'!$AG$10:$AG$43,MATCH(AG44,'Sensitivity engine'!$AM$10:$AM$43,0),1) -> 552,253 | AL44: 9 | AM44: =INDEX('Sensitivity engine'!$AB$10:$AB$43,MATCH(AL44,'Sensitivity engine'!$AN$10:$AN$43,0),1) -> 160 - 179 or 100 - 109 | AN44: =INDEX('Sensitivity engine'!$AE$10:$AE$43,MATCH(AL44,'Sensitivity engine'!$AN$10:$AN$43,0),1) -> 824 | AO44: =INDEX('Sensitivity engine'!$AH$10:$AH$43,MATCH(AL44,'Sensitivity engine'!$AN$10:$AN$43,0),1) -> 748 | AP44: $39.51 | AQ44: $(36.59)
AB45: 10 | AC45: =INDEX('Sensitivity engine'!$AB$11:$AB$43,MATCH($AB45,'Sensitivity engine'!$AL$11:$AL$43,0)) -> Mortality multiplierHTN - Uncontrolled | AD45: =INDEX('Sensitivity engine'!$AC$10:$AC$43,MATCH(AB45,'Sensitivity engine'!$AL$10:$AL$43,0),1) -> 561,915 | AE45: =INDEX('Sensitivity engine'!$AF$10:$AF$43,MATCH(AB45,'Sensitivity engine'!$AL$10:$AL$43,0),1) -> 562,046 | AG45: 10 | AH45: =INDEX('Sensitivity engine'!$AB$10:$AB$43,MATCH(AG45,'Sensitivity engine'!$AM$10:$AM$43,0),1) -> Annual loss of productivity cost(HTN) | AI45: =INDEX('Sensitivity engine'!$AD$10:$AD$43,MATCH(AG45,'Sensitivity engine'!$AM$10:$AM$43,0),1) -> 552,823 | AJ45: =INDEX('Sensitivity engine'!$AG$10:$AG$43,MATCH(AG45,'Sensitivity engine'!$AM$10:$AM$43,0),1) -> 552,650 | AL45: 10 | AM45: =INDEX('Sensitivity engine'!$AB$10:$AB$43,MATCH(AL45,'Sensitivity engine'!$AN$10:$AN$43,0),1) -> Utility b/w Age 60-69 | AN45: =INDEX('Sensitivity engine'!$AE$10:$AE$43,MATCH(AL45,'Sensitivity engine'!$AN$10:$AN$43,0),1) -> 820 | AO45: =INDEX('Sensitivity engine'!$AH$10:$AH$43,MATCH(AL45,'Sensitivity engine'!$AN$10:$AN$43,0),1) -> 752 | AP45: $35.70 | AQ45: $(32.72)
AB47: =AS18 -> Dakar | AC47: =AC33 -> Rank ΔNet Budget Impact (CHD) | AD47: =Results!F29 -> $425,305.67 | AG47: Dakar | AH47: =AH33 -> Δ Net Budget Impact (Stroke) | AI47: =Results!F30 -> $423,855.15 | AL47: Dakar | AM47: =AM33 -> Δ ICER | AN47: =Results!I47 -> $3,091.48
AB49: Rank | AC49: Parameter | AD49: Lower Limit | AE49: Upper Limit | AG49: Rank | AH49: Parameter | AI49: Lower Limit | AJ49: Upper Limit | AL49: Rank | AM49: Parameter | AN49: Lower Limit | AO49: Upper Limit | AP49: Budget Impact with Lower Parameter | AQ49: Budget Impact with Upper Parameter
AB50: 1 | AC50: =INDEX('Sensitivity engine'!$AQ$10:$AQ$43,MATCH(AB50,'Sensitivity engine'!$BA$10:$BA$43,0),1) -> Programme Direct costs | AD50: =INDEX('Sensitivity engine'!$AR$10:$AR$43,MATCH(AB50,'Sensitivity engine'!$BA$10:$BA$43,0),1) -> 382,413 | AE50: =INDEX('Sensitivity engine'!$AU$10:$AU$43,MATCH(AB50,'Sensitivity engine'!$BA$10:$BA$43,0),1) -> 468,198 | AG50: 1 | AH50: =INDEX('Sensitivity engine'!$AQ$10:$AQ$43,MATCH(AG50,'Sensitivity engine'!$BB$10:$BB$43,0),1) -> Programme Direct costs | AI50: =INDEX('Sensitivity engine'!$AS$10:$AS$43,MATCH(AG50,'Sensitivity engine'!$BB$10:$BB$43,0),1) -> 380,962 | AJ50: =INDEX('Sensitivity engine'!$AV$10:$AV$43,MATCH(AG50,'Sensitivity engine'!$BB$10:$BB$43,0),1) -> 466,748 | AL50: 1 | AM50: =INDEX('Sensitivity engine'!$AQ$10:$AQ$43,MATCH(AL50,'Sensitivity engine'!$BC$10:$BC$43,0),1) -> Mean age | AN50: =INDEX('Sensitivity engine'!$AT$10:$AT$43,MATCH(AL50,'Sensitivity engine'!$BC$10:$BC$43,0),1) -> 4,509 | AO50: =INDEX('Sensitivity engine'!$AW$10:$AW$43,MATCH(AL50,'Sensitivity engine'!$BC$10:$BC$43,0),1) -> 2,167 | AP50: =AN50-AN$47 -> $1,417.69 | AQ50: =AO50-AN$47 -> $(924.98)
AB51: 2 | AC51: =INDEX('Sensitivity engine'!$AQ$10:$AQ$43,MATCH(AB51,'Sensitivity engine'!$BA$10:$BA$43,0),1) -> Cost Hypertension - uncontrolled | AD51: =INDEX('Sensitivity engine'!$AR$10:$AR$43,MATCH(AB51,'Sensitivity engine'!$BA$10:$BA$43,0),1) -> 429,675 | AE51: =INDEX('Sensitivity engine'!$AU$10:$AU$43,MATCH(AB51,'Sensitivity engine'!$BA$10:$BA$43,0),1) -> 420,937 | AG51: 2 | AH51: =INDEX('Sensitivity engine'!$AQ$10:$AQ$43,MATCH(AG51,'Sensitivity engine'!$BB$10:$BB$43,0),1) -> Cost Hypertension - uncontrolled | AI51: =INDEX('Sensitivity engine'!$AS$10:$AS$43,MATCH(AG51,'Sensitivity engine'!$BB$10:$BB$43,0),1) -> 428,224 | AJ51: =INDEX('Sensitivity engine'!$AV$10:$AV$43,MATCH(AG51,'Sensitivity engine'!$BB$10:$BB$43,0),1) -> 419,486 | AL51: 2 | AM51: =INDEX('Sensitivity engine'!$AQ$10:$AQ$43,MATCH(AL51,'Sensitivity engine'!$BC$10:$BC$43,0),1) -> Risk Stroke | AN51: =INDEX('Sensitivity engine'!$AT$10:$AT$43,MATCH(AL51,'Sensitivity engine'!$BC$10:$BC$43,0),1) -> 3,908 | AO51: =INDEX('Sensitivity engine'!$AW$10:$AW$43,MATCH(AL51,'Sensitivity engine'!$BC$10:$BC$43,0),1) -> 2,289 | AP51: =AN51-AN$47 -> $816.84 | AQ51: =AO51-AN$47 -> $(802.56)
AB52: 3 | AC52: =INDEX('Sensitivity engine'!$AQ$10:$AQ$43,MATCH(AB52,'Sensitivity engine'!$BA$10:$BA$43,0),1) -> Cost Hypertension - controlled | AD52: =INDEX('Sensitivity engine'!$AR$10:$AR$43,MATCH(AB52,'Sensitivity engine'!$BA$10:$BA$43,0),1) -> 420,937 | AE52: =INDEX('Sensitivity engine'!$AU$10:$AU$43,MATCH(AB52,'Sensitivity engine'!$BA$10:$BA$43,0),1) -> 429,675 | AG52: 3 | AH52: =INDEX('Sensitivity engine'!$AQ$10:$AQ$43,MATCH(AG52,'Sensitivity engine'!$BB$10:$BB$43,0),1) -> Cost Hypertension - controlled | AI52: =INDEX('Sensitivity engine'!$AS$10:$AS$43,MATCH(AG52,'Sensitivity engine'!$BB$10:$BB$43,0),1) -> 419,486 | AJ52: =INDEX('Sensitivity engine'!$AV$10:$AV$43,MATCH(AG52,'Sensitivity engine'!$BB$10:$BB$43,0),1) -> 428,224 | AL52: 3 | AM52: =INDEX('Sensitivity engine'!$AQ$10:$AQ$43,MATCH(AL52,'Sensitivity engine'!$BC$10:$BC$43,0),1) -> Risk Coronary heart disease*(CVD) | AN52: =INDEX('Sensitivity engine'!$AT$10:$AT$43,MATCH(AL52,'Sensitivity engine'!$BC$10:$BC$43,0),1) -> 3,835 | AO52: =INDEX('Sensitivity engine'!$AW$10:$AW$43,MATCH(AL52,'Sensitivity engine'!$BC$10:$BC$43,0),1) -> 2,364 | AP52: $743.82 | AQ52: $(727.63)
AB53: 4 | AC53: =INDEX('Sensitivity engine'!$AQ$10:$AQ$43,MATCH(AB53,'Sensitivity engine'!$BA$10:$BA$43,0),1) -> Risk Coronary heart disease*(CVD) | AD53: =INDEX('Sensitivity engine'!$AR$10:$AR$43,MATCH(AB53,'Sensitivity engine'!$BA$10:$BA$43,0),1) -> 427,239 | AE53: =INDEX('Sensitivity engine'!$AU$10:$AU$43,MATCH(AB53,'Sensitivity engine'!$BA$10:$BA$43,0),1) -> 423,372 | AG53: 4 | AH53: =INDEX('Sensitivity engine'!$AQ$10:$AQ$43,MATCH(AG53,'Sensitivity engine'!$BB$10:$BB$43,0),1) -> Risk Stroke | AI53: =INDEX('Sensitivity engine'!$AS$10:$AS$43,MATCH(AG53,'Sensitivity engine'!$BB$10:$BB$43,0),1) -> 426,016 | AJ53: =INDEX('Sensitivity engine'!$AV$10:$AV$43,MATCH(AG53,'Sensitivity engine'!$BB$10:$BB$43,0),1) -> 421,694 | AL53: 4 | AM53: =INDEX('Sensitivity engine'!$AQ$10:$AQ$43,MATCH(AL53,'Sensitivity engine'!$BC$10:$BC$43,0),1) -> Mortality multiplierHTN - Uncontrolled | AN53: =INDEX('Sensitivity engine'!$AT$10:$AT$43,MATCH(AL53,'Sensitivity engine'!$BC$10:$BC$43,0),1) -> 3,578 | AO53: =INDEX('Sensitivity engine'!$AW$10:$AW$43,MATCH(AL53,'Sensitivity engine'!$BC$10:$BC$43,0),1) -> 2,733 | AP53: $486.82 | AQ53: $(358.71)
AB54: 5 | AC54: =INDEX('Sensitivity engine'!$AQ$10:$AQ$43,MATCH(AB54,'Sensitivity engine'!$BA$10:$BA$43,0),1) -> Cost Coronary heart disease/event | AD54: =INDEX('Sensitivity engine'!$AR$10:$AR$43,MATCH(AB54,'Sensitivity engine'!$BA$10:$BA$43,0),1) -> 425,661 | AE54: =INDEX('Sensitivity engine'!$AU$10:$AU$43,MATCH(AB54,'Sensitivity engine'!$BA$10:$BA$43,0),1) -> 424,950 | AG54: 5 | AH54: =INDEX('Sensitivity engine'!$AQ$10:$AQ$43,MATCH(AG54,'Sensitivity engine'!$BB$10:$BB$43,0),1) -> Cost Stroke/event | AI54: =INDEX('Sensitivity engine'!$AS$10:$AS$43,MATCH(AG54,'Sensitivity engine'!$BB$10:$BB$43,0),1) -> 424,350 | AJ54: =INDEX('Sensitivity engine'!$AV$10:$AV$43,MATCH(AG54,'Sensitivity engine'!$BB$10:$BB$43,0),1) -> 423,361 | AL54: 5 | AM54: =INDEX('Sensitivity engine'!$AQ$10:$AQ$43,MATCH(AL54,'Sensitivity engine'!$BC$10:$BC$43,0),1) -> Programme Direct costs | AN54: =INDEX('Sensitivity engine'!$AT$10:$AT$43,MATCH(AL54,'Sensitivity engine'!$BC$10:$BC$43,0),1) -> 2,749 | AO54: =INDEX('Sensitivity engine'!$AW$10:$AW$43,MATCH(AL54,'Sensitivity engine'!$BC$10:$BC$43,0),1) -> 3,434 | AP54: $(342.81) | AQ54: $342.81
AB55: 6 | AC55: =INDEX('Sensitivity engine'!$AQ$10:$AQ$43,MATCH(AB55,'Sensitivity engine'!$BA$10:$BA$43,0),1) -> 160 - 179 or 100 - 109 | AD55: =INDEX('Sensitivity engine'!$AR$10:$AR$43,MATCH(AB55,'Sensitivity engine'!$BA$10:$BA$43,0),1) -> 425,411 | AE55: =INDEX('Sensitivity engine'!$AU$10:$AU$43,MATCH(AB55,'Sensitivity engine'!$BA$10:$BA$43,0),1) -> 425,200 | AG55: 6 | AH55: =INDEX('Sensitivity engine'!$AQ$10:$AQ$43,MATCH(AG55,'Sensitivity engine'!$BB$10:$BB$43,0),1) -> 160 - 179 or 100 - 109 | AI55: =INDEX('Sensitivity engine'!$AS$10:$AS$43,MATCH(AG55,'Sensitivity engine'!$BB$10:$BB$43,0),1) -> 424,008 | AJ55: =INDEX('Sensitivity engine'!$AV$10:$AV$43,MATCH(AG55,'Sensitivity engine'!$BB$10:$BB$43,0),1) -> 423,702 | AL55: 6 | AM55: =INDEX('Sensitivity engine'!$AQ$10:$AQ$43,MATCH(AL55,'Sensitivity engine'!$BC$10:$BC$43,0),1) -> Utility b/w Age 60-69 | AN55: =INDEX('Sensitivity engine'!$AT$10:$AT$43,MATCH(AL55,'Sensitivity engine'!$BC$10:$BC$43,0),1) -> 3,432 | AO55: =INDEX('Sensitivity engine'!$AW$10:$AW$43,MATCH(AL55,'Sensitivity engine'!$BC$10:$BC$43,0),1) -> 2,812 | AP55: $340.99 | AQ55: $(279.36)
AB56: 7 | AC56: =INDEX('Sensitivity engine'!$AQ$10:$AQ$43,MATCH(AB56,'Sensitivity engine'!$BA$10:$BA$43,0),1) -> ≥ 180 or ≥ 110 | AD56: =INDEX('Sensitivity engine'!$AR$10:$AR$43,MATCH(AB56,'Sensitivity engine'!$BA$10:$BA$43,0),1) -> 425,384 | AE56: =INDEX('Sensitivity engine'!$AU$10:$AU$43,MATCH(AB56,'Sensitivity engine'!$BA$10:$BA$43,0),1) -> 425,227 | AG56: 7 | AH56: =INDEX('Sensitivity engine'!$AQ$10:$AQ$43,MATCH(AG56,'Sensitivity engine'!$BB$10:$BB$43,0),1) -> ≥ 180 or ≥ 110 | AI56: =INDEX('Sensitivity engine'!$AS$10:$AS$43,MATCH(AG56,'Sensitivity engine'!$BB$10:$BB$43,0),1) -> 423,969 | AJ56: =INDEX('Sensitivity engine'!$AV$10:$AV$43,MATCH(AG56,'Sensitivity engine'!$BB$10:$BB$43,0),1) -> 423,742 | AL56: 7 | AM56: =INDEX('Sensitivity engine'!$AQ$10:$AQ$43,MATCH(AL56,'Sensitivity engine'!$BC$10:$BC$43,0),1) -> Cost Hypertension - controlled | AN56: =INDEX('Sensitivity engine'!$AT$10:$AT$43,MATCH(AL56,'Sensitivity engine'!$BC$10:$BC$43,0),1) -> 2,804 | AO56: =INDEX('Sensitivity engine'!$AW$10:$AW$43,MATCH(AL56,'Sensitivity engine'!$BC$10:$BC$43,0),1) -> 3,379 | AP56: $(287.12) | AQ56: $287.12
AB57: 8 | AC57: =INDEX('Sensitivity engine'!$AQ$10:$AQ$43,MATCH(AB57,'Sensitivity engine'!$BA$10:$BA$43,0),1) -> 140 - 159 or 90 - 99 | AD57: =INDEX('Sensitivity engine'!$AR$10:$AR$43,MATCH(AB57,'Sensitivity engine'!$BA$10:$BA$43,0),1) -> 425,359 | AE57: =INDEX('Sensitivity engine'!$AU$10:$AU$43,MATCH(AB57,'Sensitivity engine'!$BA$10:$BA$43,0),1) -> 425,253 | AG57: 8 | AH57: =INDEX('Sensitivity engine'!$AQ$10:$AQ$43,MATCH(AG57,'Sensitivity engine'!$BB$10:$BB$43,0),1) -> 140 - 159 or 90 - 99 | AI57: =INDEX('Sensitivity engine'!$AS$10:$AS$43,MATCH(AG57,'Sensitivity engine'!$BB$10:$BB$43,0),1) -> 423,952 | AJ57: =INDEX('Sensitivity engine'!$AV$10:$AV$43,MATCH(AG57,'Sensitivity engine'!$BB$10:$BB$43,0),1) -> 423,759 | AL57: 8 | AM57: =INDEX('Sensitivity engine'!$AQ$10:$AQ$43,MATCH(AL57,'Sensitivity engine'!$BC$10:$BC$43,0),1) -> Cost Hypertension - uncontrolled | AN57: =INDEX('Sensitivity engine'!$AT$10:$AT$43,MATCH(AL57,'Sensitivity engine'!$BC$10:$BC$43,0),1) -> 3,362 | AO57: =INDEX('Sensitivity engine'!$AW$10:$AW$43,MATCH(AL57,'Sensitivity engine'!$BC$10:$BC$43,0),1) -> 2,821 | AP57: $270.27 | AQ57: $(270.27)
AB58: 9 | AC58: =INDEX('Sensitivity engine'!$AQ$10:$AQ$43,MATCH(AB58,'Sensitivity engine'!$BA$10:$BA$43,0),1) -> Mean age | AD58: =INDEX('Sensitivity engine'!$AR$10:$AR$43,MATCH(AB58,'Sensitivity engine'!$BA$10:$BA$43,0),1) -> 425,291 | AE58: =INDEX('Sensitivity engine'!$AU$10:$AU$43,MATCH(AB58,'Sensitivity engine'!$BA$10:$BA$43,0),1) -> 425,380 | AG58: 9 | AH58: =INDEX('Sensitivity engine'!$AQ$10:$AQ$43,MATCH(AG58,'Sensitivity engine'!$BB$10:$BB$43,0),1) -> Mean age | AI58: =INDEX('Sensitivity engine'!$AS$10:$AS$43,MATCH(AG58,'Sensitivity engine'!$BB$10:$BB$43,0),1) -> 423,834 | AJ58: =INDEX('Sensitivity engine'!$AV$10:$AV$43,MATCH(AG58,'Sensitivity engine'!$BB$10:$BB$43,0),1) -> 423,960 | AL58: 9 | AM58: =INDEX('Sensitivity engine'!$AQ$10:$AQ$43,MATCH(AL58,'Sensitivity engine'!$BC$10:$BC$43,0),1) -> Mortality multiplier-HTN - Controlled | AN58: =INDEX('Sensitivity engine'!$AT$10:$AT$43,MATCH(AL58,'Sensitivity engine'!$BC$10:$BC$43,0),1) -> 2,943 | AO58: =INDEX('Sensitivity engine'!$AW$10:$AW$43,MATCH(AL58,'Sensitivity engine'!$BC$10:$BC$43,0),1) -> 3,256 | AP58: $(148.50) | AQ58: $164.84
AB59: 10 | AC59: =INDEX('Sensitivity engine'!$AQ$10:$AQ$43,MATCH(AB59,'Sensitivity engine'!$BA$10:$BA$43,0),1) -> Annual loss of productivity cost(HTN) | AD59: =INDEX('Sensitivity engine'!$AR$10:$AR$43,MATCH(AB59,'Sensitivity engine'!$BA$10:$BA$43,0),1) -> 425,312 | AE59: =INDEX('Sensitivity engine'!$AU$10:$AU$43,MATCH(AB59,'Sensitivity engine'!$BA$10:$BA$43,0),1) -> 425,299 | AG59: 10 | AH59: =INDEX('Sensitivity engine'!$AQ$10:$AQ$43,MATCH(AG59,'Sensitivity engine'!$BB$10:$BB$43,0),1) -> Annual loss of productivity cost(HTN) | AI59: =INDEX('Sensitivity engine'!$AS$10:$AS$43,MATCH(AG59,'Sensitivity engine'!$BB$10:$BB$43,0),1) -> 423,868 | AJ59: =INDEX('Sensitivity engine'!$AV$10:$AV$43,MATCH(AG59,'Sensitivity engine'!$BB$10:$BB$43,0),1) -> 423,842 | AL59: 10 | AM59: =INDEX('Sensitivity engine'!$AQ$10:$AQ$43,MATCH(AL59,'Sensitivity engine'!$BC$10:$BC$43,0),1) -> 140 - 159 or 90 - 99 | AN59: =INDEX('Sensitivity engine'!$AT$10:$AT$43,MATCH(AL59,'Sensitivity engine'!$BC$10:$BC$43,0),1) -> 3,237 | AO59: =INDEX('Sensitivity engine'!$AW$10:$AW$43,MATCH(AL59,'Sensitivity engine'!$BC$10:$BC$43,0),1) -> 2,958 | AP59: $145.66 | AQ59: $(133.08)
AB62: =AS19 -> Ulaanbaatar | AC62: =AC47 -> Rank ΔNet Budget Impact (CHD) | AD62: =Results!H29 -> $658,827.27 | AG62: =Results!N3 -> 0 | AH62: =AH47 -> Δ Net Budget Impact (Stroke) | AI62: =Results!H30 -> $657,638.62 | AL62: =Results!U3 -> 0 | AM62: =AM47 -> Δ ICER | AN62: =Results!I72 -> $747.73
AB64: Rank | AC64: Parameter | AD64: Lower Limit | AE64: Upper Limit | AG64: Rank | AH64: Parameter | AI64: Lower Limit | AJ64: Upper Limit | AL64: Rank | AM64: Parameter | AN64: Lower Limit | AO64: Upper Limit | AP64: Budget Impact with Lower Parameter | AQ64: Budget Impact with Upper Parameter
AB65: 1 | AC65: =INDEX('Sensitivity engine'!$BF$10:$BF$43,MATCH(AB65,'Sensitivity engine'!$BP$10:$BP$43,0),1) -> Programme Direct costs | AD65: =INDEX('Sensitivity engine'!$BG$10:$BG$43,MATCH(AB65,'Sensitivity engine'!$BP$10:$BP$43,0),1) -> 592,450 | AE65: =INDEX('Sensitivity engine'!$BJ$10:$BJ$43,MATCH(AB65,'Sensitivity engine'!$BP$10:$BP$43,0),1) -> 725,204 | AG65: 1 | AH65: =INDEX('Sensitivity engine'!$BF$10:$BF$43,MATCH(AG65,'Sensitivity engine'!$BQ$10:$BQ$43,0),1) -> Programme Direct costs | AI65: =INDEX('Sensitivity engine'!$BG$10:$BG$43,MATCH(AG65,'Sensitivity engine'!$BQ$10:$BQ$43,0),1) -> 592,450 | AJ65: =INDEX('Sensitivity engine'!$BK$10:$BK$43,MATCH(AG65,'Sensitivity engine'!$BQ$10:$BQ$43,0),1) -> 724,016 | AL65: 1 | AM65: =INDEX('Sensitivity engine'!$BF$10:$BF$43,MATCH(AL65,'Sensitivity engine'!$BR$10:$BR$43,0),1) -> Mean age | AN65: =INDEX('Sensitivity engine'!$BI$10:$BI$43,MATCH(AL65,'Sensitivity engine'!$BR$10:$BR$43,0),1) -> 1,018 | AO65: =INDEX('Sensitivity engine'!$BL$10:$BL$43,MATCH(AL65,'Sensitivity engine'!$BR$10:$BR$43,0),1) -> 530 | AP65: =AN65-AN$62 -> $270.00 | AQ65: =AO65-AN$62 -> $(217.81)
AB66: 2 | AC66: =INDEX('Sensitivity engine'!$BF$10:$BF$43,MATCH(AB66,'Sensitivity engine'!$BP$10:$BP$43,0),1) -> Cost Hypertension - uncontrolled | AD66: =INDEX('Sensitivity engine'!$BG$10:$BG$43,MATCH(AB66,'Sensitivity engine'!$BP$10:$BP$43,0),1) -> 664,406 | AE66: =INDEX('Sensitivity engine'!$BJ$10:$BJ$43,MATCH(AB66,'Sensitivity engine'!$BP$10:$BP$43,0),1) -> 653,248 | AG66: 2 | AH66: =INDEX('Sensitivity engine'!$BF$10:$BF$43,MATCH(AG66,'Sensitivity engine'!$BQ$10:$BQ$43,0),1) -> Cost Hypertension - uncontrolled | AI66: =INDEX('Sensitivity engine'!$BG$10:$BG$43,MATCH(AG66,'Sensitivity engine'!$BQ$10:$BQ$43,0),1) -> 664,406 | AJ66: =INDEX('Sensitivity engine'!$BK$10:$BK$43,MATCH(AG66,'Sensitivity engine'!$BQ$10:$BQ$43,0),1) -> 652,060 | AL66: 2 | AM66: =INDEX('Sensitivity engine'!$BF$10:$BF$43,MATCH(AL66,'Sensitivity engine'!$BR$10:$BR$43,0),1) -> Mortality multiplierHTN - Uncontrolled | AN66: =INDEX('Sensitivity engine'!$BI$10:$BI$43,MATCH(AL66,'Sensitivity engine'!$BR$10:$BR$43,0),1) -> 864 | AO66: =INDEX('Sensitivity engine'!$BL$10:$BL$43,MATCH(AL66,'Sensitivity engine'!$BR$10:$BR$43,0),1) -> 662 | AP66: =AN66-AN$62 -> $116.35 | AQ66: =AO66-AN$62 -> $(85.54)
AB67: 3 | AC67: =INDEX('Sensitivity engine'!$BF$10:$BF$43,MATCH(AB67,'Sensitivity engine'!$BP$10:$BP$43,0),1) -> Cost Hypertension - controlled | AD67: =INDEX('Sensitivity engine'!$BG$10:$BG$43,MATCH(AB67,'Sensitivity engine'!$BP$10:$BP$43,0),1) -> 653,248 | AE67: =INDEX('Sensitivity engine'!$BJ$10:$BJ$43,MATCH(AB67,'Sensitivity engine'!$BP$10:$BP$43,0),1) -> 664,406 | AG67: 3 | AH67: =INDEX('Sensitivity engine'!$BF$10:$BF$43,MATCH(AG67,'Sensitivity engine'!$BQ$10:$BQ$43,0),1) -> Cost Hypertension - controlled | AI67: =INDEX('Sensitivity engine'!$BG$10:$BG$43,MATCH(AG67,'Sensitivity engine'!$BQ$10:$BQ$43,0),1) -> 653,248 | AJ67: =INDEX('Sensitivity engine'!$BK$10:$BK$43,MATCH(AG67,'Sensitivity engine'!$BQ$10:$BQ$43,0),1) -> 663,218 | AL67: 3 | AM67: =INDEX('Sensitivity engine'!$BF$10:$BF$43,MATCH(AL67,'Sensitivity engine'!$BR$10:$BR$43,0),1) -> Programme Direct costs | AN67: =INDEX('Sensitivity engine'!$BI$10:$BI$43,MATCH(AL67,'Sensitivity engine'!$BR$10:$BR$43,0),1) -> 675 | AO67: =INDEX('Sensitivity engine'!$BL$10:$BL$43,MATCH(AL67,'Sensitivity engine'!$BR$10:$BR$43,0),1) -> 821 | AP67: $(72.86) | AQ67: $72.87
AB68: 4 | AC68: =INDEX('Sensitivity engine'!$BF$10:$BF$43,MATCH(AB68,'Sensitivity engine'!$BP$10:$BP$43,0),1) -> Cost Coronary heart disease/event | AD68: =INDEX('Sensitivity engine'!$BG$10:$BG$43,MATCH(AB68,'Sensitivity engine'!$BP$10:$BP$43,0),1) -> 659,313 | AE68: =INDEX('Sensitivity engine'!$BJ$10:$BJ$43,MATCH(AB68,'Sensitivity engine'!$BP$10:$BP$43,0),1) -> 658,342 | AG68: 4 | AH68: =INDEX('Sensitivity engine'!$BF$10:$BF$43,MATCH(AG68,'Sensitivity engine'!$BQ$10:$BQ$43,0),1) -> Cost Stroke/event | AI68: =INDEX('Sensitivity engine'!$BG$10:$BG$43,MATCH(AG68,'Sensitivity engine'!$BQ$10:$BQ$43,0),1) -> 658,827 | AJ68: =INDEX('Sensitivity engine'!$BK$10:$BK$43,MATCH(AG68,'Sensitivity engine'!$BQ$10:$BQ$43,0),1) -> 657,039 | AL68: 4 | AM68: =INDEX('Sensitivity engine'!$BF$10:$BF$43,MATCH(AL68,'Sensitivity engine'!$BR$10:$BR$43,0),1) -> Cost Hypertension - controlled | AN68: =INDEX('Sensitivity engine'!$BI$10:$BI$43,MATCH(AL68,'Sensitivity engine'!$BR$10:$BR$43,0),1) -> 699 | AO68: =INDEX('Sensitivity engine'!$BL$10:$BL$43,MATCH(AL68,'Sensitivity engine'!$BR$10:$BR$43,0),1) -> 796 | AP68: $(48.57) | AQ68: $48.58
AB69: 5 | AC69: =INDEX('Sensitivity engine'!$BF$10:$BF$43,MATCH(AB69,'Sensitivity engine'!$BP$10:$BP$43,0),1) -> Risk Coronary heart disease*(CVD) | AD69: =INDEX('Sensitivity engine'!$BG$10:$BG$43,MATCH(AB69,'Sensitivity engine'!$BP$10:$BP$43,0),1) -> 659,284 | AE69: =INDEX('Sensitivity engine'!$BJ$10:$BJ$43,MATCH(AB69,'Sensitivity engine'!$BP$10:$BP$43,0),1) -> 658,370 | AG69: 5 | AH69: =INDEX('Sensitivity engine'!$BF$10:$BF$43,MATCH(AG69,'Sensitivity engine'!$BQ$10:$BQ$43,0),1) -> Risk Stroke | AI69: =INDEX('Sensitivity engine'!$BG$10:$BG$43,MATCH(AG69,'Sensitivity engine'!$BQ$10:$BQ$43,0),1) -> 658,827 | AJ69: =INDEX('Sensitivity engine'!$BK$10:$BK$43,MATCH(AG69,'Sensitivity engine'!$BQ$10:$BQ$43,0),1) -> 657,156 | AL69: 5 | AM69: =INDEX('Sensitivity engine'!$BF$10:$BF$43,MATCH(AL69,'Sensitivity engine'!$BR$10:$BR$43,0),1) -> Cost Hypertension - uncontrolled | AN69: =INDEX('Sensitivity engine'!$BI$10:$BI$43,MATCH(AL69,'Sensitivity engine'!$BR$10:$BR$43,0),1) -> 792 | AO69: =INDEX('Sensitivity engine'!$BL$10:$BL$43,MATCH(AL69,'Sensitivity engine'!$BR$10:$BR$43,0),1) -> 703 | AP69: $44.29 | AQ69: $(44.28)
AB70: 6 | AC70: =INDEX('Sensitivity engine'!$BF$10:$BF$43,MATCH(AB70,'Sensitivity engine'!$BP$10:$BP$43,0),1) -> 140 - 159 or 90 - 99 | AD70: =INDEX('Sensitivity engine'!$BG$10:$BG$43,MATCH(AB70,'Sensitivity engine'!$BP$10:$BP$43,0),1) -> 658,994 | AE70: =INDEX('Sensitivity engine'!$BJ$10:$BJ$43,MATCH(AB70,'Sensitivity engine'!$BP$10:$BP$43,0),1) -> 658,661 | AG70: 6 | AH70: =INDEX('Sensitivity engine'!$BF$10:$BF$43,MATCH(AG70,'Sensitivity engine'!$BQ$10:$BQ$43,0),1) -> 140 - 159 or 90 - 99 | AI70: =INDEX('Sensitivity engine'!$BG$10:$BG$43,MATCH(AG70,'Sensitivity engine'!$BQ$10:$BQ$43,0),1) -> 658,994 | AJ70: =INDEX('Sensitivity engine'!$BK$10:$BK$43,MATCH(AG70,'Sensitivity engine'!$BQ$10:$BQ$43,0),1) -> 657,424 | AL70: 6 | AM70: =INDEX('Sensitivity engine'!$BF$10:$BF$43,MATCH(AL70,'Sensitivity engine'!$BR$10:$BR$43,0),1) -> Utility b/w Age 70-79 | AN70: =INDEX('Sensitivity engine'!$BI$10:$BI$43,MATCH(AL70,'Sensitivity engine'!$BR$10:$BR$43,0),1) -> 795 | AO70: =INDEX('Sensitivity engine'!$BL$10:$BL$43,MATCH(AL70,'Sensitivity engine'!$BR$10:$BR$43,0),1) -> 706 | AP70: $46.84 | AQ70: $(41.61)
AB71: 7 | AC71: =INDEX('Sensitivity engine'!$BF$10:$BF$43,MATCH(AB71,'Sensitivity engine'!$BP$10:$BP$43,0),1) -> 160 - 179 or 100 - 109 | AD71: =INDEX('Sensitivity engine'!$BG$10:$BG$43,MATCH(AB71,'Sensitivity engine'!$BP$10:$BP$43,0),1) -> 658,973 | AE71: =INDEX('Sensitivity engine'!$BJ$10:$BJ$43,MATCH(AB71,'Sensitivity engine'!$BP$10:$BP$43,0),1) -> 658,682 | AG71: 7 | AH71: =INDEX('Sensitivity engine'!$BF$10:$BF$43,MATCH(AG71,'Sensitivity engine'!$BQ$10:$BQ$43,0),1) -> 160 - 179 or 100 - 109 | AI71: =INDEX('Sensitivity engine'!$BG$10:$BG$43,MATCH(AG71,'Sensitivity engine'!$BQ$10:$BQ$43,0),1) -> 658,973 | AJ71: =INDEX('Sensitivity engine'!$BK$10:$BK$43,MATCH(AG71,'Sensitivity engine'!$BQ$10:$BQ$43,0),1) -> 657,452 | AL71: 7 | AM71: =INDEX('Sensitivity engine'!$BF$10:$BF$43,MATCH(AL71,'Sensitivity engine'!$BR$10:$BR$43,0),1) -> Mortality multiplier-HTN - Controlled | AN71: =INDEX('Sensitivity engine'!$BI$10:$BI$43,MATCH(AL71,'Sensitivity engine'!$BR$10:$BR$43,0),1) -> 711 | AO71: =INDEX('Sensitivity engine'!$BL$10:$BL$43,MATCH(AL71,'Sensitivity engine'!$BR$10:$BR$43,0),1) -> 789 | AP71: $(36.84) | AQ71: $40.93
AB72: 8 | AC72: =INDEX('Sensitivity engine'!$BF$10:$BF$43,MATCH(AB72,'Sensitivity engine'!$BP$10:$BP$43,0),1) -> Mean age | AD72: =INDEX('Sensitivity engine'!$BG$10:$BG$43,MATCH(AB72,'Sensitivity engine'!$BP$10:$BP$43,0),1) -> 658,786 | AE72: =INDEX('Sensitivity engine'!$BJ$10:$BJ$43,MATCH(AB72,'Sensitivity engine'!$BP$10:$BP$43,0),1) -> 658,987 | AG72: 8 | AH72: =INDEX('Sensitivity engine'!$BF$10:$BF$43,MATCH(AG72,'Sensitivity engine'!$BQ$10:$BQ$43,0),1) -> Mean age | AI72: =INDEX('Sensitivity engine'!$BG$10:$BG$43,MATCH(AG72,'Sensitivity engine'!$BQ$10:$BQ$43,0),1) -> 658,786 | AJ72: =INDEX('Sensitivity engine'!$BK$10:$BK$43,MATCH(AG72,'Sensitivity engine'!$BQ$10:$BQ$43,0),1) -> 657,836 | AL72: 8 | AM72: =INDEX('Sensitivity engine'!$BF$10:$BF$43,MATCH(AL72,'Sensitivity engine'!$BR$10:$BR$43,0),1) -> Utility b/w Age 60-69 | AN72: =INDEX('Sensitivity engine'!$BI$10:$BI$43,MATCH(AL72,'Sensitivity engine'!$BR$10:$BR$43,0),1) -> 780 | AO72: =INDEX('Sensitivity engine'!$BL$10:$BL$43,MATCH(AL72,'Sensitivity engine'!$BR$10:$BR$43,0),1) -> 718 | AP72: $31.92 | AQ72: $(29.40)
AB73: 9 | AC73: =INDEX('Sensitivity engine'!$BF$10:$BF$43,MATCH(AB73,'Sensitivity engine'!$BP$10:$BP$43,0),1) -> 130 - 139 or 85 - 89 | AD73: =INDEX('Sensitivity engine'!$BG$10:$BG$43,MATCH(AB73,'Sensitivity engine'!$BP$10:$BP$43,0),1) -> 658,910 | AE73: =INDEX('Sensitivity engine'!$BJ$10:$BJ$43,MATCH(AB73,'Sensitivity engine'!$BP$10:$BP$43,0),1) -> 658,745 | AG73: 9 | AH73: =INDEX('Sensitivity engine'!$BF$10:$BF$43,MATCH(AG73,'Sensitivity engine'!$BQ$10:$BQ$43,0),1) -> 130 - 139 or 85 - 89 | AI73: =INDEX('Sensitivity engine'!$BG$10:$BG$43,MATCH(AG73,'Sensitivity engine'!$BQ$10:$BQ$43,0),1) -> 658,910 | AJ73: =INDEX('Sensitivity engine'!$BK$10:$BK$43,MATCH(AG73,'Sensitivity engine'!$BQ$10:$BQ$43,0),1) -> 657,547 | AL73: 9 | AM73: =INDEX('Sensitivity engine'!$BF$10:$BF$43,MATCH(AL73,'Sensitivity engine'!$BR$10:$BR$43,0),1) -> 140 - 159 or 90 - 99 | AN73: =INDEX('Sensitivity engine'!$BI$10:$BI$43,MATCH(AL73,'Sensitivity engine'!$BR$10:$BR$43,0),1) -> 778 | AO73: =INDEX('Sensitivity engine'!$BL$10:$BL$43,MATCH(AL73,'Sensitivity engine'!$BR$10:$BR$43,0),1) -> 719 | AP73: $30.71 | AQ73: $(28.28)
AB74: 10 | AC74: =INDEX('Sensitivity engine'!$BF$10:$BF$43,MATCH(AB74,'Sensitivity engine'!$BP$10:$BP$43,0),1) -> ≥ 180 or ≥ 110 | AD74: =INDEX('Sensitivity engine'!$BG$10:$BG$43,MATCH(AB74,'Sensitivity engine'!$BP$10:$BP$43,0),1) -> 658,876 | AE74: =INDEX('Sensitivity engine'!$BJ$10:$BJ$43,MATCH(AB74,'Sensitivity engine'!$BP$10:$BP$43,0),1) -> 658,778 | AG74: 10 | AH74: =INDEX('Sensitivity engine'!$BF$10:$BF$43,MATCH(AG74,'Sensitivity engine'!$BQ$10:$BQ$43,0),1) -> ≥ 180 or ≥ 110 | AI74: =INDEX('Sensitivity engine'!$BG$10:$BG$43,MATCH(AG74,'Sensitivity engine'!$BQ$10:$BQ$43,0),1) -> 658,876 | AJ74: =INDEX('Sensitivity engine'!$BK$10:$BK$43,MATCH(AG74,'Sensitivity engine'!$BQ$10:$BQ$43,0),1) -> 657,576 | AL74: 10 | AM74: =INDEX('Sensitivity engine'!$BF$10:$BF$43,MATCH(AL74,'Sensitivity engine'!$BR$10:$BR$43,0),1) -> Risk Stroke | AN74: =INDEX('Sensitivity engine'!$BI$10:$BI$43,MATCH(AL74,'Sensitivity engine'!$BR$10:$BR$43,0),1) -> 774 | AO74: =INDEX('Sensitivity engine'!$BL$10:$BL$43,MATCH(AL74,'Sensitivity engine'!$BR$10:$BR$43,0),1) -> 722 | AP74: $26.30 | AQ74: $(26.23)

Sheet PSA
E2: Senegal CE threshold (PPP adjusted)
E3: Mongolia CE threshold (PPP adjusted) | AX3: $73-$1,166 / QALY | BT3: $1,624-$4,849 / QALY
E4: Brazil CE threshold (PPP adjusted) | AB4: $3,210-$10,122 / QALY
AA7: Willingness to pay (WTP) threshold | AB7: =CEAC!H36 -> 5000 | AD7: =10122*5 -> 50610 | AW7: Willingness to pay (WTP) threshold | AX7: =CEAC!Q36 -> 5000 | BS7: Willingness to pay (WTP) threshold | BT7: =CEAC!AB36 -> 5000
AA8: Maximum WTP for which CEAC is to be estimated | AB8: =threshold_stp*20 -> 100,000 | AD8: =AD7/20 -> 2530.5 | AW8: Maximum WTP for which CEAC is to be estimated | AX8: =threshold_stp_DK*20 -> 100,000 | AZ8: =1166*5/20 -> 291.5 | BS8: Maximum WTP for which CEAC is to be estimated | BT8: =threshold_stp_UB*20 -> 100,000 | BV8: =4849*5/20 -> 1212.25
C11: Select No. of PSA Simulations: | E11: =CEAC!F39 -> 1000
C12: ='Sensitivity engine'!G10 -> Sao Paulo | D12: =Results!B96 -> Sao Paulo | E12: SP | F12: DK | G12: DK | H12: UB | I12: UB | L12: SP | AG12: ='Sensitivity engine'!H10 -> Dakar | BC12: ='Sensitivity engine'!I10 -> UlaanBaatar
D13: =IFERROR(Results!D$128,0) -> 571.59 | E13: =IFERROR(Results!C$128,0) -> 448,249.02 | F13: =IFERROR(Results!D$129,0) -> 121.4759828 | G13: =IFERROR(Results!C$129,0) -> 375540.5569 | H13: =IFERROR(Results!D$130,0) -> 884.42 | I13: =IFERROR(Results!C$130,0) -> 661312.6826 | O13: Quadrant 2 | Q13: Quadrant 1 | S13: Quadrant 4 | U13: Quadrant 3 | X13: ICER threshold | Y13: 100000 | AH13: 802.31 | AI13: 0.29 | AK13: Quadrant 2 | AM13: Quadrant 1 | AO13: Quadrant 4 | AQ13: Quadrant 3 | AT13: ICER threshold | AU13: 100000 | BD13: 802.31 | BE13: 0.29 | BG13: Quadrant 2 | BI13: Quadrant 1 | BK13: Quadrant 4 | BM13: Quadrant 3 | BP13: ICER threshold | BQ13: 100000
C14: Simulation | D14: Incr.QALY | E14: Incr. Cost | F14: Incr.QALY | G14: Incr. Cost | H14: Incr.QALY | I14: Incr. Cost | L14: =D14 -> Incr.QALY | M14: Incr. Cost | N14: ICER | O14: Neg.QALY | P14: Cost | Q14: Normal QALY | R14: Normal Cost | S14: Pos.QALY | T14: Neg.cost | U14: Both neg.QALY | V14: Both neg.Cost | X14: Net Monetary Benefits | Y14: Is the treatment optimal? | AA14: Threshold | AB14: CARDIO | AC14: No CARDIO | AG14: Simulation | AH14: Incr.QALY | AI14: Incr. Cost | AJ14: ICER | AK14: Neg.QALY | AL14: Cost | AM14: Normal QALY | AN14: Normal Cost | AO14: Pos.QALY | AP14: Neg.cost | AQ14: Both neg.QALY | AR14: Both neg.Cost | AT14: Net Monetary Benefits | AU14: Is the treatment optimal? | AW14: Threshold | AX14: =AB14 -> CARDIO | AY14: =AC14 -> No CARDIO | BC14: Simulation | BD14: Incr.QALY | BE14: Incr. Cost | BF14: ICER | BG14: Neg.QALY | BH14: Cost | BI14: Normal QALY | BJ14: Normal Cost | BK14: Pos.QALY | BL14: Neg.cost | BM14: Both neg.QALY | BN14: Both neg.Cost | BP14: Net Monetary Benefits | BQ14: Is the treatment optimal? | BS14: Threshold | BT14: =AX14 -> CARDIO | BU14: =AY14 -> No CARDIO
C15: 1 | D15: 403.110298 | E15: 2369080.134 | F15: 171.575748 | G15: 1022665.125 | H15: 1092.681194 | I15: 792615.0695 | L15: =D15 -> 403.1103 | M15: =E15 -> 2369080.1336 | N15: =IFERROR(M15/L15,"") -> 5,877.00 | O15: =IF(AND(L15<0,M15>0),L15,#N/A) ->  | P15: =IF(AND(L15<0,M15>0),M15,#N/A) ->  | Q15: =IF(AND(L15>0,M15>0),L15,#N/A) -> 403.1103 | R15: =IF(AND(L15>0,M15>0),M15,#N/A) -> 2369080.1336 | S15: =IF(AND(L15>0,M15<0),L15,#N/A) ->  | T15: =IF(AND(L15>0,M15<0),M15,#N/A) ->  | U15: =IF(AND(L15<0,M15<0),L15,#N/A) ->  | V15: =IF(AND(L15<0,M15<0),M15,#N/A) ->  | X15: =IF(C15 > TotalSimulations,"",threshold*L15-M15) -> $37,941,949.67 | Y15: =IF(X15>0,1,0) -> 1 | AA15: 0 | AB15: 32% | AC15: =1-AB15 -> 68% | AG15: 1 | AH15: =F15 -> 171.5757 | AI15: =G15 -> 1022665.1255 | AJ15: =IFERROR(AI15/AH15,"") -> 5,960.43 | AK15: =IF(AND(AH15<0,AI15>0),AH15,#N/A) ->  | AL15: =IF(AND(AH15<0,AI15>0),AI15,#N/A) ->  | AM15: =IF(AND(AH15>0,AI15>0),AH15,#N/A) -> 171.5757 | AN15: =IF(AND(AH15>0,AI15>0),AI15,#N/A) -> 1022665.1255 | AO15: =IF(AND(AH15>0,AI15<0),AH15,#N/A) ->  | AP15: =IF(AND(AH15>0,AI15<0),AI15,#N/A) ->  | AQ15: =IF(AND(AH15<0,AI15<0),AH15,#N/A) ->  | AR15: =IF(AND(AH15<0,AI15<0),AI15,#N/A) ->  | AT15: =IF(AG15 > TotalSimulations,"",threshold_DK*AH15-AI15) -> $16,134,909.68 | AU15: =IF(AT15>0,1,0) -> 1 | AW15: 0 | AX15: 29% | AY15: =1-AX15 -> 71% | BC15: 1 | BD15: =H15 -> 1092.6812 | BE15: =I15 -> 792615.0695 | BF15: =IFERROR(BE15/BD15,"") -> 725.39 | BG15: =IF(AND(BD15<0,BE15>0),BD15,#N/A) ->  | BH15: =IF(AND(BD15<0,BE15>0),BE15,#N/A) ->  | BI15: =IF(AND(BD15>0,BE15>0),BD15,#N/A) -> 1092.6812 | BJ15: =IF(AND(BD15>0,BE15>0),BE15,#N/A) -> 792615.0695 | BK15: =IF(AND(BD15>0,BE15<0),BD15,#N/A) ->  | BL15: =IF(AND(BD15>0,BE15<0),BE15,#N/A) ->  | BM15: =IF(AND(BD15<0,BE15<0),BD15,#N/A) ->  | BN15: =IF(AND(BD15<0,BE15<0),BE15,#N/A) ->  | BP15: =IF(BC15 > TotalSimulations,"",threshold_UB*BD15-BE15) -> $108,475,504.35 | BQ15: =IF(BP15>0,1,0) -> 1 | BS15: 0 | BT15: 0% | BU15: =1-BT15 -> 100%
C16: 2 | D16: 569.6733843 | E16: 14552369.21 | F16: -24.75379987 | G16: 9326306.499 | H16: 722.1788467 | I16: 3096034.179 | L16: =D16 -> 569.6734 | M16: =E16 -> 14552369.2119 | N16: =IFERROR(M16/L16,"") -> 25,545.11 | Q16: 569.6734 | R16: 14552369.2119 | X16: $42,414,969.22 | Y16: =IF(X16>0,1,0) -> 1 | AA16: =AA15+threshold_stp -> $5,000 | AB16: 50% | AC16: =1-AB16 -> 50% | AG16: 2 | AH16: =F16 -> -24.7538 | AI16: =G16 -> 9326306.4989 | AJ16: =IFERROR(AI16/AH16,"") -> (376,762.62) | AK16: -24.7538 | AL16: 9326306.4989 | AT16: $(11,801,686.49) | AU16: =IF(AT16>0,1,0) -> 0 | AW16: =AW15+threshold_stp_DK -> $5,000.00 | AX16: 38% | AY16: =1-AX16 -> 62% | BC16: 2 | BD16: =H16 -> 722.1788 | BE16: =I16 -> 3096034.1792 | BF16: =IFERROR(BE16/BD16,"") -> 4,287.07 | BI16: 722.1788 | BJ16: 3096034.1792 | BP16: $69,121,850.49 | BQ16: =IF(BP16>0,1,0) -> 1 | BS16: =BS15+threshold_stp_UB -> $5,000.00 | BT16: 79% | BU16: =1-BT16 -> 21%
C17: 3 | D17: 455.4430588 | E17: 6799734.134 | F17: 176.2859103 | G17: 190940.8849 | H17: 980.0489523 | I17: 1800135.263 | L17: 455.4431 | M17: 6799734.1339 | N17: 14,929.93 | Q17: 455.4431 | R17: 6799734.1339 | X17: $38,744,571.75 | Y17: 1 | AA17: $10,000 | AB17: 60% | AC17: 40% | AG17: 3 | AH17: 176.2859 | AI17: 190940.8849 | AJ17: 1,083.13 | AM17: 176.2859 | AN17: 190940.8849 | AT17: $17,437,650.15 | AU17: 1 | AW17: $10,000.00 | AX17: 44% | AY17: 56% | BC17: 3 | BD17: 980.0490 | BE17: 1800135.2633 | BF17: 1,836.78 | BI17: 980.0490 | BJ17: 1800135.2633 | BP17: $96,204,759.97 | BQ17: 1 | BS17: $10,000.00 | BT17: 87% | BU17: 13%
C18: 4 | D18: 298.4154239 | E18: 3217937.24 | F18: 44.67671273 | G18: 2751629.65 | H18: 464.6697195 | I18: 2008525.92 | L18: 298.4154 | M18: 3217937.2396 | N18: 10,783.41 | Q18: 298.4154 | R18: 3217937.2396 | X18: $26,623,605.15 | Y18: 1 | AA18: $15,000 | AB18: 66% | AC18: 34% | AG18: 4 | AH18: 44.6767 | AI18: 2751629.6503 | AJ18: 61,589.80 | AM18: 44.6767 | AN18: 2751629.6503 | AT18: $1,716,041.62 | AU18: 1 | AW18: $15,000.00 | AX18: 48% | AY18: 52% | BC18: 4 | BD18: 464.6697 | BE18: 2008525.9201 | BF18: 4,322.48 | BI18: 464.6697 | BJ18: 2008525.9201 | BP18: $44,458,446.03 | BQ18: 1 | BS18: $15,000.00 | BT18: 89% | BU18: 11%
C19: 5 | D19: 544.6104907 | E19: 27587197.47 | F19: 157.7067527 | G19: 6210654.464 | H19: 1348.472255 | I19: 1508301.333 | L19: 544.6105 | M19: 27587197.4674 | N19: 50,654.91 | Q19: 544.6105 | R19: 27587197.4674 | X19: $26,873,851.60 | Y19: 1 | AA19: $20,000 | AB19: 71% | AC19: 30% | AG19: 5 | AH19: 157.7068 | AI19: 6210654.4640 | AJ19: 39,381.03 | AM19: 157.7068 | AN19: 6210654.4640 | AT19: $9,560,020.81 | AU19: 1 | AW19: $20,000.00 | AX19: 51% | AY19: 49% | BC19: 5 | BD19: 1348.4723 | BE19: 1508301.3328 | BF19: 1,118.53 | BI19: 1348.4723 | BJ19: 1508301.3328 | BP19: $133,338,924.18 | BQ19: 1 | BS19: $20,000.00 | BT19: 91% | BU19: 9%
C20: 6 | D20: 531.7489646 | E20: 6839509.563 | F20: 126.349265 | G20: 1420196.017 | H20: 701.7486289 | I20: 922585.3693 | L20: 531.7490 | M20: 6839509.5627 | N20: 12,862.29 | Q20: 531.7490 | R20: 6839509.5627 | X20: $46,335,386.89 | Y20: 1 | AA20: $25,000 | AB20: 74% | AC20: 27% | AG20: 6 | AH20: 126.3493 | AI20: 1420196.0169 | AJ20: 11,240.24 | AM20: 126.3493 | AN20: 1420196.0169 | AT20: $11,214,730.49 | AU20: 1 | AW20: $25,000.00 | AX20: 54% | AY20: 46% | BC20: 6 | BD20: 701.7486 | BE20: 922585.3693 | BF20: 1,314.69 | BI20: 701.7486 | BJ20: 922585.3693 | BP20: $69,252,277.52 | BQ20: 1 | BS20: $25,000.00 | BT20: 93% | BU20: 7%
C21: 7 | D21: 257.1890389 | E21: 537161.859 | F21: 129.6061026 | G21: -722725.9937 | H21: 401.2088706 | I21: 902062.8584 | L21: 257.1890 | M21: 537161.8590 | N21: 2,088.59 | Q21: 257.1890 | R21: 537161.8590 | X21: $25,181,742.03 | Y21: 1 | AA21: $30,000 | AB21: 76% | AC21: 24% | AG21: 7 | AH21: 129.6061 | AI21: -722725.9937 | AJ21: (5,576.33) | AO21: 129.6061 | AP21: -722725.9937 | AT21: $13,683,336.26 | AU21: 1 | AW21: $30,000.00 | AX21: 56% | AY21: 45% | BC21: 7 | BD21: 401.2089 | BE21: 902062.8584 | BF21: 2,248.36 | BI21: 401.2089 | BJ21: 902062.8584 | BP21: $39,218,824.20 | BQ21: 1 | BS21: $30,000.00 | BT21: 94% | BU21: 6%
C22: 8 | D22: 1259.443524 | E22: -996264.958 | F22: -113.4456251 | G22: 14171400.23 | H22: 1620.357505 | I22: 1679697.245 | L22: 1259.4435 | M22: -996264.9580 | N22: (791.04) | S22: 1259.4435 | T22: -996264.9580 | X22: $126,940,617.39 | Y22: 1 | AA22: $35,000 | AB22: 79% | AC22: 21% | AG22: 8 | AH22: -113.4456 | AI22: 14171400.2295 | AJ22: (124,918.00) | AK22: -113.4456 | AL22: 14171400.2295 | AT22: $(25,515,962.74) | AU22: 0 | AW22: $35,000.00 | AX22: 57% | AY22: 43% | BC22: 8 | BD22: 1620.3575 | BE22: 1679697.2450 | BF22: 1,036.62 | BI22: 1620.3575 | BJ22: 1679697.2450 | BP22: $160,356,053.25 | BQ22: 1 | BS22: $35,000.00 | BT22: 94% | BU22: 6%
C23: 9 | D23: 495.1436038 | E23: -327601.9213 | F23: 236.4902361 | G23: -1145341.911 | H23: -233.6502244 | I23: 20687255.28 | L23: 495.1436 | M23: -327601.9213 | N23: (661.63) | S23: 495.1436 | T23: -327601.9213 | X23: $49,841,962.30 | Y23: 1 | AA23: $40,000 | AB23: 80% | AC23: 20% | AG23: 9 | AH23: 236.4902 | AI23: -1145341.9108 | AJ23: (4,843.08) | AO23: 236.4902 | AP23: -1145341.9108 | AT23: $24,794,365.52 | AU23: 1 | AW23: $40,000.00 | AX23: 58% | AY23: 42% | BC23: 9 | BD23: -233.6502 | BE23: 20687255.2827 | BF23: (88,539.42) | BG23: -233.6502 | BH23: 20687255.2827 | BP23: $(44,052,277.72) | BQ23: 0 | BS23: $40,000.00 | BT23: 94% | BU23: 6%
C24: 10 | D24: 100.5325793 | E24: 23310448 | F24: 162.9208897 | G24: -573961.3432 | H24: 732.0385609 | I24: 4113690.983 | L24: 100.5326 | M24: 23310448.0021 | N24: 231,869.59 | Q24: 100.5326 | R24: 23310448.0021 | X24: $(13,257,190.07) | Y24: 0 | AA24: $45,000 | AB24: 81% | AC24: 19% | AG24: 10 | AH24: 162.9209 | AI24: -573961.3432 | AJ24: (3,522.95) | AO24: 162.9209 | AP24: -573961.3432 | AT24: $16,866,050.31 | AU24: 1 | AW24: $45,000.00 | AX24: 59% | AY24: 41% | BC24: 10 | BD24: 732.0386 | BE24: 4113690.9827 | BF24: 5,619.50 | BI24: 732.0386 | BJ24: 4113690.9827 | BP24: $69,090,165.11 | BQ24: 1 | BS24: $45,000.00 | BT24: 94% | BU24: 6%
C25: 11 | D25: 408.413436 | E25: -2260173.553 | F25: 139.022126 | G25: -501216.7098 | H25: 1015.859097 | I25: 813378.8561 | L25: 408.4134 | M25: -2260173.5534 | N25: (5,534.03) | S25: 408.4134 | T25: -2260173.5534 | X25: $43,101,517.15 | Y25: 1 | AA25: $50,000 | AB25: 82% | AC25: 18% | AG25: 11 | AH25: 139.0221 | AI25: -501216.7098 | AJ25: (3,605.30) | AO25: 139.0221 | AP25: -501216.7098 | AT25: $14,403,429.31 | AU25: 1 | AW25: $50,000.00 | AX25: 61% | AY25: 39% | BC25: 11 | BD25: 1015.8591 | BE25: 813378.8561 | BF25: 800.68 | BI25: 1015.8591 | BJ25: 813378.8561 | BP25: $100,772,530.86 | BQ25: 1 | BS25: $50,000.00 | BT25: 94% | BU25: 6%
C26: 12 | D26: 931.3347392 | E26: -791681.2583 | F26: 70.87548856 | G26: 2759284.609 | H26: 1608.115134 | I26: 782954.3571 | L26: 931.3347 | M26: -791681.2583 | N26: (850.05) | S26: 931.3347 | T26: -791681.2583 | X26: $93,925,155.18 | Y26: 1 | AA26: $55,000 | AB26: 83% | AC26: 17% | AG26: 12 | AH26: 70.8755 | AI26: 2759284.6091 | AJ26: 38,931.44 | AM26: 70.8755 | AN26: 2759284.6091 | AT26: $4,328,264.25 | AU26: 1 | AW26: $55,000.00 | AX26: 61% | AY26: 39% | BC26: 12 | BD26: 1608.1151 | BE26: 782954.3571 | BF26: 486.88 | BI26: 1608.1151 | BJ26: 782954.3571 | BP26: $160,028,559.00 | BQ26: 1 | BS26: $55,000.00 | BT26: 94% | BU26: 6%
